Workbook

Sheet Cover sheet
B10: Part 4 Input methodologies Review 2023 - draft decisions
B13: Cost of capital topic paper calculations spreadsheet: NSS spreadsheet model and WACC percentile spreadsheet model
B15: Version 2
B20: Date: | C20: 2023-07-12

Sheet WACC
B1: WACC estimates for EDBs/Transpower (for illustrative purposes only)
B3: WACC estimate for a five-year term
D4: Inputs
B5: Parameter | C5: Estimates | E5: Standard error
B6: Risk-free rate (as at 1 March 2023) | C6: 0.0431
B7: Debt risk premium | C7: 0.0151 | D7: NZCC28 2 Aug 2022 | E7: 0.0015 | F7: Draft decision
B8: Leverage | C8: 0.41 | D8: Draft decision
B9: Asset beta | C9: 0.35 | D9: Draft decision | E9: 0.12 | F9: Draft decision
B10: Debt beta | C10: 0 | D10: Draft decision
B11: TAMRP | C11: 0.07 | D11: Draft decision | E11: 0.015 | F11: Draft decision
B12: Corporate tax rate | C12: 0.28 | D12: Draft decision
B13: Investor tax rate | C13: 0.28 | D13: Draft decision
B14: Debt issuance costs | C14: 0.002 | D14: Draft decision
B15: Equity beta | C15: 0.59
B16: Cost of equity | C16: =C6*(1-C13)+C11*C15 -> 0.072332
B17: Cost of debt | C17: =C6+C7+C14 -> 0.0602
B18: Vanilla WACC (mid-point) | C18: =C8*C17+(1-C8)*C16 -> 0.06735788 | E18: =ROUND(SQRT((E11^2)*(E9^2)+(C11^2)*(E9^2)+(C9^2)*(E11^2)+((E7^2)*(E8^2)+(C7^2)*(E8^2)+(C8^2)*(E7^2))),20) -> 0.01008666075
B19: Vanilla WACC (65th percentile) | C19: =C22*E18+C18 -> 0.07124124439
B20: Post-tax WACC (mid-point) | C20: =C8*C17*(1-C13)+(1-C8)*C16 -> 0.06044692 | E20: =SQRT((E11^2)*(E9^2)+(C11^2)*(E9^2)+(C9^2)*(E11^2)+((1-C12)^2)*((C8^2)*(E7^2))) -> 0.01007762729
B21: Post-tax WACC (65th percentile) | C21: =C22*E20+C20 -> 0.06432680651
B22: 65th Z-score | C22: 0.385
B26: WACC estimates for GPBs (for illustrative purposes only)
B28: WACC estimate for a five-year term
B29: Parameter | D29: Inputs
C30: Estimates | E30: Standard error
B31: Risk-free rate (as at 1 March 2023) | C31: 0.0431
B32: Debt risk premium | C32: 0.0143 | D32: NZCC28 2 Aug 2022 | E32: 0.0015 | F32: Draft decision
B33: Leverage | C33: 0.41 | D33: Draft decision
B34: Asset beta | C34: 0.4 | D34: Draft decision | E34: 0.12 | F34: Draft decision
B35: Debt beta | C35: 0 | D35: Draft decision
B36: TAMRP | C36: 0.07 | D36: Draft decision | E36: 0.015 | F36: Draft decision
B37: Corporate tax rate | C37: 0.28 | D37: Draft decision
B38: Investor tax rate | C38: 0.28 | D38: Draft decision
B39: Debt issuance costs | C39: 0.002 | D39: Draft decision
B40: Equity beta | C40: 0.68
B41: Cost of equity | C41: =C31*(1-C38)+C40*C36 -> 0.078632
B42: Cost of debt | C42: =C31+C32+C39 -> 0.0594
B43: Vanilla WACC (mid-point) | C43: =C33*C42+(1-C33)*C41 -> 0.07074688 | E43: =ROUND(SQRT((E36^2)*(E34^2)+(C36^2)*(E34^2)+(C34^2)*(E36^2)+((E32^2)*(E33^2)+(C33^2)*(E33^2)+(C33^2)*(E32^2))),20) -> 0.01049658159
B44: Post-tax WACC (mid-point) | C44: =C33*C42*(1-C38)+(1-C33)*C41 -> 0.06392776 | E44: =SQRT((E36^2)*(E34^2)+(C36^2)*(E34^2)+(C34^2)*(E36^2)+((1-C37)^2)*((C33^2)*(E32^2))) -> 0.01048790121
B48: WACC estimates for airports (for illustrative purposes only)
B50: WACC estimate for a five-year term
B51: Parameter | D51: Inputs
C52: Estimates | E52: Standard error
B53: Risk-free rate (as at 1 March 2023) | C53: 0.0431
B54: Debt risk premium | C54: 0.0117 | D54: NZCC28 2 Aug 2022 | E54: 0.0015 | F54: Draft decision
B55: Leverage | C55: 0.26 | D55: Draft decision
B56: Asset beta | C56: 0.55 | D56: Draft decision | E56: 0.18 | F56: Draft decision
B57: Debt beta | C57: 0 | D57: Draft decision
B58: TAMRP | C58: 0.07 | D58: Draft decision | E58: 0.015 | F58: Draft decision
B59: Corporate tax rate | C59: 0.28 | D59: Draft decision
B60: Investor tax rate | C60: 0.28 | D60: Draft decision
B61: Debt issuance costs | C61: 0.002 | D61: Draft decision
B62: Equity beta | C62: 0.74
B63: Cost of equity | C63: =C53*(1-C60)+C62*C58 -> 0.082832
B64: Cost of debt | C64: =C53+C54+C61 -> 0.0568
B65: Vanilla WACC (mid-point) | C65: =C55*C64+(1-C55)*C63 -> 0.07606368 | E65: =SQRT((E58^2)*(E56^2)+(C58^2)*(E56^2)+(C56^2)*(E58^2)+((E54^2)*(E55^2)+(C54^2)*(E55^2)+(C55^2)*(E54^2))) -> 0.01530570482
B66: Post-tax WACC (mid-point) | C66: =C55*C64*(1-C60)+(1-C55)*C63 -> 0.07192864 | E66: =SQRT((E58^2)*(E56^2)+(C58^2)*(E56^2)+(C56^2)*(E58^2)+((1-C59)^2)*((C55^2)*(E54^2))) -> 0.01530331169

Sheet ComCom models>>
A1: Divider sheet: Models used by Commerce Commission in the Draft Decision
B3: This sheet is intentionally left blank.

Sheet WACC uplift model
C2: Assumptions | H2: WACC uplift model: Given the cost of outages, what is the optimal WACC uplift? This model takes assumptions on the size of the asset base, the 'gap' between the required and regulatory WACC sufficient to cause underinvestment, and the cost of outages. The model then calculates the optimal WACC percentile given the assumptions. The model assumes relationships that are wider than those listed to the left. Please see the topic paper for a full explanation. The parameters are explained in the topic paper. We note that: -The RAB of $18.4 billion is the combined EDB and Transpower RAB. -We avaluate the Cut off WACC gap at 0.5% and 1%. Please note the calculation is invariant to the what mid-point WACC is chosen, it is variant to the standard error of the WACC
D5: RAB | E5: 18400 | F5: $m
D6: Tax rate | E6: 0.28
D8: Cut off WACC Gap | E8: 0.005
D10: WACC mid-point (post-tax) | E10: 0.0488241
D11: WACC standard error | E11: 0.0105
D12: Estimated cost of outages | E12: 1000 | F12: $m
C16: Goal Seek Calculations | H16: Goal seek to find the benefits that justify the assumed percentile | O16: How the estimation model is derived
D18: RAB | E18: =E5/(1-$E6) -> 25555.55556 | F18: $m | K18: Goal seek change cell | O18: Minimise the following formula for a given WACC
D19: WACC percentile | E19: 0.5 | K19: Goal seek target cell
D21: Uplift | E21: =_xlfn.NORM.INV(E19,$E10,$E11)-$E10 -> 0 | K21: We aim to solve for the percentile such that the target cell is solved for zero.
D22: RAB/c | E22: =E18/E12 -> 25.55555556
D23: f(w) | E23: =_xlfn.NORM.DIST(E21+$E10+E8,$E10,$E11,FALSE) -> 33.92196718
D24: RAB/c-f(w) | E24: =E22-E23 -> -8.36641162
H26: Image of goal seek used
P27: You can then solve for the optimal WACC, w, using this formula
P29: Definitions
P30: w | Q30: the WACC applied for price controls (i.e WACC inc. any uplift)
P31: F(w) | Q31: the cumulative distribution function for w
P32: f(w) | Q32: the probability density function for w
P33: c | Q33: the expected costs of outages
P34: RAB | Q34: the size of the asset base from which revenue requirements are derived

Sheet TCSD starts here
B2: This sheet is intentionally left blank.

Sheet Table of Contents
A1: Table of Contents
B4: Sheet Name | C4: Link
B5: General inputs | C5: Inputs for Nelson-Siegel-Svensson estimation
C6: Dates for NSS estimation
B7: Custom Bloomberg search | C7: Government bonds search criteria
C8: Corporate bonds search criteria
B9: Govt bond inputs | C9: Data input: NZ Government bonds
C10: Inputs
C11: Bond information
B12: Corp bond inputs | C12: Data input: NZ corporate bonds
C13: Inputs
C14: Bond information
B15: RFR & DP | C15: Calculation of risk-free rate and inputs for debt premium determination
C16: Inputs
B17: Averaging | C17: Monthly Average
C18: Column indices
C19: Risk free rate monthly averages
C20: Corporate bond maturity length monthly averages (years)
B21: EDB_GPB Estimation | C21: NSS Estimation Spreadsheet
B22: Regression Explanation | C22: Regression Explanation

Sheet General inputs
A1: Inputs for Nelson-Siegel-Svensson estimation
A5: Dates for NSS estimation
B6: Note: If one of the formulas on the 'Govt bond yields' or 'Corp bond yields' is only returning one value, click on the Bloomberg formula and under the Bloomberg excel tab click refresh
B7: Date of WACC estimate | C7: 2022-04-01 | D7: First day of the month in which the WACC determination is made
B8: Date data downloaded from Bloomberg | C8: 2022-04-11 | D8: Date this spreadsheet is populated with Bloomberg data for the WACC determination
B9: Start date for Bloomberg data | D9: First day of the year prior to the date of the WACC estimate
B10: End date for Bloomberg data | D10: Last day of the year prior to the date of the WACC estimate
B11: Days in a year | C11: 365.25
B12: Minimum years to maturity for estimation | C12: 1 | D12: ra_MinMaturity
B15: WACC industry | D15: Fibre | E15: EDB/GPB | F15: ra_Industry
B16: Credit ratings for estimation | C16: Low | D16: BBB- | E16: BBB
C17: Medium | D17: BBB | E17: BBB+
C18: High | D18: BBB+ | E18: A- | F18: ra_IndustryRating
B19: Industry credit ratings are used in the Estimation macro used to create the Estimation worksheet

Sheet Custom Bloomberg search
B2: Government bonds search criteria
B14: Expanded criteria - Issuer
B41: Corporate bonds search criteria
B42: See below for expanded criteria that is not fully shown in the search function below
B70: Expanded criteria - BICS classification
B97: Expanded criteria - Exclusion of specific supplier

Sheet Govt bond inputs
A1: Data input: NZ Government bonds
A3: Contains data on New Zealand government bonds, obtained from Bloomberg, which is used to estimate the risk-free rate and debt premium values. The data will automatically update when opened on the Bloomberg terminal.
A4: The Bloomberg data needs to be pasted as values at the bottom of this sheet, to enable the model to work correctly. Clicking the button above will do this automatically.
A6: Inputs
B8: Bond ID optional arguments
B9: Name of custom bond search | C9: FI:NZ government bonds | D9: Enter the name of the custom search for relevant government bonds. Custom bond searches are created using the "SRCH" function on the Commission's Bloomberg terminal. (Note: The "FI:NZ government bonds" search is currently saved under "My Searches" on both Matt Bailey and Joseph O'Hara's Bloomberg accounts).
B10: Orientation | C10: V | D10: Sets whether bond IDs should be displayed vertically or horizontally. V = vertical, H = horizontal.
B12: Yield parameters
B13: Start date | C13: ='General inputs'!C9 -> 00:00:00
B14: End date | C14: ='General inputs'!C10 -> 00:00:00
B15: Yield type | C15: YLD YTM BID | D15: Bloomberg yield type. We use bid yield to maturity (YLD YTM BID), as required by the IMs.
B16: Source | C16: @bcmp Govt | D16: Data source for NZ Government bonds. We have used Bloomberg composite (BCMP), because it utilises data from multiple "quality" sources.
B18: Yield optional arguments
B19: Days | C19: W | D19: Sets whether to either exclude or include non-trading days. The valid entries are: N - All weekdays, C - All calendar days, T - Trading, W - Weekdays, A - all days.
B20: Orientation | C20: H | D20: Sets whether data should be displayed vertically or horizontally. V = vertical, H = horizontal.
B21: Fill | C21: B | D21: If Days is set to display Non- trading days, then this is the data to return for that day. The valid entries are: C - Carries over the last available data, P - Carries over the previous day's data, E - Returns an error message, B - Returns a blank.
B22: Dates | C22: H | D22: Sets whether dates should be displayed. S = show, H = hide.
B24: Bond information fields
B25: Bloomberg field codes used to extract relevant information on each bond.
B26: Field name | C26: Name | D26: Security name | E26: Currency | F26: Rank | G26: Issuer credit rating | H26: Bond credit rating | I26: Bond credit rating at maturity | J26: Coupon type | K26: Coupon | L26: Coupon frequency | M26: Amount issued | N26: Announcement date | O26: Maturity | P26: Maturity type
B27: Bloomberg field code | C27: NAME | D27: SECURITY_NAME | E27: CRNCY | F27: PAYMENT_RANK | G27: RTG_SP_LT_LC_ISSUER_CREDIT | H27: RTG_SP | I27: RTG_SP | J27: CPN_TYP | K27: CPN | L27: COUPON_FREQUENCY_DESCRIPTION | M27: AMT_ISSUED | N27: ANNOUNCE_DT | O27: MATURITY | P27: MTY_TYP
B28: Bloomberg field override code | I28: RATING_AS_OF_DATE_OVERRIDE
A30: Bond information
B31: Bloomberg formulas
B32: Uses the Bloomberg Excel add-in to read data from the Bloomberg terminal.
B33: Note: The Bloomberg formula in cell B27 below returns the results of a custom bond search, which finds NZ government NZ dollar denominated nominal bonds (as required by the IMs).
B34: Date and time downloaded from Bloomberg
B35: =_xll.BNOW() -> 
B37: =_xll.BSRCH($C$9,$B$10:$B$10,$C$10:$C$10,"cols=1;rows=20") ->  | C37: =C26 -> Name | D37: =D26 -> Security name | E37: Currency | F37: Rank | G37: Issuer credit rating | H37: Bond credit rating | I37: Bond credit rating at maturity | J37: Coupon type | K37: Coupon | L37: Coupon frequency | M37: Amount issued | N37: Announcement date | O37: Maturity | P37: Maturity type | Q37: =_xll.BDH(B38,$C15,$C13,$C14,$B$19:$B$21,$C$19:$C$21,"Dates","O","cols=129;rows=1") ->  | R37: 2016-09-02 | S37: 2016-09-05 | T37: 2016-09-06 | U37: 2016-09-07 | V37: 2016-09-08 | W37: 2016-09-09 | X37: 2016-09-12 | Y37: 2016-09-13 | Z37: 2016-09-14 | AA37: 2016-09-15 | AB37: 2016-09-16 | AC37: 2016-09-19 | AD37: 2016-09-20 | AE37: 2016-09-21 | AF37: 2016-09-22 | AG37: 2016-09-23 | AH37: 2016-09-26 | AI37: 2016-09-27 | AJ37: 2016-09-28 | AK37: 2016-09-29 | AL37: 2016-09-30 | AM37: 2016-10-03 | AN37: 2016-10-04 | AO37: 2016-10-05 | AP37: 2016-10-06 | AQ37: 2016-10-07 | AR37: 2016-10-10 | AS37: 2016-10-11 | AT37: 2016-10-12 | AU37: 2016-10-13 | AV37: 2016-10-14 | AW37: 2016-10-17 | AX37: 2016-10-18 | AY37: 2016-10-19 | AZ37: 2016-10-20 | BA37: 2016-10-21 | BB37: 2016-10-24 | BC37: 2016-10-25 | BD37: 2016-10-26 | BE37: 2016-10-27 | BF37: 2016-10-28 | BG37: 2016-10-31 | BH37: 2016-11-01 | BI37: 2016-11-02 | BJ37: 2016-11-03 | BK37: 2016-11-04 | BL37: 2016-11-07 | BM37: 2016-11-08 | BN37: 2016-11-09 | BO37: 2016-11-10 | BP37: 2016-11-11 | BQ37: 2016-11-14 | BR37: 2016-11-15 | BS37: 2016-11-16 | BT37: 2016-11-17 | BU37: 2016-11-18 | BV37: 2016-11-21 | BW37: 2016-11-22 | BX37: 2016-11-23 | BY37: 2016-11-24 | BZ37: 2016-11-25 | CA37: 2016-11-28 | CB37: 2016-11-29 | CC37: 2016-11-30 | CD37: 2016-12-01 | CE37: 2016-12-02 | CF37: 2016-12-05 | CG37: 2016-12-06 | CH37: 2016-12-07 | CI37: 2016-12-08 | CJ37: 2016-12-09 | CK37: 2016-12-12 | CL37: 2016-12-13 | CM37: 2016-12-14 | CN37: 2016-12-15 | CO37: 2016-12-16 | CP37: 2016-12-19 | CQ37: 2016-12-20 | CR37: 2016-12-21 | CS37: 2016-12-22 | CT37: 2016-12-23 | CU37: 2016-12-26 | CV37: 2016-12-27 | CW37: 2016-12-28 | CX37: 2016-12-29 | CY37: 2016-12-30 | CZ37: 2017-01-02 | DA37: 2017-01-03 | DB37: 2017-01-04 | DC37: 2017-01-05 | DD37: 2017-01-06 | DE37: 2017-01-09 | DF37: 2017-01-10 | DG37: 2017-01-11 | DH37: 2017-01-12 | DI37: 2017-01-13 | DJ37: 2017-01-16 | DK37: 2017-01-17 | DL37: 2017-01-18 | DM37: 2017-01-19 | DN37: 2017-01-20 | DO37: 2017-01-23 | DP37: 2017-01-24 | DQ37: 2017-01-25 | DR37: 2017-01-26 | DS37: 2017-01-27 | DT37: 2017-01-30 | DU37: 2017-01-31 | DV37: 2017-02-01 | DW37: 2017-02-02 | DX37: 2017-02-03 | DY37: 2017-02-06 | DZ37: 2017-02-07 | EA37: 2017-02-08 | EB37: 2017-02-09 | EC37: 2017-02-10 | ED37: 2017-02-13 | EE37: 2017-02-14 | EF37: 2017-02-15 | EG37: 2017-02-16 | EH37: 2017-02-17 | EI37: 2017-02-20 | EJ37: 2017-02-21 | EK37: 2017-02-22 | EL37: 2017-02-23 | EM37: 2017-02-24 | EN37: 2017-02-27 | EO37: 2017-02-28
C38: =_xll.BDP($B38,C$27) ->  | D38: =_xll.BDP($B38,D$27) ->  | E38: =_xll.BDP($B38,E$27) ->  | F38: =_xll.BDP($B38,F$27) ->  | G38: =_xll.BDP($B38,G$27) ->  | H38: =_xll.BDP($B38,H$27) ->  | I38: =_xll.BDP($B38,I$27,I$28,TEXT(_xll.BADDPERIODS($O38,"numberofperiods=-1","per=d"),"YYYYMMDD")) ->  | J38: =_xll.BDP($B38,J$27) ->  | K38: =_xll.BDP($B38,K$27) ->  | L38: =_xll.BDP($B38,L$27) ->  | M38: =_xll.BDP($B38,M$27) ->  | N38: =_xll.BDP($B38,N$27) ->  | O38: =_xll.BDP($B38,O$27) ->  | P38: =_xll.BDP($B38,P$27) ->  | Q38: =_xll.BDH($B38&$C$16,$C$15,$C$13,$C$14,$B$19:$B$22,$C$19:$C$22,"cols=129;rows=1") -> 
C39: =_xll.BDP($B39,C$27) ->  | D39: =_xll.BDP($B39,D$27) ->  | E39: =_xll.BDP($B39,E$27) ->  | F39: =_xll.BDP($B39,F$27) ->  | G39: =_xll.BDP($B39,G$27) ->  | H39: =_xll.BDP($B39,H$27) ->  | I39: =_xll.BDP($B39,I$27,I$28,TEXT(_xll.BADDPERIODS($O39,"numberofperiods=-1","per=d"),"YYYYMMDD")) ->  | J39: =_xll.BDP($B39,J$27) ->  | K39: =_xll.BDP($B39,K$27) ->  | L39: =_xll.BDP($B39,L$27) ->  | M39: =_xll.BDP($B39,M$27) ->  | N39: =_xll.BDP($B39,N$27) ->  | O39: =_xll.BDP($B39,O$27) ->  | P39: =_xll.BDP($B39,P$27) ->  | Q39: =_xll.BDH($B39&$C$16,$C$15,$C$13,$C$14,$B$19:$B$22,$C$19:$C$22,"cols=129;rows=1") -> 
C40: =_xll.BDP($B40,C$27) ->  | D40: =_xll.BDP($B40,D$27) ->  | E40: =_xll.BDP($B40,E$27) ->  | F40: =_xll.BDP($B40,F$27) ->  | G40: =_xll.BDP($B40,G$27) ->  | H40: =_xll.BDP($B40,H$27) ->  | I40: =_xll.BDP($B40,I$27,I$28,TEXT(_xll.BADDPERIODS($O40,"numberofperiods=-1","per=d"),"YYYYMMDD")) ->  | J40: =_xll.BDP($B40,J$27) ->  | K40: =_xll.BDP($B40,K$27) ->  | L40: =_xll.BDP($B40,L$27) ->  | M40: =_xll.BDP($B40,M$27) ->  | N40: =_xll.BDP($B40,N$27) ->  | O40: =_xll.BDP($B40,O$27) ->  | P40: =_xll.BDP($B40,P$27) ->  | Q40: =_xll.BDH($B40&$C$16,$C$15,$C$13,$C$14,$B$19:$B$22,$C$19:$C$22,"cols=129;rows=1") -> 
C41: =_xll.BDP($B41,C$27) ->  | D41: =_xll.BDP($B41,D$27) ->  | E41: =_xll.BDP($B41,E$27) ->  | F41: =_xll.BDP($B41,F$27) ->  | G41: =_xll.BDP($B41,G$27) ->  | H41: =_xll.BDP($B41,H$27) ->  | I41: =_xll.BDP($B41,I$27,I$28,TEXT(_xll.BADDPERIODS($O41,"numberofperiods=-1","per=d"),"YYYYMMDD")) ->  | J41: =_xll.BDP($B41,J$27) ->  | K41: =_xll.BDP($B41,K$27) ->  | L41: =_xll.BDP($B41,L$27) ->  | M41: =_xll.BDP($B41,M$27) ->  | N41: =_xll.BDP($B41,N$27) ->  | O41: =_xll.BDP($B41,O$27) ->  | P41: =_xll.BDP($B41,P$27) ->  | Q41: =_xll.BDH($B41&$C$16,$C$15,$C$13,$C$14,$B$19:$B$22,$C$19:$C$22,"cols=129;rows=1") -> 
C42: =_xll.BDP($B42,C$27) ->  | D42: =_xll.BDP($B42,D$27) ->  | E42: =_xll.BDP($B42,E$27) ->  | F42: =_xll.BDP($B42,F$27) ->  | G42: =_xll.BDP($B42,G$27) ->  | H42: =_xll.BDP($B42,H$27) ->  | I42: =_xll.BDP($B42,I$27,I$28,TEXT(_xll.BADDPERIODS($O42,"numberofperiods=-1","per=d"),"YYYYMMDD")) ->  | J42: =_xll.BDP($B42,J$27) ->  | K42: =_xll.BDP($B42,K$27) ->  | L42: =_xll.BDP($B42,L$27) ->  | M42: =_xll.BDP($B42,M$27) ->  | N42: =_xll.BDP($B42,N$27) ->  | O42: =_xll.BDP($B42,O$27) ->  | P42: =_xll.BDP($B42,P$27) ->  | Q42: =_xll.BDH($B42&$C$16,$C$15,$C$13,$C$14,$B$19:$B$22,$C$19:$C$22,"cols=129;rows=1") -> 
C43: =_xll.BDP($B43,C$27) ->  | D43: =_xll.BDP($B43,D$27) ->  | E43: =_xll.BDP($B43,E$27) ->  | F43: =_xll.BDP($B43,F$27) ->  | G43: =_xll.BDP($B43,G$27) ->  | H43: =_xll.BDP($B43,H$27) ->  | I43: =_xll.BDP($B43,I$27,I$28,TEXT(_xll.BADDPERIODS($O43,"numberofperiods=-1","per=d"),"YYYYMMDD")) ->  | J43: =_xll.BDP($B43,J$27) ->  | K43: =_xll.BDP($B43,K$27) ->  | L43: =_xll.BDP($B43,L$27) ->  | M43: =_xll.BDP($B43,M$27) ->  | N43: =_xll.BDP($B43,N$27) ->  | O43: =_xll.BDP($B43,O$27) ->  | P43: =_xll.BDP($B43,P$27) ->  | Q43: =_xll.BDH($B43&$C$16,$C$15,$C$13,$C$14,$B$19:$B$22,$C$19:$C$22,"cols=129;rows=1") -> 
C44: =_xll.BDP($B44,C$27) ->  | D44: =_xll.BDP($B44,D$27) ->  | E44: =_xll.BDP($B44,E$27) ->  | F44: =_xll.BDP($B44,F$27) ->  | G44: =_xll.BDP($B44,G$27) ->  | H44: =_xll.BDP($B44,H$27) ->  | I44: =_xll.BDP($B44,I$27,I$28,TEXT(_xll.BADDPERIODS($O44,"numberofperiods=-1","per=d"),"YYYYMMDD")) ->  | J44: =_xll.BDP($B44,J$27) ->  | K44: =_xll.BDP($B44,K$27) ->  | L44: =_xll.BDP($B44,L$27) ->  | M44: =_xll.BDP($B44,M$27) ->  | N44: =_xll.BDP($B44,N$27) ->  | O44: =_xll.BDP($B44,O$27) ->  | P44: =_xll.BDP($B44,P$27) ->  | Q44: =_xll.BDH($B44&$C$16,$C$15,$C$13,$C$14,$B$19:$B$22,$C$19:$C$22,"cols=129;rows=1") -> 
C45: =_xll.BDP($B45,C$27) ->  | D45: =_xll.BDP($B45,D$27) ->  | E45: =_xll.BDP($B45,E$27) ->  | F45: =_xll.BDP($B45,F$27) ->  | G45: =_xll.BDP($B45,G$27) ->  | H45: =_xll.BDP($B45,H$27) ->  | I45: =_xll.BDP($B45,I$27,I$28,TEXT(_xll.BADDPERIODS($O45,"numberofperiods=-1","per=d"),"YYYYMMDD")) ->  | J45: =_xll.BDP($B45,J$27) ->  | K45: =_xll.BDP($B45,K$27) ->  | L45: =_xll.BDP($B45,L$27) ->  | M45: =_xll.BDP($B45,M$27) ->  | N45: =_xll.BDP($B45,N$27) ->  | O45: =_xll.BDP($B45,O$27) ->  | P45: =_xll.BDP($B45,P$27) ->  | Q45: =_xll.BDH($B45&$C$16,$C$15,$C$13,$C$14,$B$19:$B$22,$C$19:$C$22,"cols=129;rows=1") -> 
C46: =_xll.BDP($B46,C$27) ->  | D46: =_xll.BDP($B46,D$27) ->  | E46: =_xll.BDP($B46,E$27) ->  | F46: =_xll.BDP($B46,F$27) ->  | G46: =_xll.BDP($B46,G$27) ->  | H46: =_xll.BDP($B46,H$27) ->  | I46: =_xll.BDP($B46,I$27,I$28,TEXT(_xll.BADDPERIODS($O46,"numberofperiods=-1","per=d"),"YYYYMMDD")) ->  | J46: =_xll.BDP($B46,J$27) ->  | K46: =_xll.BDP($B46,K$27) ->  | L46: =_xll.BDP($B46,L$27) ->  | M46: =_xll.BDP($B46,M$27) ->  | N46: =_xll.BDP($B46,N$27) ->  | O46: =_xll.BDP($B46,O$27) ->  | P46: =_xll.BDP($B46,P$27) ->  | Q46: =_xll.BDH($B46&$C$16,$C$15,$C$13,$C$14,$B$19:$B$22,$C$19:$C$22,"cols=129;rows=1") -> 
C47: =_xll.BDP($B47,C$27) ->  | D47: =_xll.BDP($B47,D$27) ->  | E47: =_xll.BDP($B47,E$27) ->  | F47: =_xll.BDP($B47,F$27) ->  | G47: =_xll.BDP($B47,G$27) ->  | H47: =_xll.BDP($B47,H$27) ->  | I47: =_xll.BDP($B47,I$27,I$28,TEXT(_xll.BADDPERIODS($O47,"numberofperiods=-1","per=d"),"YYYYMMDD")) ->  | J47: =_xll.BDP($B47,J$27) ->  | K47: =_xll.BDP($B47,K$27) ->  | L47: =_xll.BDP($B47,L$27) ->  | M47: =_xll.BDP($B47,M$27) ->  | N47: =_xll.BDP($B47,N$27) ->  | O47: =_xll.BDP($B47,O$27) ->  | P47: =_xll.BDP($B47,P$27) ->  | Q47: =_xll.BDH($B47&$C$16,$C$15,$C$13,$C$14,$B$19:$B$22,$C$19:$C$22,"cols=129;rows=1") -> 
C48: =_xll.BDP($B48,C$27) ->  | D48: =_xll.BDP($B48,D$27) ->  | E48: =_xll.BDP($B48,E$27) ->  | F48: =_xll.BDP($B48,F$27) ->  | G48: =_xll.BDP($B48,G$27) ->  | H48: =_xll.BDP($B48,H$27) ->  | I48: =_xll.BDP($B48,I$27,I$28,TEXT(_xll.BADDPERIODS($O48,"numberofperiods=-1","per=d"),"YYYYMMDD")) ->  | J48: =_xll.BDP($B48,J$27) ->  | K48: =_xll.BDP($B48,K$27) ->  | L48: =_xll.BDP($B48,L$27) ->  | M48: =_xll.BDP($B48,M$27) ->  | N48: =_xll.BDP($B48,N$27) ->  | O48: =_xll.BDP($B48,O$27) ->  | P48: =_xll.BDP($B48,P$27) ->  | Q48: =_xll.BDH($B48&$C$16,$C$15,$C$13,$C$14,$B$19:$B$22,$C$19:$C$22,"cols=129;rows=1") -> 
C49: =_xll.BDP($B49,C$27) ->  | D49: =_xll.BDP($B49,D$27) ->  | E49: =_xll.BDP($B49,E$27) ->  | F49: =_xll.BDP($B49,F$27) ->  | G49: =_xll.BDP($B49,G$27) ->  | H49: =_xll.BDP($B49,H$27) ->  | I49: =_xll.BDP($B49,I$27,I$28,TEXT(_xll.BADDPERIODS($O49,"numberofperiods=-1","per=d"),"YYYYMMDD")) ->  | J49: =_xll.BDP($B49,J$27) ->  | K49: =_xll.BDP($B49,K$27) ->  | L49: =_xll.BDP($B49,L$27) ->  | M49: =_xll.BDP($B49,M$27) ->  | N49: =_xll.BDP($B49,N$27) ->  | O49: =_xll.BDP($B49,O$27) ->  | P49: =_xll.BDP($B49,P$27) ->  | Q49: =_xll.BDH($B49&$C$16,$C$15,$C$13,$C$14,$B$19:$B$22,$C$19:$C$22,"cols=129;rows=1") -> 
C50: =_xll.BDP($B50,C$27) ->  | D50: =_xll.BDP($B50,D$27) ->  | E50: =_xll.BDP($B50,E$27) ->  | F50: =_xll.BDP($B50,F$27) ->  | G50: =_xll.BDP($B50,G$27) ->  | H50: =_xll.BDP($B50,H$27) ->  | I50: =_xll.BDP($B50,I$27,I$28,TEXT(_xll.BADDPERIODS($O50,"numberofperiods=-1","per=d"),"YYYYMMDD")) ->  | J50: =_xll.BDP($B50,J$27) ->  | K50: =_xll.BDP($B50,K$27) ->  | L50: =_xll.BDP($B50,L$27) ->  | M50: =_xll.BDP($B50,M$27) ->  | N50: =_xll.BDP($B50,N$27) ->  | O50: =_xll.BDP($B50,O$27) ->  | P50: =_xll.BDP($B50,P$27) ->  | Q50: =_xll.BDH($B50&$C$16,$C$15,$C$13,$C$14,$B$19:$B$22,$C$19:$C$22,"cols=129;rows=1") -> 
C51: =_xll.BDP($B51,C$27) ->  | D51: =_xll.BDP($B51,D$27) ->  | E51: =_xll.BDP($B51,E$27) ->  | F51: =_xll.BDP($B51,F$27) ->  | G51: =_xll.BDP($B51,G$27) ->  | H51: =_xll.BDP($B51,H$27) ->  | I51: =_xll.BDP($B51,I$27,I$28,TEXT(_xll.BADDPERIODS($O51,"numberofperiods=-1","per=d"),"YYYYMMDD")) ->  | J51: =_xll.BDP($B51,J$27) ->  | K51: =_xll.BDP($B51,K$27) ->  | L51: =_xll.BDP($B51,L$27) ->  | M51: =_xll.BDP($B51,M$27) ->  | N51: =_xll.BDP($B51,N$27) ->  | O51: =_xll.BDP($B51,O$27) ->  | P51: =_xll.BDP($B51,P$27) ->  | Q51: =_xll.BDH($B51&$C$16,$C$15,$C$13,$C$14,$B$19:$B$22,$C$19:$C$22,"cols=129;rows=1") -> 
C52: =_xll.BDP($B52,C$27) ->  | D52: =_xll.BDP($B52,D$27) ->  | E52: =_xll.BDP($B52,E$27) ->  | F52: =_xll.BDP($B52,F$27) ->  | G52: =_xll.BDP($B52,G$27) ->  | H52: =_xll.BDP($B52,H$27) ->  | I52: =_xll.BDP($B52,I$27,I$28,TEXT(_xll.BADDPERIODS($O52,"numberofperiods=-1","per=d"),"YYYYMMDD")) ->  | J52: =_xll.BDP($B52,J$27) ->  | K52: =_xll.BDP($B52,K$27) ->  | L52: =_xll.BDP($B52,L$27) ->  | M52: =_xll.BDP($B52,M$27) ->  | N52: =_xll.BDP($B52,N$27) ->  | O52: =_xll.BDP($B52,O$27) ->  | P52: =_xll.BDP($B52,P$27) ->  | Q52: =_xll.BDH($B52&$C$16,$C$15,$C$13,$C$14,$B$19:$B$22,$C$19:$C$22,"cols=129;rows=1") -> 
C53: =_xll.BDP($B53,C$27) ->  | D53: =_xll.BDP($B53,D$27) ->  | E53: =_xll.BDP($B53,E$27) ->  | F53: =_xll.BDP($B53,F$27) ->  | G53: =_xll.BDP($B53,G$27) ->  | H53: =_xll.BDP($B53,H$27) ->  | I53: =_xll.BDP($B53,I$27,I$28,TEXT(_xll.BADDPERIODS($O53,"numberofperiods=-1","per=d"),"YYYYMMDD")) ->  | J53: =_xll.BDP($B53,J$27) ->  | K53: =_xll.BDP($B53,K$27) ->  | L53: =_xll.BDP($B53,L$27) ->  | M53: =_xll.BDP($B53,M$27) ->  | N53: =_xll.BDP($B53,N$27) ->  | O53: =_xll.BDP($B53,O$27) ->  | P53: =_xll.BDP($B53,P$27) ->  | Q53: =_xll.BDH($B53&$C$16,$C$15,$C$13,$C$14,$B$19:$B$22,$C$19:$C$22,"cols=129;rows=1") -> 
C54: =_xll.BDP($B54,C$27) ->  | D54: =_xll.BDP($B54,D$27) ->  | E54: =_xll.BDP($B54,E$27) ->  | F54: =_xll.BDP($B54,F$27) ->  | G54: =_xll.BDP($B54,G$27) ->  | H54: =_xll.BDP($B54,H$27) ->  | I54: =_xll.BDP($B54,I$27,I$28,TEXT(_xll.BADDPERIODS($O54,"numberofperiods=-1","per=d"),"YYYYMMDD")) ->  | J54: =_xll.BDP($B54,J$27) ->  | K54: =_xll.BDP($B54,K$27) ->  | L54: =_xll.BDP($B54,L$27) ->  | M54: =_xll.BDP($B54,M$27) ->  | N54: =_xll.BDP($B54,N$27) ->  | O54: =_xll.BDP($B54,O$27) ->  | P54: =_xll.BDP($B54,P$27) ->  | Q54: =_xll.BDH($B54&$C$16,$C$15,$C$13,$C$14,$B$19:$B$22,$C$19:$C$22,"cols=129;rows=1") -> 
C55: =_xll.BDP($B55,C$27) ->  | D55: =_xll.BDP($B55,D$27) ->  | E55: =_xll.BDP($B55,E$27) ->  | F55: =_xll.BDP($B55,F$27) ->  | G55: =_xll.BDP($B55,G$27) ->  | H55: =_xll.BDP($B55,H$27) ->  | I55: =_xll.BDP($B55,I$27,I$28,TEXT(_xll.BADDPERIODS($O55,"numberofperiods=-1","per=d"),"YYYYMMDD")) ->  | J55: =_xll.BDP($B55,J$27) ->  | K55: =_xll.BDP($B55,K$27) ->  | L55: =_xll.BDP($B55,L$27) ->  | M55: =_xll.BDP($B55,M$27) ->  | N55: =_xll.BDP($B55,N$27) ->  | O55: =_xll.BDP($B55,O$27) ->  | P55: =_xll.BDP($B55,P$27) ->  | Q55: =_xll.BDH($B55&$C$16,$C$15,$C$13,$C$14,$B$19:$B$22,$C$19:$C$22,"cols=129;rows=1") -> 
C56: =_xll.BDP($B56,C$27) ->  | D56: =_xll.BDP($B56,D$27) ->  | E56: =_xll.BDP($B56,E$27) ->  | F56: =_xll.BDP($B56,F$27) ->  | G56: =_xll.BDP($B56,G$27) ->  | H56: =_xll.BDP($B56,H$27) ->  | I56: =_xll.BDP($B56,I$27,I$28,TEXT(_xll.BADDPERIODS($O56,"numberofperiods=-1","per=d"),"YYYYMMDD")) ->  | J56: =_xll.BDP($B56,J$27) ->  | K56: =_xll.BDP($B56,K$27) ->  | L56: =_xll.BDP($B56,L$27) ->  | M56: =_xll.BDP($B56,M$27) ->  | N56: =_xll.BDP($B56,N$27) ->  | O56: =_xll.BDP($B56,O$27) ->  | P56: =_xll.BDP($B56,P$27) ->  | Q56: =_xll.BDH($B56&$C$16,$C$15,$C$13,$C$14,$B$19:$B$22,$C$19:$C$22,"cols=129;rows=1") -> 
C57: =_xll.BDP($B57,C$27) ->  | D57: =_xll.BDP($B57,D$27) ->  | E57: =_xll.BDP($B57,E$27) ->  | F57: =_xll.BDP($B57,F$27) ->  | G57: =_xll.BDP($B57,G$27) ->  | H57: =_xll.BDP($B57,H$27) ->  | I57: =_xll.BDP($B57,I$27,I$28,TEXT(_xll.BADDPERIODS($O57,"numberofperiods=-1","per=d"),"YYYYMMDD")) ->  | J57: =_xll.BDP($B57,J$27) ->  | K57: =_xll.BDP($B57,K$27) ->  | L57: =_xll.BDP($B57,L$27) ->  | M57: =_xll.BDP($B57,M$27) ->  | N57: =_xll.BDP($B57,N$27) ->  | O57: =_xll.BDP($B57,O$27) ->  | P57: =_xll.BDP($B57,P$27) ->  | Q57: =_xll.BDH($B57&$C$16,$C$15,$C$13,$C$14,$B$19:$B$22,$C$19:$C$22) -> 
B58: ra_BloombergGovtDownload
B60: Hard-coded values
B61: Copy-paste-special-values entry of Bloomberg data
B62: Date and time downloaded from Bloomberg
B63: 2023-01-23T08:44:00
B65: id | C65: Name | D65: Security name | E65: Currency | F65: Rank | G65: Issuer credit rating | H65: Bond credit rating | I65: Bond credit rating at maturity | J65: Coupon type | K65: Coupon | L65: Coupon frequency | M65: Amount issued | N65: Announcement date | O65: Maturity | P65: Maturity type | Q65: 2016-09-01 | R65: 2016-09-02 | S65: 2016-09-05 | T65: 2016-09-06 | U65: 2016-09-07 | V65: 2016-09-08 | W65: 2016-09-09 | X65: 2016-09-12 | Y65: 2016-09-13 | Z65: 2016-09-14 | AA65: 2016-09-15 | AB65: 2016-09-16 | AC65: 2016-09-19 | AD65: 2016-09-20 | AE65: 2016-09-21 | AF65: 2016-09-22 | AG65: 2016-09-23 | AH65: 2016-09-26 | AI65: 2016-09-27 | AJ65: 2016-09-28 | AK65: 2016-09-29 | AL65: 2016-09-30 | AM65: 2016-10-03 | AN65: 2016-10-04 | AO65: 2016-10-05 | AP65: 2016-10-06 | AQ65: 2016-10-07 | AR65: 2016-10-10 | AS65: 2016-10-11 | AT65: 2016-10-12 | AU65: 2016-10-13 | AV65: 2016-10-14 | AW65: 2016-10-17 | AX65: 2016-10-18 | AY65: 2016-10-19 | AZ65: 2016-10-20 | BA65: 2016-10-21 | BB65: 2016-10-24 | BC65: 2016-10-25 | BD65: 2016-10-26 | BE65: 2016-10-27 | BF65: 2016-10-28 | BG65: 2016-10-31 | BH65: 2016-11-01 | BI65: 2016-11-02 | BJ65: 2016-11-03 | BK65: 2016-11-04 | BL65: 2016-11-07 | BM65: 2016-11-08 | BN65: 2016-11-09 | BO65: 2016-11-10 | BP65: 2016-11-11 | BQ65: 2016-11-14 | BR65: 2016-11-15 | BS65: 2016-11-16 | BT65: 2016-11-17 | BU65: 2016-11-18 | BV65: 2016-11-21 | BW65: 2016-11-22 | BX65: 2016-11-23 | BY65: 2016-11-24 | BZ65: 2016-11-25 | CA65: 2016-11-28 | CB65: 2016-11-29 | CC65: 2016-11-30 | CD65: 2016-12-01 | CE65: 2016-12-02 | CF65: 2016-12-05 | CG65: 2016-12-06 | CH65: 2016-12-07 | CI65: 2016-12-08 | CJ65: 2016-12-09 | CK65: 2016-12-12 | CL65: 2016-12-13 | CM65: 2016-12-14 | CN65: 2016-12-15 | CO65: 2016-12-16 | CP65: 2016-12-19 | CQ65: 2016-12-20 | CR65: 2016-12-21 | CS65: 2016-12-22 | CT65: 2016-12-23 | CU65: 2016-12-26 | CV65: 2016-12-27 | CW65: 2016-12-28 | CX65: 2016-12-29 | CY65: 2016-12-30 | CZ65: 2017-01-02 | DA65: 2017-01-03 | DB65: 2017-01-04 | DC65: 2017-01-05 | DD65: 2017-01-06 | DE65: 2017-01-09 | DF65: 2017-01-10 | DG65: 2017-01-11 | DH65: 2017-01-12 | DI65: 2017-01-13 | DJ65: 2017-01-16 | DK65: 2017-01-17 | DL65: 2017-01-18 | DM65: 2017-01-19 | DN65: 2017-01-20 | DO65: 2017-01-23 | DP65: 2017-01-24 | DQ65: 2017-01-25 | DR65: 2017-01-26 | DS65: 2017-01-27 | DT65: 2017-01-30 | DU65: 2017-01-31 | DV65: 2017-02-01 | DW65: 2017-02-02 | DX65: 2017-02-03 | DY65: 2017-02-06 | DZ65: 2017-02-07 | EA65: 2017-02-08 | EB65: 2017-02-09 | EC65: 2017-02-10 | ED65: 2017-02-13 | EE65: 2017-02-14 | EF65: 2017-02-15 | EG65: 2017-02-16 | EH65: 2017-02-17 | EI65: 2017-02-20 | EJ65: 2017-02-21 | EK65: 2017-02-22 | EL65: 2017-02-23 | EM65: 2017-02-24 | EN65: 2017-02-27 | EO65: 2017-02-28
B86: ra_BloombergGovtCopy

Sheet Corp bond inputs
A1: Data input: NZ corporate bonds
A3: Contains data on New Zealand corporate bonds, obtained from Bloomberg, which is used to estimate the debt premium values for each issuer. The data will automatically update when opened on the Bloomberg terminal.
A4: The Bloomberg data needs to be pasted as values at the bottom of this sheet, to enable the model to work correctly. Clicking the button on the 'Govt bond inputs' sheet will do this automatically.
A6: Inputs
B8: Bond ID optional arguments
B9: Name of custom bond search | C9: FI:NZ corporate bonds | D9: Enter the name of the custom search for relevant corporate bonds. Custom bond searches are created using the "SRCH" function on the Commission's Bloomberg terminal. (Note: The "FI:NZ corporate bonds" search is currently saved under "My Searches" on both Matt Bailey and Joseph O'Hara's Bloomberg accounts).
B10: Orientation | C10: V | D10: Sets whether bond IDs should be displayed vertically or horizontally. V = vertical, H = horizontal.
B12: Yield parameters
B13: Start date | C13: ='General inputs'!C9 -> 00:00:00
B14: End date | C14: ='General inputs'!C10 -> 00:00:00
B15: Yield type | C15: YLD YTM BID | D15: Bloomberg yield type. We use bid yield to maturity (YLD YTM BID), as required by the IMs.
B16: Source | C16: @bval Corp | D16: Data source for NZ corporate bonds. We have used Bloomberg valuation (BVAL), because bid yield to maturity data for NZ often isn't available under BCMP.
B18: Yield optional arguments
B19: Days | C19: W | D19: Sets whether to either exclude or include non-trading days. The valid entries are: N - All weekdays, C - All calendar days, T - Trading, W - Weekdays, A - all days.
B20: Orientation | C20: H | D20: Sets whether data should be displayed vertically or horizontally. V = vertical, H = horizontal.
B21: Fill | C21: B | D21: If Days is set to display Non- trading days, then this is the data to return for that day. The valid entries are: C - Carries over the last available data, P - Carries over the previous day's data, E - Returns an error message, B - Returns a blank.
B22: Dates | C22: H | D22: Sets whether dates should be displayed. S = show, H = hide.
B24: Bond information fields
B25: Bloomberg field codes used to extract relevant information on each bond.
B26: Field name | C26: Name | D26: Security name | E26: Currency | F26: Rank | G26: Issuer credit rating | H26: Bond credit rating | I26: Bond credit rating at maturity | J26: Coupon type | K26: Coupon | L26: Coupon frequency | M26: Amount issued | N26: Announcement date | O26: Maturity | P26: Maturity type
B27: Bloomberg field code | C27: NAME | D27: SECURITY_NAME | E27: CRNCY | F27: PAYMENT_RANK | G27: RTG_SP_LT_LC_ISSUER_CREDIT | H27: RTG_SP | I27: RTG_SP | J27: CPN_TYP | K27: CPN | L27: COUPON_FREQUENCY_DESCRIPTION | M27: AMT_ISSUED | N27: ANNOUNCE_DT | O27: MATURITY | P27: MTY_TYP
B28: Bloomberg field override code | I28: RATING_AS_OF_DATE_OVERRIDE
A30: Bond information
B31: Bloomberg formulas
B32: Uses the Bloomberg Excel add-in to read data from the Bloomberg terminal.
B33: Note: The Bloomberg formula in cell B27 below returns the results of a custom bond search, which finds publicly traded vanilla NZ$ denominated bonds issued by qualifying issuers (as required by the IMs - see the IM definitions for more details).
B34: Date and time downloaded from Bloomberg
B35: =_xll.BNOW() -> 
B37: =_xll.BSRCH($C$9,$B$10:$B$10,$C$10:$C$10,"cols=1;rows=89") ->  | C37: =C26 -> Name | D37: =D26 -> Security name | E37: Currency | F37: Rank | G37: Issuer credit rating | H37: Bond credit rating | I37: Bond credit rating at maturity | J37: Coupon type | K37: Coupon | L37: Coupon frequency | M37: Amount issued | N37: Announcement date | O37: Maturity | P37: Maturity type | Q37: =_xll.BDH(B38,$C$15,$C$13,$C$14,$B$19:$B$21,$C$19:$C$21,"Dates","O","cols=129;rows=1") ->  | R37: 2016-09-02 | S37: 2016-09-05 | T37: 2016-09-06 | U37: 2016-09-07 | V37: 2016-09-08 | W37: 2016-09-09 | X37: 2016-09-12 | Y37: 2016-09-13 | Z37: 2016-09-14 | AA37: 2016-09-15 | AB37: 2016-09-16 | AC37: 2016-09-19 | AD37: 2016-09-20 | AE37: 2016-09-21 | AF37: 2016-09-22 | AG37: 2016-09-23 | AH37: 2016-09-26 | AI37: 2016-09-27 | AJ37: 2016-09-28 | AK37: 2016-09-29 | AL37: 2016-09-30 | AM37: 2016-10-03 | AN37: 2016-10-04 | AO37: 2016-10-05 | AP37: 2016-10-06 | AQ37: 2016-10-07 | AR37: 2016-10-10 | AS37: 2016-10-11 | AT37: 2016-10-12 | AU37: 2016-10-13 | AV37: 2016-10-14 | AW37: 2016-10-17 | AX37: 2016-10-18 | AY37: 2016-10-19 | AZ37: 2016-10-20 | BA37: 2016-10-21 | BB37: 2016-10-24 | BC37: 2016-10-25 | BD37: 2016-10-26 | BE37: 2016-10-27 | BF37: 2016-10-28 | BG37: 2016-10-31 | BH37: 2016-11-01 | BI37: 2016-11-02 | BJ37: 2016-11-03 | BK37: 2016-11-04 | BL37: 2016-11-07 | BM37: 2016-11-08 | BN37: 2016-11-09 | BO37: 2016-11-10 | BP37: 2016-11-11 | BQ37: 2016-11-14 | BR37: 2016-11-15 | BS37: 2016-11-16 | BT37: 2016-11-17 | BU37: 2016-11-18 | BV37: 2016-11-21 | BW37: 2016-11-22 | BX37: 2016-11-23 | BY37: 2016-11-24 | BZ37: 2016-11-25 | CA37: 2016-11-28 | CB37: 2016-11-29 | CC37: 2016-11-30 | CD37: 2016-12-01 | CE37: 2016-12-02 | CF37: 2016-12-05 | CG37: 2016-12-06 | CH37: 2016-12-07 | CI37: 2016-12-08 | CJ37: 2016-12-09 | CK37: 2016-12-12 | CL37: 2016-12-13 | CM37: 2016-12-14 | CN37: 2016-12-15 | CO37: 2016-12-16 | CP37: 2016-12-19 | CQ37: 2016-12-20 | CR37: 2016-12-21 | CS37: 2016-12-22 | CT37: 2016-12-23 | CU37: 2016-12-26 | CV37: 2016-12-27 | CW37: 2016-12-28 | CX37: 2016-12-29 | CY37: 2016-12-30 | CZ37: 2017-01-02 | DA37: 2017-01-03 | DB37: 2017-01-04 | DC37: 2017-01-05 | DD37: 2017-01-06 | DE37: 2017-01-09 | DF37: 2017-01-10 | DG37: 2017-01-11 | DH37: 2017-01-12 | DI37: 2017-01-13 | DJ37: 2017-01-16 | DK37: 2017-01-17 | DL37: 2017-01-18 | DM37: 2017-01-19 | DN37: 2017-01-20 | DO37: 2017-01-23 | DP37: 2017-01-24 | DQ37: 2017-01-25 | DR37: 2017-01-26 | DS37: 2017-01-27 | DT37: 2017-01-30 | DU37: 2017-01-31 | DV37: 2017-02-01 | DW37: 2017-02-02 | DX37: 2017-02-03 | DY37: 2017-02-06 | DZ37: 2017-02-07 | EA37: 2017-02-08 | EB37: 2017-02-09 | EC37: 2017-02-10 | ED37: 2017-02-13 | EE37: 2017-02-14 | EF37: 2017-02-15 | EG37: 2017-02-16 | EH37: 2017-02-17 | EI37: 2017-02-20 | EJ37: 2017-02-21 | EK37: 2017-02-22 | EL37: 2017-02-23 | EM37: 2017-02-24 | EN37: 2017-02-27 | EO37: 2017-02-28
C38: =_xll.BDP($B38,C$27) ->  | D38: =_xll.BDP($B38,D$27) ->  | E38: =_xll.BDP($B38,E$27) ->  | F38: =_xll.BDP($B38,F$27) ->  | G38: =_xll.BDP($B38,G$27) ->  | H38: =_xll.BDP($B38,H$27) ->  | I38: =_xll.BDP($B38,I$27,I$28,TEXT(_xll.BADDPERIODS($O38,"numberofperiods=-1","per=d"),"YYYYMMDD")) ->  | J38: =_xll.BDP($B38,J$27) ->  | K38: =_xll.BDP($B38,K$27) ->  | L38: =_xll.BDP($B38,L$27) ->  | M38: =_xll.BDP($B38,M$27) ->  | N38: =_xll.BDP($B38,N$27) ->  | O38: =_xll.BDP($B38,O$27) ->  | P38: =_xll.BDP($B38,P$27) ->  | Q38: =_xll.BDH($B38&$C$16,$C$15,$C$13,$C$14,$B$19:$B$22,$C$19:$C$22,"cols=129;rows=1") -> 
C39: =_xll.BDP($B39,C$27) ->  | D39: =_xll.BDP($B39,D$27) ->  | E39: =_xll.BDP($B39,E$27) ->  | F39: =_xll.BDP($B39,F$27) ->  | G39: =_xll.BDP($B39,G$27) ->  | H39: =_xll.BDP($B39,H$27) ->  | I39: =_xll.BDP($B39,I$27,I$28,TEXT(_xll.BADDPERIODS($O39,"numberofperiods=-1","per=d"),"YYYYMMDD")) ->  | J39: =_xll.BDP($B39,J$27) ->  | K39: =_xll.BDP($B39,K$27) ->  | L39: =_xll.BDP($B39,L$27) ->  | M39: =_xll.BDP($B39,M$27) ->  | N39: =_xll.BDP($B39,N$27) ->  | O39: =_xll.BDP($B39,O$27) ->  | P39: =_xll.BDP($B39,P$27) ->  | Q39: =_xll.BDH($B39&$C$16,$C$15,$C$13,$C$14,$B$19:$B$22,$C$19:$C$22,"cols=129;rows=1") -> 
C40: =_xll.BDP($B40,C$27) ->  | D40: =_xll.BDP($B40,D$27) ->  | E40: =_xll.BDP($B40,E$27) ->  | F40: =_xll.BDP($B40,F$27) ->  | G40: =_xll.BDP($B40,G$27) ->  | H40: =_xll.BDP($B40,H$27) ->  | I40: =_xll.BDP($B40,I$27,I$28,TEXT(_xll.BADDPERIODS($O40,"numberofperiods=-1","per=d"),"YYYYMMDD")) ->  | J40: =_xll.BDP($B40,J$27) ->  | K40: =_xll.BDP($B40,K$27) ->  | L40: =_xll.BDP($B40,L$27) ->  | M40: =_xll.BDP($B40,M$27) ->  | N40: =_xll.BDP($B40,N$27) ->  | O40: =_xll.BDP($B40,O$27) ->  | P40: =_xll.BDP($B40,P$27) ->  | Q40: =_xll.BDH($B40&$C$16,$C$15,$C$13,$C$14,$B$19:$B$22,$C$19:$C$22,"cols=129;rows=1") -> 
C41: =_xll.BDP($B41,C$27) ->  | D41: =_xll.BDP($B41,D$27) ->  | E41: =_xll.BDP($B41,E$27) ->  | F41: =_xll.BDP($B41,F$27) ->  | G41: =_xll.BDP($B41,G$27) ->  | H41: =_xll.BDP($B41,H$27) ->  | I41: =_xll.BDP($B41,I$27,I$28,TEXT(_xll.BADDPERIODS($O41,"numberofperiods=-1","per=d"),"YYYYMMDD")) ->  | J41: =_xll.BDP($B41,J$27) ->  | K41: =_xll.BDP($B41,K$27) ->  | L41: =_xll.BDP($B41,L$27) ->  | M41: =_xll.BDP($B41,M$27) ->  | N41: =_xll.BDP($B41,N$27) ->  | O41: =_xll.BDP($B41,O$27) ->  | P41: =_xll.BDP($B41,P$27) ->  | Q41: =_xll.BDH($B41&$C$16,$C$15,$C$13,$C$14,$B$19:$B$22,$C$19:$C$22,"cols=129;rows=1") -> 
C42: =_xll.BDP($B42,C$27) ->  | D42: =_xll.BDP($B42,D$27) ->  | E42: =_xll.BDP($B42,E$27) ->  | F42: =_xll.BDP($B42,F$27) ->  | G42: =_xll.BDP($B42,G$27) ->  | H42: =_xll.BDP($B42,H$27) ->  | I42: =_xll.BDP($B42,I$27,I$28,TEXT(_xll.BADDPERIODS($O42,"numberofperiods=-1","per=d"),"YYYYMMDD")) ->  | J42: =_xll.BDP($B42,J$27) ->  | K42: =_xll.BDP($B42,K$27) ->  | L42: =_xll.BDP($B42,L$27) ->  | M42: =_xll.BDP($B42,M$27) ->  | N42: =_xll.BDP($B42,N$27) ->  | O42: =_xll.BDP($B42,O$27) ->  | P42: =_xll.BDP($B42,P$27) ->  | Q42: =_xll.BDH($B42&$C$16,$C$15,$C$13,$C$14,$B$19:$B$22,$C$19:$C$22,"cols=129;rows=1") -> 
C43: =_xll.BDP($B43,C$27) ->  | D43: =_xll.BDP($B43,D$27) ->  | E43: =_xll.BDP($B43,E$27) ->  | F43: =_xll.BDP($B43,F$27) ->  | G43: =_xll.BDP($B43,G$27) ->  | H43: =_xll.BDP($B43,H$27) ->  | I43: =_xll.BDP($B43,I$27,I$28,TEXT(_xll.BADDPERIODS($O43,"numberofperiods=-1","per=d"),"YYYYMMDD")) ->  | J43: =_xll.BDP($B43,J$27) ->  | K43: =_xll.BDP($B43,K$27) ->  | L43: =_xll.BDP($B43,L$27) ->  | M43: =_xll.BDP($B43,M$27) ->  | N43: =_xll.BDP($B43,N$27) ->  | O43: =_xll.BDP($B43,O$27) ->  | P43: =_xll.BDP($B43,P$27) ->  | Q43: =_xll.BDH($B43&$C$16,$C$15,$C$13,$C$14,$B$19:$B$22,$C$19:$C$22,"cols=129;rows=1") -> 
C44: =_xll.BDP($B44,C$27) ->  | D44: =_xll.BDP($B44,D$27) ->  | E44: =_xll.BDP($B44,E$27) ->  | F44: =_xll.BDP($B44,F$27) ->  | G44: =_xll.BDP($B44,G$27) ->  | H44: =_xll.BDP($B44,H$27) ->  | I44: =_xll.BDP($B44,I$27,I$28,TEXT(_xll.BADDPERIODS($O44,"numberofperiods=-1","per=d"),"YYYYMMDD")) ->  | J44: =_xll.BDP($B44,J$27) ->  | K44: =_xll.BDP($B44,K$27) ->  | L44: =_xll.BDP($B44,L$27) ->  | M44: =_xll.BDP($B44,M$27) ->  | N44: =_xll.BDP($B44,N$27) ->  | O44: =_xll.BDP($B44,O$27) ->  | P44: =_xll.BDP($B44,P$27) ->  | Q44: =_xll.BDH($B44&$C$16,$C$15,$C$13,$C$14,$B$19:$B$22,$C$19:$C$22,"cols=129;rows=1") -> 
C45: =_xll.BDP($B45,C$27) ->  | D45: =_xll.BDP($B45,D$27) ->  | E45: =_xll.BDP($B45,E$27) ->  | F45: =_xll.BDP($B45,F$27) ->  | G45: =_xll.BDP($B45,G$27) ->  | H45: =_xll.BDP($B45,H$27) ->  | I45: =_xll.BDP($B45,I$27,I$28,TEXT(_xll.BADDPERIODS($O45,"numberofperiods=-1","per=d"),"YYYYMMDD")) ->  | J45: =_xll.BDP($B45,J$27) ->  | K45: =_xll.BDP($B45,K$27) ->  | L45: =_xll.BDP($B45,L$27) ->  | M45: =_xll.BDP($B45,M$27) ->  | N45: =_xll.BDP($B45,N$27) ->  | O45: =_xll.BDP($B45,O$27) ->  | P45: =_xll.BDP($B45,P$27) ->  | Q45: =_xll.BDH($B45&$C$16,$C$15,$C$13,$C$14,$B$19:$B$22,$C$19:$C$22,"cols=129;rows=1") -> 
C46: =_xll.BDP($B46,C$27) ->  | D46: =_xll.BDP($B46,D$27) ->  | E46: =_xll.BDP($B46,E$27) ->  | F46: =_xll.BDP($B46,F$27) ->  | G46: =_xll.BDP($B46,G$27) ->  | H46: =_xll.BDP($B46,H$27) ->  | I46: =_xll.BDP($B46,I$27,I$28,TEXT(_xll.BADDPERIODS($O46,"numberofperiods=-1","per=d"),"YYYYMMDD")) ->  | J46: =_xll.BDP($B46,J$27) ->  | K46: =_xll.BDP($B46,K$27) ->  | L46: =_xll.BDP($B46,L$27) ->  | M46: =_xll.BDP($B46,M$27) ->  | N46: =_xll.BDP($B46,N$27) ->  | O46: =_xll.BDP($B46,O$27) ->  | P46: =_xll.BDP($B46,P$27) ->  | Q46: =_xll.BDH($B46&$C$16,$C$15,$C$13,$C$14,$B$19:$B$22,$C$19:$C$22,"cols=129;rows=1") -> 
C47: =_xll.BDP($B47,C$27) ->  | D47: =_xll.BDP($B47,D$27) ->  | E47: =_xll.BDP($B47,E$27) ->  | F47: =_xll.BDP($B47,F$27) ->  | G47: =_xll.BDP($B47,G$27) ->  | H47: =_xll.BDP($B47,H$27) ->  | I47: =_xll.BDP($B47,I$27,I$28,TEXT(_xll.BADDPERIODS($O47,"numberofperiods=-1","per=d"),"YYYYMMDD")) ->  | J47: =_xll.BDP($B47,J$27) ->  | K47: =_xll.BDP($B47,K$27) ->  | L47: =_xll.BDP($B47,L$27) ->  | M47: =_xll.BDP($B47,M$27) ->  | N47: =_xll.BDP($B47,N$27) ->  | O47: =_xll.BDP($B47,O$27) ->  | P47: =_xll.BDP($B47,P$27) ->  | Q47: =_xll.BDH($B47&$C$16,$C$15,$C$13,$C$14,$B$19:$B$22,$C$19:$C$22,"cols=129;rows=1") -> 
C48: =_xll.BDP($B48,C$27) ->  | D48: =_xll.BDP($B48,D$27) ->  | E48: =_xll.BDP($B48,E$27) ->  | F48: =_xll.BDP($B48,F$27) ->  | G48: =_xll.BDP($B48,G$27) ->  | H48: =_xll.BDP($B48,H$27) ->  | I48: =_xll.BDP($B48,I$27,I$28,TEXT(_xll.BADDPERIODS($O48,"numberofperiods=-1","per=d"),"YYYYMMDD")) ->  | J48: =_xll.BDP($B48,J$27) ->  | K48: =_xll.BDP($B48,K$27) ->  | L48: =_xll.BDP($B48,L$27) ->  | M48: =_xll.BDP($B48,M$27) ->  | N48: =_xll.BDP($B48,N$27) ->  | O48: =_xll.BDP($B48,O$27) ->  | P48: =_xll.BDP($B48,P$27) ->  | Q48: =_xll.BDH($B48&$C$16,$C$15,$C$13,$C$14,$B$19:$B$22,$C$19:$C$22,"cols=129;rows=1") -> 
C49: =_xll.BDP($B49,C$27) ->  | D49: =_xll.BDP($B49,D$27) ->  | E49: =_xll.BDP($B49,E$27) ->  | F49: =_xll.BDP($B49,F$27) ->  | G49: =_xll.BDP($B49,G$27) ->  | H49: =_xll.BDP($B49,H$27) ->  | I49: =_xll.BDP($B49,I$27,I$28,TEXT(_xll.BADDPERIODS($O49,"numberofperiods=-1","per=d"),"YYYYMMDD")) ->  | J49: =_xll.BDP($B49,J$27) ->  | K49: =_xll.BDP($B49,K$27) ->  | L49: =_xll.BDP($B49,L$27) ->  | M49: =_xll.BDP($B49,M$27) ->  | N49: =_xll.BDP($B49,N$27) ->  | O49: =_xll.BDP($B49,O$27) ->  | P49: =_xll.BDP($B49,P$27) ->  | Q49: =_xll.BDH($B49&$C$16,$C$15,$C$13,$C$14,$B$19:$B$22,$C$19:$C$22,"cols=129;rows=1") -> 
C50: =_xll.BDP($B50,C$27) ->  | D50: =_xll.BDP($B50,D$27) ->  | E50: =_xll.BDP($B50,E$27) ->  | F50: =_xll.BDP($B50,F$27) ->  | G50: =_xll.BDP($B50,G$27) ->  | H50: =_xll.BDP($B50,H$27) ->  | I50: =_xll.BDP($B50,I$27,I$28,TEXT(_xll.BADDPERIODS($O50,"numberofperiods=-1","per=d"),"YYYYMMDD")) ->  | J50: =_xll.BDP($B50,J$27) ->  | K50: =_xll.BDP($B50,K$27) ->  | L50: =_xll.BDP($B50,L$27) ->  | M50: =_xll.BDP($B50,M$27) ->  | N50: =_xll.BDP($B50,N$27) ->  | O50: =_xll.BDP($B50,O$27) ->  | P50: =_xll.BDP($B50,P$27) ->  | Q50: =_xll.BDH($B50&$C$16,$C$15,$C$13,$C$14,$B$19:$B$22,$C$19:$C$22,"cols=129;rows=1") -> 
C51: =_xll.BDP($B51,C$27) ->  | D51: =_xll.BDP($B51,D$27) ->  | E51: =_xll.BDP($B51,E$27) ->  | F51: =_xll.BDP($B51,F$27) ->  | G51: =_xll.BDP($B51,G$27) ->  | H51: =_xll.BDP($B51,H$27) ->  | I51: =_xll.BDP($B51,I$27,I$28,TEXT(_xll.BADDPERIODS($O51,"numberofperiods=-1","per=d"),"YYYYMMDD")) ->  | J51: =_xll.BDP($B51,J$27) ->  | K51: =_xll.BDP($B51,K$27) ->  | L51: =_xll.BDP($B51,L$27) ->  | M51: =_xll.BDP($B51,M$27) ->  | N51: =_xll.BDP($B51,N$27) ->  | O51: =_xll.BDP($B51,O$27) ->  | P51: =_xll.BDP($B51,P$27) ->  | Q51: =_xll.BDH($B51&$C$16,$C$15,$C$13,$C$14,$B$19:$B$22,$C$19:$C$22,"cols=129;rows=1") -> 
C52: =_xll.BDP($B52,C$27) ->  | D52: =_xll.BDP($B52,D$27) ->  | E52: =_xll.BDP($B52,E$27) ->  | F52: =_xll.BDP($B52,F$27) ->  | G52: =_xll.BDP($B52,G$27) ->  | H52: =_xll.BDP($B52,H$27) ->  | I52: =_xll.BDP($B52,I$27,I$28,TEXT(_xll.BADDPERIODS($O52,"numberofperiods=-1","per=d"),"YYYYMMDD")) ->  | J52: =_xll.BDP($B52,J$27) ->  | K52: =_xll.BDP($B52,K$27) ->  | L52: =_xll.BDP($B52,L$27) ->  | M52: =_xll.BDP($B52,M$27) ->  | N52: =_xll.BDP($B52,N$27) ->  | O52: =_xll.BDP($B52,O$27) ->  | P52: =_xll.BDP($B52,P$27) ->  | Q52: =_xll.BDH($B52&$C$16,$C$15,$C$13,$C$14,$B$19:$B$22,$C$19:$C$22,"cols=129;rows=1") -> 
C53: =_xll.BDP($B53,C$27) ->  | D53: =_xll.BDP($B53,D$27) ->  | E53: =_xll.BDP($B53,E$27) ->  | F53: =_xll.BDP($B53,F$27) ->  | G53: =_xll.BDP($B53,G$27) ->  | H53: =_xll.BDP($B53,H$27) ->  | I53: =_xll.BDP($B53,I$27,I$28,TEXT(_xll.BADDPERIODS($O53,"numberofperiods=-1","per=d"),"YYYYMMDD")) ->  | J53: =_xll.BDP($B53,J$27) ->  | K53: =_xll.BDP($B53,K$27) ->  | L53: =_xll.BDP($B53,L$27) ->  | M53: =_xll.BDP($B53,M$27) ->  | N53: =_xll.BDP($B53,N$27) ->  | O53: =_xll.BDP($B53,O$27) ->  | P53: =_xll.BDP($B53,P$27) ->  | Q53: =_xll.BDH($B53&$C$16,$C$15,$C$13,$C$14,$B$19:$B$22,$C$19:$C$22,"cols=129;rows=1") -> 
C54: =_xll.BDP($B54,C$27) ->  | D54: =_xll.BDP($B54,D$27) ->  | E54: =_xll.BDP($B54,E$27) ->  | F54: =_xll.BDP($B54,F$27) ->  | G54: =_xll.BDP($B54,G$27) ->  | H54: =_xll.BDP($B54,H$27) ->  | I54: =_xll.BDP($B54,I$27,I$28,TEXT(_xll.BADDPERIODS($O54,"numberofperiods=-1","per=d"),"YYYYMMDD")) ->  | J54: =_xll.BDP($B54,J$27) ->  | K54: =_xll.BDP($B54,K$27) ->  | L54: =_xll.BDP($B54,L$27) ->  | M54: =_xll.BDP($B54,M$27) ->  | N54: =_xll.BDP($B54,N$27) ->  | O54: =_xll.BDP($B54,O$27) ->  | P54: =_xll.BDP($B54,P$27) ->  | Q54: =_xll.BDH($B54&$C$16,$C$15,$C$13,$C$14,$B$19:$B$22,$C$19:$C$22,"cols=129;rows=1") -> 
C55: =_xll.BDP($B55,C$27) ->  | D55: =_xll.BDP($B55,D$27) ->  | E55: =_xll.BDP($B55,E$27) ->  | F55: =_xll.BDP($B55,F$27) ->  | G55: =_xll.BDP($B55,G$27) ->  | H55: =_xll.BDP($B55,H$27) ->  | I55: =_xll.BDP($B55,I$27,I$28,TEXT(_xll.BADDPERIODS($O55,"numberofperiods=-1","per=d"),"YYYYMMDD")) ->  | J55: =_xll.BDP($B55,J$27) ->  | K55: =_xll.BDP($B55,K$27) ->  | L55: =_xll.BDP($B55,L$27) ->  | M55: =_xll.BDP($B55,M$27) ->  | N55: =_xll.BDP($B55,N$27) ->  | O55: =_xll.BDP($B55,O$27) ->  | P55: =_xll.BDP($B55,P$27) ->  | Q55: =_xll.BDH($B55&$C$16,$C$15,$C$13,$C$14,$B$19:$B$22,$C$19:$C$22,"cols=129;rows=1") -> 
C56: =_xll.BDP($B56,C$27) ->  | D56: =_xll.BDP($B56,D$27) ->  | E56: =_xll.BDP($B56,E$27) ->  | F56: =_xll.BDP($B56,F$27) ->  | G56: =_xll.BDP($B56,G$27) ->  | H56: =_xll.BDP($B56,H$27) ->  | I56: =_xll.BDP($B56,I$27,I$28,TEXT(_xll.BADDPERIODS($O56,"numberofperiods=-1","per=d"),"YYYYMMDD")) ->  | J56: =_xll.BDP($B56,J$27) ->  | K56: =_xll.BDP($B56,K$27) ->  | L56: =_xll.BDP($B56,L$27) ->  | M56: =_xll.BDP($B56,M$27) ->  | N56: =_xll.BDP($B56,N$27) ->  | O56: =_xll.BDP($B56,O$27) ->  | P56: =_xll.BDP($B56,P$27) ->  | Q56: =_xll.BDH($B56&$C$16,$C$15,$C$13,$C$14,$B$19:$B$22,$C$19:$C$22,"cols=129;rows=1") -> 
C57: =_xll.BDP($B57,C$27) ->  | D57: =_xll.BDP($B57,D$27) ->  | E57: =_xll.BDP($B57,E$27) ->  | F57: =_xll.BDP($B57,F$27) ->  | G57: =_xll.BDP($B57,G$27) ->  | H57: =_xll.BDP($B57,H$27) ->  | I57: =_xll.BDP($B57,I$27,I$28,TEXT(_xll.BADDPERIODS($O57,"numberofperiods=-1","per=d"),"YYYYMMDD")) ->  | J57: =_xll.BDP($B57,J$27) ->  | K57: =_xll.BDP($B57,K$27) ->  | L57: =_xll.BDP($B57,L$27) ->  | M57: =_xll.BDP($B57,M$27) ->  | N57: =_xll.BDP($B57,N$27) ->  | O57: =_xll.BDP($B57,O$27) ->  | P57: =_xll.BDP($B57,P$27) ->  | Q57: =_xll.BDH($B57&$C$16,$C$15,$C$13,$C$14,$B$19:$B$22,$C$19:$C$22,"cols=129;rows=1") -> 
C58: =_xll.BDP($B58,C$27) ->  | D58: =_xll.BDP($B58,D$27) ->  | E58: =_xll.BDP($B58,E$27) ->  | F58: =_xll.BDP($B58,F$27) ->  | G58: =_xll.BDP($B58,G$27) ->  | H58: =_xll.BDP($B58,H$27) ->  | I58: =_xll.BDP($B58,I$27,I$28,TEXT(_xll.BADDPERIODS($O58,"numberofperiods=-1","per=d"),"YYYYMMDD")) ->  | J58: =_xll.BDP($B58,J$27) ->  | K58: =_xll.BDP($B58,K$27) ->  | L58: =_xll.BDP($B58,L$27) ->  | M58: =_xll.BDP($B58,M$27) ->  | N58: =_xll.BDP($B58,N$27) ->  | O58: =_xll.BDP($B58,O$27) ->  | P58: =_xll.BDP($B58,P$27) ->  | Q58: =_xll.BDH($B58&$C$16,$C$15,$C$13,$C$14,$B$19:$B$22,$C$19:$C$22,"cols=129;rows=1") -> 
C59: =_xll.BDP($B59,C$27) ->  | D59: =_xll.BDP($B59,D$27) ->  | E59: =_xll.BDP($B59,E$27) ->  | F59: =_xll.BDP($B59,F$27) ->  | G59: =_xll.BDP($B59,G$27) ->  | H59: =_xll.BDP($B59,H$27) ->  | I59: =_xll.BDP($B59,I$27,I$28,TEXT(_xll.BADDPERIODS($O59,"numberofperiods=-1","per=d"),"YYYYMMDD")) ->  | J59: =_xll.BDP($B59,J$27) ->  | K59: =_xll.BDP($B59,K$27) ->  | L59: =_xll.BDP($B59,L$27) ->  | M59: =_xll.BDP($B59,M$27) ->  | N59: =_xll.BDP($B59,N$27) ->  | O59: =_xll.BDP($B59,O$27) ->  | P59: =_xll.BDP($B59,P$27) ->  | Q59: =_xll.BDH($B59&$C$16,$C$15,$C$13,$C$14,$B$19:$B$22,$C$19:$C$22,"cols=129;rows=1") -> 
C60: =_xll.BDP($B60,C$27) ->  | D60: =_xll.BDP($B60,D$27) ->  | E60: =_xll.BDP($B60,E$27) ->  | F60: =_xll.BDP($B60,F$27) ->  | G60: =_xll.BDP($B60,G$27) ->  | H60: =_xll.BDP($B60,H$27) ->  | I60: =_xll.BDP($B60,I$27,I$28,TEXT(_xll.BADDPERIODS($O60,"numberofperiods=-1","per=d"),"YYYYMMDD")) ->  | J60: =_xll.BDP($B60,J$27) ->  | K60: =_xll.BDP($B60,K$27) ->  | L60: =_xll.BDP($B60,L$27) ->  | M60: =_xll.BDP($B60,M$27) ->  | N60: =_xll.BDP($B60,N$27) ->  | O60: =_xll.BDP($B60,O$27) ->  | P60: =_xll.BDP($B60,P$27) ->  | Q60: =_xll.BDH($B60&$C$16,$C$15,$C$13,$C$14,$B$19:$B$22,$C$19:$C$22,"cols=129;rows=1") -> 
C61: =_xll.BDP($B61,C$27) ->  | D61: =_xll.BDP($B61,D$27) ->  | E61: =_xll.BDP($B61,E$27) ->  | F61: =_xll.BDP($B61,F$27) ->  | G61: =_xll.BDP($B61,G$27) ->  | H61: =_xll.BDP($B61,H$27) ->  | I61: =_xll.BDP($B61,I$27,I$28,TEXT(_xll.BADDPERIODS($O61,"numberofperiods=-1","per=d"),"YYYYMMDD")) ->  | J61: =_xll.BDP($B61,J$27) ->  | K61: =_xll.BDP($B61,K$27) ->  | L61: =_xll.BDP($B61,L$27) ->  | M61: =_xll.BDP($B61,M$27) ->  | N61: =_xll.BDP($B61,N$27) ->  | O61: =_xll.BDP($B61,O$27) ->  | P61: =_xll.BDP($B61,P$27) -> 
C62: =_xll.BDP($B62,C$27) ->  | D62: =_xll.BDP($B62,D$27) ->  | E62: =_xll.BDP($B62,E$27) ->  | F62: =_xll.BDP($B62,F$27) ->  | G62: =_xll.BDP($B62,G$27) ->  | H62: =_xll.BDP($B62,H$27) ->  | I62: =_xll.BDP($B62,I$27,I$28,TEXT(_xll.BADDPERIODS($O62,"numberofperiods=-1","per=d"),"YYYYMMDD")) ->  | J62: =_xll.BDP($B62,J$27) ->  | K62: =_xll.BDP($B62,K$27) ->  | L62: =_xll.BDP($B62,L$27) ->  | M62: =_xll.BDP($B62,M$27) ->  | N62: =_xll.BDP($B62,N$27) ->  | O62: =_xll.BDP($B62,O$27) ->  | P62: =_xll.BDP($B62,P$27) ->  | Q62: =_xll.BDH($B62&$C$16,$C$15,$C$13,$C$14,$B$19:$B$22,$C$19:$C$22,"cols=129;rows=1") -> 
C63: =_xll.BDP($B63,C$27) ->  | D63: =_xll.BDP($B63,D$27) ->  | E63: =_xll.BDP($B63,E$27) ->  | F63: =_xll.BDP($B63,F$27) ->  | G63: =_xll.BDP($B63,G$27) ->  | H63: =_xll.BDP($B63,H$27) ->  | I63: =_xll.BDP($B63,I$27,I$28,TEXT(_xll.BADDPERIODS($O63,"numberofperiods=-1","per=d"),"YYYYMMDD")) ->  | J63: =_xll.BDP($B63,J$27) ->  | K63: =_xll.BDP($B63,K$27) ->  | L63: =_xll.BDP($B63,L$27) ->  | M63: =_xll.BDP($B63,M$27) ->  | N63: =_xll.BDP($B63,N$27) ->  | O63: =_xll.BDP($B63,O$27) ->  | P63: =_xll.BDP($B63,P$27) ->  | Q63: =_xll.BDH($B63&$C$16,$C$15,$C$13,$C$14,$B$19:$B$22,$C$19:$C$22,"cols=129;rows=1") -> 
C64: =_xll.BDP($B64,C$27) ->  | D64: =_xll.BDP($B64,D$27) ->  | E64: =_xll.BDP($B64,E$27) ->  | F64: =_xll.BDP($B64,F$27) ->  | G64: =_xll.BDP($B64,G$27) ->  | H64: =_xll.BDP($B64,H$27) ->  | I64: =_xll.BDP($B64,I$27,I$28,TEXT(_xll.BADDPERIODS($O64,"numberofperiods=-1","per=d"),"YYYYMMDD")) ->  | J64: =_xll.BDP($B64,J$27) ->  | K64: =_xll.BDP($B64,K$27) ->  | L64: =_xll.BDP($B64,L$27) ->  | M64: =_xll.BDP($B64,M$27) ->  | N64: =_xll.BDP($B64,N$27) ->  | O64: =_xll.BDP($B64,O$27) ->  | P64: =_xll.BDP($B64,P$27) ->  | Q64: =_xll.BDH($B64&$C$16,$C$15,$C$13,$C$14,$B$19:$B$22,$C$19:$C$22,"cols=129;rows=1") -> 
C65: =_xll.BDP($B65,C$27) ->  | D65: =_xll.BDP($B65,D$27) ->  | E65: =_xll.BDP($B65,E$27) ->  | F65: =_xll.BDP($B65,F$27) ->  | G65: =_xll.BDP($B65,G$27) ->  | H65: =_xll.BDP($B65,H$27) ->  | I65: =_xll.BDP($B65,I$27,I$28,TEXT(_xll.BADDPERIODS($O65,"numberofperiods=-1","per=d"),"YYYYMMDD")) ->  | J65: =_xll.BDP($B65,J$27) ->  | K65: =_xll.BDP($B65,K$27) ->  | L65: =_xll.BDP($B65,L$27) ->  | M65: =_xll.BDP($B65,M$27) ->  | N65: =_xll.BDP($B65,N$27) ->  | O65: =_xll.BDP($B65,O$27) ->  | P65: =_xll.BDP($B65,P$27) ->  | Q65: =_xll.BDH($B65&$C$16,$C$15,$C$13,$C$14,$B$19:$B$22,$C$19:$C$22,"cols=129;rows=1") -> 
C66: =_xll.BDP($B66,C$27) ->  | D66: =_xll.BDP($B66,D$27) ->  | E66: =_xll.BDP($B66,E$27) ->  | F66: =_xll.BDP($B66,F$27) ->  | G66: =_xll.BDP($B66,G$27) ->  | H66: =_xll.BDP($B66,H$27) ->  | I66: =_xll.BDP($B66,I$27,I$28,TEXT(_xll.BADDPERIODS($O66,"numberofperiods=-1","per=d"),"YYYYMMDD")) ->  | J66: =_xll.BDP($B66,J$27) ->  | K66: =_xll.BDP($B66,K$27) ->  | L66: =_xll.BDP($B66,L$27) ->  | M66: =_xll.BDP($B66,M$27) ->  | N66: =_xll.BDP($B66,N$27) ->  | O66: =_xll.BDP($B66,O$27) ->  | P66: =_xll.BDP($B66,P$27) ->  | Q66: =_xll.BDH($B66&$C$16,$C$15,$C$13,$C$14,$B$19:$B$22,$C$19:$C$22,"cols=129;rows=1") -> 
C67: =_xll.BDP($B67,C$27) ->  | D67: =_xll.BDP($B67,D$27) ->  | E67: =_xll.BDP($B67,E$27) ->  | F67: =_xll.BDP($B67,F$27) ->  | G67: =_xll.BDP($B67,G$27) ->  | H67: =_xll.BDP($B67,H$27) ->  | I67: =_xll.BDP($B67,I$27,I$28,TEXT(_xll.BADDPERIODS($O67,"numberofperiods=-1","per=d"),"YYYYMMDD")) ->  | J67: =_xll.BDP($B67,J$27) ->  | K67: =_xll.BDP($B67,K$27) ->  | L67: =_xll.BDP($B67,L$27) ->  | M67: =_xll.BDP($B67,M$27) ->  | N67: =_xll.BDP($B67,N$27) ->  | O67: =_xll.BDP($B67,O$27) ->  | P67: =_xll.BDP($B67,P$27) ->  | Q67: =_xll.BDH($B67&$C$16,$C$15,$C$13,$C$14,$B$19:$B$22,$C$19:$C$22,"cols=129;rows=1") -> 
C68: =_xll.BDP($B68,C$27) ->  | D68: =_xll.BDP($B68,D$27) ->  | E68: =_xll.BDP($B68,E$27) ->  | F68: =_xll.BDP($B68,F$27) ->  | G68: =_xll.BDP($B68,G$27) ->  | H68: =_xll.BDP($B68,H$27) ->  | I68: =_xll.BDP($B68,I$27,I$28,TEXT(_xll.BADDPERIODS($O68,"numberofperiods=-1","per=d"),"YYYYMMDD")) ->  | J68: =_xll.BDP($B68,J$27) ->  | K68: =_xll.BDP($B68,K$27) ->  | L68: =_xll.BDP($B68,L$27) ->  | M68: =_xll.BDP($B68,M$27) ->  | N68: =_xll.BDP($B68,N$27) ->  | O68: =_xll.BDP($B68,O$27) ->  | P68: =_xll.BDP($B68,P$27) ->  | Q68: =_xll.BDH($B68&$C$16,$C$15,$C$13,$C$14,$B$19:$B$22,$C$19:$C$22,"cols=129;rows=1") -> 
C69: =_xll.BDP($B69,C$27) ->  | D69: =_xll.BDP($B69,D$27) ->  | E69: =_xll.BDP($B69,E$27) ->  | F69: =_xll.BDP($B69,F$27) ->  | G69: =_xll.BDP($B69,G$27) ->  | H69: =_xll.BDP($B69,H$27) ->  | I69: =_xll.BDP($B69,I$27,I$28,TEXT(_xll.BADDPERIODS($O69,"numberofperiods=-1","per=d"),"YYYYMMDD")) ->  | J69: =_xll.BDP($B69,J$27) ->  | K69: =_xll.BDP($B69,K$27) ->  | L69: =_xll.BDP($B69,L$27) ->  | M69: =_xll.BDP($B69,M$27) ->  | N69: =_xll.BDP($B69,N$27) ->  | O69: =_xll.BDP($B69,O$27) ->  | P69: =_xll.BDP($B69,P$27) ->  | Q69: =_xll.BDH($B69&$C$16,$C$15,$C$13,$C$14,$B$19:$B$22,$C$19:$C$22,"cols=129;rows=1") -> 
C70: =_xll.BDP($B70,C$27) ->  | D70: =_xll.BDP($B70,D$27) ->  | E70: =_xll.BDP($B70,E$27) ->  | F70: =_xll.BDP($B70,F$27) ->  | G70: =_xll.BDP($B70,G$27) ->  | H70: =_xll.BDP($B70,H$27) ->  | I70: =_xll.BDP($B70,I$27,I$28,TEXT(_xll.BADDPERIODS($O70,"numberofperiods=-1","per=d"),"YYYYMMDD")) ->  | J70: =_xll.BDP($B70,J$27) ->  | K70: =_xll.BDP($B70,K$27) ->  | L70: =_xll.BDP($B70,L$27) ->  | M70: =_xll.BDP($B70,M$27) ->  | N70: =_xll.BDP($B70,N$27) ->  | O70: =_xll.BDP($B70,O$27) ->  | P70: =_xll.BDP($B70,P$27) ->  | Q70: =_xll.BDH($B70&$C$16,$C$15,$C$13,$C$14,$B$19:$B$22,$C$19:$C$22,"cols=129;rows=1") -> 
C71: =_xll.BDP($B71,C$27) ->  | D71: =_xll.BDP($B71,D$27) ->  | E71: =_xll.BDP($B71,E$27) ->  | F71: =_xll.BDP($B71,F$27) ->  | G71: =_xll.BDP($B71,G$27) ->  | H71: =_xll.BDP($B71,H$27) ->  | I71: =_xll.BDP($B71,I$27,I$28,TEXT(_xll.BADDPERIODS($O71,"numberofperiods=-1","per=d"),"YYYYMMDD")) ->  | J71: =_xll.BDP($B71,J$27) ->  | K71: =_xll.BDP($B71,K$27) ->  | L71: =_xll.BDP($B71,L$27) ->  | M71: =_xll.BDP($B71,M$27) ->  | N71: =_xll.BDP($B71,N$27) ->  | O71: =_xll.BDP($B71,O$27) ->  | P71: =_xll.BDP($B71,P$27) ->  | Q71: =_xll.BDH($B71&$C$16,$C$15,$C$13,$C$14,$B$19:$B$22,$C$19:$C$22,"cols=129;rows=1") -> 
C72: =_xll.BDP($B72,C$27) ->  | D72: =_xll.BDP($B72,D$27) ->  | E72: =_xll.BDP($B72,E$27) ->  | F72: =_xll.BDP($B72,F$27) ->  | G72: =_xll.BDP($B72,G$27) ->  | H72: =_xll.BDP($B72,H$27) ->  | I72: =_xll.BDP($B72,I$27,I$28,TEXT(_xll.BADDPERIODS($O72,"numberofperiods=-1","per=d"),"YYYYMMDD")) ->  | J72: =_xll.BDP($B72,J$27) ->  | K72: =_xll.BDP($B72,K$27) ->  | L72: =_xll.BDP($B72,L$27) ->  | M72: =_xll.BDP($B72,M$27) ->  | N72: =_xll.BDP($B72,N$27) ->  | O72: =_xll.BDP($B72,O$27) ->  | P72: =_xll.BDP($B72,P$27) ->  | Q72: =_xll.BDH($B72&$C$16,$C$15,$C$13,$C$14,$B$19:$B$22,$C$19:$C$22,"cols=129;rows=1") -> 
C73: =_xll.BDP($B73,C$27) ->  | D73: =_xll.BDP($B73,D$27) ->  | E73: =_xll.BDP($B73,E$27) ->  | F73: =_xll.BDP($B73,F$27) ->  | G73: =_xll.BDP($B73,G$27) ->  | H73: =_xll.BDP($B73,H$27) ->  | I73: =_xll.BDP($B73,I$27,I$28,TEXT(_xll.BADDPERIODS($O73,"numberofperiods=-1","per=d"),"YYYYMMDD")) ->  | J73: =_xll.BDP($B73,J$27) ->  | K73: =_xll.BDP($B73,K$27) ->  | L73: =_xll.BDP($B73,L$27) ->  | M73: =_xll.BDP($B73,M$27) ->  | N73: =_xll.BDP($B73,N$27) ->  | O73: =_xll.BDP($B73,O$27) ->  | P73: =_xll.BDP($B73,P$27) ->  | Q73: =_xll.BDH($B73&$C$16,$C$15,$C$13,$C$14,$B$19:$B$22,$C$19:$C$22,"cols=129;rows=1") -> 
C74: =_xll.BDP($B74,C$27) ->  | D74: =_xll.BDP($B74,D$27) ->  | E74: =_xll.BDP($B74,E$27) ->  | F74: =_xll.BDP($B74,F$27) ->  | G74: =_xll.BDP($B74,G$27) ->  | H74: =_xll.BDP($B74,H$27) ->  | I74: =_xll.BDP($B74,I$27,I$28,TEXT(_xll.BADDPERIODS($O74,"numberofperiods=-1","per=d"),"YYYYMMDD")) ->  | J74: =_xll.BDP($B74,J$27) ->  | K74: =_xll.BDP($B74,K$27) ->  | L74: =_xll.BDP($B74,L$27) ->  | M74: =_xll.BDP($B74,M$27) ->  | N74: =_xll.BDP($B74,N$27) ->  | O74: =_xll.BDP($B74,O$27) ->  | P74: =_xll.BDP($B74,P$27) ->  | Q74: =_xll.BDH($B74&$C$16,$C$15,$C$13,$C$14,$B$19:$B$22,$C$19:$C$22,"cols=129;rows=1") -> 
C75: =_xll.BDP($B75,C$27) ->  | D75: =_xll.BDP($B75,D$27) ->  | E75: =_xll.BDP($B75,E$27) ->  | F75: =_xll.BDP($B75,F$27) ->  | G75: =_xll.BDP($B75,G$27) ->  | H75: =_xll.BDP($B75,H$27) ->  | I75: =_xll.BDP($B75,I$27,I$28,TEXT(_xll.BADDPERIODS($O75,"numberofperiods=-1","per=d"),"YYYYMMDD")) ->  | J75: =_xll.BDP($B75,J$27) ->  | K75: =_xll.BDP($B75,K$27) ->  | L75: =_xll.BDP($B75,L$27) ->  | M75: =_xll.BDP($B75,M$27) ->  | N75: =_xll.BDP($B75,N$27) ->  | O75: =_xll.BDP($B75,O$27) ->  | P75: =_xll.BDP($B75,P$27) ->  | Q75: =_xll.BDH($B75&$C$16,$C$15,$C$13,$C$14,$B$19:$B$22,$C$19:$C$22,"cols=129;rows=1") -> 
C76: =_xll.BDP($B76,C$27) ->  | D76: =_xll.BDP($B76,D$27) ->  | E76: =_xll.BDP($B76,E$27) ->  | F76: =_xll.BDP($B76,F$27) ->  | G76: =_xll.BDP($B76,G$27) ->  | H76: =_xll.BDP($B76,H$27) ->  | I76: =_xll.BDP($B76,I$27,I$28,TEXT(_xll.BADDPERIODS($O76,"numberofperiods=-1","per=d"),"YYYYMMDD")) ->  | J76: =_xll.BDP($B76,J$27) ->  | K76: =_xll.BDP($B76,K$27) ->  | L76: =_xll.BDP($B76,L$27) ->  | M76: =_xll.BDP($B76,M$27) ->  | N76: =_xll.BDP($B76,N$27) ->  | O76: =_xll.BDP($B76,O$27) ->  | P76: =_xll.BDP($B76,P$27) ->  | Q76: =_xll.BDH($B76&$C$16,$C$15,$C$13,$C$14,$B$19:$B$22,$C$19:$C$22,"cols=129;rows=1") -> 
C77: =_xll.BDP($B77,C$27) ->  | D77: =_xll.BDP($B77,D$27) ->  | E77: =_xll.BDP($B77,E$27) ->  | F77: =_xll.BDP($B77,F$27) ->  | G77: =_xll.BDP($B77,G$27) ->  | H77: =_xll.BDP($B77,H$27) ->  | I77: =_xll.BDP($B77,I$27,I$28,TEXT(_xll.BADDPERIODS($O77,"numberofperiods=-1","per=d"),"YYYYMMDD")) ->  | J77: =_xll.BDP($B77,J$27) ->  | K77: =_xll.BDP($B77,K$27) ->  | L77: =_xll.BDP($B77,L$27) ->  | M77: =_xll.BDP($B77,M$27) ->  | N77: =_xll.BDP($B77,N$27) ->  | O77: =_xll.BDP($B77,O$27) ->  | P77: =_xll.BDP($B77,P$27) ->  | Q77: =_xll.BDH($B77&$C$16,$C$15,$C$13,$C$14,$B$19:$B$22,$C$19:$C$22,"cols=129;rows=1") -> 
C78: =_xll.BDP($B78,C$27) ->  | D78: =_xll.BDP($B78,D$27) ->  | E78: =_xll.BDP($B78,E$27) ->  | F78: =_xll.BDP($B78,F$27) ->  | G78: =_xll.BDP($B78,G$27) ->  | H78: =_xll.BDP($B78,H$27) ->  | I78: =_xll.BDP($B78,I$27,I$28,TEXT(_xll.BADDPERIODS($O78,"numberofperiods=-1","per=d"),"YYYYMMDD")) ->  | J78: =_xll.BDP($B78,J$27) ->  | K78: =_xll.BDP($B78,K$27) ->  | L78: =_xll.BDP($B78,L$27) ->  | M78: =_xll.BDP($B78,M$27) ->  | N78: =_xll.BDP($B78,N$27) ->  | O78: =_xll.BDP($B78,O$27) ->  | P78: =_xll.BDP($B78,P$27) ->  | Q78: =_xll.BDH($B78&$C$16,$C$15,$C$13,$C$14,$B$19:$B$22,$C$19:$C$22,"cols=129;rows=1") -> 
C79: =_xll.BDP($B79,C$27) ->  | D79: =_xll.BDP($B79,D$27) ->  | E79: =_xll.BDP($B79,E$27) ->  | F79: =_xll.BDP($B79,F$27) ->  | G79: =_xll.BDP($B79,G$27) ->  | H79: =_xll.BDP($B79,H$27) ->  | I79: =_xll.BDP($B79,I$27,I$28,TEXT(_xll.BADDPERIODS($O79,"numberofperiods=-1","per=d"),"YYYYMMDD")) ->  | J79: =_xll.BDP($B79,J$27) ->  | K79: =_xll.BDP($B79,K$27) ->  | L79: =_xll.BDP($B79,L$27) ->  | M79: =_xll.BDP($B79,M$27) ->  | N79: =_xll.BDP($B79,N$27) ->  | O79: =_xll.BDP($B79,O$27) ->  | P79: =_xll.BDP($B79,P$27) ->  | Q79: =_xll.BDH($B79&$C$16,$C$15,$C$13,$C$14,$B$19:$B$22,$C$19:$C$22,"cols=129;rows=1") -> 
C80: =_xll.BDP($B80,C$27) ->  | D80: =_xll.BDP($B80,D$27) ->  | E80: =_xll.BDP($B80,E$27) ->  | F80: =_xll.BDP($B80,F$27) ->  | G80: =_xll.BDP($B80,G$27) ->  | H80: =_xll.BDP($B80,H$27) ->  | I80: =_xll.BDP($B80,I$27,I$28,TEXT(_xll.BADDPERIODS($O80,"numberofperiods=-1","per=d"),"YYYYMMDD")) ->  | J80: =_xll.BDP($B80,J$27) ->  | K80: =_xll.BDP($B80,K$27) ->  | L80: =_xll.BDP($B80,L$27) ->  | M80: =_xll.BDP($B80,M$27) ->  | N80: =_xll.BDP($B80,N$27) ->  | O80: =_xll.BDP($B80,O$27) ->  | P80: =_xll.BDP($B80,P$27) ->  | Q80: =_xll.BDH($B80&$C$16,$C$15,$C$13,$C$14,$B$19:$B$22,$C$19:$C$22,"cols=129;rows=1") -> 
C81: =_xll.BDP($B81,C$27) ->  | D81: =_xll.BDP($B81,D$27) ->  | E81: =_xll.BDP($B81,E$27) ->  | F81: =_xll.BDP($B81,F$27) ->  | G81: =_xll.BDP($B81,G$27) ->  | H81: =_xll.BDP($B81,H$27) ->  | I81: =_xll.BDP($B81,I$27,I$28,TEXT(_xll.BADDPERIODS($O81,"numberofperiods=-1","per=d"),"YYYYMMDD")) ->  | J81: =_xll.BDP($B81,J$27) ->  | K81: =_xll.BDP($B81,K$27) ->  | L81: =_xll.BDP($B81,L$27) ->  | M81: =_xll.BDP($B81,M$27) ->  | N81: =_xll.BDP($B81,N$27) ->  | O81: =_xll.BDP($B81,O$27) ->  | P81: =_xll.BDP($B81,P$27) ->  | Q81: =_xll.BDH($B81&$C$16,$C$15,$C$13,$C$14,$B$19:$B$22,$C$19:$C$22,"cols=129;rows=1") -> 
C82: =_xll.BDP($B82,C$27) ->  | D82: =_xll.BDP($B82,D$27) ->  | E82: =_xll.BDP($B82,E$27) ->  | F82: =_xll.BDP($B82,F$27) ->  | G82: =_xll.BDP($B82,G$27) ->  | H82: =_xll.BDP($B82,H$27) ->  | I82: =_xll.BDP($B82,I$27,I$28,TEXT(_xll.BADDPERIODS($O82,"numberofperiods=-1","per=d"),"YYYYMMDD")) ->  | J82: =_xll.BDP($B82,J$27) ->  | K82: =_xll.BDP($B82,K$27) ->  | L82: =_xll.BDP($B82,L$27) ->  | M82: =_xll.BDP($B82,M$27) ->  | N82: =_xll.BDP($B82,N$27) ->  | O82: =_xll.BDP($B82,O$27) ->  | P82: =_xll.BDP($B82,P$27) ->  | Q82: =_xll.BDH($B82&$C$16,$C$15,$C$13,$C$14,$B$19:$B$22,$C$19:$C$22,"cols=129;rows=1") -> 
C83: =_xll.BDP($B83,C$27) ->  | D83: =_xll.BDP($B83,D$27) ->  | E83: =_xll.BDP($B83,E$27) ->  | F83: =_xll.BDP($B83,F$27) ->  | G83: =_xll.BDP($B83,G$27) ->  | H83: =_xll.BDP($B83,H$27) ->  | I83: =_xll.BDP($B83,I$27,I$28,TEXT(_xll.BADDPERIODS($O83,"numberofperiods=-1","per=d"),"YYYYMMDD")) ->  | J83: =_xll.BDP($B83,J$27) ->  | K83: =_xll.BDP($B83,K$27) ->  | L83: =_xll.BDP($B83,L$27) ->  | M83: =_xll.BDP($B83,M$27) ->  | N83: =_xll.BDP($B83,N$27) ->  | O83: =_xll.BDP($B83,O$27) ->  | P83: =_xll.BDP($B83,P$27) ->  | Q83: =_xll.BDH($B83&$C$16,$C$15,$C$13,$C$14,$B$19:$B$22,$C$19:$C$22,"cols=129;rows=1") -> 
C84: =_xll.BDP($B84,C$27) ->  | D84: =_xll.BDP($B84,D$27) ->  | E84: =_xll.BDP($B84,E$27) ->  | F84: =_xll.BDP($B84,F$27) ->  | G84: =_xll.BDP($B84,G$27) ->  | H84: =_xll.BDP($B84,H$27) ->  | I84: =_xll.BDP($B84,I$27,I$28,TEXT(_xll.BADDPERIODS($O84,"numberofperiods=-1","per=d"),"YYYYMMDD")) ->  | J84: =_xll.BDP($B84,J$27) ->  | K84: =_xll.BDP($B84,K$27) ->  | L84: =_xll.BDP($B84,L$27) ->  | M84: =_xll.BDP($B84,M$27) ->  | N84: =_xll.BDP($B84,N$27) ->  | O84: =_xll.BDP($B84,O$27) ->  | P84: =_xll.BDP($B84,P$27) ->  | Q84: =_xll.BDH($B84&$C$16,$C$15,$C$13,$C$14,$B$19:$B$22,$C$19:$C$22,"cols=129;rows=1") -> 
C85: =_xll.BDP($B85,C$27) ->  | D85: =_xll.BDP($B85,D$27) ->  | E85: =_xll.BDP($B85,E$27) ->  | F85: =_xll.BDP($B85,F$27) ->  | G85: =_xll.BDP($B85,G$27) ->  | H85: =_xll.BDP($B85,H$27) ->  | I85: =_xll.BDP($B85,I$27,I$28,TEXT(_xll.BADDPERIODS($O85,"numberofperiods=-1","per=d"),"YYYYMMDD")) ->  | J85: =_xll.BDP($B85,J$27) ->  | K85: =_xll.BDP($B85,K$27) ->  | L85: =_xll.BDP($B85,L$27) ->  | M85: =_xll.BDP($B85,M$27) ->  | N85: =_xll.BDP($B85,N$27) ->  | O85: =_xll.BDP($B85,O$27) ->  | P85: =_xll.BDP($B85,P$27) ->  | Q85: =_xll.BDH($B85&$C$16,$C$15,$C$13,$C$14,$B$19:$B$22,$C$19:$C$22,"cols=129;rows=1") -> 
C86: =_xll.BDP($B86,C$27) ->  | D86: =_xll.BDP($B86,D$27) ->  | E86: =_xll.BDP($B86,E$27) ->  | F86: =_xll.BDP($B86,F$27) ->  | G86: =_xll.BDP($B86,G$27) ->  | H86: =_xll.BDP($B86,H$27) ->  | I86: =_xll.BDP($B86,I$27,I$28,TEXT(_xll.BADDPERIODS($O86,"numberofperiods=-1","per=d"),"YYYYMMDD")) ->  | J86: =_xll.BDP($B86,J$27) ->  | K86: =_xll.BDP($B86,K$27) ->  | L86: =_xll.BDP($B86,L$27) ->  | M86: =_xll.BDP($B86,M$27) ->  | N86: =_xll.BDP($B86,N$27) ->  | O86: =_xll.BDP($B86,O$27) ->  | P86: =_xll.BDP($B86,P$27) ->  | Q86: =_xll.BDH($B86&$C$16,$C$15,$C$13,$C$14,$B$19:$B$22,$C$19:$C$22,"cols=129;rows=1") -> 
C87: =_xll.BDP($B87,C$27) ->  | D87: =_xll.BDP($B87,D$27) ->  | E87: =_xll.BDP($B87,E$27) ->  | F87: =_xll.BDP($B87,F$27) ->  | G87: =_xll.BDP($B87,G$27) ->  | H87: =_xll.BDP($B87,H$27) ->  | I87: =_xll.BDP($B87,I$27,I$28,TEXT(_xll.BADDPERIODS($O87,"numberofperiods=-1","per=d"),"YYYYMMDD")) ->  | J87: =_xll.BDP($B87,J$27) ->  | K87: =_xll.BDP($B87,K$27) ->  | L87: =_xll.BDP($B87,L$27) ->  | M87: =_xll.BDP($B87,M$27) ->  | N87: =_xll.BDP($B87,N$27) ->  | O87: =_xll.BDP($B87,O$27) ->  | P87: =_xll.BDP($B87,P$27) ->  | Q87: =_xll.BDH($B87&$C$16,$C$15,$C$13,$C$14,$B$19:$B$22,$C$19:$C$22,"cols=129;rows=1") -> 
C88: =_xll.BDP($B88,C$27) ->  | D88: =_xll.BDP($B88,D$27) ->  | E88: =_xll.BDP($B88,E$27) ->  | F88: =_xll.BDP($B88,F$27) ->  | G88: =_xll.BDP($B88,G$27) ->  | H88: =_xll.BDP($B88,H$27) ->  | I88: =_xll.BDP($B88,I$27,I$28,TEXT(_xll.BADDPERIODS($O88,"numberofperiods=-1","per=d"),"YYYYMMDD")) ->  | J88: =_xll.BDP($B88,J$27) ->  | K88: =_xll.BDP($B88,K$27) ->  | L88: =_xll.BDP($B88,L$27) ->  | M88: =_xll.BDP($B88,M$27) ->  | N88: =_xll.BDP($B88,N$27) ->  | O88: =_xll.BDP($B88,O$27) ->  | P88: =_xll.BDP($B88,P$27) ->  | Q88: =_xll.BDH($B88&$C$16,$C$15,$C$13,$C$14,$B$19:$B$22,$C$19:$C$22,"cols=129;rows=1") -> 
C89: =_xll.BDP($B89,C$27) ->  | D89: =_xll.BDP($B89,D$27) ->  | E89: =_xll.BDP($B89,E$27) ->  | F89: =_xll.BDP($B89,F$27) ->  | G89: =_xll.BDP($B89,G$27) ->  | H89: =_xll.BDP($B89,H$27) ->  | I89: =_xll.BDP($B89,I$27,I$28,TEXT(_xll.BADDPERIODS($O89,"numberofperiods=-1","per=d"),"YYYYMMDD")) ->  | J89: =_xll.BDP($B89,J$27) ->  | K89: =_xll.BDP($B89,K$27) ->  | L89: =_xll.BDP($B89,L$27) ->  | M89: =_xll.BDP($B89,M$27) ->  | N89: =_xll.BDP($B89,N$27) ->  | O89: =_xll.BDP($B89,O$27) ->  | P89: =_xll.BDP($B89,P$27) ->  | Q89: =_xll.BDH($B89&$C$16,$C$15,$C$13,$C$14,$B$19:$B$22,$C$19:$C$22,"cols=129;rows=1") -> 
C90: =_xll.BDP($B90,C$27) ->  | D90: =_xll.BDP($B90,D$27) ->  | E90: =_xll.BDP($B90,E$27) ->  | F90: =_xll.BDP($B90,F$27) ->  | G90: =_xll.BDP($B90,G$27) ->  | H90: =_xll.BDP($B90,H$27) ->  | I90: =_xll.BDP($B90,I$27,I$28,TEXT(_xll.BADDPERIODS($O90,"numberofperiods=-1","per=d"),"YYYYMMDD")) ->  | J90: =_xll.BDP($B90,J$27) ->  | K90: =_xll.BDP($B90,K$27) ->  | L90: =_xll.BDP($B90,L$27) ->  | M90: =_xll.BDP($B90,M$27) ->  | N90: =_xll.BDP($B90,N$27) ->  | O90: =_xll.BDP($B90,O$27) ->  | P90: =_xll.BDP($B90,P$27) ->  | Q90: =_xll.BDH($B90&$C$16,$C$15,$C$13,$C$14,$B$19:$B$22,$C$19:$C$22,"cols=129;rows=1") -> 
C91: =_xll.BDP($B91,C$27) ->  | D91: =_xll.BDP($B91,D$27) ->  | E91: =_xll.BDP($B91,E$27) ->  | F91: =_xll.BDP($B91,F$27) ->  | G91: =_xll.BDP($B91,G$27) ->  | H91: =_xll.BDP($B91,H$27) ->  | I91: =_xll.BDP($B91,I$27,I$28,TEXT(_xll.BADDPERIODS($O91,"numberofperiods=-1","per=d"),"YYYYMMDD")) ->  | J91: =_xll.BDP($B91,J$27) ->  | K91: =_xll.BDP($B91,K$27) ->  | L91: =_xll.BDP($B91,L$27) ->  | M91: =_xll.BDP($B91,M$27) ->  | N91: =_xll.BDP($B91,N$27) ->  | O91: =_xll.BDP($B91,O$27) ->  | P91: =_xll.BDP($B91,P$27) ->  | Q91: =_xll.BDH($B91&$C$16,$C$15,$C$13,$C$14,$B$19:$B$22,$C$19:$C$22,"cols=129;rows=1") -> 
C92: =_xll.BDP($B92,C$27) ->  | D92: =_xll.BDP($B92,D$27) ->  | E92: =_xll.BDP($B92,E$27) ->  | F92: =_xll.BDP($B92,F$27) ->  | G92: =_xll.BDP($B92,G$27) ->  | H92: =_xll.BDP($B92,H$27) ->  | I92: =_xll.BDP($B92,I$27,I$28,TEXT(_xll.BADDPERIODS($O92,"numberofperiods=-1","per=d"),"YYYYMMDD")) ->  | J92: =_xll.BDP($B92,J$27) ->  | K92: =_xll.BDP($B92,K$27) ->  | L92: =_xll.BDP($B92,L$27) ->  | M92: =_xll.BDP($B92,M$27) ->  | N92: =_xll.BDP($B92,N$27) ->  | O92: =_xll.BDP($B92,O$27) ->  | P92: =_xll.BDP($B92,P$27) ->  | Q92: =_xll.BDH($B92&$C$16,$C$15,$C$13,$C$14,$B$19:$B$22,$C$19:$C$22,"cols=129;rows=1") -> 
C93: =_xll.BDP($B93,C$27) ->  | D93: =_xll.BDP($B93,D$27) ->  | E93: =_xll.BDP($B93,E$27) ->  | F93: =_xll.BDP($B93,F$27) ->  | G93: =_xll.BDP($B93,G$27) ->  | H93: =_xll.BDP($B93,H$27) ->  | I93: =_xll.BDP($B93,I$27,I$28,TEXT(_xll.BADDPERIODS($O93,"numberofperiods=-1","per=d"),"YYYYMMDD")) ->  | J93: =_xll.BDP($B93,J$27) ->  | K93: =_xll.BDP($B93,K$27) ->  | L93: =_xll.BDP($B93,L$27) ->  | M93: =_xll.BDP($B93,M$27) ->  | N93: =_xll.BDP($B93,N$27) ->  | O93: =_xll.BDP($B93,O$27) ->  | P93: =_xll.BDP($B93,P$27) ->  | Q93: =_xll.BDH($B93&$C$16,$C$15,$C$13,$C$14,$B$19:$B$22,$C$19:$C$22,"cols=129;rows=1") -> 
C94: =_xll.BDP($B94,C$27) ->  | D94: =_xll.BDP($B94,D$27) ->  | E94: =_xll.BDP($B94,E$27) ->  | F94: =_xll.BDP($B94,F$27) ->  | G94: =_xll.BDP($B94,G$27) ->  | H94: =_xll.BDP($B94,H$27) ->  | I94: =_xll.BDP($B94,I$27,I$28,TEXT(_xll.BADDPERIODS($O94,"numberofperiods=-1","per=d"),"YYYYMMDD")) ->  | J94: =_xll.BDP($B94,J$27) ->  | K94: =_xll.BDP($B94,K$27) ->  | L94: =_xll.BDP($B94,L$27) ->  | M94: =_xll.BDP($B94,M$27) ->  | N94: =_xll.BDP($B94,N$27) ->  | O94: =_xll.BDP($B94,O$27) ->  | P94: =_xll.BDP($B94,P$27) ->  | Q94: =_xll.BDH($B94&$C$16,$C$15,$C$13,$C$14,$B$19:$B$22,$C$19:$C$22,"cols=129;rows=1") -> 
C95: =_xll.BDP($B95,C$27) ->  | D95: =_xll.BDP($B95,D$27) ->  | E95: =_xll.BDP($B95,E$27) ->  | F95: =_xll.BDP($B95,F$27) ->  | G95: =_xll.BDP($B95,G$27) ->  | H95: =_xll.BDP($B95,H$27) ->  | I95: =_xll.BDP($B95,I$27,I$28,TEXT(_xll.BADDPERIODS($O95,"numberofperiods=-1","per=d"),"YYYYMMDD")) ->  | J95: =_xll.BDP($B95,J$27) ->  | K95: =_xll.BDP($B95,K$27) ->  | L95: =_xll.BDP($B95,L$27) ->  | M95: =_xll.BDP($B95,M$27) ->  | N95: =_xll.BDP($B95,N$27) ->  | O95: =_xll.BDP($B95,O$27) ->  | P95: =_xll.BDP($B95,P$27) ->  | Q95: =_xll.BDH($B95&$C$16,$C$15,$C$13,$C$14,$B$19:$B$22,$C$19:$C$22,"cols=129;rows=1") -> 
C96: =_xll.BDP($B96,C$27) ->  | D96: =_xll.BDP($B96,D$27) ->  | E96: =_xll.BDP($B96,E$27) ->  | F96: =_xll.BDP($B96,F$27) ->  | G96: =_xll.BDP($B96,G$27) ->  | H96: =_xll.BDP($B96,H$27) ->  | I96: =_xll.BDP($B96,I$27,I$28,TEXT(_xll.BADDPERIODS($O96,"numberofperiods=-1","per=d"),"YYYYMMDD")) ->  | J96: =_xll.BDP($B96,J$27) ->  | K96: =_xll.BDP($B96,K$27) ->  | L96: =_xll.BDP($B96,L$27) ->  | M96: =_xll.BDP($B96,M$27) ->  | N96: =_xll.BDP($B96,N$27) ->  | O96: =_xll.BDP($B96,O$27) ->  | P96: =_xll.BDP($B96,P$27) ->  | Q96: =_xll.BDH($B96&$C$16,$C$15,$C$13,$C$14,$B$19:$B$22,$C$19:$C$22,"cols=129;rows=1") -> 
C97: =_xll.BDP($B97,C$27) ->  | D97: =_xll.BDP($B97,D$27) ->  | E97: =_xll.BDP($B97,E$27) ->  | F97: =_xll.BDP($B97,F$27) ->  | G97: =_xll.BDP($B97,G$27) ->  | H97: =_xll.BDP($B97,H$27) ->  | I97: =_xll.BDP($B97,I$27,I$28,TEXT(_xll.BADDPERIODS($O97,"numberofperiods=-1","per=d"),"YYYYMMDD")) ->  | J97: =_xll.BDP($B97,J$27) ->  | K97: =_xll.BDP($B97,K$27) ->  | L97: =_xll.BDP($B97,L$27) ->  | M97: =_xll.BDP($B97,M$27) ->  | N97: =_xll.BDP($B97,N$27) ->  | O97: =_xll.BDP($B97,O$27) ->  | P97: =_xll.BDP($B97,P$27) ->  | Q97: =_xll.BDH($B97&$C$16,$C$15,$C$13,$C$14,$B$19:$B$22,$C$19:$C$22,"cols=129;rows=1") -> 
C98: =_xll.BDP($B98,C$27) ->  | D98: =_xll.BDP($B98,D$27) ->  | E98: =_xll.BDP($B98,E$27) ->  | F98: =_xll.BDP($B98,F$27) ->  | G98: =_xll.BDP($B98,G$27) ->  | H98: =_xll.BDP($B98,H$27) ->  | I98: =_xll.BDP($B98,I$27,I$28,TEXT(_xll.BADDPERIODS($O98,"numberofperiods=-1","per=d"),"YYYYMMDD")) ->  | J98: =_xll.BDP($B98,J$27) ->  | K98: =_xll.BDP($B98,K$27) ->  | L98: =_xll.BDP($B98,L$27) ->  | M98: =_xll.BDP($B98,M$27) ->  | N98: =_xll.BDP($B98,N$27) ->  | O98: =_xll.BDP($B98,O$27) ->  | P98: =_xll.BDP($B98,P$27) ->  | Q98: =_xll.BDH($B98&$C$16,$C$15,$C$13,$C$14,$B$19:$B$22,$C$19:$C$22,"cols=129;rows=1") -> 
C99: =_xll.BDP($B99,C$27) ->  | D99: =_xll.BDP($B99,D$27) ->  | E99: =_xll.BDP($B99,E$27) ->  | F99: =_xll.BDP($B99,F$27) ->  | G99: =_xll.BDP($B99,G$27) ->  | H99: =_xll.BDP($B99,H$27) ->  | I99: =_xll.BDP($B99,I$27,I$28,TEXT(_xll.BADDPERIODS($O99,"numberofperiods=-1","per=d"),"YYYYMMDD")) ->  | J99: =_xll.BDP($B99,J$27) ->  | K99: =_xll.BDP($B99,K$27) ->  | L99: =_xll.BDP($B99,L$27) ->  | M99: =_xll.BDP($B99,M$27) ->  | N99: =_xll.BDP($B99,N$27) ->  | O99: =_xll.BDP($B99,O$27) ->  | P99: =_xll.BDP($B99,P$27) ->  | Q99: =_xll.BDH($B99&$C$16,$C$15,$C$13,$C$14,$B$19:$B$22,$C$19:$C$22,"cols=129;rows=1") -> 
C100: =_xll.BDP($B100,C$27) ->  | D100: =_xll.BDP($B100,D$27) ->  | E100: =_xll.BDP($B100,E$27) ->  | F100: =_xll.BDP($B100,F$27) ->  | G100: =_xll.BDP($B100,G$27) ->  | H100: =_xll.BDP($B100,H$27) ->  | I100: =_xll.BDP($B100,I$27,I$28,TEXT(_xll.BADDPERIODS($O100,"numberofperiods=-1","per=d"),"YYYYMMDD")) ->  | J100: =_xll.BDP($B100,J$27) ->  | K100: =_xll.BDP($B100,K$27) ->  | L100: =_xll.BDP($B100,L$27) ->  | M100: =_xll.BDP($B100,M$27) ->  | N100: =_xll.BDP($B100,N$27) ->  | O100: =_xll.BDP($B100,O$27) ->  | P100: =_xll.BDP($B100,P$27) ->  | Q100: =_xll.BDH($B100&$C$16,$C$15,$C$13,$C$14,$B$19:$B$22,$C$19:$C$22,"cols=129;rows=1") -> 
C101: =_xll.BDP($B101,C$27) ->  | D101: =_xll.BDP($B101,D$27) ->  | E101: =_xll.BDP($B101,E$27) ->  | F101: =_xll.BDP($B101,F$27) ->  | G101: =_xll.BDP($B101,G$27) ->  | H101: =_xll.BDP($B101,H$27) ->  | I101: =_xll.BDP($B101,I$27,I$28,TEXT(_xll.BADDPERIODS($O101,"numberofperiods=-1","per=d"),"YYYYMMDD")) ->  | J101: =_xll.BDP($B101,J$27) ->  | K101: =_xll.BDP($B101,K$27) ->  | L101: =_xll.BDP($B101,L$27) ->  | M101: =_xll.BDP($B101,M$27) ->  | N101: =_xll.BDP($B101,N$27) ->  | O101: =_xll.BDP($B101,O$27) ->  | P101: =_xll.BDP($B101,P$27) ->  | Q101: =_xll.BDH($B101&$C$16,$C$15,$C$13,$C$14,$B$19:$B$22,$C$19:$C$22,"cols=129;rows=1") -> 
C102: =_xll.BDP($B102,C$27) ->  | D102: =_xll.BDP($B102,D$27) ->  | E102: =_xll.BDP($B102,E$27) ->  | F102: =_xll.BDP($B102,F$27) ->  | G102: =_xll.BDP($B102,G$27) ->  | H102: =_xll.BDP($B102,H$27) ->  | I102: =_xll.BDP($B102,I$27,I$28,TEXT(_xll.BADDPERIODS($O102,"numberofperiods=-1","per=d"),"YYYYMMDD")) ->  | J102: =_xll.BDP($B102,J$27) ->  | K102: =_xll.BDP($B102,K$27) ->  | L102: =_xll.BDP($B102,L$27) ->  | M102: =_xll.BDP($B102,M$27) ->  | N102: =_xll.BDP($B102,N$27) ->  | O102: =_xll.BDP($B102,O$27) ->  | P102: =_xll.BDP($B102,P$27) ->  | Q102: =_xll.BDH($B102&$C$16,$C$15,$C$13,$C$14,$B$19:$B$22,$C$19:$C$22,"cols=129;rows=1") -> 
C103: =_xll.BDP($B103,C$27) ->  | D103: =_xll.BDP($B103,D$27) ->  | E103: =_xll.BDP($B103,E$27) ->  | F103: =_xll.BDP($B103,F$27) ->  | G103: =_xll.BDP($B103,G$27) ->  | H103: =_xll.BDP($B103,H$27) ->  | I103: =_xll.BDP($B103,I$27,I$28,TEXT(_xll.BADDPERIODS($O103,"numberofperiods=-1","per=d"),"YYYYMMDD")) ->  | J103: =_xll.BDP($B103,J$27) ->  | K103: =_xll.BDP($B103,K$27) ->  | L103: =_xll.BDP($B103,L$27) ->  | M103: =_xll.BDP($B103,M$27) ->  | N103: =_xll.BDP($B103,N$27) ->  | O103: =_xll.BDP($B103,O$27) ->  | P103: =_xll.BDP($B103,P$27) ->  | Q103: =_xll.BDH($B103&$C$16,$C$15,$C$13,$C$14,$B$19:$B$22,$C$19:$C$22,"cols=129;rows=1") -> 
C104: =_xll.BDP($B104,C$27) ->  | D104: =_xll.BDP($B104,D$27) ->  | E104: =_xll.BDP($B104,E$27) ->  | F104: =_xll.BDP($B104,F$27) ->  | G104: =_xll.BDP($B104,G$27) ->  | H104: =_xll.BDP($B104,H$27) ->  | I104: =_xll.BDP($B104,I$27,I$28,TEXT(_xll.BADDPERIODS($O104,"numberofperiods=-1","per=d"),"YYYYMMDD")) ->  | J104: =_xll.BDP($B104,J$27) ->  | K104: =_xll.BDP($B104,K$27) ->  | L104: =_xll.BDP($B104,L$27) ->  | M104: =_xll.BDP($B104,M$27) ->  | N104: =_xll.BDP($B104,N$27) ->  | O104: =_xll.BDP($B104,O$27) ->  | P104: =_xll.BDP($B104,P$27) ->  | Q104: =_xll.BDH($B104&$C$16,$C$15,$C$13,$C$14,$B$19:$B$22,$C$19:$C$22,"cols=129;rows=1") -> 
C105: =_xll.BDP($B105,C$27) ->  | D105: =_xll.BDP($B105,D$27) ->  | E105: =_xll.BDP($B105,E$27) ->  | F105: =_xll.BDP($B105,F$27) ->  | G105: =_xll.BDP($B105,G$27) ->  | H105: =_xll.BDP($B105,H$27) ->  | I105: =_xll.BDP($B105,I$27,I$28,TEXT(_xll.BADDPERIODS($O105,"numberofperiods=-1","per=d"),"YYYYMMDD")) ->  | J105: =_xll.BDP($B105,J$27) ->  | K105: =_xll.BDP($B105,K$27) ->  | L105: =_xll.BDP($B105,L$27) ->  | M105: =_xll.BDP($B105,M$27) ->  | N105: =_xll.BDP($B105,N$27) ->  | O105: =_xll.BDP($B105,O$27) ->  | P105: =_xll.BDP($B105,P$27) ->  | Q105: =_xll.BDH($B105&$C$16,$C$15,$C$13,$C$14,$B$19:$B$22,$C$19:$C$22,"cols=129;rows=1") -> 
C106: =_xll.BDP($B106,C$27) ->  | D106: =_xll.BDP($B106,D$27) ->  | E106: =_xll.BDP($B106,E$27) ->  | F106: =_xll.BDP($B106,F$27) ->  | G106: =_xll.BDP($B106,G$27) ->  | H106: =_xll.BDP($B106,H$27) ->  | I106: =_xll.BDP($B106,I$27,I$28,TEXT(_xll.BADDPERIODS($O106,"numberofperiods=-1","per=d"),"YYYYMMDD")) ->  | J106: =_xll.BDP($B106,J$27) ->  | K106: =_xll.BDP($B106,K$27) ->  | L106: =_xll.BDP($B106,L$27) ->  | M106: =_xll.BDP($B106,M$27) ->  | N106: =_xll.BDP($B106,N$27) ->  | O106: =_xll.BDP($B106,O$27) ->  | P106: =_xll.BDP($B106,P$27) ->  | Q106: =_xll.BDH($B106&$C$16,$C$15,$C$13,$C$14,$B$19:$B$22,$C$19:$C$22,"cols=129;rows=1") -> 
C107: =_xll.BDP($B107,C$27) ->  | D107: =_xll.BDP($B107,D$27) ->  | E107: =_xll.BDP($B107,E$27) ->  | F107: =_xll.BDP($B107,F$27) ->  | G107: =_xll.BDP($B107,G$27) ->  | H107: =_xll.BDP($B107,H$27) ->  | I107: =_xll.BDP($B107,I$27,I$28,TEXT(_xll.BADDPERIODS($O107,"numberofperiods=-1","per=d"),"YYYYMMDD")) ->  | J107: =_xll.BDP($B107,J$27) ->  | K107: =_xll.BDP($B107,K$27) ->  | L107: =_xll.BDP($B107,L$27) ->  | M107: =_xll.BDP($B107,M$27) ->  | N107: =_xll.BDP($B107,N$27) ->  | O107: =_xll.BDP($B107,O$27) ->  | P107: =_xll.BDP($B107,P$27) ->  | Q107: =_xll.BDH($B107&$C$16,$C$15,$C$13,$C$14,$B$19:$B$22,$C$19:$C$22,"cols=129;rows=1") -> 
C108: =_xll.BDP($B108,C$27) ->  | D108: =_xll.BDP($B108,D$27) ->  | E108: =_xll.BDP($B108,E$27) ->  | F108: =_xll.BDP($B108,F$27) ->  | G108: =_xll.BDP($B108,G$27) ->  | H108: =_xll.BDP($B108,H$27) ->  | I108: =_xll.BDP($B108,I$27,I$28,TEXT(_xll.BADDPERIODS($O108,"numberofperiods=-1","per=d"),"YYYYMMDD")) ->  | J108: =_xll.BDP($B108,J$27) ->  | K108: =_xll.BDP($B108,K$27) ->  | L108: =_xll.BDP($B108,L$27) ->  | M108: =_xll.BDP($B108,M$27) ->  | N108: =_xll.BDP($B108,N$27) ->  | O108: =_xll.BDP($B108,O$27) ->  | P108: =_xll.BDP($B108,P$27) ->  | Q108: =_xll.BDH($B108&$C$16,$C$15,$C$13,$C$14,$B$19:$B$22,$C$19:$C$22,"cols=129;rows=1") -> 
C109: =_xll.BDP($B109,C$27) ->  | D109: =_xll.BDP($B109,D$27) ->  | E109: =_xll.BDP($B109,E$27) ->  | F109: =_xll.BDP($B109,F$27) ->  | G109: =_xll.BDP($B109,G$27) ->  | H109: =_xll.BDP($B109,H$27) ->  | I109: =_xll.BDP($B109,I$27,I$28,TEXT(_xll.BADDPERIODS($O109,"numberofperiods=-1","per=d"),"YYYYMMDD")) ->  | J109: =_xll.BDP($B109,J$27) ->  | K109: =_xll.BDP($B109,K$27) ->  | L109: =_xll.BDP($B109,L$27) ->  | M109: =_xll.BDP($B109,M$27) ->  | N109: =_xll.BDP($B109,N$27) ->  | O109: =_xll.BDP($B109,O$27) ->  | P109: =_xll.BDP($B109,P$27) ->  | Q109: =_xll.BDH($B109&$C$16,$C$15,$C$13,$C$14,$B$19:$B$22,$C$19:$C$22,"cols=129;rows=1") -> 
C110: =_xll.BDP($B110,C$27) ->  | D110: =_xll.BDP($B110,D$27) ->  | E110: =_xll.BDP($B110,E$27) ->  | F110: =_xll.BDP($B110,F$27) ->  | G110: =_xll.BDP($B110,G$27) ->  | H110: =_xll.BDP($B110,H$27) ->  | I110: =_xll.BDP($B110,I$27,I$28,TEXT(_xll.BADDPERIODS($O110,"numberofperiods=-1","per=d"),"YYYYMMDD")) ->  | J110: =_xll.BDP($B110,J$27) ->  | K110: =_xll.BDP($B110,K$27) ->  | L110: =_xll.BDP($B110,L$27) ->  | M110: =_xll.BDP($B110,M$27) ->  | N110: =_xll.BDP($B110,N$27) ->  | O110: =_xll.BDP($B110,O$27) ->  | P110: =_xll.BDP($B110,P$27) ->  | Q110: =_xll.BDH($B110&$C$16,$C$15,$C$13,$C$14,$B$19:$B$22,$C$19:$C$22,"cols=129;rows=1") -> 
C111: =_xll.BDP($B111,C$27) ->  | D111: =_xll.BDP($B111,D$27) ->  | E111: =_xll.BDP($B111,E$27) ->  | F111: =_xll.BDP($B111,F$27) ->  | G111: =_xll.BDP($B111,G$27) ->  | H111: =_xll.BDP($B111,H$27) ->  | I111: =_xll.BDP($B111,I$27,I$28,TEXT(_xll.BADDPERIODS($O111,"numberofperiods=-1","per=d"),"YYYYMMDD")) ->  | J111: =_xll.BDP($B111,J$27) ->  | K111: =_xll.BDP($B111,K$27) ->  | L111: =_xll.BDP($B111,L$27) ->  | M111: =_xll.BDP($B111,M$27) ->  | N111: =_xll.BDP($B111,N$27) ->  | O111: =_xll.BDP($B111,O$27) ->  | P111: =_xll.BDP($B111,P$27) ->  | Q111: =_xll.BDH($B111&$C$16,$C$15,$C$13,$C$14,$B$19:$B$22,$C$19:$C$22,"cols=129;rows=1") -> 
C112: =_xll.BDP($B112,C$27) ->  | D112: =_xll.BDP($B112,D$27) ->  | E112: =_xll.BDP($B112,E$27) ->  | F112: =_xll.BDP($B112,F$27) ->  | G112: =_xll.BDP($B112,G$27) ->  | H112: =_xll.BDP($B112,H$27) ->  | I112: =_xll.BDP($B112,I$27,I$28,TEXT(_xll.BADDPERIODS($O112,"numberofperiods=-1","per=d"),"YYYYMMDD")) ->  | J112: =_xll.BDP($B112,J$27) ->  | K112: =_xll.BDP($B112,K$27) ->  | L112: =_xll.BDP($B112,L$27) ->  | M112: =_xll.BDP($B112,M$27) ->  | N112: =_xll.BDP($B112,N$27) ->  | O112: =_xll.BDP($B112,O$27) ->  | P112: =_xll.BDP($B112,P$27) ->  | Q112: =_xll.BDH($B112&$C$16,$C$15,$C$13,$C$14,$B$19:$B$22,$C$19:$C$22,"cols=129;rows=1") -> 
C113: =_xll.BDP($B113,C$27) ->  | D113: =_xll.BDP($B113,D$27) ->  | E113: =_xll.BDP($B113,E$27) ->  | F113: =_xll.BDP($B113,F$27) ->  | G113: =_xll.BDP($B113,G$27) ->  | H113: =_xll.BDP($B113,H$27) ->  | I113: =_xll.BDP($B113,I$27,I$28,TEXT(_xll.BADDPERIODS($O113,"numberofperiods=-1","per=d"),"YYYYMMDD")) ->  | J113: =_xll.BDP($B113,J$27) ->  | K113: =_xll.BDP($B113,K$27) ->  | L113: =_xll.BDP($B113,L$27) ->  | M113: =_xll.BDP($B113,M$27) ->  | N113: =_xll.BDP($B113,N$27) ->  | O113: =_xll.BDP($B113,O$27) ->  | P113: =_xll.BDP($B113,P$27) -> 
C114: =_xll.BDP($B114,C$27) ->  | D114: =_xll.BDP($B114,D$27) ->  | E114: =_xll.BDP($B114,E$27) ->  | F114: =_xll.BDP($B114,F$27) ->  | G114: =_xll.BDP($B114,G$27) ->  | H114: =_xll.BDP($B114,H$27) ->  | I114: =_xll.BDP($B114,I$27,I$28,TEXT(_xll.BADDPERIODS($O114,"numberofperiods=-1","per=d"),"YYYYMMDD")) ->  | J114: =_xll.BDP($B114,J$27) ->  | K114: =_xll.BDP($B114,K$27) ->  | L114: =_xll.BDP($B114,L$27) ->  | M114: =_xll.BDP($B114,M$27) ->  | N114: =_xll.BDP($B114,N$27) ->  | O114: =_xll.BDP($B114,O$27) ->  | P114: =_xll.BDP($B114,P$27) ->  | Q114: =_xll.BDH($B114&$C$16,$C$15,$C$13,$C$14,$B$19:$B$22,$C$19:$C$22,"cols=129;rows=1") -> 
C115: =_xll.BDP($B115,C$27) ->  | D115: =_xll.BDP($B115,D$27) ->  | E115: =_xll.BDP($B115,E$27) ->  | F115: =_xll.BDP($B115,F$27) ->  | G115: =_xll.BDP($B115,G$27) ->  | H115: =_xll.BDP($B115,H$27) ->  | I115: =_xll.BDP($B115,I$27,I$28,TEXT(_xll.BADDPERIODS($O115,"numberofperiods=-1","per=d"),"YYYYMMDD")) ->  | J115: =_xll.BDP($B115,J$27) ->  | K115: =_xll.BDP($B115,K$27) ->  | L115: =_xll.BDP($B115,L$27) ->  | M115: =_xll.BDP($B115,M$27) ->  | N115: =_xll.BDP($B115,N$27) ->  | O115: =_xll.BDP($B115,O$27) ->  | P115: =_xll.BDP($B115,P$27) ->  | Q115: =_xll.BDH($B115&$C$16,$C$15,$C$13,$C$14,$B$19:$B$22,$C$19:$C$22,"cols=129;rows=1") -> 
C116: =_xll.BDP($B116,C$27) ->  | D116: =_xll.BDP($B116,D$27) ->  | E116: =_xll.BDP($B116,E$27) ->  | F116: =_xll.BDP($B116,F$27) ->  | G116: =_xll.BDP($B116,G$27) ->  | H116: =_xll.BDP($B116,H$27) ->  | I116: =_xll.BDP($B116,I$27,I$28,TEXT(_xll.BADDPERIODS($O116,"numberofperiods=-1","per=d"),"YYYYMMDD")) ->  | J116: =_xll.BDP($B116,J$27) ->  | K116: =_xll.BDP($B116,K$27) ->  | L116: =_xll.BDP($B116,L$27) ->  | M116: =_xll.BDP($B116,M$27) ->  | N116: =_xll.BDP($B116,N$27) ->  | O116: =_xll.BDP($B116,O$27) ->  | P116: =_xll.BDP($B116,P$27) ->  | Q116: =_xll.BDH($B116&$C$16,$C$15,$C$13,$C$14,$B$19:$B$22,$C$19:$C$22,"cols=129;rows=1") -> 
C117: =_xll.BDP($B117,C$27) ->  | D117: =_xll.BDP($B117,D$27) ->  | E117: =_xll.BDP($B117,E$27) ->  | F117: =_xll.BDP($B117,F$27) ->  | G117: =_xll.BDP($B117,G$27) ->  | H117: =_xll.BDP($B117,H$27) ->  | I117: =_xll.BDP($B117,I$27,I$28,TEXT(_xll.BADDPERIODS($O117,"numberofperiods=-1","per=d"),"YYYYMMDD")) ->  | J117: =_xll.BDP($B117,J$27) ->  | K117: =_xll.BDP($B117,K$27) ->  | L117: =_xll.BDP($B117,L$27) ->  | M117: =_xll.BDP($B117,M$27) ->  | N117: =_xll.BDP($B117,N$27) ->  | O117: =_xll.BDP($B117,O$27) ->  | P117: =_xll.BDP($B117,P$27) ->  | Q117: =_xll.BDH($B117&$C$16,$C$15,$C$13,$C$14,$B$19:$B$22,$C$19:$C$22,"cols=129;rows=1") -> 
C118: =_xll.BDP($B118,C$27) ->  | D118: =_xll.BDP($B118,D$27) ->  | E118: =_xll.BDP($B118,E$27) ->  | F118: =_xll.BDP($B118,F$27) ->  | G118: =_xll.BDP($B118,G$27) ->  | H118: =_xll.BDP($B118,H$27) ->  | I118: =_xll.BDP($B118,I$27,I$28,TEXT(_xll.BADDPERIODS($O118,"numberofperiods=-1","per=d"),"YYYYMMDD")) ->  | J118: =_xll.BDP($B118,J$27) ->  | K118: =_xll.BDP($B118,K$27) ->  | L118: =_xll.BDP($B118,L$27) ->  | M118: =_xll.BDP($B118,M$27) ->  | N118: =_xll.BDP($B118,N$27) ->  | O118: =_xll.BDP($B118,O$27) ->  | P118: =_xll.BDP($B118,P$27) ->  | Q118: =_xll.BDH($B118&$C$16,$C$15,$C$13,$C$14,$B$19:$B$22,$C$19:$C$22,"cols=129;rows=1") -> 
C119: =_xll.BDP($B119,C$27) ->  | D119: =_xll.BDP($B119,D$27) ->  | E119: =_xll.BDP($B119,E$27) ->  | F119: =_xll.BDP($B119,F$27) ->  | G119: =_xll.BDP($B119,G$27) ->  | H119: =_xll.BDP($B119,H$27) ->  | I119: =_xll.BDP($B119,I$27,I$28,TEXT(_xll.BADDPERIODS($O119,"numberofperiods=-1","per=d"),"YYYYMMDD")) ->  | J119: =_xll.BDP($B119,J$27) ->  | K119: =_xll.BDP($B119,K$27) ->  | L119: =_xll.BDP($B119,L$27) ->  | M119: =_xll.BDP($B119,M$27) ->  | N119: =_xll.BDP($B119,N$27) ->  | O119: =_xll.BDP($B119,O$27) ->  | P119: =_xll.BDP($B119,P$27) ->  | Q119: =_xll.BDH($B119&$C$16,$C$15,$C$13,$C$14,$B$19:$B$22,$C$19:$C$22,"cols=129;rows=1") -> 
C120: =_xll.BDP($B120,C$27) ->  | D120: =_xll.BDP($B120,D$27) ->  | E120: =_xll.BDP($B120,E$27) ->  | F120: =_xll.BDP($B120,F$27) ->  | G120: =_xll.BDP($B120,G$27) ->  | H120: =_xll.BDP($B120,H$27) ->  | I120: =_xll.BDP($B120,I$27,I$28,TEXT(_xll.BADDPERIODS($O120,"numberofperiods=-1","per=d"),"YYYYMMDD")) ->  | J120: =_xll.BDP($B120,J$27) ->  | K120: =_xll.BDP($B120,K$27) ->  | L120: =_xll.BDP($B120,L$27) ->  | M120: =_xll.BDP($B120,M$27) ->  | N120: =_xll.BDP($B120,N$27) ->  | O120: =_xll.BDP($B120,O$27) ->  | P120: =_xll.BDP($B120,P$27) ->  | Q120: =_xll.BDH($B120&$C$16,$C$15,$C$13,$C$14,$B$19:$B$22,$C$19:$C$22,"cols=129;rows=1") -> 
C121: =_xll.BDP($B121,C$27) ->  | D121: =_xll.BDP($B121,D$27) ->  | E121: =_xll.BDP($B121,E$27) ->  | F121: =_xll.BDP($B121,F$27) ->  | G121: =_xll.BDP($B121,G$27) ->  | H121: =_xll.BDP($B121,H$27) ->  | I121: =_xll.BDP($B121,I$27,I$28,TEXT(_xll.BADDPERIODS($O121,"numberofperiods=-1","per=d"),"YYYYMMDD")) ->  | J121: =_xll.BDP($B121,J$27) ->  | K121: =_xll.BDP($B121,K$27) ->  | L121: =_xll.BDP($B121,L$27) ->  | M121: =_xll.BDP($B121,M$27) ->  | N121: =_xll.BDP($B121,N$27) ->  | O121: =_xll.BDP($B121,O$27) ->  | P121: =_xll.BDP($B121,P$27) ->  | Q121: =_xll.BDH($B121&$C$16,$C$15,$C$13,$C$14,$B$19:$B$22,$C$19:$C$22,"cols=129;rows=1") -> 
C122: =_xll.BDP($B122,C$27) ->  | D122: =_xll.BDP($B122,D$27) ->  | E122: =_xll.BDP($B122,E$27) ->  | F122: =_xll.BDP($B122,F$27) ->  | G122: =_xll.BDP($B122,G$27) ->  | H122: =_xll.BDP($B122,H$27) ->  | I122: =_xll.BDP($B122,I$27,I$28,TEXT(_xll.BADDPERIODS($O122,"numberofperiods=-1","per=d"),"YYYYMMDD")) ->  | J122: =_xll.BDP($B122,J$27) ->  | K122: =_xll.BDP($B122,K$27) ->  | L122: =_xll.BDP($B122,L$27) ->  | M122: =_xll.BDP($B122,M$27) ->  | N122: =_xll.BDP($B122,N$27) ->  | O122: =_xll.BDP($B122,O$27) ->  | P122: =_xll.BDP($B122,P$27) ->  | Q122: =_xll.BDH($B122&$C$16,$C$15,$C$13,$C$14,$B$19:$B$22,$C$19:$C$22,"cols=129;rows=1") -> 
C123: =_xll.BDP($B123,C$27) ->  | D123: =_xll.BDP($B123,D$27) ->  | E123: =_xll.BDP($B123,E$27) ->  | F123: =_xll.BDP($B123,F$27) ->  | G123: =_xll.BDP($B123,G$27) ->  | H123: =_xll.BDP($B123,H$27) ->  | I123: =_xll.BDP($B123,I$27,I$28,TEXT(_xll.BADDPERIODS($O123,"numberofperiods=-1","per=d"),"YYYYMMDD")) ->  | J123: =_xll.BDP($B123,J$27) ->  | K123: =_xll.BDP($B123,K$27) ->  | L123: =_xll.BDP($B123,L$27) ->  | M123: =_xll.BDP($B123,M$27) ->  | N123: =_xll.BDP($B123,N$27) ->  | O123: =_xll.BDP($B123,O$27) ->  | P123: =_xll.BDP($B123,P$27) ->  | Q123: =_xll.BDH($B123&$C$16,$C$15,$C$13,$C$14,$B$19:$B$22,$C$19:$C$22,"cols=129;rows=1") -> 
C124: =_xll.BDP($B124,C$27) ->  | D124: =_xll.BDP($B124,D$27) ->  | E124: =_xll.BDP($B124,E$27) ->  | F124: =_xll.BDP($B124,F$27) ->  | G124: =_xll.BDP($B124,G$27) ->  | H124: =_xll.BDP($B124,H$27) ->  | I124: =_xll.BDP($B124,I$27,I$28,TEXT(_xll.BADDPERIODS($O124,"numberofperiods=-1","per=d"),"YYYYMMDD")) ->  | J124: =_xll.BDP($B124,J$27) ->  | K124: =_xll.BDP($B124,K$27) ->  | L124: =_xll.BDP($B124,L$27) ->  | M124: =_xll.BDP($B124,M$27) ->  | N124: =_xll.BDP($B124,N$27) ->  | O124: =_xll.BDP($B124,O$27) ->  | P124: =_xll.BDP($B124,P$27) ->  | Q124: =_xll.BDH($B124&$C$16,$C$15,$C$13,$C$14,$B$19:$B$22,$C$19:$C$22,"cols=129;rows=1") -> 
C125: =_xll.BDP($B125,C$27) ->  | D125: =_xll.BDP($B125,D$27) ->  | E125: =_xll.BDP($B125,E$27) ->  | F125: =_xll.BDP($B125,F$27) ->  | G125: =_xll.BDP($B125,G$27) ->  | H125: =_xll.BDP($B125,H$27) ->  | I125: =_xll.BDP($B125,I$27,I$28,TEXT(_xll.BADDPERIODS($O125,"numberofperiods=-1","per=d"),"YYYYMMDD")) ->  | J125: =_xll.BDP($B125,J$27) ->  | K125: =_xll.BDP($B125,K$27) ->  | L125: =_xll.BDP($B125,L$27) ->  | M125: =_xll.BDP($B125,M$27) ->  | N125: =_xll.BDP($B125,N$27) ->  | O125: =_xll.BDP($B125,O$27) ->  | P125: =_xll.BDP($B125,P$27) ->  | Q125: =_xll.BDH($B125&$C$16,$C$15,$C$13,$C$14,$B$19:$B$22,$C$19:$C$22,"cols=129;rows=1") -> 
C126: =_xll.BDP($B126,C$27) ->  | D126: =_xll.BDP($B126,D$27) ->  | E126: =_xll.BDP($B126,E$27) ->  | F126: =_xll.BDP($B126,F$27) ->  | G126: =_xll.BDP($B126,G$27) ->  | H126: =_xll.BDP($B126,H$27) ->  | I126: =_xll.BDP($B126,I$27,I$28,TEXT(_xll.BADDPERIODS($O126,"numberofperiods=-1","per=d"),"YYYYMMDD")) ->  | J126: =_xll.BDP($B126,J$27) ->  | K126: =_xll.BDP($B126,K$27) ->  | L126: =_xll.BDP($B126,L$27) ->  | M126: =_xll.BDP($B126,M$27) ->  | N126: =_xll.BDP($B126,N$27) ->  | O126: =_xll.BDP($B126,O$27) ->  | P126: =_xll.BDP($B126,P$27) ->  | Q126: =_xll.BDH($B126&$C$16,$C$15,$C$13,$C$14,$B$19:$B$22,$C$19:$C$22) -> 
C127: =_xll.BDP($B127,C$27) ->  | D127: =_xll.BDP($B127,D$27) ->  | E127: =_xll.BDP($B127,E$27) ->  | F127: =_xll.BDP($B127,F$27) ->  | G127: =_xll.BDP($B127,G$27) ->  | H127: =_xll.BDP($B127,H$27) ->  | I127: =_xll.BDP($B127,I$27,I$28,TEXT(_xll.BADDPERIODS($O127,"numberofperiods=-1","per=d"),"YYYYMMDD")) ->  | J127: =_xll.BDP($B127,J$27) ->  | K127: =_xll.BDP($B127,K$27) ->  | L127: =_xll.BDP($B127,L$27) ->  | M127: =_xll.BDP($B127,M$27) ->  | N127: =_xll.BDP($B127,N$27) ->  | O127: =_xll.BDP($B127,O$27) ->  | P127: =_xll.BDP($B127,P$27) ->  | Q127: =_xll.BDH($B127&$C$16,$C$15,$C$13,$C$14,$B$19:$B$22,$C$19:$C$22) -> 
C128: =_xll.BDP($B128,C$27) ->  | D128: =_xll.BDP($B128,D$27) ->  | E128: =_xll.BDP($B128,E$27) ->  | F128: =_xll.BDP($B128,F$27) ->  | G128: =_xll.BDP($B128,G$27) ->  | H128: =_xll.BDP($B128,H$27) ->  | I128: =_xll.BDP($B128,I$27,I$28,TEXT(_xll.BADDPERIODS($O128,"numberofperiods=-1","per=d"),"YYYYMMDD")) ->  | J128: =_xll.BDP($B128,J$27) ->  | K128: =_xll.BDP($B128,K$27) ->  | L128: =_xll.BDP($B128,L$27) ->  | M128: =_xll.BDP($B128,M$27) ->  | N128: =_xll.BDP($B128,N$27) ->  | O128: =_xll.BDP($B128,O$27) ->  | P128: =_xll.BDP($B128,P$27) ->  | Q128: =_xll.BDH($B128&$C$16,$C$15,$C$13,$C$14,$B$19:$B$22,$C$19:$C$22) -> 
C129: =_xll.BDP($B129,C$27) ->  | D129: =_xll.BDP($B129,D$27) ->  | E129: =_xll.BDP($B129,E$27) ->  | F129: =_xll.BDP($B129,F$27) ->  | G129: =_xll.BDP($B129,G$27) ->  | H129: =_xll.BDP($B129,H$27) ->  | I129: =_xll.BDP($B129,I$27,I$28,TEXT(_xll.BADDPERIODS($O129,"numberofperiods=-1","per=d"),"YYYYMMDD")) ->  | J129: =_xll.BDP($B129,J$27) ->  | K129: =_xll.BDP($B129,K$27) ->  | L129: =_xll.BDP($B129,L$27) ->  | M129: =_xll.BDP($B129,M$27) ->  | N129: =_xll.BDP($B129,N$27) ->  | O129: =_xll.BDP($B129,O$27) ->  | P129: =_xll.BDP($B129,P$27) ->  | Q129: =_xll.BDH($B129&$C$16,$C$15,$C$13,$C$14,$B$19:$B$22,$C$19:$C$22) -> 
C130: =_xll.BDP($B130,C$27) ->  | D130: =_xll.BDP($B130,D$27) ->  | E130: =_xll.BDP($B130,E$27) ->  | F130: =_xll.BDP($B130,F$27) ->  | G130: =_xll.BDP($B130,G$27) ->  | H130: =_xll.BDP($B130,H$27) ->  | I130: =_xll.BDP($B130,I$27,I$28,TEXT(_xll.BADDPERIODS($O130,"numberofperiods=-1","per=d"),"YYYYMMDD")) ->  | J130: =_xll.BDP($B130,J$27) ->  | K130: =_xll.BDP($B130,K$27) ->  | L130: =_xll.BDP($B130,L$27) ->  | M130: =_xll.BDP($B130,M$27) ->  | N130: =_xll.BDP($B130,N$27) ->  | O130: =_xll.BDP($B130,O$27) ->  | P130: =_xll.BDP($B130,P$27) ->  | Q130: =_xll.BDH($B130&$C$16,$C$15,$C$13,$C$14,$B$19:$B$22,$C$19:$C$22) -> 
C131: =_xll.BDP($B131,C$27) ->  | D131: =_xll.BDP($B131,D$27) ->  | E131: =_xll.BDP($B131,E$27) ->  | F131: =_xll.BDP($B131,F$27) ->  | G131: =_xll.BDP($B131,G$27) ->  | H131: =_xll.BDP($B131,H$27) ->  | I131: =_xll.BDP($B131,I$27,I$28,TEXT(_xll.BADDPERIODS($O131,"numberofperiods=-1","per=d"),"YYYYMMDD")) ->  | J131: =_xll.BDP($B131,J$27) ->  | K131: =_xll.BDP($B131,K$27) ->  | L131: =_xll.BDP($B131,L$27) ->  | M131: =_xll.BDP($B131,M$27) ->  | N131: =_xll.BDP($B131,N$27) ->  | O131: =_xll.BDP($B131,O$27) ->  | P131: =_xll.BDP($B131,P$27) ->  | Q131: =_xll.BDH($B131&$C$16,$C$15,$C$13,$C$14,$B$19:$B$22,$C$19:$C$22) -> 
C132: =_xll.BDP($B132,C$27) ->  | D132: =_xll.BDP($B132,D$27) ->  | E132: =_xll.BDP($B132,E$27) ->  | F132: =_xll.BDP($B132,F$27) ->  | G132: =_xll.BDP($B132,G$27) ->  | H132: =_xll.BDP($B132,H$27) ->  | I132: =_xll.BDP($B132,I$27,I$28,TEXT(_xll.BADDPERIODS($O132,"numberofperiods=-1","per=d"),"YYYYMMDD")) ->  | J132: =_xll.BDP($B132,J$27) ->  | K132: =_xll.BDP($B132,K$27) ->  | L132: =_xll.BDP($B132,L$27) ->  | M132: =_xll.BDP($B132,M$27) ->  | N132: =_xll.BDP($B132,N$27) ->  | O132: =_xll.BDP($B132,O$27) ->  | P132: =_xll.BDP($B132,P$27) ->  | Q132: =_xll.BDH($B132&$C$16,$C$15,$C$13,$C$14,$B$19:$B$22,$C$19:$C$22) -> 
C133: =_xll.BDP($B133,C$27) ->  | D133: =_xll.BDP($B133,D$27) ->  | E133: =_xll.BDP($B133,E$27) ->  | F133: =_xll.BDP($B133,F$27) ->  | G133: =_xll.BDP($B133,G$27) ->  | H133: =_xll.BDP($B133,H$27) ->  | I133: =_xll.BDP($B133,I$27,I$28,TEXT(_xll.BADDPERIODS($O133,"numberofperiods=-1","per=d"),"YYYYMMDD")) ->  | J133: =_xll.BDP($B133,J$27) ->  | K133: =_xll.BDP($B133,K$27) ->  | L133: =_xll.BDP($B133,L$27) ->  | M133: =_xll.BDP($B133,M$27) ->  | N133: =_xll.BDP($B133,N$27) ->  | O133: =_xll.BDP($B133,O$27) ->  | P133: =_xll.BDP($B133,P$27) ->  | Q133: =_xll.BDH($B133&$C$16,$C$15,$C$13,$C$14,$B$19:$B$22,$C$19:$C$22) -> 
C134: =_xll.BDP($B134,C$27) ->  | D134: =_xll.BDP($B134,D$27) ->  | E134: =_xll.BDP($B134,E$27) ->  | F134: =_xll.BDP($B134,F$27) ->  | G134: =_xll.BDP($B134,G$27) ->  | H134: =_xll.BDP($B134,H$27) ->  | I134: =_xll.BDP($B134,I$27,I$28,TEXT(_xll.BADDPERIODS($O134,"numberofperiods=-1","per=d"),"YYYYMMDD")) ->  | J134: =_xll.BDP($B134,J$27) ->  | K134: =_xll.BDP($B134,K$27) ->  | L134: =_xll.BDP($B134,L$27) ->  | M134: =_xll.BDP($B134,M$27) ->  | N134: =_xll.BDP($B134,N$27) ->  | O134: =_xll.BDP($B134,O$27) ->  | P134: =_xll.BDP($B134,P$27) ->  | Q134: =_xll.BDH($B134&$C$16,$C$15,$C$13,$C$14,$B$19:$B$22,$C$19:$C$22) -> 
C135: =_xll.BDP($B135,C$27) ->  | D135: =_xll.BDP($B135,D$27) ->  | E135: =_xll.BDP($B135,E$27) ->  | F135: =_xll.BDP($B135,F$27) ->  | G135: =_xll.BDP($B135,G$27) ->  | H135: =_xll.BDP($B135,H$27) ->  | I135: =_xll.BDP($B135,I$27,I$28,TEXT(_xll.BADDPERIODS($O135,"numberofperiods=-1","per=d"),"YYYYMMDD")) ->  | J135: =_xll.BDP($B135,J$27) ->  | K135: =_xll.BDP($B135,K$27) ->  | L135: =_xll.BDP($B135,L$27) ->  | M135: =_xll.BDP($B135,M$27) ->  | N135: =_xll.BDP($B135,N$27) ->  | O135: =_xll.BDP($B135,O$27) ->  | P135: =_xll.BDP($B135,P$27) ->  | Q135: =_xll.BDH($B135&$C$16,$C$15,$C$13,$C$14,$B$19:$B$22,$C$19:$C$22) -> 
C136: =_xll.BDP($B136,C$27) ->  | D136: =_xll.BDP($B136,D$27) ->  | E136: =_xll.BDP($B136,E$27) ->  | F136: =_xll.BDP($B136,F$27) ->  | G136: =_xll.BDP($B136,G$27) ->  | H136: =_xll.BDP($B136,H$27) ->  | I136: =_xll.BDP($B136,I$27,I$28,TEXT(_xll.BADDPERIODS($O136,"numberofperiods=-1","per=d"),"YYYYMMDD")) ->  | J136: =_xll.BDP($B136,J$27) ->  | K136: =_xll.BDP($B136,K$27) ->  | L136: =_xll.BDP($B136,L$27) ->  | M136: =_xll.BDP($B136,M$27) ->  | N136: =_xll.BDP($B136,N$27) ->  | O136: =_xll.BDP($B136,O$27) ->  | P136: =_xll.BDP($B136,P$27) ->  | Q136: =_xll.BDH($B136&$C$16,$C$15,$C$13,$C$14,$B$19:$B$22,$C$19:$C$22) -> 
C137: =_xll.BDP($B137,C$27) ->  | D137: =_xll.BDP($B137,D$27) ->  | E137: =_xll.BDP($B137,E$27) ->  | F137: =_xll.BDP($B137,F$27) ->  | G137: =_xll.BDP($B137,G$27) ->  | H137: =_xll.BDP($B137,H$27) ->  | I137: =_xll.BDP($B137,I$27,I$28,TEXT(_xll.BADDPERIODS($O137,"numberofperiods=-1","per=d"),"YYYYMMDD")) ->  | J137: =_xll.BDP($B137,J$27) ->  | K137: =_xll.BDP($B137,K$27) ->  | L137: =_xll.BDP($B137,L$27) ->  | M137: =_xll.BDP($B137,M$27) ->  | N137: =_xll.BDP($B137,N$27) ->  | O137: =_xll.BDP($B137,O$27) ->  | P137: =_xll.BDP($B137,P$27) ->  | Q137: =_xll.BDH($B137&$C$16,$C$15,$C$13,$C$14,$B$19:$B$22,$C$19:$C$22) -> 
B138: ra_BloombergCorpDownload
B140: Hard-coded values
B141: Copy-paste-special-values entry of Bloomberg data
B142: Date and time downloaded from Bloomberg
B143: 2023-01-23T08:44:00
B145: id | C145: Name | D145: Security name | E145: Currency | F145: Rank | G145: Issuer credit rating | H145: Bond credit rating | I145: Bond credit rating at maturity | J145: Coupon type | K145: Coupon | L145: Coupon frequency | M145: Amount issued | N145: Announcement date | O145: Maturity | P145: Maturity type | Q145: 2016-09-01 | R145: 2016-09-02 | S145: 2016-09-05 | T145: 2016-09-06 | U145: 2016-09-07 | V145: 2016-09-08 | W145: 2016-09-09 | X145: 2016-09-12 | Y145: 2016-09-13 | Z145: 2016-09-14 | AA145: 2016-09-15 | AB145: 2016-09-16 | AC145: 2016-09-19 | AD145: 2016-09-20 | AE145: 2016-09-21 | AF145: 2016-09-22 | AG145: 2016-09-23 | AH145: 2016-09-26 | AI145: 2016-09-27 | AJ145: 2016-09-28 | AK145: 2016-09-29 | AL145: 2016-09-30 | AM145: 2016-10-03 | AN145: 2016-10-04 | AO145: 2016-10-05 | AP145: 2016-10-06 | AQ145: 2016-10-07 | AR145: 2016-10-10 | AS145: 2016-10-11 | AT145: 2016-10-12 | AU145: 2016-10-13 | AV145: 2016-10-14 | AW145: 2016-10-17 | AX145: 2016-10-18 | AY145: 2016-10-19 | AZ145: 2016-10-20 | BA145: 2016-10-21 | BB145: 2016-10-24 | BC145: 2016-10-25 | BD145: 2016-10-26 | BE145: 2016-10-27 | BF145: 2016-10-28 | BG145: 2016-10-31 | BH145: 2016-11-01 | BI145: 2016-11-02 | BJ145: 2016-11-03 | BK145: 2016-11-04 | BL145: 2016-11-07 | BM145: 2016-11-08 | BN145: 2016-11-09 | BO145: 2016-11-10 | BP145: 2016-11-11 | BQ145: 2016-11-14 | BR145: 2016-11-15 | BS145: 2016-11-16 | BT145: 2016-11-17 | BU145: 2016-11-18 | BV145: 2016-11-21 | BW145: 2016-11-22 | BX145: 2016-11-23 | BY145: 2016-11-24 | BZ145: 2016-11-25 | CA145: 2016-11-28 | CB145: 2016-11-29 | CC145: 2016-11-30 | CD145: 2016-12-01 | CE145: 2016-12-02 | CF145: 2016-12-05 | CG145: 2016-12-06 | CH145: 2016-12-07 | CI145: 2016-12-08 | CJ145: 2016-12-09 | CK145: 2016-12-12 | CL145: 2016-12-13 | CM145: 2016-12-14 | CN145: 2016-12-15 | CO145: 2016-12-16 | CP145: 2016-12-19 | CQ145: 2016-12-20 | CR145: 2016-12-21 | CS145: 2016-12-22 | CT145: 2016-12-23 | CU145: 2016-12-26 | CV145: 2016-12-27 | CW145: 2016-12-28 | CX145: 2016-12-29 | CY145: 2016-12-30 | CZ145: 2017-01-02 | DA145: 2017-01-03 | DB145: 2017-01-04 | DC145: 2017-01-05 | DD145: 2017-01-06 | DE145: 2017-01-09 | DF145: 2017-01-10 | DG145: 2017-01-11 | DH145: 2017-01-12 | DI145: 2017-01-13 | DJ145: 2017-01-16 | DK145: 2017-01-17 | DL145: 2017-01-18 | DM145: 2017-01-19 | DN145: 2017-01-20 | DO145: 2017-01-23 | DP145: 2017-01-24 | DQ145: 2017-01-25 | DR145: 2017-01-26 | DS145: 2017-01-27 | DT145: 2017-01-30 | DU145: 2017-01-31 | DV145: 2017-02-01 | DW145: 2017-02-02 | DX145: 2017-02-03 | DY145: 2017-02-06 | DZ145: 2017-02-07 | EA145: 2017-02-08 | EB145: 2017-02-09 | EC145: 2017-02-10 | ED145: 2017-02-13 | EE145: 2017-02-14 | EF145: 2017-02-15 | EG145: 2017-02-16 | EH145: 2017-02-17 | EI145: 2017-02-20 | EJ145: 2017-02-21 | EK145: 2017-02-22 | EL145: 2017-02-23 | EM145: 2017-02-24 | EN145: 2017-02-27 | EO145: 2017-02-28
B246: ra_BloombergCorpCopy
C250: Last column | E250: =C14 -> 00:00:00 | F250: =MATCH(E250,$Q$145:$JQ$145,0) -> 

Sheet RFR & DP
A1: Calculation of risk-free rate and inputs for debt premium determination
A3: Inputs
B4: ='General inputs'!B11 -> Days in a year | D4: ='General inputs'!C11 -> 365.25
B5: End date for Government bond data data | D5: ='Govt bond inputs'!C14 -> 00:00:00
A8: Bid yield to maturity for New Zealand government bonds
B9: Security name | C9: Bond credit rating | D9: Coupon frequency | E9: Maturity date | Q9: ='Govt bond inputs'!Q65 -> 2016-09-01 | R9: ='Govt bond inputs'!R65 -> 2016-09-02 | S9: ='Govt bond inputs'!S65 -> 2016-09-05 | T9: ='Govt bond inputs'!T65 -> 2016-09-06 | U9: ='Govt bond inputs'!U65 -> 2016-09-07 | V9: ='Govt bond inputs'!V65 -> 2016-09-08 | W9: ='Govt bond inputs'!W65 -> 2016-09-09 | X9: ='Govt bond inputs'!X65 -> 2016-09-12 | Y9: ='Govt bond inputs'!Y65 -> 2016-09-13 | Z9: ='Govt bond inputs'!Z65 -> 2016-09-14 | AA9: ='Govt bond inputs'!AA65 -> 2016-09-15 | AB9: ='Govt bond inputs'!AB65 -> 2016-09-16 | AC9: ='Govt bond inputs'!AC65 -> 2016-09-19 | AD9: ='Govt bond inputs'!AD65 -> 2016-09-20 | AE9: ='Govt bond inputs'!AE65 -> 2016-09-21 | AF9: ='Govt bond inputs'!AF65 -> 2016-09-22 | AG9: ='Govt bond inputs'!AG65 -> 2016-09-23 | AH9: ='Govt bond inputs'!AH65 -> 2016-09-26 | AI9: ='Govt bond inputs'!AI65 -> 2016-09-27 | AJ9: ='Govt bond inputs'!AJ65 -> 2016-09-28 | AK9: ='Govt bond inputs'!AK65 -> 2016-09-29 | AL9: ='Govt bond inputs'!AL65 -> 2016-09-30 | AM9: ='Govt bond inputs'!AM65 -> 2016-10-03 | AN9: ='Govt bond inputs'!AN65 -> 2016-10-04 | AO9: ='Govt bond inputs'!AO65 -> 2016-10-05 | AP9: ='Govt bond inputs'!AP65 -> 2016-10-06 | AQ9: ='Govt bond inputs'!AQ65 -> 2016-10-07 | AR9: ='Govt bond inputs'!AR65 -> 2016-10-10 | AS9: ='Govt bond inputs'!AS65 -> 2016-10-11 | AT9: ='Govt bond inputs'!AT65 -> 2016-10-12 | AU9: ='Govt bond inputs'!AU65 -> 2016-10-13 | AV9: ='Govt bond inputs'!AV65 -> 2016-10-14 | AW9: ='Govt bond inputs'!AW65 -> 2016-10-17 | AX9: ='Govt bond inputs'!AX65 -> 2016-10-18 | AY9: ='Govt bond inputs'!AY65 -> 2016-10-19 | AZ9: ='Govt bond inputs'!AZ65 -> 2016-10-20 | BA9: ='Govt bond inputs'!BA65 -> 2016-10-21 | BB9: ='Govt bond inputs'!BB65 -> 2016-10-24 | BC9: ='Govt bond inputs'!BC65 -> 2016-10-25 | BD9: ='Govt bond inputs'!BD65 -> 2016-10-26 | BE9: ='Govt bond inputs'!BE65 -> 2016-10-27 | BF9: ='Govt bond inputs'!BF65 -> 2016-10-28 | BG9: ='Govt bond inputs'!BG65 -> 2016-10-31 | BH9: ='Govt bond inputs'!BH65 -> 2016-11-01 | BI9: ='Govt bond inputs'!BI65 -> 2016-11-02 | BJ9: ='Govt bond inputs'!BJ65 -> 2016-11-03 | BK9: ='Govt bond inputs'!BK65 -> 2016-11-04 | BL9: ='Govt bond inputs'!BL65 -> 2016-11-07 | BM9: ='Govt bond inputs'!BM65 -> 2016-11-08 | BN9: ='Govt bond inputs'!BN65 -> 2016-11-09 | BO9: ='Govt bond inputs'!BO65 -> 2016-11-10 | BP9: ='Govt bond inputs'!BP65 -> 2016-11-11 | BQ9: ='Govt bond inputs'!BQ65 -> 2016-11-14 | BR9: ='Govt bond inputs'!BR65 -> 2016-11-15 | BS9: ='Govt bond inputs'!BS65 -> 2016-11-16 | BT9: ='Govt bond inputs'!BT65 -> 2016-11-17 | BU9: ='Govt bond inputs'!BU65 -> 2016-11-18 | BV9: ='Govt bond inputs'!BV65 -> 2016-11-21 | BW9: ='Govt bond inputs'!BW65 -> 2016-11-22 | BX9: ='Govt bond inputs'!BX65 -> 2016-11-23 | BY9: ='Govt bond inputs'!BY65 -> 2016-11-24 | BZ9: ='Govt bond inputs'!BZ65 -> 2016-11-25 | CA9: ='Govt bond inputs'!CA65 -> 2016-11-28 | CB9: ='Govt bond inputs'!CB65 -> 2016-11-29 | CC9: ='Govt bond inputs'!CC65 -> 2016-11-30 | CD9: ='Govt bond inputs'!CD65 -> 2016-12-01 | CE9: ='Govt bond inputs'!CE65 -> 2016-12-02 | CF9: ='Govt bond inputs'!CF65 -> 2016-12-05 | CG9: ='Govt bond inputs'!CG65 -> 2016-12-06 | CH9: ='Govt bond inputs'!CH65 -> 2016-12-07 | CI9: ='Govt bond inputs'!CI65 -> 2016-12-08 | CJ9: ='Govt bond inputs'!CJ65 -> 2016-12-09 | CK9: ='Govt bond inputs'!CK65 -> 2016-12-12 | CL9: ='Govt bond inputs'!CL65 -> 2016-12-13 | CM9: ='Govt bond inputs'!CM65 -> 2016-12-14 | CN9: ='Govt bond inputs'!CN65 -> 2016-12-15 | CO9: ='Govt bond inputs'!CO65 -> 2016-12-16 | CP9: ='Govt bond inputs'!CP65 -> 2016-12-19 | CQ9: ='Govt bond inputs'!CQ65 -> 2016-12-20 | CR9: ='Govt bond inputs'!CR65 -> 2016-12-21 | CS9: ='Govt bond inputs'!CS65 -> 2016-12-22 | CT9: ='Govt bond inputs'!CT65 -> 2016-12-23 | CU9: ='Govt bond inputs'!CU65 -> 2016-12-26 | CV9: ='Govt bond inputs'!CV65 -> 2016-12-27 | CW9: ='Govt bond inputs'!CW65 -> 2016-12-28 | CX9: ='Govt bond inputs'!CX65 -> 2016-12-29 | CY9: ='Govt bond inputs'!CY65 -> 2016-12-30 | CZ9: ='Govt bond inputs'!CZ65 -> 2017-01-02 | DA9: ='Govt bond inputs'!DA65 -> 2017-01-03 | DB9: ='Govt bond inputs'!DB65 -> 2017-01-04 | DC9: ='Govt bond inputs'!DC65 -> 2017-01-05 | DD9: ='Govt bond inputs'!DD65 -> 2017-01-06 | DE9: ='Govt bond inputs'!DE65 -> 2017-01-09 | DF9: ='Govt bond inputs'!DF65 -> 2017-01-10 | DG9: ='Govt bond inputs'!DG65 -> 2017-01-11 | DH9: ='Govt bond inputs'!DH65 -> 2017-01-12 | DI9: ='Govt bond inputs'!DI65 -> 2017-01-13 | DJ9: ='Govt bond inputs'!DJ65 -> 2017-01-16 | DK9: ='Govt bond inputs'!DK65 -> 2017-01-17 | DL9: ='Govt bond inputs'!DL65 -> 2017-01-18 | DM9: ='Govt bond inputs'!DM65 -> 2017-01-19 | DN9: ='Govt bond inputs'!DN65 -> 2017-01-20 | DO9: ='Govt bond inputs'!DO65 -> 2017-01-23 | DP9: ='Govt bond inputs'!DP65 -> 2017-01-24 | DQ9: ='Govt bond inputs'!DQ65 -> 2017-01-25 | DR9: ='Govt bond inputs'!DR65 -> 2017-01-26 | DS9: ='Govt bond inputs'!DS65 -> 2017-01-27 | DT9: ='Govt bond inputs'!DT65 -> 2017-01-30 | DU9: ='Govt bond inputs'!DU65 -> 2017-01-31 | DV9: ='Govt bond inputs'!DV65 -> 2017-02-01 | DW9: ='Govt bond inputs'!DW65 -> 2017-02-02 | DX9: ='Govt bond inputs'!DX65 -> 2017-02-03 | DY9: ='Govt bond inputs'!DY65 -> 2017-02-06 | DZ9: ='Govt bond inputs'!DZ65 -> 2017-02-07 | EA9: ='Govt bond inputs'!EA65 -> 2017-02-08 | EB9: ='Govt bond inputs'!EB65 -> 2017-02-09 | EC9: ='Govt bond inputs'!EC65 -> 2017-02-10 | ED9: ='Govt bond inputs'!ED65 -> 2017-02-13 | EE9: ='Govt bond inputs'!EE65 -> 2017-02-14 | EF9: ='Govt bond inputs'!EF65 -> 2017-02-15 | EG9: ='Govt bond inputs'!EG65 -> 2017-02-16 | EH9: ='Govt bond inputs'!EH65 -> 2017-02-17 | EI9: ='Govt bond inputs'!EI65 -> 2017-02-20 | EJ9: ='Govt bond inputs'!EJ65 -> 2017-02-21 | EK9: ='Govt bond inputs'!EK65 -> 2017-02-22 | EL9: ='Govt bond inputs'!EL65 -> 2017-02-23 | EM9: ='Govt bond inputs'!EM65 -> 2017-02-24 | EN9: ='Govt bond inputs'!EN65 -> 2017-02-27 | EO9: ='Govt bond inputs'!EO65 -> 2017-02-28 | EP9: ='Govt bond inputs'!EP65 -> 00:00:00 | EQ9: ='Govt bond inputs'!EQ65 -> 00:00:00 | ER9: ='Govt bond inputs'!ER65 -> 00:00:00 | ES9: ='Govt bond inputs'!ES65 -> 00:00:00 | ET9: ='Govt bond inputs'!ET65 -> 00:00:00 | EU9: ='Govt bond inputs'!EU65 -> 00:00:00 | EV9: ='Govt bond inputs'!EV65 -> 00:00:00 | EW9: ='Govt bond inputs'!EW65 -> 00:00:00 | EX9: ='Govt bond inputs'!EX65 -> 00:00:00 | EY9: ='Govt bond inputs'!EY65 -> 00:00:00 | EZ9: ='Govt bond inputs'!EZ65 -> 00:00:00 | FA9: ='Govt bond inputs'!FA65 -> 00:00:00 | FB9: ='Govt bond inputs'!FB65 -> 00:00:00 | FC9: ='Govt bond inputs'!FC65 -> 00:00:00 | FD9: ='Govt bond inputs'!FD65 -> 00:00:00 | FE9: ='Govt bond inputs'!FE65 -> 00:00:00 | FF9: ='Govt bond inputs'!FF65 -> 00:00:00 | FG9: ='Govt bond inputs'!FG65 -> 00:00:00 | FH9: ='Govt bond inputs'!FH65 -> 00:00:00 | FI9: ='Govt bond inputs'!FI65 -> 00:00:00 | FJ9: ='Govt bond inputs'!FJ65 -> 00:00:00 | FK9: ='Govt bond inputs'!FK65 -> 00:00:00 | FL9: ='Govt bond inputs'!FL65 -> 00:00:00 | FM9: ='Govt bond inputs'!FM65 -> 00:00:00 | FN9: ='Govt bond inputs'!FN65 -> 00:00:00 | FO9: ='Govt bond inputs'!FO65 -> 00:00:00 | FP9: ='Govt bond inputs'!FP65 -> 00:00:00 | FQ9: ='Govt bond inputs'!FQ65 -> 00:00:00 | FR9: ='Govt bond inputs'!FR65 -> 00:00:00 | FS9: ='Govt bond inputs'!FS65 -> 00:00:00 | FT9: ='Govt bond inputs'!FT65 -> 00:00:00 | FU9: ='Govt bond inputs'!FU65 -> 00:00:00 | FV9: ='Govt bond inputs'!FV65 -> 00:00:00 | FW9: ='Govt bond inputs'!FW65 -> 00:00:00 | FX9: ='Govt bond inputs'!FX65 -> 00:00:00 | FY9: ='Govt bond inputs'!FY65 -> 00:00:00 | FZ9: ='Govt bond inputs'!FZ65 -> 00:00:00 | GA9: ='Govt bond inputs'!GA65 -> 00:00:00 | GB9: ='Govt bond inputs'!GB65 -> 00:00:00 | GC9: ='Govt bond inputs'!GC65 -> 00:00:00 | GD9: ='Govt bond inputs'!GD65 -> 00:00:00 | GE9: ='Govt bond inputs'!GE65 -> 00:00:00 | GF9: ='Govt bond inputs'!GF65 -> 00:00:00 | GG9: ='Govt bond inputs'!GG65 -> 00:00:00 | GH9: ='Govt bond inputs'!GH65 -> 00:00:00 | GI9: ='Govt bond inputs'!GI65 -> 00:00:00 | GJ9: ='Govt bond inputs'!GJ65 -> 00:00:00 | GK9: ='Govt bond inputs'!GK65 -> 00:00:00 | GL9: ='Govt bond inputs'!GL65 -> 00:00:00 | GM9: ='Govt bond inputs'!GM65 -> 00:00:00 | GN9: ='Govt bond inputs'!GN65 -> 00:00:00 | GO9: ='Govt bond inputs'!GO65 -> 00:00:00 | GP9: ='Govt bond inputs'!GP65 -> 00:00:00 | GQ9: ='Govt bond inputs'!GQ65 -> 00:00:00 | GR9: ='Govt bond inputs'!GR65 -> 00:00:00 | GS9: ='Govt bond inputs'!GS65 -> 00:00:00 | GT9: ='Govt bond inputs'!GT65 -> 00:00:00 | GU9: ='Govt bond inputs'!GU65 -> 00:00:00 | GV9: ='Govt bond inputs'!GV65 -> 00:00:00 | GW9: ='Govt bond inputs'!GW65 -> 00:00:00 | GX9: ='Govt bond inputs'!GX65 -> 00:00:00 | GY9: ='Govt bond inputs'!GY65 -> 00:00:00 | GZ9: ='Govt bond inputs'!GZ65 -> 00:00:00 | HA9: ='Govt bond inputs'!HA65 -> 00:00:00 | HB9: ='Govt bond inputs'!HB65 -> 00:00:00 | HC9: ='Govt bond inputs'!HC65 -> 00:00:00 | HD9: ='Govt bond inputs'!HD65 -> 00:00:00 | HE9: ='Govt bond inputs'!HE65 -> 00:00:00 | HF9: ='Govt bond inputs'!HF65 -> 00:00:00 | HG9: ='Govt bond inputs'!HG65 -> 00:00:00 | HH9: ='Govt bond inputs'!HH65 -> 00:00:00 | HI9: ='Govt bond inputs'!HI65 -> 00:00:00 | HJ9: ='Govt bond inputs'!HJ65 -> 00:00:00 | HK9: ='Govt bond inputs'!HK65 -> 00:00:00 | HL9: ='Govt bond inputs'!HL65 -> 00:00:00 | HM9: ='Govt bond inputs'!HM65 -> 00:00:00 | HN9: ='Govt bond inputs'!HN65 -> 00:00:00 | HO9: ='Govt bond inputs'!HO65 -> 00:00:00 | HP9: ='Govt bond inputs'!HP65 -> 00:00:00 | HQ9: ='Govt bond inputs'!HQ65 -> 00:00:00 | HR9: ='Govt bond inputs'!HR65 -> 00:00:00 | HS9: ='Govt bond inputs'!HS65 -> 00:00:00 | HT9: ='Govt bond inputs'!HT65 -> 00:00:00 | HU9: ='Govt bond inputs'!HU65 -> 00:00:00 | HV9: ='Govt bond inputs'!HV65 -> 00:00:00 | HW9: ='Govt bond inputs'!HW65 -> 00:00:00 | HX9: ='Govt bond inputs'!HX65 -> 00:00:00 | HY9: ='Govt bond inputs'!HY65 -> 00:00:00 | HZ9: ='Govt bond inputs'!HZ65 -> 00:00:00 | IA9: ='Govt bond inputs'!IA65 -> 00:00:00 | IB9: ='Govt bond inputs'!IB65 -> 00:00:00 | IC9: ='Govt bond inputs'!IC65 -> 00:00:00 | ID9: ='Govt bond inputs'!ID65 -> 00:00:00 | IE9: ='Govt bond inputs'!IE65 -> 00:00:00 | IF9: ='Govt bond inputs'!IF65 -> 00:00:00 | IG9: ='Govt bond inputs'!IG65 -> 00:00:00 | IH9: ='Govt bond inputs'!IH65 -> 00:00:00 | II9: ='Govt bond inputs'!II65 -> 00:00:00 | IJ9: ='Govt bond inputs'!IJ65 -> 00:00:00 | IK9: ='Govt bond inputs'!IK65 -> 00:00:00 | IL9: ='Govt bond inputs'!IL65 -> 00:00:00 | IM9: ='Govt bond inputs'!IM65 -> 00:00:00 | IN9: ='Govt bond inputs'!IN65 -> 00:00:00 | IO9: ='Govt bond inputs'!IO65 -> 00:00:00 | IP9: ='Govt bond inputs'!IP65 -> 00:00:00 | IQ9: ='Govt bond inputs'!IQ65 -> 00:00:00 | IR9: ='Govt bond inputs'!IR65 -> 00:00:00 | IS9: ='Govt bond inputs'!IS65 -> 00:00:00 | IT9: ='Govt bond inputs'!IT65 -> 00:00:00 | IU9: ='Govt bond inputs'!IU65 -> 00:00:00 | IV9: ='Govt bond inputs'!IV65 -> 00:00:00 | IW9: ='Govt bond inputs'!IW65 -> 00:00:00 | IX9: ='Govt bond inputs'!IX65 -> 00:00:00 | IY9: ='Govt bond inputs'!IY65 -> 00:00:00 | IZ9: ='Govt bond inputs'!IZ65 -> 00:00:00 | JA9: ='Govt bond inputs'!JA65 -> 00:00:00 | JB9: ='Govt bond inputs'!JB65 -> 00:00:00 | JC9: ='Govt bond inputs'!JC65 -> 00:00:00 | JD9: ='Govt bond inputs'!JD65 -> 00:00:00 | JE9: ='Govt bond inputs'!JE65 -> 00:00:00 | JF9: ='Govt bond inputs'!JF65 -> 00:00:00 | JG9: ='Govt bond inputs'!JG65 -> 00:00:00 | JH9: ='Govt bond inputs'!JH65 -> 00:00:00 | JI9: ='Govt bond inputs'!JI65 -> 00:00:00 | JJ9: ='Govt bond inputs'!JJ65 -> 00:00:00 | JK9: ='Govt bond inputs'!JK65 -> 00:00:00 | JL9: ='Govt bond inputs'!JL65 -> 00:00:00 | JM9: ='Govt bond inputs'!JM65 -> 00:00:00 | JN9: ='Govt bond inputs'!JN65 -> 00:00:00 | JO9: ='Govt bond inputs'!JO65 -> 00:00:00 | JP9: ='Govt bond inputs'!JP65 -> 00:00:00 | JQ9: ='Govt bond inputs'!JQ65 -> 00:00:00
B10: ='Govt bond inputs'!D66 -> 0 | C10: =IF('Govt bond inputs'!H66="NR", 'Govt bond inputs'!G66, 'Govt bond inputs'!H66) -> 0 | D10: ='Govt bond inputs'!L66 -> 0 | E10: ='Govt bond inputs'!O66 -> 0 | Q10: =IF(ISNUMBER('Govt bond inputs'!Q66),'Govt bond inputs'!Q66,"") ->  | R10: =IF(ISNUMBER('Govt bond inputs'!R66),'Govt bond inputs'!R66,"") ->  | S10: =IF(ISNUMBER('Govt bond inputs'!S66),'Govt bond inputs'!S66,"") ->  | T10: =IF(ISNUMBER('Govt bond inputs'!T66),'Govt bond inputs'!T66,"") ->  | U10: =IF(ISNUMBER('Govt bond inputs'!U66),'Govt bond inputs'!U66,"") ->  | V10: =IF(ISNUMBER('Govt bond inputs'!V66),'Govt bond inputs'!V66,"") ->  | W10: =IF(ISNUMBER('Govt bond inputs'!W66),'Govt bond inputs'!W66,"") ->  | X10: =IF(ISNUMBER('Govt bond inputs'!X66),'Govt bond inputs'!X66,"") ->  | Y10: =IF(ISNUMBER('Govt bond inputs'!Y66),'Govt bond inputs'!Y66,"") ->  | Z10: =IF(ISNUMBER('Govt bond inputs'!Z66),'Govt bond inputs'!Z66,"") ->  | AA10: =IF(ISNUMBER('Govt bond inputs'!AA66),'Govt bond inputs'!AA66,"") ->  | AB10: =IF(ISNUMBER('Govt bond inputs'!AB66),'Govt bond inputs'!AB66,"") ->  | AC10: =IF(ISNUMBER('Govt bond inputs'!AC66),'Govt bond inputs'!AC66,"") ->  | AD10: =IF(ISNUMBER('Govt bond inputs'!AD66),'Govt bond inputs'!AD66,"") ->  | AE10: =IF(ISNUMBER('Govt bond inputs'!AE66),'Govt bond inputs'!AE66,"") ->  | AF10: =IF(ISNUMBER('Govt bond inputs'!AF66),'Govt bond inputs'!AF66,"") ->  | AG10: =IF(ISNUMBER('Govt bond inputs'!AG66),'Govt bond inputs'!AG66,"") ->  | AH10: =IF(ISNUMBER('Govt bond inputs'!AH66),'Govt bond inputs'!AH66,"") ->  | AI10: =IF(ISNUMBER('Govt bond inputs'!AI66),'Govt bond inputs'!AI66,"") ->  | AJ10: =IF(ISNUMBER('Govt bond inputs'!AJ66),'Govt bond inputs'!AJ66,"") ->  | AK10: =IF(ISNUMBER('Govt bond inputs'!AK66),'Govt bond inputs'!AK66,"") ->  | AL10: =IF(ISNUMBER('Govt bond inputs'!AL66),'Govt bond inputs'!AL66,"") ->  | AM10: =IF(ISNUMBER('Govt bond inputs'!AM66),'Govt bond inputs'!AM66,"") ->  | AN10: =IF(ISNUMBER('Govt bond inputs'!AN66),'Govt bond inputs'!AN66,"") ->  | AO10: =IF(ISNUMBER('Govt bond inputs'!AO66),'Govt bond inputs'!AO66,"") ->  | AP10: =IF(ISNUMBER('Govt bond inputs'!AP66),'Govt bond inputs'!AP66,"") ->  | AQ10: =IF(ISNUMBER('Govt bond inputs'!AQ66),'Govt bond inputs'!AQ66,"") ->  | AR10: =IF(ISNUMBER('Govt bond inputs'!AR66),'Govt bond inputs'!AR66,"") ->  | AS10: =IF(ISNUMBER('Govt bond inputs'!AS66),'Govt bond inputs'!AS66,"") ->  | AT10: =IF(ISNUMBER('Govt bond inputs'!AT66),'Govt bond inputs'!AT66,"") ->  | AU10: =IF(ISNUMBER('Govt bond inputs'!AU66),'Govt bond inputs'!AU66,"") ->  | AV10: =IF(ISNUMBER('Govt bond inputs'!AV66),'Govt bond inputs'!AV66,"") ->  | AW10: =IF(ISNUMBER('Govt bond inputs'!AW66),'Govt bond inputs'!AW66,"") ->  | AX10: =IF(ISNUMBER('Govt bond inputs'!AX66),'Govt bond inputs'!AX66,"") ->  | AY10: =IF(ISNUMBER('Govt bond inputs'!AY66),'Govt bond inputs'!AY66,"") ->  | AZ10: =IF(ISNUMBER('Govt bond inputs'!AZ66),'Govt bond inputs'!AZ66,"") ->  | BA10: =IF(ISNUMBER('Govt bond inputs'!BA66),'Govt bond inputs'!BA66,"") ->  | BB10: =IF(ISNUMBER('Govt bond inputs'!BB66),'Govt bond inputs'!BB66,"") ->  | BC10: =IF(ISNUMBER('Govt bond inputs'!BC66),'Govt bond inputs'!BC66,"") ->  | BD10: =IF(ISNUMBER('Govt bond inputs'!BD66),'Govt bond inputs'!BD66,"") ->  | BE10: =IF(ISNUMBER('Govt bond inputs'!BE66),'Govt bond inputs'!BE66,"") ->  | BF10: =IF(ISNUMBER('Govt bond inputs'!BF66),'Govt bond inputs'!BF66,"") ->  | BG10: =IF(ISNUMBER('Govt bond inputs'!BG66),'Govt bond inputs'!BG66,"") ->  | BH10: =IF(ISNUMBER('Govt bond inputs'!BH66),'Govt bond inputs'!BH66,"") ->  | BI10: =IF(ISNUMBER('Govt bond inputs'!BI66),'Govt bond inputs'!BI66,"") ->  | BJ10: =IF(ISNUMBER('Govt bond inputs'!BJ66),'Govt bond inputs'!BJ66,"") ->  | BK10: =IF(ISNUMBER('Govt bond inputs'!BK66),'Govt bond inputs'!BK66,"") ->  | BL10: =IF(ISNUMBER('Govt bond inputs'!BL66),'Govt bond inputs'!BL66,"") ->  | BM10: =IF(ISNUMBER('Govt bond inputs'!BM66),'Govt bond inputs'!BM66,"") ->  | BN10: =IF(ISNUMBER('Govt bond inputs'!BN66),'Govt bond inputs'!BN66,"") ->  | BO10: =IF(ISNUMBER('Govt bond inputs'!BO66),'Govt bond inputs'!BO66,"") ->  | BP10: =IF(ISNUMBER('Govt bond inputs'!BP66),'Govt bond inputs'!BP66,"") ->  | BQ10: =IF(ISNUMBER('Govt bond inputs'!BQ66),'Govt bond inputs'!BQ66,"") ->  | BR10: =IF(ISNUMBER('Govt bond inputs'!BR66),'Govt bond inputs'!BR66,"") ->  | BS10: =IF(ISNUMBER('Govt bond inputs'!BS66),'Govt bond inputs'!BS66,"") ->  | BT10: =IF(ISNUMBER('Govt bond inputs'!BT66),'Govt bond inputs'!BT66,"") ->  | BU10: =IF(ISNUMBER('Govt bond inputs'!BU66),'Govt bond inputs'!BU66,"") ->  | BV10: =IF(ISNUMBER('Govt bond inputs'!BV66),'Govt bond inputs'!BV66,"") ->  | BW10: =IF(ISNUMBER('Govt bond inputs'!BW66),'Govt bond inputs'!BW66,"") ->  | BX10: =IF(ISNUMBER('Govt bond inputs'!BX66),'Govt bond inputs'!BX66,"") ->  | BY10: =IF(ISNUMBER('Govt bond inputs'!BY66),'Govt bond inputs'!BY66,"") ->  | BZ10: =IF(ISNUMBER('Govt bond inputs'!BZ66),'Govt bond inputs'!BZ66,"") ->  | CA10: =IF(ISNUMBER('Govt bond inputs'!CA66),'Govt bond inputs'!CA66,"") ->  | CB10: =IF(ISNUMBER('Govt bond inputs'!CB66),'Govt bond inputs'!CB66,"") ->  | CC10: =IF(ISNUMBER('Govt bond inputs'!CC66),'Govt bond inputs'!CC66,"") ->  | CD10: =IF(ISNUMBER('Govt bond inputs'!CD66),'Govt bond inputs'!CD66,"") ->  | CE10: =IF(ISNUMBER('Govt bond inputs'!CE66),'Govt bond inputs'!CE66,"") ->  | CF10: =IF(ISNUMBER('Govt bond inputs'!CF66),'Govt bond inputs'!CF66,"") ->  | CG10: =IF(ISNUMBER('Govt bond inputs'!CG66),'Govt bond inputs'!CG66,"") ->  | CH10: =IF(ISNUMBER('Govt bond inputs'!CH66),'Govt bond inputs'!CH66,"") ->  | CI10: =IF(ISNUMBER('Govt bond inputs'!CI66),'Govt bond inputs'!CI66,"") ->  | CJ10: =IF(ISNUMBER('Govt bond inputs'!CJ66),'Govt bond inputs'!CJ66,"") ->  | CK10: =IF(ISNUMBER('Govt bond inputs'!CK66),'Govt bond inputs'!CK66,"") ->  | CL10: =IF(ISNUMBER('Govt bond inputs'!CL66),'Govt bond inputs'!CL66,"") ->  | CM10: =IF(ISNUMBER('Govt bond inputs'!CM66),'Govt bond inputs'!CM66,"") ->  | CN10: =IF(ISNUMBER('Govt bond inputs'!CN66),'Govt bond inputs'!CN66,"") ->  | CO10: =IF(ISNUMBER('Govt bond inputs'!CO66),'Govt bond inputs'!CO66,"") ->  | CP10: =IF(ISNUMBER('Govt bond inputs'!CP66),'Govt bond inputs'!CP66,"") ->  | CQ10: =IF(ISNUMBER('Govt bond inputs'!CQ66),'Govt bond inputs'!CQ66,"") ->  | CR10: =IF(ISNUMBER('Govt bond inputs'!CR66),'Govt bond inputs'!CR66,"") ->  | CS10: =IF(ISNUMBER('Govt bond inputs'!CS66),'Govt bond inputs'!CS66,"") ->  | CT10: =IF(ISNUMBER('Govt bond inputs'!CT66),'Govt bond inputs'!CT66,"") ->  | CU10: =IF(ISNUMBER('Govt bond inputs'!CU66),'Govt bond inputs'!CU66,"") ->  | CV10: =IF(ISNUMBER('Govt bond inputs'!CV66),'Govt bond inputs'!CV66,"") ->  | CW10: =IF(ISNUMBER('Govt bond inputs'!CW66),'Govt bond inputs'!CW66,"") ->  | CX10: =IF(ISNUMBER('Govt bond inputs'!CX66),'Govt bond inputs'!CX66,"") ->  | CY10: =IF(ISNUMBER('Govt bond inputs'!CY66),'Govt bond inputs'!CY66,"") ->  | CZ10: =IF(ISNUMBER('Govt bond inputs'!CZ66),'Govt bond inputs'!CZ66,"") ->  | DA10: =IF(ISNUMBER('Govt bond inputs'!DA66),'Govt bond inputs'!DA66,"") ->  | DB10: =IF(ISNUMBER('Govt bond inputs'!DB66),'Govt bond inputs'!DB66,"") ->  | DC10: =IF(ISNUMBER('Govt bond inputs'!DC66),'Govt bond inputs'!DC66,"") ->  | DD10: =IF(ISNUMBER('Govt bond inputs'!DD66),'Govt bond inputs'!DD66,"") ->  | DE10: =IF(ISNUMBER('Govt bond inputs'!DE66),'Govt bond inputs'!DE66,"") ->  | DF10: =IF(ISNUMBER('Govt bond inputs'!DF66),'Govt bond inputs'!DF66,"") ->  | DG10: =IF(ISNUMBER('Govt bond inputs'!DG66),'Govt bond inputs'!DG66,"") ->  | DH10: =IF(ISNUMBER('Govt bond inputs'!DH66),'Govt bond inputs'!DH66,"") ->  | DI10: =IF(ISNUMBER('Govt bond inputs'!DI66),'Govt bond inputs'!DI66,"") ->  | DJ10: =IF(ISNUMBER('Govt bond inputs'!DJ66),'Govt bond inputs'!DJ66,"") ->  | DK10: =IF(ISNUMBER('Govt bond inputs'!DK66),'Govt bond inputs'!DK66,"") ->  | DL10: =IF(ISNUMBER('Govt bond inputs'!DL66),'Govt bond inputs'!DL66,"") ->  | DM10: =IF(ISNUMBER('Govt bond inputs'!DM66),'Govt bond inputs'!DM66,"") ->  | DN10: =IF(ISNUMBER('Govt bond inputs'!DN66),'Govt bond inputs'!DN66,"") ->  | DO10: =IF(ISNUMBER('Govt bond inputs'!DO66),'Govt bond inputs'!DO66,"") ->  | DP10: =IF(ISNUMBER('Govt bond inputs'!DP66),'Govt bond inputs'!DP66,"") ->  | DQ10: =IF(ISNUMBER('Govt bond inputs'!DQ66),'Govt bond inputs'!DQ66,"") ->  | DR10: =IF(ISNUMBER('Govt bond inputs'!DR66),'Govt bond inputs'!DR66,"") ->  | DS10: =IF(ISNUMBER('Govt bond inputs'!DS66),'Govt bond inputs'!DS66,"") ->  | DT10: =IF(ISNUMBER('Govt bond inputs'!DT66),'Govt bond inputs'!DT66,"") ->  | DU10: =IF(ISNUMBER('Govt bond inputs'!DU66),'Govt bond inputs'!DU66,"") ->  | DV10: =IF(ISNUMBER('Govt bond inputs'!DV66),'Govt bond inputs'!DV66,"") ->  | DW10: =IF(ISNUMBER('Govt bond inputs'!DW66),'Govt bond inputs'!DW66,"") ->  | DX10: =IF(ISNUMBER('Govt bond inputs'!DX66),'Govt bond inputs'!DX66,"") ->  | DY10: =IF(ISNUMBER('Govt bond inputs'!DY66),'Govt bond inputs'!DY66,"") ->  | DZ10: =IF(ISNUMBER('Govt bond inputs'!DZ66),'Govt bond inputs'!DZ66,"") ->  | EA10: =IF(ISNUMBER('Govt bond inputs'!EA66),'Govt bond inputs'!EA66,"") ->  | EB10: =IF(ISNUMBER('Govt bond inputs'!EB66),'Govt bond inputs'!EB66,"") ->  | EC10: =IF(ISNUMBER('Govt bond inputs'!EC66),'Govt bond inputs'!EC66,"") ->  | ED10: =IF(ISNUMBER('Govt bond inputs'!ED66),'Govt bond inputs'!ED66,"") ->  | EE10: =IF(ISNUMBER('Govt bond inputs'!EE66),'Govt bond inputs'!EE66,"") ->  | EF10: =IF(ISNUMBER('Govt bond inputs'!EF66),'Govt bond inputs'!EF66,"") ->  | EG10: =IF(ISNUMBER('Govt bond inputs'!EG66),'Govt bond inputs'!EG66,"") ->  | EH10: =IF(ISNUMBER('Govt bond inputs'!EH66),'Govt bond inputs'!EH66,"") ->  | EI10: =IF(ISNUMBER('Govt bond inputs'!EI66),'Govt bond inputs'!EI66,"") ->  | EJ10: =IF(ISNUMBER('Govt bond inputs'!EJ66),'Govt bond inputs'!EJ66,"") ->  | EK10: =IF(ISNUMBER('Govt bond inputs'!EK66),'Govt bond inputs'!EK66,"") ->  | EL10: =IF(ISNUMBER('Govt bond inputs'!EL66),'Govt bond inputs'!EL66,"") ->  | EM10: =IF(ISNUMBER('Govt bond inputs'!EM66),'Govt bond inputs'!EM66,"") ->  | EN10: =IF(ISNUMBER('Govt bond inputs'!EN66),'Govt bond inputs'!EN66,"") ->  | EO10: =IF(ISNUMBER('Govt bond inputs'!EO66),'Govt bond inputs'!EO66,"") ->  | EP10: =IF(ISNUMBER('Govt bond inputs'!EP66),'Govt bond inputs'!EP66,"") ->  | EQ10: =IF(ISNUMBER('Govt bond inputs'!EQ66),'Govt bond inputs'!EQ66,"") ->  | ER10: =IF(ISNUMBER('Govt bond inputs'!ER66),'Govt bond inputs'!ER66,"") ->  | ES10: =IF(ISNUMBER('Govt bond inputs'!ES66),'Govt bond inputs'!ES66,"") ->  | ET10: =IF(ISNUMBER('Govt bond inputs'!ET66),'Govt bond inputs'!ET66,"") ->  | EU10: =IF(ISNUMBER('Govt bond inputs'!EU66),'Govt bond inputs'!EU66,"") ->  | EV10: =IF(ISNUMBER('Govt bond inputs'!EV66),'Govt bond inputs'!EV66,"") ->  | EW10: =IF(ISNUMBER('Govt bond inputs'!EW66),'Govt bond inputs'!EW66,"") ->  | EX10: =IF(ISNUMBER('Govt bond inputs'!EX66),'Govt bond inputs'!EX66,"") ->  | EY10: =IF(ISNUMBER('Govt bond inputs'!EY66),'Govt bond inputs'!EY66,"") ->  | EZ10: =IF(ISNUMBER('Govt bond inputs'!EZ66),'Govt bond inputs'!EZ66,"") ->  | FA10: =IF(ISNUMBER('Govt bond inputs'!FA66),'Govt bond inputs'!FA66,"") ->  | FB10: =IF(ISNUMBER('Govt bond inputs'!FB66),'Govt bond inputs'!FB66,"") ->  | FC10: =IF(ISNUMBER('Govt bond inputs'!FC66),'Govt bond inputs'!FC66,"") ->  | FD10: =IF(ISNUMBER('Govt bond inputs'!FD66),'Govt bond inputs'!FD66,"") ->  | FE10: =IF(ISNUMBER('Govt bond inputs'!FE66),'Govt bond inputs'!FE66,"") ->  | FF10: =IF(ISNUMBER('Govt bond inputs'!FF66),'Govt bond inputs'!FF66,"") ->  | FG10: =IF(ISNUMBER('Govt bond inputs'!FG66),'Govt bond inputs'!FG66,"") ->  | FH10: =IF(ISNUMBER('Govt bond inputs'!FH66),'Govt bond inputs'!FH66,"") ->  | FI10: =IF(ISNUMBER('Govt bond inputs'!FI66),'Govt bond inputs'!FI66,"") ->  | FJ10: =IF(ISNUMBER('Govt bond inputs'!FJ66),'Govt bond inputs'!FJ66,"") ->  | FK10: =IF(ISNUMBER('Govt bond inputs'!FK66),'Govt bond inputs'!FK66,"") ->  | FL10: =IF(ISNUMBER('Govt bond inputs'!FL66),'Govt bond inputs'!FL66,"") ->  | FM10: =IF(ISNUMBER('Govt bond inputs'!FM66),'Govt bond inputs'!FM66,"") ->  | FN10: =IF(ISNUMBER('Govt bond inputs'!FN66),'Govt bond inputs'!FN66,"") ->  | FO10: =IF(ISNUMBER('Govt bond inputs'!FO66),'Govt bond inputs'!FO66,"") ->  | FP10: =IF(ISNUMBER('Govt bond inputs'!FP66),'Govt bond inputs'!FP66,"") ->  | FQ10: =IF(ISNUMBER('Govt bond inputs'!FQ66),'Govt bond inputs'!FQ66,"") ->  | FR10: =IF(ISNUMBER('Govt bond inputs'!FR66),'Govt bond inputs'!FR66,"") ->  | FS10: =IF(ISNUMBER('Govt bond inputs'!FS66),'Govt bond inputs'!FS66,"") ->  | FT10: =IF(ISNUMBER('Govt bond inputs'!FT66),'Govt bond inputs'!FT66,"") ->  | FU10: =IF(ISNUMBER('Govt bond inputs'!FU66),'Govt bond inputs'!FU66,"") ->  | FV10: =IF(ISNUMBER('Govt bond inputs'!FV66),'Govt bond inputs'!FV66,"") ->  | FW10: =IF(ISNUMBER('Govt bond inputs'!FW66),'Govt bond inputs'!FW66,"") ->  | FX10: =IF(ISNUMBER('Govt bond inputs'!FX66),'Govt bond inputs'!FX66,"") ->  | FY10: =IF(ISNUMBER('Govt bond inputs'!FY66),'Govt bond inputs'!FY66,"") ->  | FZ10: =IF(ISNUMBER('Govt bond inputs'!FZ66),'Govt bond inputs'!FZ66,"") ->  | GA10: =IF(ISNUMBER('Govt bond inputs'!GA66),'Govt bond inputs'!GA66,"") ->  | GB10: =IF(ISNUMBER('Govt bond inputs'!GB66),'Govt bond inputs'!GB66,"") ->  | GC10: =IF(ISNUMBER('Govt bond inputs'!GC66),'Govt bond inputs'!GC66,"") ->  | GD10: =IF(ISNUMBER('Govt bond inputs'!GD66),'Govt bond inputs'!GD66,"") ->  | GE10: =IF(ISNUMBER('Govt bond inputs'!GE66),'Govt bond inputs'!GE66,"") ->  | GF10: =IF(ISNUMBER('Govt bond inputs'!GF66),'Govt bond inputs'!GF66,"") ->  | GG10: =IF(ISNUMBER('Govt bond inputs'!GG66),'Govt bond inputs'!GG66,"") ->  | GH10: =IF(ISNUMBER('Govt bond inputs'!GH66),'Govt bond inputs'!GH66,"") ->  | GI10: =IF(ISNUMBER('Govt bond inputs'!GI66),'Govt bond inputs'!GI66,"") ->  | GJ10: =IF(ISNUMBER('Govt bond inputs'!GJ66),'Govt bond inputs'!GJ66,"") ->  | GK10: =IF(ISNUMBER('Govt bond inputs'!GK66),'Govt bond inputs'!GK66,"") ->  | GL10: =IF(ISNUMBER('Govt bond inputs'!GL66),'Govt bond inputs'!GL66,"") ->  | GM10: =IF(ISNUMBER('Govt bond inputs'!GM66),'Govt bond inputs'!GM66,"") ->  | GN10: =IF(ISNUMBER('Govt bond inputs'!GN66),'Govt bond inputs'!GN66,"") ->  | GO10: =IF(ISNUMBER('Govt bond inputs'!GO66),'Govt bond inputs'!GO66,"") ->  | GP10: =IF(ISNUMBER('Govt bond inputs'!GP66),'Govt bond inputs'!GP66,"") ->  | GQ10: =IF(ISNUMBER('Govt bond inputs'!GQ66),'Govt bond inputs'!GQ66,"") ->  | GR10: =IF(ISNUMBER('Govt bond inputs'!GR66),'Govt bond inputs'!GR66,"") ->  | GS10: =IF(ISNUMBER('Govt bond inputs'!GS66),'Govt bond inputs'!GS66,"") ->  | GT10: =IF(ISNUMBER('Govt bond inputs'!GT66),'Govt bond inputs'!GT66,"") ->  | GU10: =IF(ISNUMBER('Govt bond inputs'!GU66),'Govt bond inputs'!GU66,"") ->  | GV10: =IF(ISNUMBER('Govt bond inputs'!GV66),'Govt bond inputs'!GV66,"") ->  | GW10: =IF(ISNUMBER('Govt bond inputs'!GW66),'Govt bond inputs'!GW66,"") ->  | GX10: =IF(ISNUMBER('Govt bond inputs'!GX66),'Govt bond inputs'!GX66,"") ->  | GY10: =IF(ISNUMBER('Govt bond inputs'!GY66),'Govt bond inputs'!GY66,"") ->  | GZ10: =IF(ISNUMBER('Govt bond inputs'!GZ66),'Govt bond inputs'!GZ66,"") ->  | HA10: =IF(ISNUMBER('Govt bond inputs'!HA66),'Govt bond inputs'!HA66,"") ->  | HB10: =IF(ISNUMBER('Govt bond inputs'!HB66),'Govt bond inputs'!HB66,"") ->  | HC10: =IF(ISNUMBER('Govt bond inputs'!HC66),'Govt bond inputs'!HC66,"") ->  | HD10: =IF(ISNUMBER('Govt bond inputs'!HD66),'Govt bond inputs'!HD66,"") ->  | HE10: =IF(ISNUMBER('Govt bond inputs'!HE66),'Govt bond inputs'!HE66,"") ->  | HF10: =IF(ISNUMBER('Govt bond inputs'!HF66),'Govt bond inputs'!HF66,"") ->  | HG10: =IF(ISNUMBER('Govt bond inputs'!HG66),'Govt bond inputs'!HG66,"") ->  | HH10: =IF(ISNUMBER('Govt bond inputs'!HH66),'Govt bond inputs'!HH66,"") ->  | HI10: =IF(ISNUMBER('Govt bond inputs'!HI66),'Govt bond inputs'!HI66,"") ->  | HJ10: =IF(ISNUMBER('Govt bond inputs'!HJ66),'Govt bond inputs'!HJ66,"") ->  | HK10: =IF(ISNUMBER('Govt bond inputs'!HK66),'Govt bond inputs'!HK66,"") ->  | HL10: =IF(ISNUMBER('Govt bond inputs'!HL66),'Govt bond inputs'!HL66,"") ->  | HM10: =IF(ISNUMBER('Govt bond inputs'!HM66),'Govt bond inputs'!HM66,"") ->  | HN10: =IF(ISNUMBER('Govt bond inputs'!HN66),'Govt bond inputs'!HN66,"") ->  | HO10: =IF(ISNUMBER('Govt bond inputs'!HO66),'Govt bond inputs'!HO66,"") ->  | HP10: =IF(ISNUMBER('Govt bond inputs'!HP66),'Govt bond inputs'!HP66,"") ->  | HQ10: =IF(ISNUMBER('Govt bond inputs'!HQ66),'Govt bond inputs'!HQ66,"") ->  | HR10: =IF(ISNUMBER('Govt bond inputs'!HR66),'Govt bond inputs'!HR66,"") ->  | HS10: =IF(ISNUMBER('Govt bond inputs'!HS66),'Govt bond inputs'!HS66,"") ->  | HT10: =IF(ISNUMBER('Govt bond inputs'!HT66),'Govt bond inputs'!HT66,"") ->  | HU10: =IF(ISNUMBER('Govt bond inputs'!HU66),'Govt bond inputs'!HU66,"") ->  | HV10: =IF(ISNUMBER('Govt bond inputs'!HV66),'Govt bond inputs'!HV66,"") ->  | HW10: =IF(ISNUMBER('Govt bond inputs'!HW66),'Govt bond inputs'!HW66,"") ->  | HX10: =IF(ISNUMBER('Govt bond inputs'!HX66),'Govt bond inputs'!HX66,"") ->  | HY10: =IF(ISNUMBER('Govt bond inputs'!HY66),'Govt bond inputs'!HY66,"") ->  | HZ10: =IF(ISNUMBER('Govt bond inputs'!HZ66),'Govt bond inputs'!HZ66,"") ->  | IA10: =IF(ISNUMBER('Govt bond inputs'!IA66),'Govt bond inputs'!IA66,"") ->  | IB10: =IF(ISNUMBER('Govt bond inputs'!IB66),'Govt bond inputs'!IB66,"") ->  | IC10: =IF(ISNUMBER('Govt bond inputs'!IC66),'Govt bond inputs'!IC66,"") ->  | ID10: =IF(ISNUMBER('Govt bond inputs'!ID66),'Govt bond inputs'!ID66,"") ->  | IE10: =IF(ISNUMBER('Govt bond inputs'!IE66),'Govt bond inputs'!IE66,"") ->  | IF10: =IF(ISNUMBER('Govt bond inputs'!IF66),'Govt bond inputs'!IF66,"") ->  | IG10: =IF(ISNUMBER('Govt bond inputs'!IG66),'Govt bond inputs'!IG66,"") ->  | IH10: =IF(ISNUMBER('Govt bond inputs'!IH66),'Govt bond inputs'!IH66,"") ->  | II10: =IF(ISNUMBER('Govt bond inputs'!II66),'Govt bond inputs'!II66,"") ->  | IJ10: =IF(ISNUMBER('Govt bond inputs'!IJ66),'Govt bond inputs'!IJ66,"") ->  | IK10: =IF(ISNUMBER('Govt bond inputs'!IK66),'Govt bond inputs'!IK66,"") ->  | IL10: =IF(ISNUMBER('Govt bond inputs'!IL66),'Govt bond inputs'!IL66,"") ->  | IM10: =IF(ISNUMBER('Govt bond inputs'!IM66),'Govt bond inputs'!IM66,"") ->  | IN10: =IF(ISNUMBER('Govt bond inputs'!IN66),'Govt bond inputs'!IN66,"") ->  | IO10: =IF(ISNUMBER('Govt bond inputs'!IO66),'Govt bond inputs'!IO66,"") ->  | IP10: =IF(ISNUMBER('Govt bond inputs'!IP66),'Govt bond inputs'!IP66,"") ->  | IQ10: =IF(ISNUMBER('Govt bond inputs'!IQ66),'Govt bond inputs'!IQ66,"") ->  | IR10: =IF(ISNUMBER('Govt bond inputs'!IR66),'Govt bond inputs'!IR66,"") ->  | IS10: =IF(ISNUMBER('Govt bond inputs'!IS66),'Govt bond inputs'!IS66,"") ->  | IT10: =IF(ISNUMBER('Govt bond inputs'!IT66),'Govt bond inputs'!IT66,"") ->  | IU10: =IF(ISNUMBER('Govt bond inputs'!IU66),'Govt bond inputs'!IU66,"") ->  | IV10: =IF(ISNUMBER('Govt bond inputs'!IV66),'Govt bond inputs'!IV66,"") ->  | IW10: =IF(ISNUMBER('Govt bond inputs'!IW66),'Govt bond inputs'!IW66,"") ->  | IX10: =IF(ISNUMBER('Govt bond inputs'!IX66),'Govt bond inputs'!IX66,"") ->  | IY10: =IF(ISNUMBER('Govt bond inputs'!IY66),'Govt bond inputs'!IY66,"") ->  | IZ10: =IF(ISNUMBER('Govt bond inputs'!IZ66),'Govt bond inputs'!IZ66,"") ->  | JA10: =IF(ISNUMBER('Govt bond inputs'!JA66),'Govt bond inputs'!JA66,"") ->  | JB10: =IF(ISNUMBER('Govt bond inputs'!JB66),'Govt bond inputs'!JB66,"") ->  | JC10: =IF(ISNUMBER('Govt bond inputs'!JC66),'Govt bond inputs'!JC66,"") ->  | JD10: =IF(ISNUMBER('Govt bond inputs'!JD66),'Govt bond inputs'!JD66,"") ->  | JE10: =IF(ISNUMBER('Govt bond inputs'!JE66),'Govt bond inputs'!JE66,"") ->  | JF10: =IF(ISNUMBER('Govt bond inputs'!JF66),'Govt bond inputs'!JF66,"") ->  | JG10: =IF(ISNUMBER('Govt bond inputs'!JG66),'Govt bond inputs'!JG66,"") ->  | JH10: =IF(ISNUMBER('Govt bond inputs'!JH66),'Govt bond inputs'!JH66,"") ->  | JI10: =IF(ISNUMBER('Govt bond inputs'!JI66),'Govt bond inputs'!JI66,"") ->  | JJ10: =IF(ISNUMBER('Govt bond inputs'!JJ66),'Govt bond inputs'!JJ66,"") ->  | JK10: =IF(ISNUMBER('Govt bond inputs'!JK66),'Govt bond inputs'!JK66,"") ->  | JL10: =IF(ISNUMBER('Govt bond inputs'!JL66),'Govt bond inputs'!JL66,"") ->  | JM10: =IF(ISNUMBER('Govt bond inputs'!JM66),'Govt bond inputs'!JM66,"") ->  | JN10: =IF(ISNUMBER('Govt bond inputs'!JN66),'Govt bond inputs'!JN66,"") ->  | JO10: =IF(ISNUMBER('Govt bond inputs'!JO66),'Govt bond inputs'!JO66,"") ->  | JP10: =IF(ISNUMBER('Govt bond inputs'!JP66),'Govt bond inputs'!JP66,"") ->  | JQ10: =IF(ISNUMBER('Govt bond inputs'!JQ66),'Govt bond inputs'!JQ66,"") -> 
B11: ='Govt bond inputs'!D67 -> 0 | C11: =IF('Govt bond inputs'!H67="NR", 'Govt bond inputs'!G67, 'Govt bond inputs'!H67) -> 0 | D11: ='Govt bond inputs'!L67 -> 0 | E11: ='Govt bond inputs'!O67 -> 0 | Q11: =IF(ISNUMBER('Govt bond inputs'!Q67),'Govt bond inputs'!Q67,"") ->  | R11: =IF(ISNUMBER('Govt bond inputs'!R67),'Govt bond inputs'!R67,"") ->  | S11: =IF(ISNUMBER('Govt bond inputs'!S67),'Govt bond inputs'!S67,"") ->  | T11: =IF(ISNUMBER('Govt bond inputs'!T67),'Govt bond inputs'!T67,"") ->  | U11: =IF(ISNUMBER('Govt bond inputs'!U67),'Govt bond inputs'!U67,"") ->  | V11: =IF(ISNUMBER('Govt bond inputs'!V67),'Govt bond inputs'!V67,"") ->  | W11: =IF(ISNUMBER('Govt bond inputs'!W67),'Govt bond inputs'!W67,"") ->  | X11: =IF(ISNUMBER('Govt bond inputs'!X67),'Govt bond inputs'!X67,"") ->  | Y11: =IF(ISNUMBER('Govt bond inputs'!Y67),'Govt bond inputs'!Y67,"") ->  | Z11: =IF(ISNUMBER('Govt bond inputs'!Z67),'Govt bond inputs'!Z67,"") ->  | AA11: =IF(ISNUMBER('Govt bond inputs'!AA67),'Govt bond inputs'!AA67,"") ->  | AB11: =IF(ISNUMBER('Govt bond inputs'!AB67),'Govt bond inputs'!AB67,"") ->  | AC11: =IF(ISNUMBER('Govt bond inputs'!AC67),'Govt bond inputs'!AC67,"") ->  | AD11: =IF(ISNUMBER('Govt bond inputs'!AD67),'Govt bond inputs'!AD67,"") ->  | AE11: =IF(ISNUMBER('Govt bond inputs'!AE67),'Govt bond inputs'!AE67,"") ->  | AF11: =IF(ISNUMBER('Govt bond inputs'!AF67),'Govt bond inputs'!AF67,"") ->  | AG11: =IF(ISNUMBER('Govt bond inputs'!AG67),'Govt bond inputs'!AG67,"") ->  | AH11: =IF(ISNUMBER('Govt bond inputs'!AH67),'Govt bond inputs'!AH67,"") ->  | AI11: =IF(ISNUMBER('Govt bond inputs'!AI67),'Govt bond inputs'!AI67,"") ->  | AJ11: =IF(ISNUMBER('Govt bond inputs'!AJ67),'Govt bond inputs'!AJ67,"") ->  | AK11: =IF(ISNUMBER('Govt bond inputs'!AK67),'Govt bond inputs'!AK67,"") ->  | AL11: =IF(ISNUMBER('Govt bond inputs'!AL67),'Govt bond inputs'!AL67,"") ->  | AM11: =IF(ISNUMBER('Govt bond inputs'!AM67),'Govt bond inputs'!AM67,"") ->  | AN11: =IF(ISNUMBER('Govt bond inputs'!AN67),'Govt bond inputs'!AN67,"") ->  | AO11: =IF(ISNUMBER('Govt bond inputs'!AO67),'Govt bond inputs'!AO67,"") ->  | AP11: =IF(ISNUMBER('Govt bond inputs'!AP67),'Govt bond inputs'!AP67,"") ->  | AQ11: =IF(ISNUMBER('Govt bond inputs'!AQ67),'Govt bond inputs'!AQ67,"") ->  | AR11: =IF(ISNUMBER('Govt bond inputs'!AR67),'Govt bond inputs'!AR67,"") ->  | AS11: =IF(ISNUMBER('Govt bond inputs'!AS67),'Govt bond inputs'!AS67,"") ->  | AT11: =IF(ISNUMBER('Govt bond inputs'!AT67),'Govt bond inputs'!AT67,"") ->  | AU11: =IF(ISNUMBER('Govt bond inputs'!AU67),'Govt bond inputs'!AU67,"") ->  | AV11: =IF(ISNUMBER('Govt bond inputs'!AV67),'Govt bond inputs'!AV67,"") ->  | AW11: =IF(ISNUMBER('Govt bond inputs'!AW67),'Govt bond inputs'!AW67,"") ->  | AX11: =IF(ISNUMBER('Govt bond inputs'!AX67),'Govt bond inputs'!AX67,"") ->  | AY11: =IF(ISNUMBER('Govt bond inputs'!AY67),'Govt bond inputs'!AY67,"") ->  | AZ11: =IF(ISNUMBER('Govt bond inputs'!AZ67),'Govt bond inputs'!AZ67,"") ->  | BA11: =IF(ISNUMBER('Govt bond inputs'!BA67),'Govt bond inputs'!BA67,"") ->  | BB11: =IF(ISNUMBER('Govt bond inputs'!BB67),'Govt bond inputs'!BB67,"") ->  | BC11: =IF(ISNUMBER('Govt bond inputs'!BC67),'Govt bond inputs'!BC67,"") ->  | BD11: =IF(ISNUMBER('Govt bond inputs'!BD67),'Govt bond inputs'!BD67,"") ->  | BE11: =IF(ISNUMBER('Govt bond inputs'!BE67),'Govt bond inputs'!BE67,"") ->  | BF11: =IF(ISNUMBER('Govt bond inputs'!BF67),'Govt bond inputs'!BF67,"") ->  | BG11: =IF(ISNUMBER('Govt bond inputs'!BG67),'Govt bond inputs'!BG67,"") ->  | BH11: =IF(ISNUMBER('Govt bond inputs'!BH67),'Govt bond inputs'!BH67,"") ->  | BI11: =IF(ISNUMBER('Govt bond inputs'!BI67),'Govt bond inputs'!BI67,"") ->  | BJ11: =IF(ISNUMBER('Govt bond inputs'!BJ67),'Govt bond inputs'!BJ67,"") ->  | BK11: =IF(ISNUMBER('Govt bond inputs'!BK67),'Govt bond inputs'!BK67,"") ->  | BL11: =IF(ISNUMBER('Govt bond inputs'!BL67),'Govt bond inputs'!BL67,"") ->  | BM11: =IF(ISNUMBER('Govt bond inputs'!BM67),'Govt bond inputs'!BM67,"") ->  | BN11: =IF(ISNUMBER('Govt bond inputs'!BN67),'Govt bond inputs'!BN67,"") ->  | BO11: =IF(ISNUMBER('Govt bond inputs'!BO67),'Govt bond inputs'!BO67,"") ->  | BP11: =IF(ISNUMBER('Govt bond inputs'!BP67),'Govt bond inputs'!BP67,"") ->  | BQ11: =IF(ISNUMBER('Govt bond inputs'!BQ67),'Govt bond inputs'!BQ67,"") ->  | BR11: =IF(ISNUMBER('Govt bond inputs'!BR67),'Govt bond inputs'!BR67,"") ->  | BS11: =IF(ISNUMBER('Govt bond inputs'!BS67),'Govt bond inputs'!BS67,"") ->  | BT11: =IF(ISNUMBER('Govt bond inputs'!BT67),'Govt bond inputs'!BT67,"") ->  | BU11: =IF(ISNUMBER('Govt bond inputs'!BU67),'Govt bond inputs'!BU67,"") ->  | BV11: =IF(ISNUMBER('Govt bond inputs'!BV67),'Govt bond inputs'!BV67,"") ->  | BW11: =IF(ISNUMBER('Govt bond inputs'!BW67),'Govt bond inputs'!BW67,"") ->  | BX11: =IF(ISNUMBER('Govt bond inputs'!BX67),'Govt bond inputs'!BX67,"") ->  | BY11: =IF(ISNUMBER('Govt bond inputs'!BY67),'Govt bond inputs'!BY67,"") ->  | BZ11: =IF(ISNUMBER('Govt bond inputs'!BZ67),'Govt bond inputs'!BZ67,"") ->  | CA11: =IF(ISNUMBER('Govt bond inputs'!CA67),'Govt bond inputs'!CA67,"") ->  | CB11: =IF(ISNUMBER('Govt bond inputs'!CB67),'Govt bond inputs'!CB67,"") ->  | CC11: =IF(ISNUMBER('Govt bond inputs'!CC67),'Govt bond inputs'!CC67,"") ->  | CD11: =IF(ISNUMBER('Govt bond inputs'!CD67),'Govt bond inputs'!CD67,"") ->  | CE11: =IF(ISNUMBER('Govt bond inputs'!CE67),'Govt bond inputs'!CE67,"") ->  | CF11: =IF(ISNUMBER('Govt bond inputs'!CF67),'Govt bond inputs'!CF67,"") ->  | CG11: =IF(ISNUMBER('Govt bond inputs'!CG67),'Govt bond inputs'!CG67,"") ->  | CH11: =IF(ISNUMBER('Govt bond inputs'!CH67),'Govt bond inputs'!CH67,"") ->  | CI11: =IF(ISNUMBER('Govt bond inputs'!CI67),'Govt bond inputs'!CI67,"") ->  | CJ11: =IF(ISNUMBER('Govt bond inputs'!CJ67),'Govt bond inputs'!CJ67,"") ->  | CK11: =IF(ISNUMBER('Govt bond inputs'!CK67),'Govt bond inputs'!CK67,"") ->  | CL11: =IF(ISNUMBER('Govt bond inputs'!CL67),'Govt bond inputs'!CL67,"") ->  | CM11: =IF(ISNUMBER('Govt bond inputs'!CM67),'Govt bond inputs'!CM67,"") ->  | CN11: =IF(ISNUMBER('Govt bond inputs'!CN67),'Govt bond inputs'!CN67,"") ->  | CO11: =IF(ISNUMBER('Govt bond inputs'!CO67),'Govt bond inputs'!CO67,"") ->  | CP11: =IF(ISNUMBER('Govt bond inputs'!CP67),'Govt bond inputs'!CP67,"") ->  | CQ11: =IF(ISNUMBER('Govt bond inputs'!CQ67),'Govt bond inputs'!CQ67,"") ->  | CR11: =IF(ISNUMBER('Govt bond inputs'!CR67),'Govt bond inputs'!CR67,"") ->  | CS11: =IF(ISNUMBER('Govt bond inputs'!CS67),'Govt bond inputs'!CS67,"") ->  | CT11: =IF(ISNUMBER('Govt bond inputs'!CT67),'Govt bond inputs'!CT67,"") ->  | CU11: =IF(ISNUMBER('Govt bond inputs'!CU67),'Govt bond inputs'!CU67,"") ->  | CV11: =IF(ISNUMBER('Govt bond inputs'!CV67),'Govt bond inputs'!CV67,"") ->  | CW11: =IF(ISNUMBER('Govt bond inputs'!CW67),'Govt bond inputs'!CW67,"") ->  | CX11: =IF(ISNUMBER('Govt bond inputs'!CX67),'Govt bond inputs'!CX67,"") ->  | CY11: =IF(ISNUMBER('Govt bond inputs'!CY67),'Govt bond inputs'!CY67,"") ->  | CZ11: =IF(ISNUMBER('Govt bond inputs'!CZ67),'Govt bond inputs'!CZ67,"") ->  | DA11: =IF(ISNUMBER('Govt bond inputs'!DA67),'Govt bond inputs'!DA67,"") ->  | DB11: =IF(ISNUMBER('Govt bond inputs'!DB67),'Govt bond inputs'!DB67,"") ->  | DC11: =IF(ISNUMBER('Govt bond inputs'!DC67),'Govt bond inputs'!DC67,"") ->  | DD11: =IF(ISNUMBER('Govt bond inputs'!DD67),'Govt bond inputs'!DD67,"") ->  | DE11: =IF(ISNUMBER('Govt bond inputs'!DE67),'Govt bond inputs'!DE67,"") ->  | DF11: =IF(ISNUMBER('Govt bond inputs'!DF67),'Govt bond inputs'!DF67,"") ->  | DG11: =IF(ISNUMBER('Govt bond inputs'!DG67),'Govt bond inputs'!DG67,"") ->  | DH11: =IF(ISNUMBER('Govt bond inputs'!DH67),'Govt bond inputs'!DH67,"") ->  | DI11: =IF(ISNUMBER('Govt bond inputs'!DI67),'Govt bond inputs'!DI67,"") ->  | DJ11: =IF(ISNUMBER('Govt bond inputs'!DJ67),'Govt bond inputs'!DJ67,"") ->  | DK11: =IF(ISNUMBER('Govt bond inputs'!DK67),'Govt bond inputs'!DK67,"") ->  | DL11: =IF(ISNUMBER('Govt bond inputs'!DL67),'Govt bond inputs'!DL67,"") ->  | DM11: =IF(ISNUMBER('Govt bond inputs'!DM67),'Govt bond inputs'!DM67,"") ->  | DN11: =IF(ISNUMBER('Govt bond inputs'!DN67),'Govt bond inputs'!DN67,"") ->  | DO11: =IF(ISNUMBER('Govt bond inputs'!DO67),'Govt bond inputs'!DO67,"") ->  | DP11: =IF(ISNUMBER('Govt bond inputs'!DP67),'Govt bond inputs'!DP67,"") ->  | DQ11: =IF(ISNUMBER('Govt bond inputs'!DQ67),'Govt bond inputs'!DQ67,"") ->  | DR11: =IF(ISNUMBER('Govt bond inputs'!DR67),'Govt bond inputs'!DR67,"") ->  | DS11: =IF(ISNUMBER('Govt bond inputs'!DS67),'Govt bond inputs'!DS67,"") ->  | DT11: =IF(ISNUMBER('Govt bond inputs'!DT67),'Govt bond inputs'!DT67,"") ->  | DU11: =IF(ISNUMBER('Govt bond inputs'!DU67),'Govt bond inputs'!DU67,"") ->  | DV11: =IF(ISNUMBER('Govt bond inputs'!DV67),'Govt bond inputs'!DV67,"") ->  | DW11: =IF(ISNUMBER('Govt bond inputs'!DW67),'Govt bond inputs'!DW67,"") ->  | DX11: =IF(ISNUMBER('Govt bond inputs'!DX67),'Govt bond inputs'!DX67,"") ->  | DY11: =IF(ISNUMBER('Govt bond inputs'!DY67),'Govt bond inputs'!DY67,"") ->  | DZ11: =IF(ISNUMBER('Govt bond inputs'!DZ67),'Govt bond inputs'!DZ67,"") ->  | EA11: =IF(ISNUMBER('Govt bond inputs'!EA67),'Govt bond inputs'!EA67,"") ->  | EB11: =IF(ISNUMBER('Govt bond inputs'!EB67),'Govt bond inputs'!EB67,"") ->  | EC11: =IF(ISNUMBER('Govt bond inputs'!EC67),'Govt bond inputs'!EC67,"") ->  | ED11: =IF(ISNUMBER('Govt bond inputs'!ED67),'Govt bond inputs'!ED67,"") ->  | EE11: =IF(ISNUMBER('Govt bond inputs'!EE67),'Govt bond inputs'!EE67,"") ->  | EF11: =IF(ISNUMBER('Govt bond inputs'!EF67),'Govt bond inputs'!EF67,"") ->  | EG11: =IF(ISNUMBER('Govt bond inputs'!EG67),'Govt bond inputs'!EG67,"") ->  | EH11: =IF(ISNUMBER('Govt bond inputs'!EH67),'Govt bond inputs'!EH67,"") ->  | EI11: =IF(ISNUMBER('Govt bond inputs'!EI67),'Govt bond inputs'!EI67,"") ->  | EJ11: =IF(ISNUMBER('Govt bond inputs'!EJ67),'Govt bond inputs'!EJ67,"") ->  | EK11: =IF(ISNUMBER('Govt bond inputs'!EK67),'Govt bond inputs'!EK67,"") ->  | EL11: =IF(ISNUMBER('Govt bond inputs'!EL67),'Govt bond inputs'!EL67,"") ->  | EM11: =IF(ISNUMBER('Govt bond inputs'!EM67),'Govt bond inputs'!EM67,"") ->  | EN11: =IF(ISNUMBER('Govt bond inputs'!EN67),'Govt bond inputs'!EN67,"") ->  | EO11: =IF(ISNUMBER('Govt bond inputs'!EO67),'Govt bond inputs'!EO67,"") ->  | EP11: =IF(ISNUMBER('Govt bond inputs'!EP67),'Govt bond inputs'!EP67,"") ->  | EQ11: =IF(ISNUMBER('Govt bond inputs'!EQ67),'Govt bond inputs'!EQ67,"") ->  | ER11: =IF(ISNUMBER('Govt bond inputs'!ER67),'Govt bond inputs'!ER67,"") ->  | ES11: =IF(ISNUMBER('Govt bond inputs'!ES67),'Govt bond inputs'!ES67,"") ->  | ET11: =IF(ISNUMBER('Govt bond inputs'!ET67),'Govt bond inputs'!ET67,"") ->  | EU11: =IF(ISNUMBER('Govt bond inputs'!EU67),'Govt bond inputs'!EU67,"") ->  | EV11: =IF(ISNUMBER('Govt bond inputs'!EV67),'Govt bond inputs'!EV67,"") ->  | EW11: =IF(ISNUMBER('Govt bond inputs'!EW67),'Govt bond inputs'!EW67,"") ->  | EX11: =IF(ISNUMBER('Govt bond inputs'!EX67),'Govt bond inputs'!EX67,"") ->  | EY11: =IF(ISNUMBER('Govt bond inputs'!EY67),'Govt bond inputs'!EY67,"") ->  | EZ11: =IF(ISNUMBER('Govt bond inputs'!EZ67),'Govt bond inputs'!EZ67,"") ->  | FA11: =IF(ISNUMBER('Govt bond inputs'!FA67),'Govt bond inputs'!FA67,"") ->  | FB11: =IF(ISNUMBER('Govt bond inputs'!FB67),'Govt bond inputs'!FB67,"") ->  | FC11: =IF(ISNUMBER('Govt bond inputs'!FC67),'Govt bond inputs'!FC67,"") ->  | FD11: =IF(ISNUMBER('Govt bond inputs'!FD67),'Govt bond inputs'!FD67,"") ->  | FE11: =IF(ISNUMBER('Govt bond inputs'!FE67),'Govt bond inputs'!FE67,"") ->  | FF11: =IF(ISNUMBER('Govt bond inputs'!FF67),'Govt bond inputs'!FF67,"") ->  | FG11: =IF(ISNUMBER('Govt bond inputs'!FG67),'Govt bond inputs'!FG67,"") ->  | FH11: =IF(ISNUMBER('Govt bond inputs'!FH67),'Govt bond inputs'!FH67,"") ->  | FI11: =IF(ISNUMBER('Govt bond inputs'!FI67),'Govt bond inputs'!FI67,"") ->  | FJ11: =IF(ISNUMBER('Govt bond inputs'!FJ67),'Govt bond inputs'!FJ67,"") ->  | FK11: =IF(ISNUMBER('Govt bond inputs'!FK67),'Govt bond inputs'!FK67,"") ->  | FL11: =IF(ISNUMBER('Govt bond inputs'!FL67),'Govt bond inputs'!FL67,"") ->  | FM11: =IF(ISNUMBER('Govt bond inputs'!FM67),'Govt bond inputs'!FM67,"") ->  | FN11: =IF(ISNUMBER('Govt bond inputs'!FN67),'Govt bond inputs'!FN67,"") ->  | FO11: =IF(ISNUMBER('Govt bond inputs'!FO67),'Govt bond inputs'!FO67,"") ->  | FP11: =IF(ISNUMBER('Govt bond inputs'!FP67),'Govt bond inputs'!FP67,"") ->  | FQ11: =IF(ISNUMBER('Govt bond inputs'!FQ67),'Govt bond inputs'!FQ67,"") ->  | FR11: =IF(ISNUMBER('Govt bond inputs'!FR67),'Govt bond inputs'!FR67,"") ->  | FS11: =IF(ISNUMBER('Govt bond inputs'!FS67),'Govt bond inputs'!FS67,"") ->  | FT11: =IF(ISNUMBER('Govt bond inputs'!FT67),'Govt bond inputs'!FT67,"") ->  | FU11: =IF(ISNUMBER('Govt bond inputs'!FU67),'Govt bond inputs'!FU67,"") ->  | FV11: =IF(ISNUMBER('Govt bond inputs'!FV67),'Govt bond inputs'!FV67,"") ->  | FW11: =IF(ISNUMBER('Govt bond inputs'!FW67),'Govt bond inputs'!FW67,"") ->  | FX11: =IF(ISNUMBER('Govt bond inputs'!FX67),'Govt bond inputs'!FX67,"") ->  | FY11: =IF(ISNUMBER('Govt bond inputs'!FY67),'Govt bond inputs'!FY67,"") ->  | FZ11: =IF(ISNUMBER('Govt bond inputs'!FZ67),'Govt bond inputs'!FZ67,"") ->  | GA11: =IF(ISNUMBER('Govt bond inputs'!GA67),'Govt bond inputs'!GA67,"") ->  | GB11: =IF(ISNUMBER('Govt bond inputs'!GB67),'Govt bond inputs'!GB67,"") ->  | GC11: =IF(ISNUMBER('Govt bond inputs'!GC67),'Govt bond inputs'!GC67,"") ->  | GD11: =IF(ISNUMBER('Govt bond inputs'!GD67),'Govt bond inputs'!GD67,"") ->  | GE11: =IF(ISNUMBER('Govt bond inputs'!GE67),'Govt bond inputs'!GE67,"") ->  | GF11: =IF(ISNUMBER('Govt bond inputs'!GF67),'Govt bond inputs'!GF67,"") ->  | GG11: =IF(ISNUMBER('Govt bond inputs'!GG67),'Govt bond inputs'!GG67,"") ->  | GH11: =IF(ISNUMBER('Govt bond inputs'!GH67),'Govt bond inputs'!GH67,"") ->  | GI11: =IF(ISNUMBER('Govt bond inputs'!GI67),'Govt bond inputs'!GI67,"") ->  | GJ11: =IF(ISNUMBER('Govt bond inputs'!GJ67),'Govt bond inputs'!GJ67,"") ->  | GK11: =IF(ISNUMBER('Govt bond inputs'!GK67),'Govt bond inputs'!GK67,"") ->  | GL11: =IF(ISNUMBER('Govt bond inputs'!GL67),'Govt bond inputs'!GL67,"") ->  | GM11: =IF(ISNUMBER('Govt bond inputs'!GM67),'Govt bond inputs'!GM67,"") ->  | GN11: =IF(ISNUMBER('Govt bond inputs'!GN67),'Govt bond inputs'!GN67,"") ->  | GO11: =IF(ISNUMBER('Govt bond inputs'!GO67),'Govt bond inputs'!GO67,"") ->  | GP11: =IF(ISNUMBER('Govt bond inputs'!GP67),'Govt bond inputs'!GP67,"") ->  | GQ11: =IF(ISNUMBER('Govt bond inputs'!GQ67),'Govt bond inputs'!GQ67,"") ->  | GR11: =IF(ISNUMBER('Govt bond inputs'!GR67),'Govt bond inputs'!GR67,"") ->  | GS11: =IF(ISNUMBER('Govt bond inputs'!GS67),'Govt bond inputs'!GS67,"") ->  | GT11: =IF(ISNUMBER('Govt bond inputs'!GT67),'Govt bond inputs'!GT67,"") ->  | GU11: =IF(ISNUMBER('Govt bond inputs'!GU67),'Govt bond inputs'!GU67,"") ->  | GV11: =IF(ISNUMBER('Govt bond inputs'!GV67),'Govt bond inputs'!GV67,"") ->  | GW11: =IF(ISNUMBER('Govt bond inputs'!GW67),'Govt bond inputs'!GW67,"") ->  | GX11: =IF(ISNUMBER('Govt bond inputs'!GX67),'Govt bond inputs'!GX67,"") ->  | GY11: =IF(ISNUMBER('Govt bond inputs'!GY67),'Govt bond inputs'!GY67,"") ->  | GZ11: =IF(ISNUMBER('Govt bond inputs'!GZ67),'Govt bond inputs'!GZ67,"") ->  | HA11: =IF(ISNUMBER('Govt bond inputs'!HA67),'Govt bond inputs'!HA67,"") ->  | HB11: =IF(ISNUMBER('Govt bond inputs'!HB67),'Govt bond inputs'!HB67,"") ->  | HC11: =IF(ISNUMBER('Govt bond inputs'!HC67),'Govt bond inputs'!HC67,"") ->  | HD11: =IF(ISNUMBER('Govt bond inputs'!HD67),'Govt bond inputs'!HD67,"") ->  | HE11: =IF(ISNUMBER('Govt bond inputs'!HE67),'Govt bond inputs'!HE67,"") ->  | HF11: =IF(ISNUMBER('Govt bond inputs'!HF67),'Govt bond inputs'!HF67,"") ->  | HG11: =IF(ISNUMBER('Govt bond inputs'!HG67),'Govt bond inputs'!HG67,"") ->  | HH11: =IF(ISNUMBER('Govt bond inputs'!HH67),'Govt bond inputs'!HH67,"") ->  | HI11: =IF(ISNUMBER('Govt bond inputs'!HI67),'Govt bond inputs'!HI67,"") ->  | HJ11: =IF(ISNUMBER('Govt bond inputs'!HJ67),'Govt bond inputs'!HJ67,"") ->  | HK11: =IF(ISNUMBER('Govt bond inputs'!HK67),'Govt bond inputs'!HK67,"") ->  | HL11: =IF(ISNUMBER('Govt bond inputs'!HL67),'Govt bond inputs'!HL67,"") ->  | HM11: =IF(ISNUMBER('Govt bond inputs'!HM67),'Govt bond inputs'!HM67,"") ->  | HN11: =IF(ISNUMBER('Govt bond inputs'!HN67),'Govt bond inputs'!HN67,"") ->  | HO11: =IF(ISNUMBER('Govt bond inputs'!HO67),'Govt bond inputs'!HO67,"") ->  | HP11: =IF(ISNUMBER('Govt bond inputs'!HP67),'Govt bond inputs'!HP67,"") ->  | HQ11: =IF(ISNUMBER('Govt bond inputs'!HQ67),'Govt bond inputs'!HQ67,"") ->  | HR11: =IF(ISNUMBER('Govt bond inputs'!HR67),'Govt bond inputs'!HR67,"") ->  | HS11: =IF(ISNUMBER('Govt bond inputs'!HS67),'Govt bond inputs'!HS67,"") ->  | HT11: =IF(ISNUMBER('Govt bond inputs'!HT67),'Govt bond inputs'!HT67,"") ->  | HU11: =IF(ISNUMBER('Govt bond inputs'!HU67),'Govt bond inputs'!HU67,"") ->  | HV11: =IF(ISNUMBER('Govt bond inputs'!HV67),'Govt bond inputs'!HV67,"") ->  | HW11: =IF(ISNUMBER('Govt bond inputs'!HW67),'Govt bond inputs'!HW67,"") ->  | HX11: =IF(ISNUMBER('Govt bond inputs'!HX67),'Govt bond inputs'!HX67,"") ->  | HY11: =IF(ISNUMBER('Govt bond inputs'!HY67),'Govt bond inputs'!HY67,"") ->  | HZ11: =IF(ISNUMBER('Govt bond inputs'!HZ67),'Govt bond inputs'!HZ67,"") ->  | IA11: =IF(ISNUMBER('Govt bond inputs'!IA67),'Govt bond inputs'!IA67,"") ->  | IB11: =IF(ISNUMBER('Govt bond inputs'!IB67),'Govt bond inputs'!IB67,"") ->  | IC11: =IF(ISNUMBER('Govt bond inputs'!IC67),'Govt bond inputs'!IC67,"") ->  | ID11: =IF(ISNUMBER('Govt bond inputs'!ID67),'Govt bond inputs'!ID67,"") ->  | IE11: =IF(ISNUMBER('Govt bond inputs'!IE67),'Govt bond inputs'!IE67,"") ->  | IF11: =IF(ISNUMBER('Govt bond inputs'!IF67),'Govt bond inputs'!IF67,"") ->  | IG11: =IF(ISNUMBER('Govt bond inputs'!IG67),'Govt bond inputs'!IG67,"") ->  | IH11: =IF(ISNUMBER('Govt bond inputs'!IH67),'Govt bond inputs'!IH67,"") ->  | II11: =IF(ISNUMBER('Govt bond inputs'!II67),'Govt bond inputs'!II67,"") ->  | IJ11: =IF(ISNUMBER('Govt bond inputs'!IJ67),'Govt bond inputs'!IJ67,"") ->  | IK11: =IF(ISNUMBER('Govt bond inputs'!IK67),'Govt bond inputs'!IK67,"") ->  | IL11: =IF(ISNUMBER('Govt bond inputs'!IL67),'Govt bond inputs'!IL67,"") ->  | IM11: =IF(ISNUMBER('Govt bond inputs'!IM67),'Govt bond inputs'!IM67,"") ->  | IN11: =IF(ISNUMBER('Govt bond inputs'!IN67),'Govt bond inputs'!IN67,"") ->  | IO11: =IF(ISNUMBER('Govt bond inputs'!IO67),'Govt bond inputs'!IO67,"") ->  | IP11: =IF(ISNUMBER('Govt bond inputs'!IP67),'Govt bond inputs'!IP67,"") ->  | IQ11: =IF(ISNUMBER('Govt bond inputs'!IQ67),'Govt bond inputs'!IQ67,"") ->  | IR11: =IF(ISNUMBER('Govt bond inputs'!IR67),'Govt bond inputs'!IR67,"") ->  | IS11: =IF(ISNUMBER('Govt bond inputs'!IS67),'Govt bond inputs'!IS67,"") ->  | IT11: =IF(ISNUMBER('Govt bond inputs'!IT67),'Govt bond inputs'!IT67,"") ->  | IU11: =IF(ISNUMBER('Govt bond inputs'!IU67),'Govt bond inputs'!IU67,"") ->  | IV11: =IF(ISNUMBER('Govt bond inputs'!IV67),'Govt bond inputs'!IV67,"") ->  | IW11: =IF(ISNUMBER('Govt bond inputs'!IW67),'Govt bond inputs'!IW67,"") ->  | IX11: =IF(ISNUMBER('Govt bond inputs'!IX67),'Govt bond inputs'!IX67,"") ->  | IY11: =IF(ISNUMBER('Govt bond inputs'!IY67),'Govt bond inputs'!IY67,"") ->  | IZ11: =IF(ISNUMBER('Govt bond inputs'!IZ67),'Govt bond inputs'!IZ67,"") ->  | JA11: =IF(ISNUMBER('Govt bond inputs'!JA67),'Govt bond inputs'!JA67,"") ->  | JB11: =IF(ISNUMBER('Govt bond inputs'!JB67),'Govt bond inputs'!JB67,"") ->  | JC11: =IF(ISNUMBER('Govt bond inputs'!JC67),'Govt bond inputs'!JC67,"") ->  | JD11: =IF(ISNUMBER('Govt bond inputs'!JD67),'Govt bond inputs'!JD67,"") ->  | JE11: =IF(ISNUMBER('Govt bond inputs'!JE67),'Govt bond inputs'!JE67,"") ->  | JF11: =IF(ISNUMBER('Govt bond inputs'!JF67),'Govt bond inputs'!JF67,"") ->  | JG11: =IF(ISNUMBER('Govt bond inputs'!JG67),'Govt bond inputs'!JG67,"") ->  | JH11: =IF(ISNUMBER('Govt bond inputs'!JH67),'Govt bond inputs'!JH67,"") ->  | JI11: =IF(ISNUMBER('Govt bond inputs'!JI67),'Govt bond inputs'!JI67,"") ->  | JJ11: =IF(ISNUMBER('Govt bond inputs'!JJ67),'Govt bond inputs'!JJ67,"") ->  | JK11: =IF(ISNUMBER('Govt bond inputs'!JK67),'Govt bond inputs'!JK67,"") ->  | JL11: =IF(ISNUMBER('Govt bond inputs'!JL67),'Govt bond inputs'!JL67,"") ->  | JM11: =IF(ISNUMBER('Govt bond inputs'!JM67),'Govt bond inputs'!JM67,"") ->  | JN11: =IF(ISNUMBER('Govt bond inputs'!JN67),'Govt bond inputs'!JN67,"") ->  | JO11: =IF(ISNUMBER('Govt bond inputs'!JO67),'Govt bond inputs'!JO67,"") ->  | JP11: =IF(ISNUMBER('Govt bond inputs'!JP67),'Govt bond inputs'!JP67,"") ->  | JQ11: =IF(ISNUMBER('Govt bond inputs'!JQ67),'Govt bond inputs'!JQ67,"") -> 
B12: ='Govt bond inputs'!D68 -> 0 | C12: =IF('Govt bond inputs'!H68="NR", 'Govt bond inputs'!G68, 'Govt bond inputs'!H68) -> 0 | D12: ='Govt bond inputs'!L68 -> 0 | E12: ='Govt bond inputs'!O68 -> 0 | Q12: =IF(ISNUMBER('Govt bond inputs'!Q68),'Govt bond inputs'!Q68,"") ->  | R12: =IF(ISNUMBER('Govt bond inputs'!R68),'Govt bond inputs'!R68,"") ->  | S12: =IF(ISNUMBER('Govt bond inputs'!S68),'Govt bond inputs'!S68,"") ->  | T12: =IF(ISNUMBER('Govt bond inputs'!T68),'Govt bond inputs'!T68,"") ->  | U12: =IF(ISNUMBER('Govt bond inputs'!U68),'Govt bond inputs'!U68,"") ->  | V12: =IF(ISNUMBER('Govt bond inputs'!V68),'Govt bond inputs'!V68,"") ->  | W12: =IF(ISNUMBER('Govt bond inputs'!W68),'Govt bond inputs'!W68,"") ->  | X12: =IF(ISNUMBER('Govt bond inputs'!X68),'Govt bond inputs'!X68,"") ->  | Y12: =IF(ISNUMBER('Govt bond inputs'!Y68),'Govt bond inputs'!Y68,"") ->  | Z12: =IF(ISNUMBER('Govt bond inputs'!Z68),'Govt bond inputs'!Z68,"") ->  | AA12: =IF(ISNUMBER('Govt bond inputs'!AA68),'Govt bond inputs'!AA68,"") ->  | AB12: =IF(ISNUMBER('Govt bond inputs'!AB68),'Govt bond inputs'!AB68,"") ->  | AC12: =IF(ISNUMBER('Govt bond inputs'!AC68),'Govt bond inputs'!AC68,"") ->  | AD12: =IF(ISNUMBER('Govt bond inputs'!AD68),'Govt bond inputs'!AD68,"") ->  | AE12: =IF(ISNUMBER('Govt bond inputs'!AE68),'Govt bond inputs'!AE68,"") ->  | AF12: =IF(ISNUMBER('Govt bond inputs'!AF68),'Govt bond inputs'!AF68,"") ->  | AG12: =IF(ISNUMBER('Govt bond inputs'!AG68),'Govt bond inputs'!AG68,"") ->  | AH12: =IF(ISNUMBER('Govt bond inputs'!AH68),'Govt bond inputs'!AH68,"") ->  | AI12: =IF(ISNUMBER('Govt bond inputs'!AI68),'Govt bond inputs'!AI68,"") ->  | AJ12: =IF(ISNUMBER('Govt bond inputs'!AJ68),'Govt bond inputs'!AJ68,"") ->  | AK12: =IF(ISNUMBER('Govt bond inputs'!AK68),'Govt bond inputs'!AK68,"") ->  | AL12: =IF(ISNUMBER('Govt bond inputs'!AL68),'Govt bond inputs'!AL68,"") ->  | AM12: =IF(ISNUMBER('Govt bond inputs'!AM68),'Govt bond inputs'!AM68,"") ->  | AN12: =IF(ISNUMBER('Govt bond inputs'!AN68),'Govt bond inputs'!AN68,"") ->  | AO12: =IF(ISNUMBER('Govt bond inputs'!AO68),'Govt bond inputs'!AO68,"") ->  | AP12: =IF(ISNUMBER('Govt bond inputs'!AP68),'Govt bond inputs'!AP68,"") ->  | AQ12: =IF(ISNUMBER('Govt bond inputs'!AQ68),'Govt bond inputs'!AQ68,"") ->  | AR12: =IF(ISNUMBER('Govt bond inputs'!AR68),'Govt bond inputs'!AR68,"") ->  | AS12: =IF(ISNUMBER('Govt bond inputs'!AS68),'Govt bond inputs'!AS68,"") ->  | AT12: =IF(ISNUMBER('Govt bond inputs'!AT68),'Govt bond inputs'!AT68,"") ->  | AU12: =IF(ISNUMBER('Govt bond inputs'!AU68),'Govt bond inputs'!AU68,"") ->  | AV12: =IF(ISNUMBER('Govt bond inputs'!AV68),'Govt bond inputs'!AV68,"") ->  | AW12: =IF(ISNUMBER('Govt bond inputs'!AW68),'Govt bond inputs'!AW68,"") ->  | AX12: =IF(ISNUMBER('Govt bond inputs'!AX68),'Govt bond inputs'!AX68,"") ->  | AY12: =IF(ISNUMBER('Govt bond inputs'!AY68),'Govt bond inputs'!AY68,"") ->  | AZ12: =IF(ISNUMBER('Govt bond inputs'!AZ68),'Govt bond inputs'!AZ68,"") ->  | BA12: =IF(ISNUMBER('Govt bond inputs'!BA68),'Govt bond inputs'!BA68,"") ->  | BB12: =IF(ISNUMBER('Govt bond inputs'!BB68),'Govt bond inputs'!BB68,"") ->  | BC12: =IF(ISNUMBER('Govt bond inputs'!BC68),'Govt bond inputs'!BC68,"") ->  | BD12: =IF(ISNUMBER('Govt bond inputs'!BD68),'Govt bond inputs'!BD68,"") ->  | BE12: =IF(ISNUMBER('Govt bond inputs'!BE68),'Govt bond inputs'!BE68,"") ->  | BF12: =IF(ISNUMBER('Govt bond inputs'!BF68),'Govt bond inputs'!BF68,"") ->  | BG12: =IF(ISNUMBER('Govt bond inputs'!BG68),'Govt bond inputs'!BG68,"") ->  | BH12: =IF(ISNUMBER('Govt bond inputs'!BH68),'Govt bond inputs'!BH68,"") ->  | BI12: =IF(ISNUMBER('Govt bond inputs'!BI68),'Govt bond inputs'!BI68,"") ->  | BJ12: =IF(ISNUMBER('Govt bond inputs'!BJ68),'Govt bond inputs'!BJ68,"") ->  | BK12: =IF(ISNUMBER('Govt bond inputs'!BK68),'Govt bond inputs'!BK68,"") ->  | BL12: =IF(ISNUMBER('Govt bond inputs'!BL68),'Govt bond inputs'!BL68,"") ->  | BM12: =IF(ISNUMBER('Govt bond inputs'!BM68),'Govt bond inputs'!BM68,"") ->  | BN12: =IF(ISNUMBER('Govt bond inputs'!BN68),'Govt bond inputs'!BN68,"") ->  | BO12: =IF(ISNUMBER('Govt bond inputs'!BO68),'Govt bond inputs'!BO68,"") ->  | BP12: =IF(ISNUMBER('Govt bond inputs'!BP68),'Govt bond inputs'!BP68,"") ->  | BQ12: =IF(ISNUMBER('Govt bond inputs'!BQ68),'Govt bond inputs'!BQ68,"") ->  | BR12: =IF(ISNUMBER('Govt bond inputs'!BR68),'Govt bond inputs'!BR68,"") ->  | BS12: =IF(ISNUMBER('Govt bond inputs'!BS68),'Govt bond inputs'!BS68,"") ->  | BT12: =IF(ISNUMBER('Govt bond inputs'!BT68),'Govt bond inputs'!BT68,"") ->  | BU12: =IF(ISNUMBER('Govt bond inputs'!BU68),'Govt bond inputs'!BU68,"") ->  | BV12: =IF(ISNUMBER('Govt bond inputs'!BV68),'Govt bond inputs'!BV68,"") ->  | BW12: =IF(ISNUMBER('Govt bond inputs'!BW68),'Govt bond inputs'!BW68,"") ->  | BX12: =IF(ISNUMBER('Govt bond inputs'!BX68),'Govt bond inputs'!BX68,"") ->  | BY12: =IF(ISNUMBER('Govt bond inputs'!BY68),'Govt bond inputs'!BY68,"") ->  | BZ12: =IF(ISNUMBER('Govt bond inputs'!BZ68),'Govt bond inputs'!BZ68,"") ->  | CA12: =IF(ISNUMBER('Govt bond inputs'!CA68),'Govt bond inputs'!CA68,"") ->  | CB12: =IF(ISNUMBER('Govt bond inputs'!CB68),'Govt bond inputs'!CB68,"") ->  | CC12: =IF(ISNUMBER('Govt bond inputs'!CC68),'Govt bond inputs'!CC68,"") ->  | CD12: =IF(ISNUMBER('Govt bond inputs'!CD68),'Govt bond inputs'!CD68,"") ->  | CE12: =IF(ISNUMBER('Govt bond inputs'!CE68),'Govt bond inputs'!CE68,"") ->  | CF12: =IF(ISNUMBER('Govt bond inputs'!CF68),'Govt bond inputs'!CF68,"") ->  | CG12: =IF(ISNUMBER('Govt bond inputs'!CG68),'Govt bond inputs'!CG68,"") ->  | CH12: =IF(ISNUMBER('Govt bond inputs'!CH68),'Govt bond inputs'!CH68,"") ->  | CI12: =IF(ISNUMBER('Govt bond inputs'!CI68),'Govt bond inputs'!CI68,"") ->  | CJ12: =IF(ISNUMBER('Govt bond inputs'!CJ68),'Govt bond inputs'!CJ68,"") ->  | CK12: =IF(ISNUMBER('Govt bond inputs'!CK68),'Govt bond inputs'!CK68,"") ->  | CL12: =IF(ISNUMBER('Govt bond inputs'!CL68),'Govt bond inputs'!CL68,"") ->  | CM12: =IF(ISNUMBER('Govt bond inputs'!CM68),'Govt bond inputs'!CM68,"") ->  | CN12: =IF(ISNUMBER('Govt bond inputs'!CN68),'Govt bond inputs'!CN68,"") ->  | CO12: =IF(ISNUMBER('Govt bond inputs'!CO68),'Govt bond inputs'!CO68,"") ->  | CP12: =IF(ISNUMBER('Govt bond inputs'!CP68),'Govt bond inputs'!CP68,"") ->  | CQ12: =IF(ISNUMBER('Govt bond inputs'!CQ68),'Govt bond inputs'!CQ68,"") ->  | CR12: =IF(ISNUMBER('Govt bond inputs'!CR68),'Govt bond inputs'!CR68,"") ->  | CS12: =IF(ISNUMBER('Govt bond inputs'!CS68),'Govt bond inputs'!CS68,"") ->  | CT12: =IF(ISNUMBER('Govt bond inputs'!CT68),'Govt bond inputs'!CT68,"") ->  | CU12: =IF(ISNUMBER('Govt bond inputs'!CU68),'Govt bond inputs'!CU68,"") ->  | CV12: =IF(ISNUMBER('Govt bond inputs'!CV68),'Govt bond inputs'!CV68,"") ->  | CW12: =IF(ISNUMBER('Govt bond inputs'!CW68),'Govt bond inputs'!CW68,"") ->  | CX12: =IF(ISNUMBER('Govt bond inputs'!CX68),'Govt bond inputs'!CX68,"") ->  | CY12: =IF(ISNUMBER('Govt bond inputs'!CY68),'Govt bond inputs'!CY68,"") ->  | CZ12: =IF(ISNUMBER('Govt bond inputs'!CZ68),'Govt bond inputs'!CZ68,"") ->  | DA12: =IF(ISNUMBER('Govt bond inputs'!DA68),'Govt bond inputs'!DA68,"") ->  | DB12: =IF(ISNUMBER('Govt bond inputs'!DB68),'Govt bond inputs'!DB68,"") ->  | DC12: =IF(ISNUMBER('Govt bond inputs'!DC68),'Govt bond inputs'!DC68,"") ->  | DD12: =IF(ISNUMBER('Govt bond inputs'!DD68),'Govt bond inputs'!DD68,"") ->  | DE12: =IF(ISNUMBER('Govt bond inputs'!DE68),'Govt bond inputs'!DE68,"") ->  | DF12: =IF(ISNUMBER('Govt bond inputs'!DF68),'Govt bond inputs'!DF68,"") ->  | DG12: =IF(ISNUMBER('Govt bond inputs'!DG68),'Govt bond inputs'!DG68,"") ->  | DH12: =IF(ISNUMBER('Govt bond inputs'!DH68),'Govt bond inputs'!DH68,"") ->  | DI12: =IF(ISNUMBER('Govt bond inputs'!DI68),'Govt bond inputs'!DI68,"") ->  | DJ12: =IF(ISNUMBER('Govt bond inputs'!DJ68),'Govt bond inputs'!DJ68,"") ->  | DK12: =IF(ISNUMBER('Govt bond inputs'!DK68),'Govt bond inputs'!DK68,"") ->  | DL12: =IF(ISNUMBER('Govt bond inputs'!DL68),'Govt bond inputs'!DL68,"") ->  | DM12: =IF(ISNUMBER('Govt bond inputs'!DM68),'Govt bond inputs'!DM68,"") ->  | DN12: =IF(ISNUMBER('Govt bond inputs'!DN68),'Govt bond inputs'!DN68,"") ->  | DO12: =IF(ISNUMBER('Govt bond inputs'!DO68),'Govt bond inputs'!DO68,"") ->  | DP12: =IF(ISNUMBER('Govt bond inputs'!DP68),'Govt bond inputs'!DP68,"") ->  | DQ12: =IF(ISNUMBER('Govt bond inputs'!DQ68),'Govt bond inputs'!DQ68,"") ->  | DR12: =IF(ISNUMBER('Govt bond inputs'!DR68),'Govt bond inputs'!DR68,"") ->  | DS12: =IF(ISNUMBER('Govt bond inputs'!DS68),'Govt bond inputs'!DS68,"") ->  | DT12: =IF(ISNUMBER('Govt bond inputs'!DT68),'Govt bond inputs'!DT68,"") ->  | DU12: =IF(ISNUMBER('Govt bond inputs'!DU68),'Govt bond inputs'!DU68,"") ->  | DV12: =IF(ISNUMBER('Govt bond inputs'!DV68),'Govt bond inputs'!DV68,"") ->  | DW12: =IF(ISNUMBER('Govt bond inputs'!DW68),'Govt bond inputs'!DW68,"") ->  | DX12: =IF(ISNUMBER('Govt bond inputs'!DX68),'Govt bond inputs'!DX68,"") ->  | DY12: =IF(ISNUMBER('Govt bond inputs'!DY68),'Govt bond inputs'!DY68,"") ->  | DZ12: =IF(ISNUMBER('Govt bond inputs'!DZ68),'Govt bond inputs'!DZ68,"") ->  | EA12: =IF(ISNUMBER('Govt bond inputs'!EA68),'Govt bond inputs'!EA68,"") ->  | EB12: =IF(ISNUMBER('Govt bond inputs'!EB68),'Govt bond inputs'!EB68,"") ->  | EC12: =IF(ISNUMBER('Govt bond inputs'!EC68),'Govt bond inputs'!EC68,"") ->  | ED12: =IF(ISNUMBER('Govt bond inputs'!ED68),'Govt bond inputs'!ED68,"") ->  | EE12: =IF(ISNUMBER('Govt bond inputs'!EE68),'Govt bond inputs'!EE68,"") ->  | EF12: =IF(ISNUMBER('Govt bond inputs'!EF68),'Govt bond inputs'!EF68,"") ->  | EG12: =IF(ISNUMBER('Govt bond inputs'!EG68),'Govt bond inputs'!EG68,"") ->  | EH12: =IF(ISNUMBER('Govt bond inputs'!EH68),'Govt bond inputs'!EH68,"") ->  | EI12: =IF(ISNUMBER('Govt bond inputs'!EI68),'Govt bond inputs'!EI68,"") ->  | EJ12: =IF(ISNUMBER('Govt bond inputs'!EJ68),'Govt bond inputs'!EJ68,"") ->  | EK12: =IF(ISNUMBER('Govt bond inputs'!EK68),'Govt bond inputs'!EK68,"") ->  | EL12: =IF(ISNUMBER('Govt bond inputs'!EL68),'Govt bond inputs'!EL68,"") ->  | EM12: =IF(ISNUMBER('Govt bond inputs'!EM68),'Govt bond inputs'!EM68,"") ->  | EN12: =IF(ISNUMBER('Govt bond inputs'!EN68),'Govt bond inputs'!EN68,"") ->  | EO12: =IF(ISNUMBER('Govt bond inputs'!EO68),'Govt bond inputs'!EO68,"") ->  | EP12: =IF(ISNUMBER('Govt bond inputs'!EP68),'Govt bond inputs'!EP68,"") ->  | EQ12: =IF(ISNUMBER('Govt bond inputs'!EQ68),'Govt bond inputs'!EQ68,"") ->  | ER12: =IF(ISNUMBER('Govt bond inputs'!ER68),'Govt bond inputs'!ER68,"") ->  | ES12: =IF(ISNUMBER('Govt bond inputs'!ES68),'Govt bond inputs'!ES68,"") ->  | ET12: =IF(ISNUMBER('Govt bond inputs'!ET68),'Govt bond inputs'!ET68,"") ->  | EU12: =IF(ISNUMBER('Govt bond inputs'!EU68),'Govt bond inputs'!EU68,"") ->  | EV12: =IF(ISNUMBER('Govt bond inputs'!EV68),'Govt bond inputs'!EV68,"") ->  | EW12: =IF(ISNUMBER('Govt bond inputs'!EW68),'Govt bond inputs'!EW68,"") ->  | EX12: =IF(ISNUMBER('Govt bond inputs'!EX68),'Govt bond inputs'!EX68,"") ->  | EY12: =IF(ISNUMBER('Govt bond inputs'!EY68),'Govt bond inputs'!EY68,"") ->  | EZ12: =IF(ISNUMBER('Govt bond inputs'!EZ68),'Govt bond inputs'!EZ68,"") ->  | FA12: =IF(ISNUMBER('Govt bond inputs'!FA68),'Govt bond inputs'!FA68,"") ->  | FB12: =IF(ISNUMBER('Govt bond inputs'!FB68),'Govt bond inputs'!FB68,"") ->  | FC12: =IF(ISNUMBER('Govt bond inputs'!FC68),'Govt bond inputs'!FC68,"") ->  | FD12: =IF(ISNUMBER('Govt bond inputs'!FD68),'Govt bond inputs'!FD68,"") ->  | FE12: =IF(ISNUMBER('Govt bond inputs'!FE68),'Govt bond inputs'!FE68,"") ->  | FF12: =IF(ISNUMBER('Govt bond inputs'!FF68),'Govt bond inputs'!FF68,"") ->  | FG12: =IF(ISNUMBER('Govt bond inputs'!FG68),'Govt bond inputs'!FG68,"") ->  | FH12: =IF(ISNUMBER('Govt bond inputs'!FH68),'Govt bond inputs'!FH68,"") ->  | FI12: =IF(ISNUMBER('Govt bond inputs'!FI68),'Govt bond inputs'!FI68,"") ->  | FJ12: =IF(ISNUMBER('Govt bond inputs'!FJ68),'Govt bond inputs'!FJ68,"") ->  | FK12: =IF(ISNUMBER('Govt bond inputs'!FK68),'Govt bond inputs'!FK68,"") ->  | FL12: =IF(ISNUMBER('Govt bond inputs'!FL68),'Govt bond inputs'!FL68,"") ->  | FM12: =IF(ISNUMBER('Govt bond inputs'!FM68),'Govt bond inputs'!FM68,"") ->  | FN12: =IF(ISNUMBER('Govt bond inputs'!FN68),'Govt bond inputs'!FN68,"") ->  | FO12: =IF(ISNUMBER('Govt bond inputs'!FO68),'Govt bond inputs'!FO68,"") ->  | FP12: =IF(ISNUMBER('Govt bond inputs'!FP68),'Govt bond inputs'!FP68,"") ->  | FQ12: =IF(ISNUMBER('Govt bond inputs'!FQ68),'Govt bond inputs'!FQ68,"") ->  | FR12: =IF(ISNUMBER('Govt bond inputs'!FR68),'Govt bond inputs'!FR68,"") ->  | FS12: =IF(ISNUMBER('Govt bond inputs'!FS68),'Govt bond inputs'!FS68,"") ->  | FT12: =IF(ISNUMBER('Govt bond inputs'!FT68),'Govt bond inputs'!FT68,"") ->  | FU12: =IF(ISNUMBER('Govt bond inputs'!FU68),'Govt bond inputs'!FU68,"") ->  | FV12: =IF(ISNUMBER('Govt bond inputs'!FV68),'Govt bond inputs'!FV68,"") ->  | FW12: =IF(ISNUMBER('Govt bond inputs'!FW68),'Govt bond inputs'!FW68,"") ->  | FX12: =IF(ISNUMBER('Govt bond inputs'!FX68),'Govt bond inputs'!FX68,"") ->  | FY12: =IF(ISNUMBER('Govt bond inputs'!FY68),'Govt bond inputs'!FY68,"") ->  | FZ12: =IF(ISNUMBER('Govt bond inputs'!FZ68),'Govt bond inputs'!FZ68,"") ->  | GA12: =IF(ISNUMBER('Govt bond inputs'!GA68),'Govt bond inputs'!GA68,"") ->  | GB12: =IF(ISNUMBER('Govt bond inputs'!GB68),'Govt bond inputs'!GB68,"") ->  | GC12: =IF(ISNUMBER('Govt bond inputs'!GC68),'Govt bond inputs'!GC68,"") ->  | GD12: =IF(ISNUMBER('Govt bond inputs'!GD68),'Govt bond inputs'!GD68,"") ->  | GE12: =IF(ISNUMBER('Govt bond inputs'!GE68),'Govt bond inputs'!GE68,"") ->  | GF12: =IF(ISNUMBER('Govt bond inputs'!GF68),'Govt bond inputs'!GF68,"") ->  | GG12: =IF(ISNUMBER('Govt bond inputs'!GG68),'Govt bond inputs'!GG68,"") ->  | GH12: =IF(ISNUMBER('Govt bond inputs'!GH68),'Govt bond inputs'!GH68,"") ->  | GI12: =IF(ISNUMBER('Govt bond inputs'!GI68),'Govt bond inputs'!GI68,"") ->  | GJ12: =IF(ISNUMBER('Govt bond inputs'!GJ68),'Govt bond inputs'!GJ68,"") ->  | GK12: =IF(ISNUMBER('Govt bond inputs'!GK68),'Govt bond inputs'!GK68,"") ->  | GL12: =IF(ISNUMBER('Govt bond inputs'!GL68),'Govt bond inputs'!GL68,"") ->  | GM12: =IF(ISNUMBER('Govt bond inputs'!GM68),'Govt bond inputs'!GM68,"") ->  | GN12: =IF(ISNUMBER('Govt bond inputs'!GN68),'Govt bond inputs'!GN68,"") ->  | GO12: =IF(ISNUMBER('Govt bond inputs'!GO68),'Govt bond inputs'!GO68,"") ->  | GP12: =IF(ISNUMBER('Govt bond inputs'!GP68),'Govt bond inputs'!GP68,"") ->  | GQ12: =IF(ISNUMBER('Govt bond inputs'!GQ68),'Govt bond inputs'!GQ68,"") ->  | GR12: =IF(ISNUMBER('Govt bond inputs'!GR68),'Govt bond inputs'!GR68,"") ->  | GS12: =IF(ISNUMBER('Govt bond inputs'!GS68),'Govt bond inputs'!GS68,"") ->  | GT12: =IF(ISNUMBER('Govt bond inputs'!GT68),'Govt bond inputs'!GT68,"") ->  | GU12: =IF(ISNUMBER('Govt bond inputs'!GU68),'Govt bond inputs'!GU68,"") ->  | GV12: =IF(ISNUMBER('Govt bond inputs'!GV68),'Govt bond inputs'!GV68,"") ->  | GW12: =IF(ISNUMBER('Govt bond inputs'!GW68),'Govt bond inputs'!GW68,"") ->  | GX12: =IF(ISNUMBER('Govt bond inputs'!GX68),'Govt bond inputs'!GX68,"") ->  | GY12: =IF(ISNUMBER('Govt bond inputs'!GY68),'Govt bond inputs'!GY68,"") ->  | GZ12: =IF(ISNUMBER('Govt bond inputs'!GZ68),'Govt bond inputs'!GZ68,"") ->  | HA12: =IF(ISNUMBER('Govt bond inputs'!HA68),'Govt bond inputs'!HA68,"") ->  | HB12: =IF(ISNUMBER('Govt bond inputs'!HB68),'Govt bond inputs'!HB68,"") ->  | HC12: =IF(ISNUMBER('Govt bond inputs'!HC68),'Govt bond inputs'!HC68,"") ->  | HD12: =IF(ISNUMBER('Govt bond inputs'!HD68),'Govt bond inputs'!HD68,"") ->  | HE12: =IF(ISNUMBER('Govt bond inputs'!HE68),'Govt bond inputs'!HE68,"") ->  | HF12: =IF(ISNUMBER('Govt bond inputs'!HF68),'Govt bond inputs'!HF68,"") ->  | HG12: =IF(ISNUMBER('Govt bond inputs'!HG68),'Govt bond inputs'!HG68,"") ->  | HH12: =IF(ISNUMBER('Govt bond inputs'!HH68),'Govt bond inputs'!HH68,"") ->  | HI12: =IF(ISNUMBER('Govt bond inputs'!HI68),'Govt bond inputs'!HI68,"") ->  | HJ12: =IF(ISNUMBER('Govt bond inputs'!HJ68),'Govt bond inputs'!HJ68,"") ->  | HK12: =IF(ISNUMBER('Govt bond inputs'!HK68),'Govt bond inputs'!HK68,"") ->  | HL12: =IF(ISNUMBER('Govt bond inputs'!HL68),'Govt bond inputs'!HL68,"") ->  | HM12: =IF(ISNUMBER('Govt bond inputs'!HM68),'Govt bond inputs'!HM68,"") ->  | HN12: =IF(ISNUMBER('Govt bond inputs'!HN68),'Govt bond inputs'!HN68,"") ->  | HO12: =IF(ISNUMBER('Govt bond inputs'!HO68),'Govt bond inputs'!HO68,"") ->  | HP12: =IF(ISNUMBER('Govt bond inputs'!HP68),'Govt bond inputs'!HP68,"") ->  | HQ12: =IF(ISNUMBER('Govt bond inputs'!HQ68),'Govt bond inputs'!HQ68,"") ->  | HR12: =IF(ISNUMBER('Govt bond inputs'!HR68),'Govt bond inputs'!HR68,"") ->  | HS12: =IF(ISNUMBER('Govt bond inputs'!HS68),'Govt bond inputs'!HS68,"") ->  | HT12: =IF(ISNUMBER('Govt bond inputs'!HT68),'Govt bond inputs'!HT68,"") ->  | HU12: =IF(ISNUMBER('Govt bond inputs'!HU68),'Govt bond inputs'!HU68,"") ->  | HV12: =IF(ISNUMBER('Govt bond inputs'!HV68),'Govt bond inputs'!HV68,"") ->  | HW12: =IF(ISNUMBER('Govt bond inputs'!HW68),'Govt bond inputs'!HW68,"") ->  | HX12: =IF(ISNUMBER('Govt bond inputs'!HX68),'Govt bond inputs'!HX68,"") ->  | HY12: =IF(ISNUMBER('Govt bond inputs'!HY68),'Govt bond inputs'!HY68,"") ->  | HZ12: =IF(ISNUMBER('Govt bond inputs'!HZ68),'Govt bond inputs'!HZ68,"") ->  | IA12: =IF(ISNUMBER('Govt bond inputs'!IA68),'Govt bond inputs'!IA68,"") ->  | IB12: =IF(ISNUMBER('Govt bond inputs'!IB68),'Govt bond inputs'!IB68,"") ->  | IC12: =IF(ISNUMBER('Govt bond inputs'!IC68),'Govt bond inputs'!IC68,"") ->  | ID12: =IF(ISNUMBER('Govt bond inputs'!ID68),'Govt bond inputs'!ID68,"") ->  | IE12: =IF(ISNUMBER('Govt bond inputs'!IE68),'Govt bond inputs'!IE68,"") ->  | IF12: =IF(ISNUMBER('Govt bond inputs'!IF68),'Govt bond inputs'!IF68,"") ->  | IG12: =IF(ISNUMBER('Govt bond inputs'!IG68),'Govt bond inputs'!IG68,"") ->  | IH12: =IF(ISNUMBER('Govt bond inputs'!IH68),'Govt bond inputs'!IH68,"") ->  | II12: =IF(ISNUMBER('Govt bond inputs'!II68),'Govt bond inputs'!II68,"") ->  | IJ12: =IF(ISNUMBER('Govt bond inputs'!IJ68),'Govt bond inputs'!IJ68,"") ->  | IK12: =IF(ISNUMBER('Govt bond inputs'!IK68),'Govt bond inputs'!IK68,"") ->  | IL12: =IF(ISNUMBER('Govt bond inputs'!IL68),'Govt bond inputs'!IL68,"") ->  | IM12: =IF(ISNUMBER('Govt bond inputs'!IM68),'Govt bond inputs'!IM68,"") ->  | IN12: =IF(ISNUMBER('Govt bond inputs'!IN68),'Govt bond inputs'!IN68,"") ->  | IO12: =IF(ISNUMBER('Govt bond inputs'!IO68),'Govt bond inputs'!IO68,"") ->  | IP12: =IF(ISNUMBER('Govt bond inputs'!IP68),'Govt bond inputs'!IP68,"") ->  | IQ12: =IF(ISNUMBER('Govt bond inputs'!IQ68),'Govt bond inputs'!IQ68,"") ->  | IR12: =IF(ISNUMBER('Govt bond inputs'!IR68),'Govt bond inputs'!IR68,"") ->  | IS12: =IF(ISNUMBER('Govt bond inputs'!IS68),'Govt bond inputs'!IS68,"") ->  | IT12: =IF(ISNUMBER('Govt bond inputs'!IT68),'Govt bond inputs'!IT68,"") ->  | IU12: =IF(ISNUMBER('Govt bond inputs'!IU68),'Govt bond inputs'!IU68,"") ->  | IV12: =IF(ISNUMBER('Govt bond inputs'!IV68),'Govt bond inputs'!IV68,"") ->  | IW12: =IF(ISNUMBER('Govt bond inputs'!IW68),'Govt bond inputs'!IW68,"") ->  | IX12: =IF(ISNUMBER('Govt bond inputs'!IX68),'Govt bond inputs'!IX68,"") ->  | IY12: =IF(ISNUMBER('Govt bond inputs'!IY68),'Govt bond inputs'!IY68,"") ->  | IZ12: =IF(ISNUMBER('Govt bond inputs'!IZ68),'Govt bond inputs'!IZ68,"") ->  | JA12: =IF(ISNUMBER('Govt bond inputs'!JA68),'Govt bond inputs'!JA68,"") ->  | JB12: =IF(ISNUMBER('Govt bond inputs'!JB68),'Govt bond inputs'!JB68,"") ->  | JC12: =IF(ISNUMBER('Govt bond inputs'!JC68),'Govt bond inputs'!JC68,"") ->  | JD12: =IF(ISNUMBER('Govt bond inputs'!JD68),'Govt bond inputs'!JD68,"") ->  | JE12: =IF(ISNUMBER('Govt bond inputs'!JE68),'Govt bond inputs'!JE68,"") ->  | JF12: =IF(ISNUMBER('Govt bond inputs'!JF68),'Govt bond inputs'!JF68,"") ->  | JG12: =IF(ISNUMBER('Govt bond inputs'!JG68),'Govt bond inputs'!JG68,"") ->  | JH12: =IF(ISNUMBER('Govt bond inputs'!JH68),'Govt bond inputs'!JH68,"") ->  | JI12: =IF(ISNUMBER('Govt bond inputs'!JI68),'Govt bond inputs'!JI68,"") ->  | JJ12: =IF(ISNUMBER('Govt bond inputs'!JJ68),'Govt bond inputs'!JJ68,"") ->  | JK12: =IF(ISNUMBER('Govt bond inputs'!JK68),'Govt bond inputs'!JK68,"") ->  | JL12: =IF(ISNUMBER('Govt bond inputs'!JL68),'Govt bond inputs'!JL68,"") ->  | JM12: =IF(ISNUMBER('Govt bond inputs'!JM68),'Govt bond inputs'!JM68,"") ->  | JN12: =IF(ISNUMBER('Govt bond inputs'!JN68),'Govt bond inputs'!JN68,"") ->  | JO12: =IF(ISNUMBER('Govt bond inputs'!JO68),'Govt bond inputs'!JO68,"") ->  | JP12: =IF(ISNUMBER('Govt bond inputs'!JP68),'Govt bond inputs'!JP68,"") ->  | JQ12: =IF(ISNUMBER('Govt bond inputs'!JQ68),'Govt bond inputs'!JQ68,"") -> 
B13: ='Govt bond inputs'!D69 -> 0 | C13: =IF('Govt bond inputs'!H69="NR", 'Govt bond inputs'!G69, 'Govt bond inputs'!H69) -> 0 | D13: ='Govt bond inputs'!L69 -> 0 | E13: ='Govt bond inputs'!O69 -> 0 | Q13: =IF(ISNUMBER('Govt bond inputs'!Q69),'Govt bond inputs'!Q69,"") ->  | R13: =IF(ISNUMBER('Govt bond inputs'!R69),'Govt bond inputs'!R69,"") ->  | S13: =IF(ISNUMBER('Govt bond inputs'!S69),'Govt bond inputs'!S69,"") ->  | T13: =IF(ISNUMBER('Govt bond inputs'!T69),'Govt bond inputs'!T69,"") ->  | U13: =IF(ISNUMBER('Govt bond inputs'!U69),'Govt bond inputs'!U69,"") ->  | V13: =IF(ISNUMBER('Govt bond inputs'!V69),'Govt bond inputs'!V69,"") ->  | W13: =IF(ISNUMBER('Govt bond inputs'!W69),'Govt bond inputs'!W69,"") ->  | X13: =IF(ISNUMBER('Govt bond inputs'!X69),'Govt bond inputs'!X69,"") ->  | Y13: =IF(ISNUMBER('Govt bond inputs'!Y69),'Govt bond inputs'!Y69,"") ->  | Z13: =IF(ISNUMBER('Govt bond inputs'!Z69),'Govt bond inputs'!Z69,"") ->  | AA13: =IF(ISNUMBER('Govt bond inputs'!AA69),'Govt bond inputs'!AA69,"") ->  | AB13: =IF(ISNUMBER('Govt bond inputs'!AB69),'Govt bond inputs'!AB69,"") ->  | AC13: =IF(ISNUMBER('Govt bond inputs'!AC69),'Govt bond inputs'!AC69,"") ->  | AD13: =IF(ISNUMBER('Govt bond inputs'!AD69),'Govt bond inputs'!AD69,"") ->  | AE13: =IF(ISNUMBER('Govt bond inputs'!AE69),'Govt bond inputs'!AE69,"") ->  | AF13: =IF(ISNUMBER('Govt bond inputs'!AF69),'Govt bond inputs'!AF69,"") ->  | AG13: =IF(ISNUMBER('Govt bond inputs'!AG69),'Govt bond inputs'!AG69,"") ->  | AH13: =IF(ISNUMBER('Govt bond inputs'!AH69),'Govt bond inputs'!AH69,"") ->  | AI13: =IF(ISNUMBER('Govt bond inputs'!AI69),'Govt bond inputs'!AI69,"") ->  | AJ13: =IF(ISNUMBER('Govt bond inputs'!AJ69),'Govt bond inputs'!AJ69,"") ->  | AK13: =IF(ISNUMBER('Govt bond inputs'!AK69),'Govt bond inputs'!AK69,"") ->  | AL13: =IF(ISNUMBER('Govt bond inputs'!AL69),'Govt bond inputs'!AL69,"") ->  | AM13: =IF(ISNUMBER('Govt bond inputs'!AM69),'Govt bond inputs'!AM69,"") ->  | AN13: =IF(ISNUMBER('Govt bond inputs'!AN69),'Govt bond inputs'!AN69,"") ->  | AO13: =IF(ISNUMBER('Govt bond inputs'!AO69),'Govt bond inputs'!AO69,"") ->  | AP13: =IF(ISNUMBER('Govt bond inputs'!AP69),'Govt bond inputs'!AP69,"") ->  | AQ13: =IF(ISNUMBER('Govt bond inputs'!AQ69),'Govt bond inputs'!AQ69,"") ->  | AR13: =IF(ISNUMBER('Govt bond inputs'!AR69),'Govt bond inputs'!AR69,"") ->  | AS13: =IF(ISNUMBER('Govt bond inputs'!AS69),'Govt bond inputs'!AS69,"") ->  | AT13: =IF(ISNUMBER('Govt bond inputs'!AT69),'Govt bond inputs'!AT69,"") ->  | AU13: =IF(ISNUMBER('Govt bond inputs'!AU69),'Govt bond inputs'!AU69,"") ->  | AV13: =IF(ISNUMBER('Govt bond inputs'!AV69),'Govt bond inputs'!AV69,"") ->  | AW13: =IF(ISNUMBER('Govt bond inputs'!AW69),'Govt bond inputs'!AW69,"") ->  | AX13: =IF(ISNUMBER('Govt bond inputs'!AX69),'Govt bond inputs'!AX69,"") ->  | AY13: =IF(ISNUMBER('Govt bond inputs'!AY69),'Govt bond inputs'!AY69,"") ->  | AZ13: =IF(ISNUMBER('Govt bond inputs'!AZ69),'Govt bond inputs'!AZ69,"") ->  | BA13: =IF(ISNUMBER('Govt bond inputs'!BA69),'Govt bond inputs'!BA69,"") ->  | BB13: =IF(ISNUMBER('Govt bond inputs'!BB69),'Govt bond inputs'!BB69,"") ->  | BC13: =IF(ISNUMBER('Govt bond inputs'!BC69),'Govt bond inputs'!BC69,"") ->  | BD13: =IF(ISNUMBER('Govt bond inputs'!BD69),'Govt bond inputs'!BD69,"") ->  | BE13: =IF(ISNUMBER('Govt bond inputs'!BE69),'Govt bond inputs'!BE69,"") ->  | BF13: =IF(ISNUMBER('Govt bond inputs'!BF69),'Govt bond inputs'!BF69,"") ->  | BG13: =IF(ISNUMBER('Govt bond inputs'!BG69),'Govt bond inputs'!BG69,"") ->  | BH13: =IF(ISNUMBER('Govt bond inputs'!BH69),'Govt bond inputs'!BH69,"") ->  | BI13: =IF(ISNUMBER('Govt bond inputs'!BI69),'Govt bond inputs'!BI69,"") ->  | BJ13: =IF(ISNUMBER('Govt bond inputs'!BJ69),'Govt bond inputs'!BJ69,"") ->  | BK13: =IF(ISNUMBER('Govt bond inputs'!BK69),'Govt bond inputs'!BK69,"") ->  | BL13: =IF(ISNUMBER('Govt bond inputs'!BL69),'Govt bond inputs'!BL69,"") ->  | BM13: =IF(ISNUMBER('Govt bond inputs'!BM69),'Govt bond inputs'!BM69,"") ->  | BN13: =IF(ISNUMBER('Govt bond inputs'!BN69),'Govt bond inputs'!BN69,"") ->  | BO13: =IF(ISNUMBER('Govt bond inputs'!BO69),'Govt bond inputs'!BO69,"") ->  | BP13: =IF(ISNUMBER('Govt bond inputs'!BP69),'Govt bond inputs'!BP69,"") ->  | BQ13: =IF(ISNUMBER('Govt bond inputs'!BQ69),'Govt bond inputs'!BQ69,"") ->  | BR13: =IF(ISNUMBER('Govt bond inputs'!BR69),'Govt bond inputs'!BR69,"") ->  | BS13: =IF(ISNUMBER('Govt bond inputs'!BS69),'Govt bond inputs'!BS69,"") ->  | BT13: =IF(ISNUMBER('Govt bond inputs'!BT69),'Govt bond inputs'!BT69,"") ->  | BU13: =IF(ISNUMBER('Govt bond inputs'!BU69),'Govt bond inputs'!BU69,"") ->  | BV13: =IF(ISNUMBER('Govt bond inputs'!BV69),'Govt bond inputs'!BV69,"") ->  | BW13: =IF(ISNUMBER('Govt bond inputs'!BW69),'Govt bond inputs'!BW69,"") ->  | BX13: =IF(ISNUMBER('Govt bond inputs'!BX69),'Govt bond inputs'!BX69,"") ->  | BY13: =IF(ISNUMBER('Govt bond inputs'!BY69),'Govt bond inputs'!BY69,"") ->  | BZ13: =IF(ISNUMBER('Govt bond inputs'!BZ69),'Govt bond inputs'!BZ69,"") ->  | CA13: =IF(ISNUMBER('Govt bond inputs'!CA69),'Govt bond inputs'!CA69,"") ->  | CB13: =IF(ISNUMBER('Govt bond inputs'!CB69),'Govt bond inputs'!CB69,"") ->  | CC13: =IF(ISNUMBER('Govt bond inputs'!CC69),'Govt bond inputs'!CC69,"") ->  | CD13: =IF(ISNUMBER('Govt bond inputs'!CD69),'Govt bond inputs'!CD69,"") ->  | CE13: =IF(ISNUMBER('Govt bond inputs'!CE69),'Govt bond inputs'!CE69,"") ->  | CF13: =IF(ISNUMBER('Govt bond inputs'!CF69),'Govt bond inputs'!CF69,"") ->  | CG13: =IF(ISNUMBER('Govt bond inputs'!CG69),'Govt bond inputs'!CG69,"") ->  | CH13: =IF(ISNUMBER('Govt bond inputs'!CH69),'Govt bond inputs'!CH69,"") ->  | CI13: =IF(ISNUMBER('Govt bond inputs'!CI69),'Govt bond inputs'!CI69,"") ->  | CJ13: =IF(ISNUMBER('Govt bond inputs'!CJ69),'Govt bond inputs'!CJ69,"") ->  | CK13: =IF(ISNUMBER('Govt bond inputs'!CK69),'Govt bond inputs'!CK69,"") ->  | CL13: =IF(ISNUMBER('Govt bond inputs'!CL69),'Govt bond inputs'!CL69,"") ->  | CM13: =IF(ISNUMBER('Govt bond inputs'!CM69),'Govt bond inputs'!CM69,"") ->  | CN13: =IF(ISNUMBER('Govt bond inputs'!CN69),'Govt bond inputs'!CN69,"") ->  | CO13: =IF(ISNUMBER('Govt bond inputs'!CO69),'Govt bond inputs'!CO69,"") ->  | CP13: =IF(ISNUMBER('Govt bond inputs'!CP69),'Govt bond inputs'!CP69,"") ->  | CQ13: =IF(ISNUMBER('Govt bond inputs'!CQ69),'Govt bond inputs'!CQ69,"") ->  | CR13: =IF(ISNUMBER('Govt bond inputs'!CR69),'Govt bond inputs'!CR69,"") ->  | CS13: =IF(ISNUMBER('Govt bond inputs'!CS69),'Govt bond inputs'!CS69,"") ->  | CT13: =IF(ISNUMBER('Govt bond inputs'!CT69),'Govt bond inputs'!CT69,"") ->  | CU13: =IF(ISNUMBER('Govt bond inputs'!CU69),'Govt bond inputs'!CU69,"") ->  | CV13: =IF(ISNUMBER('Govt bond inputs'!CV69),'Govt bond inputs'!CV69,"") ->  | CW13: =IF(ISNUMBER('Govt bond inputs'!CW69),'Govt bond inputs'!CW69,"") ->  | CX13: =IF(ISNUMBER('Govt bond inputs'!CX69),'Govt bond inputs'!CX69,"") ->  | CY13: =IF(ISNUMBER('Govt bond inputs'!CY69),'Govt bond inputs'!CY69,"") ->  | CZ13: =IF(ISNUMBER('Govt bond inputs'!CZ69),'Govt bond inputs'!CZ69,"") ->  | DA13: =IF(ISNUMBER('Govt bond inputs'!DA69),'Govt bond inputs'!DA69,"") ->  | DB13: =IF(ISNUMBER('Govt bond inputs'!DB69),'Govt bond inputs'!DB69,"") ->  | DC13: =IF(ISNUMBER('Govt bond inputs'!DC69),'Govt bond inputs'!DC69,"") ->  | DD13: =IF(ISNUMBER('Govt bond inputs'!DD69),'Govt bond inputs'!DD69,"") ->  | DE13: =IF(ISNUMBER('Govt bond inputs'!DE69),'Govt bond inputs'!DE69,"") ->  | DF13: =IF(ISNUMBER('Govt bond inputs'!DF69),'Govt bond inputs'!DF69,"") ->  | DG13: =IF(ISNUMBER('Govt bond inputs'!DG69),'Govt bond inputs'!DG69,"") ->  | DH13: =IF(ISNUMBER('Govt bond inputs'!DH69),'Govt bond inputs'!DH69,"") ->  | DI13: =IF(ISNUMBER('Govt bond inputs'!DI69),'Govt bond inputs'!DI69,"") ->  | DJ13: =IF(ISNUMBER('Govt bond inputs'!DJ69),'Govt bond inputs'!DJ69,"") ->  | DK13: =IF(ISNUMBER('Govt bond inputs'!DK69),'Govt bond inputs'!DK69,"") ->  | DL13: =IF(ISNUMBER('Govt bond inputs'!DL69),'Govt bond inputs'!DL69,"") ->  | DM13: =IF(ISNUMBER('Govt bond inputs'!DM69),'Govt bond inputs'!DM69,"") ->  | DN13: =IF(ISNUMBER('Govt bond inputs'!DN69),'Govt bond inputs'!DN69,"") ->  | DO13: =IF(ISNUMBER('Govt bond inputs'!DO69),'Govt bond inputs'!DO69,"") ->  | DP13: =IF(ISNUMBER('Govt bond inputs'!DP69),'Govt bond inputs'!DP69,"") ->  | DQ13: =IF(ISNUMBER('Govt bond inputs'!DQ69),'Govt bond inputs'!DQ69,"") ->  | DR13: =IF(ISNUMBER('Govt bond inputs'!DR69),'Govt bond inputs'!DR69,"") ->  | DS13: =IF(ISNUMBER('Govt bond inputs'!DS69),'Govt bond inputs'!DS69,"") ->  | DT13: =IF(ISNUMBER('Govt bond inputs'!DT69),'Govt bond inputs'!DT69,"") ->  | DU13: =IF(ISNUMBER('Govt bond inputs'!DU69),'Govt bond inputs'!DU69,"") ->  | DV13: =IF(ISNUMBER('Govt bond inputs'!DV69),'Govt bond inputs'!DV69,"") ->  | DW13: =IF(ISNUMBER('Govt bond inputs'!DW69),'Govt bond inputs'!DW69,"") ->  | DX13: =IF(ISNUMBER('Govt bond inputs'!DX69),'Govt bond inputs'!DX69,"") ->  | DY13: =IF(ISNUMBER('Govt bond inputs'!DY69),'Govt bond inputs'!DY69,"") ->  | DZ13: =IF(ISNUMBER('Govt bond inputs'!DZ69),'Govt bond inputs'!DZ69,"") ->  | EA13: =IF(ISNUMBER('Govt bond inputs'!EA69),'Govt bond inputs'!EA69,"") ->  | EB13: =IF(ISNUMBER('Govt bond inputs'!EB69),'Govt bond inputs'!EB69,"") ->  | EC13: =IF(ISNUMBER('Govt bond inputs'!EC69),'Govt bond inputs'!EC69,"") ->  | ED13: =IF(ISNUMBER('Govt bond inputs'!ED69),'Govt bond inputs'!ED69,"") ->  | EE13: =IF(ISNUMBER('Govt bond inputs'!EE69),'Govt bond inputs'!EE69,"") ->  | EF13: =IF(ISNUMBER('Govt bond inputs'!EF69),'Govt bond inputs'!EF69,"") ->  | EG13: =IF(ISNUMBER('Govt bond inputs'!EG69),'Govt bond inputs'!EG69,"") ->  | EH13: =IF(ISNUMBER('Govt bond inputs'!EH69),'Govt bond inputs'!EH69,"") ->  | EI13: =IF(ISNUMBER('Govt bond inputs'!EI69),'Govt bond inputs'!EI69,"") ->  | EJ13: =IF(ISNUMBER('Govt bond inputs'!EJ69),'Govt bond inputs'!EJ69,"") ->  | EK13: =IF(ISNUMBER('Govt bond inputs'!EK69),'Govt bond inputs'!EK69,"") ->  | EL13: =IF(ISNUMBER('Govt bond inputs'!EL69),'Govt bond inputs'!EL69,"") ->  | EM13: =IF(ISNUMBER('Govt bond inputs'!EM69),'Govt bond inputs'!EM69,"") ->  | EN13: =IF(ISNUMBER('Govt bond inputs'!EN69),'Govt bond inputs'!EN69,"") ->  | EO13: =IF(ISNUMBER('Govt bond inputs'!EO69),'Govt bond inputs'!EO69,"") ->  | EP13: =IF(ISNUMBER('Govt bond inputs'!EP69),'Govt bond inputs'!EP69,"") ->  | EQ13: =IF(ISNUMBER('Govt bond inputs'!EQ69),'Govt bond inputs'!EQ69,"") ->  | ER13: =IF(ISNUMBER('Govt bond inputs'!ER69),'Govt bond inputs'!ER69,"") ->  | ES13: =IF(ISNUMBER('Govt bond inputs'!ES69),'Govt bond inputs'!ES69,"") ->  | ET13: =IF(ISNUMBER('Govt bond inputs'!ET69),'Govt bond inputs'!ET69,"") ->  | EU13: =IF(ISNUMBER('Govt bond inputs'!EU69),'Govt bond inputs'!EU69,"") ->  | EV13: =IF(ISNUMBER('Govt bond inputs'!EV69),'Govt bond inputs'!EV69,"") ->  | EW13: =IF(ISNUMBER('Govt bond inputs'!EW69),'Govt bond inputs'!EW69,"") ->  | EX13: =IF(ISNUMBER('Govt bond inputs'!EX69),'Govt bond inputs'!EX69,"") ->  | EY13: =IF(ISNUMBER('Govt bond inputs'!EY69),'Govt bond inputs'!EY69,"") ->  | EZ13: =IF(ISNUMBER('Govt bond inputs'!EZ69),'Govt bond inputs'!EZ69,"") ->  | FA13: =IF(ISNUMBER('Govt bond inputs'!FA69),'Govt bond inputs'!FA69,"") ->  | FB13: =IF(ISNUMBER('Govt bond inputs'!FB69),'Govt bond inputs'!FB69,"") ->  | FC13: =IF(ISNUMBER('Govt bond inputs'!FC69),'Govt bond inputs'!FC69,"") ->  | FD13: =IF(ISNUMBER('Govt bond inputs'!FD69),'Govt bond inputs'!FD69,"") ->  | FE13: =IF(ISNUMBER('Govt bond inputs'!FE69),'Govt bond inputs'!FE69,"") ->  | FF13: =IF(ISNUMBER('Govt bond inputs'!FF69),'Govt bond inputs'!FF69,"") ->  | FG13: =IF(ISNUMBER('Govt bond inputs'!FG69),'Govt bond inputs'!FG69,"") ->  | FH13: =IF(ISNUMBER('Govt bond inputs'!FH69),'Govt bond inputs'!FH69,"") ->  | FI13: =IF(ISNUMBER('Govt bond inputs'!FI69),'Govt bond inputs'!FI69,"") ->  | FJ13: =IF(ISNUMBER('Govt bond inputs'!FJ69),'Govt bond inputs'!FJ69,"") ->  | FK13: =IF(ISNUMBER('Govt bond inputs'!FK69),'Govt bond inputs'!FK69,"") ->  | FL13: =IF(ISNUMBER('Govt bond inputs'!FL69),'Govt bond inputs'!FL69,"") ->  | FM13: =IF(ISNUMBER('Govt bond inputs'!FM69),'Govt bond inputs'!FM69,"") ->  | FN13: =IF(ISNUMBER('Govt bond inputs'!FN69),'Govt bond inputs'!FN69,"") ->  | FO13: =IF(ISNUMBER('Govt bond inputs'!FO69),'Govt bond inputs'!FO69,"") ->  | FP13: =IF(ISNUMBER('Govt bond inputs'!FP69),'Govt bond inputs'!FP69,"") ->  | FQ13: =IF(ISNUMBER('Govt bond inputs'!FQ69),'Govt bond inputs'!FQ69,"") ->  | FR13: =IF(ISNUMBER('Govt bond inputs'!FR69),'Govt bond inputs'!FR69,"") ->  | FS13: =IF(ISNUMBER('Govt bond inputs'!FS69),'Govt bond inputs'!FS69,"") ->  | FT13: =IF(ISNUMBER('Govt bond inputs'!FT69),'Govt bond inputs'!FT69,"") ->  | FU13: =IF(ISNUMBER('Govt bond inputs'!FU69),'Govt bond inputs'!FU69,"") ->  | FV13: =IF(ISNUMBER('Govt bond inputs'!FV69),'Govt bond inputs'!FV69,"") ->  | FW13: =IF(ISNUMBER('Govt bond inputs'!FW69),'Govt bond inputs'!FW69,"") ->  | FX13: =IF(ISNUMBER('Govt bond inputs'!FX69),'Govt bond inputs'!FX69,"") ->  | FY13: =IF(ISNUMBER('Govt bond inputs'!FY69),'Govt bond inputs'!FY69,"") ->  | FZ13: =IF(ISNUMBER('Govt bond inputs'!FZ69),'Govt bond inputs'!FZ69,"") ->  | GA13: =IF(ISNUMBER('Govt bond inputs'!GA69),'Govt bond inputs'!GA69,"") ->  | GB13: =IF(ISNUMBER('Govt bond inputs'!GB69),'Govt bond inputs'!GB69,"") ->  | GC13: =IF(ISNUMBER('Govt bond inputs'!GC69),'Govt bond inputs'!GC69,"") ->  | GD13: =IF(ISNUMBER('Govt bond inputs'!GD69),'Govt bond inputs'!GD69,"") ->  | GE13: =IF(ISNUMBER('Govt bond inputs'!GE69),'Govt bond inputs'!GE69,"") ->  | GF13: =IF(ISNUMBER('Govt bond inputs'!GF69),'Govt bond inputs'!GF69,"") ->  | GG13: =IF(ISNUMBER('Govt bond inputs'!GG69),'Govt bond inputs'!GG69,"") ->  | GH13: =IF(ISNUMBER('Govt bond inputs'!GH69),'Govt bond inputs'!GH69,"") ->  | GI13: =IF(ISNUMBER('Govt bond inputs'!GI69),'Govt bond inputs'!GI69,"") ->  | GJ13: =IF(ISNUMBER('Govt bond inputs'!GJ69),'Govt bond inputs'!GJ69,"") ->  | GK13: =IF(ISNUMBER('Govt bond inputs'!GK69),'Govt bond inputs'!GK69,"") ->  | GL13: =IF(ISNUMBER('Govt bond inputs'!GL69),'Govt bond inputs'!GL69,"") ->  | GM13: =IF(ISNUMBER('Govt bond inputs'!GM69),'Govt bond inputs'!GM69,"") ->  | GN13: =IF(ISNUMBER('Govt bond inputs'!GN69),'Govt bond inputs'!GN69,"") ->  | GO13: =IF(ISNUMBER('Govt bond inputs'!GO69),'Govt bond inputs'!GO69,"") ->  | GP13: =IF(ISNUMBER('Govt bond inputs'!GP69),'Govt bond inputs'!GP69,"") ->  | GQ13: =IF(ISNUMBER('Govt bond inputs'!GQ69),'Govt bond inputs'!GQ69,"") ->  | GR13: =IF(ISNUMBER('Govt bond inputs'!GR69),'Govt bond inputs'!GR69,"") ->  | GS13: =IF(ISNUMBER('Govt bond inputs'!GS69),'Govt bond inputs'!GS69,"") ->  | GT13: =IF(ISNUMBER('Govt bond inputs'!GT69),'Govt bond inputs'!GT69,"") ->  | GU13: =IF(ISNUMBER('Govt bond inputs'!GU69),'Govt bond inputs'!GU69,"") ->  | GV13: =IF(ISNUMBER('Govt bond inputs'!GV69),'Govt bond inputs'!GV69,"") ->  | GW13: =IF(ISNUMBER('Govt bond inputs'!GW69),'Govt bond inputs'!GW69,"") ->  | GX13: =IF(ISNUMBER('Govt bond inputs'!GX69),'Govt bond inputs'!GX69,"") ->  | GY13: =IF(ISNUMBER('Govt bond inputs'!GY69),'Govt bond inputs'!GY69,"") ->  | GZ13: =IF(ISNUMBER('Govt bond inputs'!GZ69),'Govt bond inputs'!GZ69,"") ->  | HA13: =IF(ISNUMBER('Govt bond inputs'!HA69),'Govt bond inputs'!HA69,"") ->  | HB13: =IF(ISNUMBER('Govt bond inputs'!HB69),'Govt bond inputs'!HB69,"") ->  | HC13: =IF(ISNUMBER('Govt bond inputs'!HC69),'Govt bond inputs'!HC69,"") ->  | HD13: =IF(ISNUMBER('Govt bond inputs'!HD69),'Govt bond inputs'!HD69,"") ->  | HE13: =IF(ISNUMBER('Govt bond inputs'!HE69),'Govt bond inputs'!HE69,"") ->  | HF13: =IF(ISNUMBER('Govt bond inputs'!HF69),'Govt bond inputs'!HF69,"") ->  | HG13: =IF(ISNUMBER('Govt bond inputs'!HG69),'Govt bond inputs'!HG69,"") ->  | HH13: =IF(ISNUMBER('Govt bond inputs'!HH69),'Govt bond inputs'!HH69,"") ->  | HI13: =IF(ISNUMBER('Govt bond inputs'!HI69),'Govt bond inputs'!HI69,"") ->  | HJ13: =IF(ISNUMBER('Govt bond inputs'!HJ69),'Govt bond inputs'!HJ69,"") ->  | HK13: =IF(ISNUMBER('Govt bond inputs'!HK69),'Govt bond inputs'!HK69,"") ->  | HL13: =IF(ISNUMBER('Govt bond inputs'!HL69),'Govt bond inputs'!HL69,"") ->  | HM13: =IF(ISNUMBER('Govt bond inputs'!HM69),'Govt bond inputs'!HM69,"") ->  | HN13: =IF(ISNUMBER('Govt bond inputs'!HN69),'Govt bond inputs'!HN69,"") ->  | HO13: =IF(ISNUMBER('Govt bond inputs'!HO69),'Govt bond inputs'!HO69,"") ->  | HP13: =IF(ISNUMBER('Govt bond inputs'!HP69),'Govt bond inputs'!HP69,"") ->  | HQ13: =IF(ISNUMBER('Govt bond inputs'!HQ69),'Govt bond inputs'!HQ69,"") ->  | HR13: =IF(ISNUMBER('Govt bond inputs'!HR69),'Govt bond inputs'!HR69,"") ->  | HS13: =IF(ISNUMBER('Govt bond inputs'!HS69),'Govt bond inputs'!HS69,"") ->  | HT13: =IF(ISNUMBER('Govt bond inputs'!HT69),'Govt bond inputs'!HT69,"") ->  | HU13: =IF(ISNUMBER('Govt bond inputs'!HU69),'Govt bond inputs'!HU69,"") ->  | HV13: =IF(ISNUMBER('Govt bond inputs'!HV69),'Govt bond inputs'!HV69,"") ->  | HW13: =IF(ISNUMBER('Govt bond inputs'!HW69),'Govt bond inputs'!HW69,"") ->  | HX13: =IF(ISNUMBER('Govt bond inputs'!HX69),'Govt bond inputs'!HX69,"") ->  | HY13: =IF(ISNUMBER('Govt bond inputs'!HY69),'Govt bond inputs'!HY69,"") ->  | HZ13: =IF(ISNUMBER('Govt bond inputs'!HZ69),'Govt bond inputs'!HZ69,"") ->  | IA13: =IF(ISNUMBER('Govt bond inputs'!IA69),'Govt bond inputs'!IA69,"") ->  | IB13: =IF(ISNUMBER('Govt bond inputs'!IB69),'Govt bond inputs'!IB69,"") ->  | IC13: =IF(ISNUMBER('Govt bond inputs'!IC69),'Govt bond inputs'!IC69,"") ->  | ID13: =IF(ISNUMBER('Govt bond inputs'!ID69),'Govt bond inputs'!ID69,"") ->  | IE13: =IF(ISNUMBER('Govt bond inputs'!IE69),'Govt bond inputs'!IE69,"") ->  | IF13: =IF(ISNUMBER('Govt bond inputs'!IF69),'Govt bond inputs'!IF69,"") ->  | IG13: =IF(ISNUMBER('Govt bond inputs'!IG69),'Govt bond inputs'!IG69,"") ->  | IH13: =IF(ISNUMBER('Govt bond inputs'!IH69),'Govt bond inputs'!IH69,"") ->  | II13: =IF(ISNUMBER('Govt bond inputs'!II69),'Govt bond inputs'!II69,"") ->  | IJ13: =IF(ISNUMBER('Govt bond inputs'!IJ69),'Govt bond inputs'!IJ69,"") ->  | IK13: =IF(ISNUMBER('Govt bond inputs'!IK69),'Govt bond inputs'!IK69,"") ->  | IL13: =IF(ISNUMBER('Govt bond inputs'!IL69),'Govt bond inputs'!IL69,"") ->  | IM13: =IF(ISNUMBER('Govt bond inputs'!IM69),'Govt bond inputs'!IM69,"") ->  | IN13: =IF(ISNUMBER('Govt bond inputs'!IN69),'Govt bond inputs'!IN69,"") ->  | IO13: =IF(ISNUMBER('Govt bond inputs'!IO69),'Govt bond inputs'!IO69,"") ->  | IP13: =IF(ISNUMBER('Govt bond inputs'!IP69),'Govt bond inputs'!IP69,"") ->  | IQ13: =IF(ISNUMBER('Govt bond inputs'!IQ69),'Govt bond inputs'!IQ69,"") ->  | IR13: =IF(ISNUMBER('Govt bond inputs'!IR69),'Govt bond inputs'!IR69,"") ->  | IS13: =IF(ISNUMBER('Govt bond inputs'!IS69),'Govt bond inputs'!IS69,"") ->  | IT13: =IF(ISNUMBER('Govt bond inputs'!IT69),'Govt bond inputs'!IT69,"") ->  | IU13: =IF(ISNUMBER('Govt bond inputs'!IU69),'Govt bond inputs'!IU69,"") ->  | IV13: =IF(ISNUMBER('Govt bond inputs'!IV69),'Govt bond inputs'!IV69,"") ->  | IW13: =IF(ISNUMBER('Govt bond inputs'!IW69),'Govt bond inputs'!IW69,"") ->  | IX13: =IF(ISNUMBER('Govt bond inputs'!IX69),'Govt bond inputs'!IX69,"") ->  | IY13: =IF(ISNUMBER('Govt bond inputs'!IY69),'Govt bond inputs'!IY69,"") ->  | IZ13: =IF(ISNUMBER('Govt bond inputs'!IZ69),'Govt bond inputs'!IZ69,"") ->  | JA13: =IF(ISNUMBER('Govt bond inputs'!JA69),'Govt bond inputs'!JA69,"") ->  | JB13: =IF(ISNUMBER('Govt bond inputs'!JB69),'Govt bond inputs'!JB69,"") ->  | JC13: =IF(ISNUMBER('Govt bond inputs'!JC69),'Govt bond inputs'!JC69,"") ->  | JD13: =IF(ISNUMBER('Govt bond inputs'!JD69),'Govt bond inputs'!JD69,"") ->  | JE13: =IF(ISNUMBER('Govt bond inputs'!JE69),'Govt bond inputs'!JE69,"") ->  | JF13: =IF(ISNUMBER('Govt bond inputs'!JF69),'Govt bond inputs'!JF69,"") ->  | JG13: =IF(ISNUMBER('Govt bond inputs'!JG69),'Govt bond inputs'!JG69,"") ->  | JH13: =IF(ISNUMBER('Govt bond inputs'!JH69),'Govt bond inputs'!JH69,"") ->  | JI13: =IF(ISNUMBER('Govt bond inputs'!JI69),'Govt bond inputs'!JI69,"") ->  | JJ13: =IF(ISNUMBER('Govt bond inputs'!JJ69),'Govt bond inputs'!JJ69,"") ->  | JK13: =IF(ISNUMBER('Govt bond inputs'!JK69),'Govt bond inputs'!JK69,"") ->  | JL13: =IF(ISNUMBER('Govt bond inputs'!JL69),'Govt bond inputs'!JL69,"") ->  | JM13: =IF(ISNUMBER('Govt bond inputs'!JM69),'Govt bond inputs'!JM69,"") ->  | JN13: =IF(ISNUMBER('Govt bond inputs'!JN69),'Govt bond inputs'!JN69,"") ->  | JO13: =IF(ISNUMBER('Govt bond inputs'!JO69),'Govt bond inputs'!JO69,"") ->  | JP13: =IF(ISNUMBER('Govt bond inputs'!JP69),'Govt bond inputs'!JP69,"") ->  | JQ13: =IF(ISNUMBER('Govt bond inputs'!JQ69),'Govt bond inputs'!JQ69,"") -> 
B14: ='Govt bond inputs'!D70 -> 0 | C14: =IF('Govt bond inputs'!H70="NR", 'Govt bond inputs'!G70, 'Govt bond inputs'!H70) -> 0 | D14: ='Govt bond inputs'!L70 -> 0 | E14: ='Govt bond inputs'!O70 -> 0 | Q14: =IF(ISNUMBER('Govt bond inputs'!Q70),'Govt bond inputs'!Q70,"") ->  | R14: =IF(ISNUMBER('Govt bond inputs'!R70),'Govt bond inputs'!R70,"") ->  | S14: =IF(ISNUMBER('Govt bond inputs'!S70),'Govt bond inputs'!S70,"") ->  | T14: =IF(ISNUMBER('Govt bond inputs'!T70),'Govt bond inputs'!T70,"") ->  | U14: =IF(ISNUMBER('Govt bond inputs'!U70),'Govt bond inputs'!U70,"") ->  | V14: =IF(ISNUMBER('Govt bond inputs'!V70),'Govt bond inputs'!V70,"") ->  | W14: =IF(ISNUMBER('Govt bond inputs'!W70),'Govt bond inputs'!W70,"") ->  | X14: =IF(ISNUMBER('Govt bond inputs'!X70),'Govt bond inputs'!X70,"") ->  | Y14: =IF(ISNUMBER('Govt bond inputs'!Y70),'Govt bond inputs'!Y70,"") ->  | Z14: =IF(ISNUMBER('Govt bond inputs'!Z70),'Govt bond inputs'!Z70,"") ->  | AA14: =IF(ISNUMBER('Govt bond inputs'!AA70),'Govt bond inputs'!AA70,"") ->  | AB14: =IF(ISNUMBER('Govt bond inputs'!AB70),'Govt bond inputs'!AB70,"") ->  | AC14: =IF(ISNUMBER('Govt bond inputs'!AC70),'Govt bond inputs'!AC70,"") ->  | AD14: =IF(ISNUMBER('Govt bond inputs'!AD70),'Govt bond inputs'!AD70,"") ->  | AE14: =IF(ISNUMBER('Govt bond inputs'!AE70),'Govt bond inputs'!AE70,"") ->  | AF14: =IF(ISNUMBER('Govt bond inputs'!AF70),'Govt bond inputs'!AF70,"") ->  | AG14: =IF(ISNUMBER('Govt bond inputs'!AG70),'Govt bond inputs'!AG70,"") ->  | AH14: =IF(ISNUMBER('Govt bond inputs'!AH70),'Govt bond inputs'!AH70,"") ->  | AI14: =IF(ISNUMBER('Govt bond inputs'!AI70),'Govt bond inputs'!AI70,"") ->  | AJ14: =IF(ISNUMBER('Govt bond inputs'!AJ70),'Govt bond inputs'!AJ70,"") ->  | AK14: =IF(ISNUMBER('Govt bond inputs'!AK70),'Govt bond inputs'!AK70,"") ->  | AL14: =IF(ISNUMBER('Govt bond inputs'!AL70),'Govt bond inputs'!AL70,"") ->  | AM14: =IF(ISNUMBER('Govt bond inputs'!AM70),'Govt bond inputs'!AM70,"") ->  | AN14: =IF(ISNUMBER('Govt bond inputs'!AN70),'Govt bond inputs'!AN70,"") ->  | AO14: =IF(ISNUMBER('Govt bond inputs'!AO70),'Govt bond inputs'!AO70,"") ->  | AP14: =IF(ISNUMBER('Govt bond inputs'!AP70),'Govt bond inputs'!AP70,"") ->  | AQ14: =IF(ISNUMBER('Govt bond inputs'!AQ70),'Govt bond inputs'!AQ70,"") ->  | AR14: =IF(ISNUMBER('Govt bond inputs'!AR70),'Govt bond inputs'!AR70,"") ->  | AS14: =IF(ISNUMBER('Govt bond inputs'!AS70),'Govt bond inputs'!AS70,"") ->  | AT14: =IF(ISNUMBER('Govt bond inputs'!AT70),'Govt bond inputs'!AT70,"") ->  | AU14: =IF(ISNUMBER('Govt bond inputs'!AU70),'Govt bond inputs'!AU70,"") ->  | AV14: =IF(ISNUMBER('Govt bond inputs'!AV70),'Govt bond inputs'!AV70,"") ->  | AW14: =IF(ISNUMBER('Govt bond inputs'!AW70),'Govt bond inputs'!AW70,"") ->  | AX14: =IF(ISNUMBER('Govt bond inputs'!AX70),'Govt bond inputs'!AX70,"") ->  | AY14: =IF(ISNUMBER('Govt bond inputs'!AY70),'Govt bond inputs'!AY70,"") ->  | AZ14: =IF(ISNUMBER('Govt bond inputs'!AZ70),'Govt bond inputs'!AZ70,"") ->  | BA14: =IF(ISNUMBER('Govt bond inputs'!BA70),'Govt bond inputs'!BA70,"") ->  | BB14: =IF(ISNUMBER('Govt bond inputs'!BB70),'Govt bond inputs'!BB70,"") ->  | BC14: =IF(ISNUMBER('Govt bond inputs'!BC70),'Govt bond inputs'!BC70,"") ->  | BD14: =IF(ISNUMBER('Govt bond inputs'!BD70),'Govt bond inputs'!BD70,"") ->  | BE14: =IF(ISNUMBER('Govt bond inputs'!BE70),'Govt bond inputs'!BE70,"") ->  | BF14: =IF(ISNUMBER('Govt bond inputs'!BF70),'Govt bond inputs'!BF70,"") ->  | BG14: =IF(ISNUMBER('Govt bond inputs'!BG70),'Govt bond inputs'!BG70,"") ->  | BH14: =IF(ISNUMBER('Govt bond inputs'!BH70),'Govt bond inputs'!BH70,"") ->  | BI14: =IF(ISNUMBER('Govt bond inputs'!BI70),'Govt bond inputs'!BI70,"") ->  | BJ14: =IF(ISNUMBER('Govt bond inputs'!BJ70),'Govt bond inputs'!BJ70,"") ->  | BK14: =IF(ISNUMBER('Govt bond inputs'!BK70),'Govt bond inputs'!BK70,"") ->  | BL14: =IF(ISNUMBER('Govt bond inputs'!BL70),'Govt bond inputs'!BL70,"") ->  | BM14: =IF(ISNUMBER('Govt bond inputs'!BM70),'Govt bond inputs'!BM70,"") ->  | BN14: =IF(ISNUMBER('Govt bond inputs'!BN70),'Govt bond inputs'!BN70,"") ->  | BO14: =IF(ISNUMBER('Govt bond inputs'!BO70),'Govt bond inputs'!BO70,"") ->  | BP14: =IF(ISNUMBER('Govt bond inputs'!BP70),'Govt bond inputs'!BP70,"") ->  | BQ14: =IF(ISNUMBER('Govt bond inputs'!BQ70),'Govt bond inputs'!BQ70,"") ->  | BR14: =IF(ISNUMBER('Govt bond inputs'!BR70),'Govt bond inputs'!BR70,"") ->  | BS14: =IF(ISNUMBER('Govt bond inputs'!BS70),'Govt bond inputs'!BS70,"") ->  | BT14: =IF(ISNUMBER('Govt bond inputs'!BT70),'Govt bond inputs'!BT70,"") ->  | BU14: =IF(ISNUMBER('Govt bond inputs'!BU70),'Govt bond inputs'!BU70,"") ->  | BV14: =IF(ISNUMBER('Govt bond inputs'!BV70),'Govt bond inputs'!BV70,"") ->  | BW14: =IF(ISNUMBER('Govt bond inputs'!BW70),'Govt bond inputs'!BW70,"") ->  | BX14: =IF(ISNUMBER('Govt bond inputs'!BX70),'Govt bond inputs'!BX70,"") ->  | BY14: =IF(ISNUMBER('Govt bond inputs'!BY70),'Govt bond inputs'!BY70,"") ->  | BZ14: =IF(ISNUMBER('Govt bond inputs'!BZ70),'Govt bond inputs'!BZ70,"") ->  | CA14: =IF(ISNUMBER('Govt bond inputs'!CA70),'Govt bond inputs'!CA70,"") ->  | CB14: =IF(ISNUMBER('Govt bond inputs'!CB70),'Govt bond inputs'!CB70,"") ->  | CC14: =IF(ISNUMBER('Govt bond inputs'!CC70),'Govt bond inputs'!CC70,"") ->  | CD14: =IF(ISNUMBER('Govt bond inputs'!CD70),'Govt bond inputs'!CD70,"") ->  | CE14: =IF(ISNUMBER('Govt bond inputs'!CE70),'Govt bond inputs'!CE70,"") ->  | CF14: =IF(ISNUMBER('Govt bond inputs'!CF70),'Govt bond inputs'!CF70,"") ->  | CG14: =IF(ISNUMBER('Govt bond inputs'!CG70),'Govt bond inputs'!CG70,"") ->  | CH14: =IF(ISNUMBER('Govt bond inputs'!CH70),'Govt bond inputs'!CH70,"") ->  | CI14: =IF(ISNUMBER('Govt bond inputs'!CI70),'Govt bond inputs'!CI70,"") ->  | CJ14: =IF(ISNUMBER('Govt bond inputs'!CJ70),'Govt bond inputs'!CJ70,"") ->  | CK14: =IF(ISNUMBER('Govt bond inputs'!CK70),'Govt bond inputs'!CK70,"") ->  | CL14: =IF(ISNUMBER('Govt bond inputs'!CL70),'Govt bond inputs'!CL70,"") ->  | CM14: =IF(ISNUMBER('Govt bond inputs'!CM70),'Govt bond inputs'!CM70,"") ->  | CN14: =IF(ISNUMBER('Govt bond inputs'!CN70),'Govt bond inputs'!CN70,"") ->  | CO14: =IF(ISNUMBER('Govt bond inputs'!CO70),'Govt bond inputs'!CO70,"") ->  | CP14: =IF(ISNUMBER('Govt bond inputs'!CP70),'Govt bond inputs'!CP70,"") ->  | CQ14: =IF(ISNUMBER('Govt bond inputs'!CQ70),'Govt bond inputs'!CQ70,"") ->  | CR14: =IF(ISNUMBER('Govt bond inputs'!CR70),'Govt bond inputs'!CR70,"") ->  | CS14: =IF(ISNUMBER('Govt bond inputs'!CS70),'Govt bond inputs'!CS70,"") ->  | CT14: =IF(ISNUMBER('Govt bond inputs'!CT70),'Govt bond inputs'!CT70,"") ->  | CU14: =IF(ISNUMBER('Govt bond inputs'!CU70),'Govt bond inputs'!CU70,"") ->  | CV14: =IF(ISNUMBER('Govt bond inputs'!CV70),'Govt bond inputs'!CV70,"") ->  | CW14: =IF(ISNUMBER('Govt bond inputs'!CW70),'Govt bond inputs'!CW70,"") ->  | CX14: =IF(ISNUMBER('Govt bond inputs'!CX70),'Govt bond inputs'!CX70,"") ->  | CY14: =IF(ISNUMBER('Govt bond inputs'!CY70),'Govt bond inputs'!CY70,"") ->  | CZ14: =IF(ISNUMBER('Govt bond inputs'!CZ70),'Govt bond inputs'!CZ70,"") ->  | DA14: =IF(ISNUMBER('Govt bond inputs'!DA70),'Govt bond inputs'!DA70,"") ->  | DB14: =IF(ISNUMBER('Govt bond inputs'!DB70),'Govt bond inputs'!DB70,"") ->  | DC14: =IF(ISNUMBER('Govt bond inputs'!DC70),'Govt bond inputs'!DC70,"") ->  | DD14: =IF(ISNUMBER('Govt bond inputs'!DD70),'Govt bond inputs'!DD70,"") ->  | DE14: =IF(ISNUMBER('Govt bond inputs'!DE70),'Govt bond inputs'!DE70,"") ->  | DF14: =IF(ISNUMBER('Govt bond inputs'!DF70),'Govt bond inputs'!DF70,"") ->  | DG14: =IF(ISNUMBER('Govt bond inputs'!DG70),'Govt bond inputs'!DG70,"") ->  | DH14: =IF(ISNUMBER('Govt bond inputs'!DH70),'Govt bond inputs'!DH70,"") ->  | DI14: =IF(ISNUMBER('Govt bond inputs'!DI70),'Govt bond inputs'!DI70,"") ->  | DJ14: =IF(ISNUMBER('Govt bond inputs'!DJ70),'Govt bond inputs'!DJ70,"") ->  | DK14: =IF(ISNUMBER('Govt bond inputs'!DK70),'Govt bond inputs'!DK70,"") ->  | DL14: =IF(ISNUMBER('Govt bond inputs'!DL70),'Govt bond inputs'!DL70,"") ->  | DM14: =IF(ISNUMBER('Govt bond inputs'!DM70),'Govt bond inputs'!DM70,"") ->  | DN14: =IF(ISNUMBER('Govt bond inputs'!DN70),'Govt bond inputs'!DN70,"") ->  | DO14: =IF(ISNUMBER('Govt bond inputs'!DO70),'Govt bond inputs'!DO70,"") ->  | DP14: =IF(ISNUMBER('Govt bond inputs'!DP70),'Govt bond inputs'!DP70,"") ->  | DQ14: =IF(ISNUMBER('Govt bond inputs'!DQ70),'Govt bond inputs'!DQ70,"") ->  | DR14: =IF(ISNUMBER('Govt bond inputs'!DR70),'Govt bond inputs'!DR70,"") ->  | DS14: =IF(ISNUMBER('Govt bond inputs'!DS70),'Govt bond inputs'!DS70,"") ->  | DT14: =IF(ISNUMBER('Govt bond inputs'!DT70),'Govt bond inputs'!DT70,"") ->  | DU14: =IF(ISNUMBER('Govt bond inputs'!DU70),'Govt bond inputs'!DU70,"") ->  | DV14: =IF(ISNUMBER('Govt bond inputs'!DV70),'Govt bond inputs'!DV70,"") ->  | DW14: =IF(ISNUMBER('Govt bond inputs'!DW70),'Govt bond inputs'!DW70,"") ->  | DX14: =IF(ISNUMBER('Govt bond inputs'!DX70),'Govt bond inputs'!DX70,"") ->  | DY14: =IF(ISNUMBER('Govt bond inputs'!DY70),'Govt bond inputs'!DY70,"") ->  | DZ14: =IF(ISNUMBER('Govt bond inputs'!DZ70),'Govt bond inputs'!DZ70,"") ->  | EA14: =IF(ISNUMBER('Govt bond inputs'!EA70),'Govt bond inputs'!EA70,"") ->  | EB14: =IF(ISNUMBER('Govt bond inputs'!EB70),'Govt bond inputs'!EB70,"") ->  | EC14: =IF(ISNUMBER('Govt bond inputs'!EC70),'Govt bond inputs'!EC70,"") ->  | ED14: =IF(ISNUMBER('Govt bond inputs'!ED70),'Govt bond inputs'!ED70,"") ->  | EE14: =IF(ISNUMBER('Govt bond inputs'!EE70),'Govt bond inputs'!EE70,"") ->  | EF14: =IF(ISNUMBER('Govt bond inputs'!EF70),'Govt bond inputs'!EF70,"") ->  | EG14: =IF(ISNUMBER('Govt bond inputs'!EG70),'Govt bond inputs'!EG70,"") ->  | EH14: =IF(ISNUMBER('Govt bond inputs'!EH70),'Govt bond inputs'!EH70,"") ->  | EI14: =IF(ISNUMBER('Govt bond inputs'!EI70),'Govt bond inputs'!EI70,"") ->  | EJ14: =IF(ISNUMBER('Govt bond inputs'!EJ70),'Govt bond inputs'!EJ70,"") ->  | EK14: =IF(ISNUMBER('Govt bond inputs'!EK70),'Govt bond inputs'!EK70,"") ->  | EL14: =IF(ISNUMBER('Govt bond inputs'!EL70),'Govt bond inputs'!EL70,"") ->  | EM14: =IF(ISNUMBER('Govt bond inputs'!EM70),'Govt bond inputs'!EM70,"") ->  | EN14: =IF(ISNUMBER('Govt bond inputs'!EN70),'Govt bond inputs'!EN70,"") ->  | EO14: =IF(ISNUMBER('Govt bond inputs'!EO70),'Govt bond inputs'!EO70,"") ->  | EP14: =IF(ISNUMBER('Govt bond inputs'!EP70),'Govt bond inputs'!EP70,"") ->  | EQ14: =IF(ISNUMBER('Govt bond inputs'!EQ70),'Govt bond inputs'!EQ70,"") ->  | ER14: =IF(ISNUMBER('Govt bond inputs'!ER70),'Govt bond inputs'!ER70,"") ->  | ES14: =IF(ISNUMBER('Govt bond inputs'!ES70),'Govt bond inputs'!ES70,"") ->  | ET14: =IF(ISNUMBER('Govt bond inputs'!ET70),'Govt bond inputs'!ET70,"") ->  | EU14: =IF(ISNUMBER('Govt bond inputs'!EU70),'Govt bond inputs'!EU70,"") ->  | EV14: =IF(ISNUMBER('Govt bond inputs'!EV70),'Govt bond inputs'!EV70,"") ->  | EW14: =IF(ISNUMBER('Govt bond inputs'!EW70),'Govt bond inputs'!EW70,"") ->  | EX14: =IF(ISNUMBER('Govt bond inputs'!EX70),'Govt bond inputs'!EX70,"") ->  | EY14: =IF(ISNUMBER('Govt bond inputs'!EY70),'Govt bond inputs'!EY70,"") ->  | EZ14: =IF(ISNUMBER('Govt bond inputs'!EZ70),'Govt bond inputs'!EZ70,"") ->  | FA14: =IF(ISNUMBER('Govt bond inputs'!FA70),'Govt bond inputs'!FA70,"") ->  | FB14: =IF(ISNUMBER('Govt bond inputs'!FB70),'Govt bond inputs'!FB70,"") ->  | FC14: =IF(ISNUMBER('Govt bond inputs'!FC70),'Govt bond inputs'!FC70,"") ->  | FD14: =IF(ISNUMBER('Govt bond inputs'!FD70),'Govt bond inputs'!FD70,"") ->  | FE14: =IF(ISNUMBER('Govt bond inputs'!FE70),'Govt bond inputs'!FE70,"") ->  | FF14: =IF(ISNUMBER('Govt bond inputs'!FF70),'Govt bond inputs'!FF70,"") ->  | FG14: =IF(ISNUMBER('Govt bond inputs'!FG70),'Govt bond inputs'!FG70,"") ->  | FH14: =IF(ISNUMBER('Govt bond inputs'!FH70),'Govt bond inputs'!FH70,"") ->  | FI14: =IF(ISNUMBER('Govt bond inputs'!FI70),'Govt bond inputs'!FI70,"") ->  | FJ14: =IF(ISNUMBER('Govt bond inputs'!FJ70),'Govt bond inputs'!FJ70,"") ->  | FK14: =IF(ISNUMBER('Govt bond inputs'!FK70),'Govt bond inputs'!FK70,"") ->  | FL14: =IF(ISNUMBER('Govt bond inputs'!FL70),'Govt bond inputs'!FL70,"") ->  | FM14: =IF(ISNUMBER('Govt bond inputs'!FM70),'Govt bond inputs'!FM70,"") ->  | FN14: =IF(ISNUMBER('Govt bond inputs'!FN70),'Govt bond inputs'!FN70,"") ->  | FO14: =IF(ISNUMBER('Govt bond inputs'!FO70),'Govt bond inputs'!FO70,"") ->  | FP14: =IF(ISNUMBER('Govt bond inputs'!FP70),'Govt bond inputs'!FP70,"") ->  | FQ14: =IF(ISNUMBER('Govt bond inputs'!FQ70),'Govt bond inputs'!FQ70,"") ->  | FR14: =IF(ISNUMBER('Govt bond inputs'!FR70),'Govt bond inputs'!FR70,"") ->  | FS14: =IF(ISNUMBER('Govt bond inputs'!FS70),'Govt bond inputs'!FS70,"") ->  | FT14: =IF(ISNUMBER('Govt bond inputs'!FT70),'Govt bond inputs'!FT70,"") ->  | FU14: =IF(ISNUMBER('Govt bond inputs'!FU70),'Govt bond inputs'!FU70,"") ->  | FV14: =IF(ISNUMBER('Govt bond inputs'!FV70),'Govt bond inputs'!FV70,"") ->  | FW14: =IF(ISNUMBER('Govt bond inputs'!FW70),'Govt bond inputs'!FW70,"") ->  | FX14: =IF(ISNUMBER('Govt bond inputs'!FX70),'Govt bond inputs'!FX70,"") ->  | FY14: =IF(ISNUMBER('Govt bond inputs'!FY70),'Govt bond inputs'!FY70,"") ->  | FZ14: =IF(ISNUMBER('Govt bond inputs'!FZ70),'Govt bond inputs'!FZ70,"") ->  | GA14: =IF(ISNUMBER('Govt bond inputs'!GA70),'Govt bond inputs'!GA70,"") ->  | GB14: =IF(ISNUMBER('Govt bond inputs'!GB70),'Govt bond inputs'!GB70,"") ->  | GC14: =IF(ISNUMBER('Govt bond inputs'!GC70),'Govt bond inputs'!GC70,"") ->  | GD14: =IF(ISNUMBER('Govt bond inputs'!GD70),'Govt bond inputs'!GD70,"") ->  | GE14: =IF(ISNUMBER('Govt bond inputs'!GE70),'Govt bond inputs'!GE70,"") ->  | GF14: =IF(ISNUMBER('Govt bond inputs'!GF70),'Govt bond inputs'!GF70,"") ->  | GG14: =IF(ISNUMBER('Govt bond inputs'!GG70),'Govt bond inputs'!GG70,"") ->  | GH14: =IF(ISNUMBER('Govt bond inputs'!GH70),'Govt bond inputs'!GH70,"") ->  | GI14: =IF(ISNUMBER('Govt bond inputs'!GI70),'Govt bond inputs'!GI70,"") ->  | GJ14: =IF(ISNUMBER('Govt bond inputs'!GJ70),'Govt bond inputs'!GJ70,"") ->  | GK14: =IF(ISNUMBER('Govt bond inputs'!GK70),'Govt bond inputs'!GK70,"") ->  | GL14: =IF(ISNUMBER('Govt bond inputs'!GL70),'Govt bond inputs'!GL70,"") ->  | GM14: =IF(ISNUMBER('Govt bond inputs'!GM70),'Govt bond inputs'!GM70,"") ->  | GN14: =IF(ISNUMBER('Govt bond inputs'!GN70),'Govt bond inputs'!GN70,"") ->  | GO14: =IF(ISNUMBER('Govt bond inputs'!GO70),'Govt bond inputs'!GO70,"") ->  | GP14: =IF(ISNUMBER('Govt bond inputs'!GP70),'Govt bond inputs'!GP70,"") ->  | GQ14: =IF(ISNUMBER('Govt bond inputs'!GQ70),'Govt bond inputs'!GQ70,"") ->  | GR14: =IF(ISNUMBER('Govt bond inputs'!GR70),'Govt bond inputs'!GR70,"") ->  | GS14: =IF(ISNUMBER('Govt bond inputs'!GS70),'Govt bond inputs'!GS70,"") ->  | GT14: =IF(ISNUMBER('Govt bond inputs'!GT70),'Govt bond inputs'!GT70,"") ->  | GU14: =IF(ISNUMBER('Govt bond inputs'!GU70),'Govt bond inputs'!GU70,"") ->  | GV14: =IF(ISNUMBER('Govt bond inputs'!GV70),'Govt bond inputs'!GV70,"") ->  | GW14: =IF(ISNUMBER('Govt bond inputs'!GW70),'Govt bond inputs'!GW70,"") ->  | GX14: =IF(ISNUMBER('Govt bond inputs'!GX70),'Govt bond inputs'!GX70,"") ->  | GY14: =IF(ISNUMBER('Govt bond inputs'!GY70),'Govt bond inputs'!GY70,"") ->  | GZ14: =IF(ISNUMBER('Govt bond inputs'!GZ70),'Govt bond inputs'!GZ70,"") ->  | HA14: =IF(ISNUMBER('Govt bond inputs'!HA70),'Govt bond inputs'!HA70,"") ->  | HB14: =IF(ISNUMBER('Govt bond inputs'!HB70),'Govt bond inputs'!HB70,"") ->  | HC14: =IF(ISNUMBER('Govt bond inputs'!HC70),'Govt bond inputs'!HC70,"") ->  | HD14: =IF(ISNUMBER('Govt bond inputs'!HD70),'Govt bond inputs'!HD70,"") ->  | HE14: =IF(ISNUMBER('Govt bond inputs'!HE70),'Govt bond inputs'!HE70,"") ->  | HF14: =IF(ISNUMBER('Govt bond inputs'!HF70),'Govt bond inputs'!HF70,"") ->  | HG14: =IF(ISNUMBER('Govt bond inputs'!HG70),'Govt bond inputs'!HG70,"") ->  | HH14: =IF(ISNUMBER('Govt bond inputs'!HH70),'Govt bond inputs'!HH70,"") ->  | HI14: =IF(ISNUMBER('Govt bond inputs'!HI70),'Govt bond inputs'!HI70,"") ->  | HJ14: =IF(ISNUMBER('Govt bond inputs'!HJ70),'Govt bond inputs'!HJ70,"") ->  | HK14: =IF(ISNUMBER('Govt bond inputs'!HK70),'Govt bond inputs'!HK70,"") ->  | HL14: =IF(ISNUMBER('Govt bond inputs'!HL70),'Govt bond inputs'!HL70,"") ->  | HM14: =IF(ISNUMBER('Govt bond inputs'!HM70),'Govt bond inputs'!HM70,"") ->  | HN14: =IF(ISNUMBER('Govt bond inputs'!HN70),'Govt bond inputs'!HN70,"") ->  | HO14: =IF(ISNUMBER('Govt bond inputs'!HO70),'Govt bond inputs'!HO70,"") ->  | HP14: =IF(ISNUMBER('Govt bond inputs'!HP70),'Govt bond inputs'!HP70,"") ->  | HQ14: =IF(ISNUMBER('Govt bond inputs'!HQ70),'Govt bond inputs'!HQ70,"") ->  | HR14: =IF(ISNUMBER('Govt bond inputs'!HR70),'Govt bond inputs'!HR70,"") ->  | HS14: =IF(ISNUMBER('Govt bond inputs'!HS70),'Govt bond inputs'!HS70,"") ->  | HT14: =IF(ISNUMBER('Govt bond inputs'!HT70),'Govt bond inputs'!HT70,"") ->  | HU14: =IF(ISNUMBER('Govt bond inputs'!HU70),'Govt bond inputs'!HU70,"") ->  | HV14: =IF(ISNUMBER('Govt bond inputs'!HV70),'Govt bond inputs'!HV70,"") ->  | HW14: =IF(ISNUMBER('Govt bond inputs'!HW70),'Govt bond inputs'!HW70,"") ->  | HX14: =IF(ISNUMBER('Govt bond inputs'!HX70),'Govt bond inputs'!HX70,"") ->  | HY14: =IF(ISNUMBER('Govt bond inputs'!HY70),'Govt bond inputs'!HY70,"") ->  | HZ14: =IF(ISNUMBER('Govt bond inputs'!HZ70),'Govt bond inputs'!HZ70,"") ->  | IA14: =IF(ISNUMBER('Govt bond inputs'!IA70),'Govt bond inputs'!IA70,"") ->  | IB14: =IF(ISNUMBER('Govt bond inputs'!IB70),'Govt bond inputs'!IB70,"") ->  | IC14: =IF(ISNUMBER('Govt bond inputs'!IC70),'Govt bond inputs'!IC70,"") ->  | ID14: =IF(ISNUMBER('Govt bond inputs'!ID70),'Govt bond inputs'!ID70,"") ->  | IE14: =IF(ISNUMBER('Govt bond inputs'!IE70),'Govt bond inputs'!IE70,"") ->  | IF14: =IF(ISNUMBER('Govt bond inputs'!IF70),'Govt bond inputs'!IF70,"") ->  | IG14: =IF(ISNUMBER('Govt bond inputs'!IG70),'Govt bond inputs'!IG70,"") ->  | IH14: =IF(ISNUMBER('Govt bond inputs'!IH70),'Govt bond inputs'!IH70,"") ->  | II14: =IF(ISNUMBER('Govt bond inputs'!II70),'Govt bond inputs'!II70,"") ->  | IJ14: =IF(ISNUMBER('Govt bond inputs'!IJ70),'Govt bond inputs'!IJ70,"") ->  | IK14: =IF(ISNUMBER('Govt bond inputs'!IK70),'Govt bond inputs'!IK70,"") ->  | IL14: =IF(ISNUMBER('Govt bond inputs'!IL70),'Govt bond inputs'!IL70,"") ->  | IM14: =IF(ISNUMBER('Govt bond inputs'!IM70),'Govt bond inputs'!IM70,"") ->  | IN14: =IF(ISNUMBER('Govt bond inputs'!IN70),'Govt bond inputs'!IN70,"") ->  | IO14: =IF(ISNUMBER('Govt bond inputs'!IO70),'Govt bond inputs'!IO70,"") ->  | IP14: =IF(ISNUMBER('Govt bond inputs'!IP70),'Govt bond inputs'!IP70,"") ->  | IQ14: =IF(ISNUMBER('Govt bond inputs'!IQ70),'Govt bond inputs'!IQ70,"") ->  | IR14: =IF(ISNUMBER('Govt bond inputs'!IR70),'Govt bond inputs'!IR70,"") ->  | IS14: =IF(ISNUMBER('Govt bond inputs'!IS70),'Govt bond inputs'!IS70,"") ->  | IT14: =IF(ISNUMBER('Govt bond inputs'!IT70),'Govt bond inputs'!IT70,"") ->  | IU14: =IF(ISNUMBER('Govt bond inputs'!IU70),'Govt bond inputs'!IU70,"") ->  | IV14: =IF(ISNUMBER('Govt bond inputs'!IV70),'Govt bond inputs'!IV70,"") ->  | IW14: =IF(ISNUMBER('Govt bond inputs'!IW70),'Govt bond inputs'!IW70,"") ->  | IX14: =IF(ISNUMBER('Govt bond inputs'!IX70),'Govt bond inputs'!IX70,"") ->  | IY14: =IF(ISNUMBER('Govt bond inputs'!IY70),'Govt bond inputs'!IY70,"") ->  | IZ14: =IF(ISNUMBER('Govt bond inputs'!IZ70),'Govt bond inputs'!IZ70,"") ->  | JA14: =IF(ISNUMBER('Govt bond inputs'!JA70),'Govt bond inputs'!JA70,"") ->  | JB14: =IF(ISNUMBER('Govt bond inputs'!JB70),'Govt bond inputs'!JB70,"") ->  | JC14: =IF(ISNUMBER('Govt bond inputs'!JC70),'Govt bond inputs'!JC70,"") ->  | JD14: =IF(ISNUMBER('Govt bond inputs'!JD70),'Govt bond inputs'!JD70,"") ->  | JE14: =IF(ISNUMBER('Govt bond inputs'!JE70),'Govt bond inputs'!JE70,"") ->  | JF14: =IF(ISNUMBER('Govt bond inputs'!JF70),'Govt bond inputs'!JF70,"") ->  | JG14: =IF(ISNUMBER('Govt bond inputs'!JG70),'Govt bond inputs'!JG70,"") ->  | JH14: =IF(ISNUMBER('Govt bond inputs'!JH70),'Govt bond inputs'!JH70,"") ->  | JI14: =IF(ISNUMBER('Govt bond inputs'!JI70),'Govt bond inputs'!JI70,"") ->  | JJ14: =IF(ISNUMBER('Govt bond inputs'!JJ70),'Govt bond inputs'!JJ70,"") ->  | JK14: =IF(ISNUMBER('Govt bond inputs'!JK70),'Govt bond inputs'!JK70,"") ->  | JL14: =IF(ISNUMBER('Govt bond inputs'!JL70),'Govt bond inputs'!JL70,"") ->  | JM14: =IF(ISNUMBER('Govt bond inputs'!JM70),'Govt bond inputs'!JM70,"") ->  | JN14: =IF(ISNUMBER('Govt bond inputs'!JN70),'Govt bond inputs'!JN70,"") ->  | JO14: =IF(ISNUMBER('Govt bond inputs'!JO70),'Govt bond inputs'!JO70,"") ->  | JP14: =IF(ISNUMBER('Govt bond inputs'!JP70),'Govt bond inputs'!JP70,"") ->  | JQ14: =IF(ISNUMBER('Govt bond inputs'!JQ70),'Govt bond inputs'!JQ70,"") -> 
B15: ='Govt bond inputs'!D71 -> 0 | C15: =IF('Govt bond inputs'!H71="NR", 'Govt bond inputs'!G71, 'Govt bond inputs'!H71) -> 0 | D15: ='Govt bond inputs'!L71 -> 0 | E15: ='Govt bond inputs'!O71 -> 0 | Q15: =IF(ISNUMBER('Govt bond inputs'!Q71),'Govt bond inputs'!Q71,"") ->  | R15: =IF(ISNUMBER('Govt bond inputs'!R71),'Govt bond inputs'!R71,"") ->  | S15: =IF(ISNUMBER('Govt bond inputs'!S71),'Govt bond inputs'!S71,"") ->  | T15: =IF(ISNUMBER('Govt bond inputs'!T71),'Govt bond inputs'!T71,"") ->  | U15: =IF(ISNUMBER('Govt bond inputs'!U71),'Govt bond inputs'!U71,"") ->  | V15: =IF(ISNUMBER('Govt bond inputs'!V71),'Govt bond inputs'!V71,"") ->  | W15: =IF(ISNUMBER('Govt bond inputs'!W71),'Govt bond inputs'!W71,"") ->  | X15: =IF(ISNUMBER('Govt bond inputs'!X71),'Govt bond inputs'!X71,"") ->  | Y15: =IF(ISNUMBER('Govt bond inputs'!Y71),'Govt bond inputs'!Y71,"") ->  | Z15: =IF(ISNUMBER('Govt bond inputs'!Z71),'Govt bond inputs'!Z71,"") ->  | AA15: =IF(ISNUMBER('Govt bond inputs'!AA71),'Govt bond inputs'!AA71,"") ->  | AB15: =IF(ISNUMBER('Govt bond inputs'!AB71),'Govt bond inputs'!AB71,"") ->  | AC15: =IF(ISNUMBER('Govt bond inputs'!AC71),'Govt bond inputs'!AC71,"") ->  | AD15: =IF(ISNUMBER('Govt bond inputs'!AD71),'Govt bond inputs'!AD71,"") ->  | AE15: =IF(ISNUMBER('Govt bond inputs'!AE71),'Govt bond inputs'!AE71,"") ->  | AF15: =IF(ISNUMBER('Govt bond inputs'!AF71),'Govt bond inputs'!AF71,"") ->  | AG15: =IF(ISNUMBER('Govt bond inputs'!AG71),'Govt bond inputs'!AG71,"") ->  | AH15: =IF(ISNUMBER('Govt bond inputs'!AH71),'Govt bond inputs'!AH71,"") ->  | AI15: =IF(ISNUMBER('Govt bond inputs'!AI71),'Govt bond inputs'!AI71,"") ->  | AJ15: =IF(ISNUMBER('Govt bond inputs'!AJ71),'Govt bond inputs'!AJ71,"") ->  | AK15: =IF(ISNUMBER('Govt bond inputs'!AK71),'Govt bond inputs'!AK71,"") ->  | AL15: =IF(ISNUMBER('Govt bond inputs'!AL71),'Govt bond inputs'!AL71,"") ->  | AM15: =IF(ISNUMBER('Govt bond inputs'!AM71),'Govt bond inputs'!AM71,"") ->  | AN15: =IF(ISNUMBER('Govt bond inputs'!AN71),'Govt bond inputs'!AN71,"") ->  | AO15: =IF(ISNUMBER('Govt bond inputs'!AO71),'Govt bond inputs'!AO71,"") ->  | AP15: =IF(ISNUMBER('Govt bond inputs'!AP71),'Govt bond inputs'!AP71,"") ->  | AQ15: =IF(ISNUMBER('Govt bond inputs'!AQ71),'Govt bond inputs'!AQ71,"") ->  | AR15: =IF(ISNUMBER('Govt bond inputs'!AR71),'Govt bond inputs'!AR71,"") ->  | AS15: =IF(ISNUMBER('Govt bond inputs'!AS71),'Govt bond inputs'!AS71,"") ->  | AT15: =IF(ISNUMBER('Govt bond inputs'!AT71),'Govt bond inputs'!AT71,"") ->  | AU15: =IF(ISNUMBER('Govt bond inputs'!AU71),'Govt bond inputs'!AU71,"") ->  | AV15: =IF(ISNUMBER('Govt bond inputs'!AV71),'Govt bond inputs'!AV71,"") ->  | AW15: =IF(ISNUMBER('Govt bond inputs'!AW71),'Govt bond inputs'!AW71,"") ->  | AX15: =IF(ISNUMBER('Govt bond inputs'!AX71),'Govt bond inputs'!AX71,"") ->  | AY15: =IF(ISNUMBER('Govt bond inputs'!AY71),'Govt bond inputs'!AY71,"") ->  | AZ15: =IF(ISNUMBER('Govt bond inputs'!AZ71),'Govt bond inputs'!AZ71,"") ->  | BA15: =IF(ISNUMBER('Govt bond inputs'!BA71),'Govt bond inputs'!BA71,"") ->  | BB15: =IF(ISNUMBER('Govt bond inputs'!BB71),'Govt bond inputs'!BB71,"") ->  | BC15: =IF(ISNUMBER('Govt bond inputs'!BC71),'Govt bond inputs'!BC71,"") ->  | BD15: =IF(ISNUMBER('Govt bond inputs'!BD71),'Govt bond inputs'!BD71,"") ->  | BE15: =IF(ISNUMBER('Govt bond inputs'!BE71),'Govt bond inputs'!BE71,"") ->  | BF15: =IF(ISNUMBER('Govt bond inputs'!BF71),'Govt bond inputs'!BF71,"") ->  | BG15: =IF(ISNUMBER('Govt bond inputs'!BG71),'Govt bond inputs'!BG71,"") ->  | BH15: =IF(ISNUMBER('Govt bond inputs'!BH71),'Govt bond inputs'!BH71,"") ->  | BI15: =IF(ISNUMBER('Govt bond inputs'!BI71),'Govt bond inputs'!BI71,"") ->  | BJ15: =IF(ISNUMBER('Govt bond inputs'!BJ71),'Govt bond inputs'!BJ71,"") ->  | BK15: =IF(ISNUMBER('Govt bond inputs'!BK71),'Govt bond inputs'!BK71,"") ->  | BL15: =IF(ISNUMBER('Govt bond inputs'!BL71),'Govt bond inputs'!BL71,"") ->  | BM15: =IF(ISNUMBER('Govt bond inputs'!BM71),'Govt bond inputs'!BM71,"") ->  | BN15: =IF(ISNUMBER('Govt bond inputs'!BN71),'Govt bond inputs'!BN71,"") ->  | BO15: =IF(ISNUMBER('Govt bond inputs'!BO71),'Govt bond inputs'!BO71,"") ->  | BP15: =IF(ISNUMBER('Govt bond inputs'!BP71),'Govt bond inputs'!BP71,"") ->  | BQ15: =IF(ISNUMBER('Govt bond inputs'!BQ71),'Govt bond inputs'!BQ71,"") ->  | BR15: =IF(ISNUMBER('Govt bond inputs'!BR71),'Govt bond inputs'!BR71,"") ->  | BS15: =IF(ISNUMBER('Govt bond inputs'!BS71),'Govt bond inputs'!BS71,"") ->  | BT15: =IF(ISNUMBER('Govt bond inputs'!BT71),'Govt bond inputs'!BT71,"") ->  | BU15: =IF(ISNUMBER('Govt bond inputs'!BU71),'Govt bond inputs'!BU71,"") ->  | BV15: =IF(ISNUMBER('Govt bond inputs'!BV71),'Govt bond inputs'!BV71,"") ->  | BW15: =IF(ISNUMBER('Govt bond inputs'!BW71),'Govt bond inputs'!BW71,"") ->  | BX15: =IF(ISNUMBER('Govt bond inputs'!BX71),'Govt bond inputs'!BX71,"") ->  | BY15: =IF(ISNUMBER('Govt bond inputs'!BY71),'Govt bond inputs'!BY71,"") ->  | BZ15: =IF(ISNUMBER('Govt bond inputs'!BZ71),'Govt bond inputs'!BZ71,"") ->  | CA15: =IF(ISNUMBER('Govt bond inputs'!CA71),'Govt bond inputs'!CA71,"") ->  | CB15: =IF(ISNUMBER('Govt bond inputs'!CB71),'Govt bond inputs'!CB71,"") ->  | CC15: =IF(ISNUMBER('Govt bond inputs'!CC71),'Govt bond inputs'!CC71,"") ->  | CD15: =IF(ISNUMBER('Govt bond inputs'!CD71),'Govt bond inputs'!CD71,"") ->  | CE15: =IF(ISNUMBER('Govt bond inputs'!CE71),'Govt bond inputs'!CE71,"") ->  | CF15: =IF(ISNUMBER('Govt bond inputs'!CF71),'Govt bond inputs'!CF71,"") ->  | CG15: =IF(ISNUMBER('Govt bond inputs'!CG71),'Govt bond inputs'!CG71,"") ->  | CH15: =IF(ISNUMBER('Govt bond inputs'!CH71),'Govt bond inputs'!CH71,"") ->  | CI15: =IF(ISNUMBER('Govt bond inputs'!CI71),'Govt bond inputs'!CI71,"") ->  | CJ15: =IF(ISNUMBER('Govt bond inputs'!CJ71),'Govt bond inputs'!CJ71,"") ->  | CK15: =IF(ISNUMBER('Govt bond inputs'!CK71),'Govt bond inputs'!CK71,"") ->  | CL15: =IF(ISNUMBER('Govt bond inputs'!CL71),'Govt bond inputs'!CL71,"") ->  | CM15: =IF(ISNUMBER('Govt bond inputs'!CM71),'Govt bond inputs'!CM71,"") ->  | CN15: =IF(ISNUMBER('Govt bond inputs'!CN71),'Govt bond inputs'!CN71,"") ->  | CO15: =IF(ISNUMBER('Govt bond inputs'!CO71),'Govt bond inputs'!CO71,"") ->  | CP15: =IF(ISNUMBER('Govt bond inputs'!CP71),'Govt bond inputs'!CP71,"") ->  | CQ15: =IF(ISNUMBER('Govt bond inputs'!CQ71),'Govt bond inputs'!CQ71,"") ->  | CR15: =IF(ISNUMBER('Govt bond inputs'!CR71),'Govt bond inputs'!CR71,"") ->  | CS15: =IF(ISNUMBER('Govt bond inputs'!CS71),'Govt bond inputs'!CS71,"") ->  | CT15: =IF(ISNUMBER('Govt bond inputs'!CT71),'Govt bond inputs'!CT71,"") ->  | CU15: =IF(ISNUMBER('Govt bond inputs'!CU71),'Govt bond inputs'!CU71,"") ->  | CV15: =IF(ISNUMBER('Govt bond inputs'!CV71),'Govt bond inputs'!CV71,"") ->  | CW15: =IF(ISNUMBER('Govt bond inputs'!CW71),'Govt bond inputs'!CW71,"") ->  | CX15: =IF(ISNUMBER('Govt bond inputs'!CX71),'Govt bond inputs'!CX71,"") ->  | CY15: =IF(ISNUMBER('Govt bond inputs'!CY71),'Govt bond inputs'!CY71,"") ->  | CZ15: =IF(ISNUMBER('Govt bond inputs'!CZ71),'Govt bond inputs'!CZ71,"") ->  | DA15: =IF(ISNUMBER('Govt bond inputs'!DA71),'Govt bond inputs'!DA71,"") ->  | DB15: =IF(ISNUMBER('Govt bond inputs'!DB71),'Govt bond inputs'!DB71,"") ->  | DC15: =IF(ISNUMBER('Govt bond inputs'!DC71),'Govt bond inputs'!DC71,"") ->  | DD15: =IF(ISNUMBER('Govt bond inputs'!DD71),'Govt bond inputs'!DD71,"") ->  | DE15: =IF(ISNUMBER('Govt bond inputs'!DE71),'Govt bond inputs'!DE71,"") ->  | DF15: =IF(ISNUMBER('Govt bond inputs'!DF71),'Govt bond inputs'!DF71,"") ->  | DG15: =IF(ISNUMBER('Govt bond inputs'!DG71),'Govt bond inputs'!DG71,"") ->  | DH15: =IF(ISNUMBER('Govt bond inputs'!DH71),'Govt bond inputs'!DH71,"") ->  | DI15: =IF(ISNUMBER('Govt bond inputs'!DI71),'Govt bond inputs'!DI71,"") ->  | DJ15: =IF(ISNUMBER('Govt bond inputs'!DJ71),'Govt bond inputs'!DJ71,"") ->  | DK15: =IF(ISNUMBER('Govt bond inputs'!DK71),'Govt bond inputs'!DK71,"") ->  | DL15: =IF(ISNUMBER('Govt bond inputs'!DL71),'Govt bond inputs'!DL71,"") ->  | DM15: =IF(ISNUMBER('Govt bond inputs'!DM71),'Govt bond inputs'!DM71,"") ->  | DN15: =IF(ISNUMBER('Govt bond inputs'!DN71),'Govt bond inputs'!DN71,"") ->  | DO15: =IF(ISNUMBER('Govt bond inputs'!DO71),'Govt bond inputs'!DO71,"") ->  | DP15: =IF(ISNUMBER('Govt bond inputs'!DP71),'Govt bond inputs'!DP71,"") ->  | DQ15: =IF(ISNUMBER('Govt bond inputs'!DQ71),'Govt bond inputs'!DQ71,"") ->  | DR15: =IF(ISNUMBER('Govt bond inputs'!DR71),'Govt bond inputs'!DR71,"") ->  | DS15: =IF(ISNUMBER('Govt bond inputs'!DS71),'Govt bond inputs'!DS71,"") ->  | DT15: =IF(ISNUMBER('Govt bond inputs'!DT71),'Govt bond inputs'!DT71,"") ->  | DU15: =IF(ISNUMBER('Govt bond inputs'!DU71),'Govt bond inputs'!DU71,"") ->  | DV15: =IF(ISNUMBER('Govt bond inputs'!DV71),'Govt bond inputs'!DV71,"") ->  | DW15: =IF(ISNUMBER('Govt bond inputs'!DW71),'Govt bond inputs'!DW71,"") ->  | DX15: =IF(ISNUMBER('Govt bond inputs'!DX71),'Govt bond inputs'!DX71,"") ->  | DY15: =IF(ISNUMBER('Govt bond inputs'!DY71),'Govt bond inputs'!DY71,"") ->  | DZ15: =IF(ISNUMBER('Govt bond inputs'!DZ71),'Govt bond inputs'!DZ71,"") ->  | EA15: =IF(ISNUMBER('Govt bond inputs'!EA71),'Govt bond inputs'!EA71,"") ->  | EB15: =IF(ISNUMBER('Govt bond inputs'!EB71),'Govt bond inputs'!EB71,"") ->  | EC15: =IF(ISNUMBER('Govt bond inputs'!EC71),'Govt bond inputs'!EC71,"") ->  | ED15: =IF(ISNUMBER('Govt bond inputs'!ED71),'Govt bond inputs'!ED71,"") ->  | EE15: =IF(ISNUMBER('Govt bond inputs'!EE71),'Govt bond inputs'!EE71,"") ->  | EF15: =IF(ISNUMBER('Govt bond inputs'!EF71),'Govt bond inputs'!EF71,"") ->  | EG15: =IF(ISNUMBER('Govt bond inputs'!EG71),'Govt bond inputs'!EG71,"") ->  | EH15: =IF(ISNUMBER('Govt bond inputs'!EH71),'Govt bond inputs'!EH71,"") ->  | EI15: =IF(ISNUMBER('Govt bond inputs'!EI71),'Govt bond inputs'!EI71,"") ->  | EJ15: =IF(ISNUMBER('Govt bond inputs'!EJ71),'Govt bond inputs'!EJ71,"") ->  | EK15: =IF(ISNUMBER('Govt bond inputs'!EK71),'Govt bond inputs'!EK71,"") ->  | EL15: =IF(ISNUMBER('Govt bond inputs'!EL71),'Govt bond inputs'!EL71,"") ->  | EM15: =IF(ISNUMBER('Govt bond inputs'!EM71),'Govt bond inputs'!EM71,"") ->  | EN15: =IF(ISNUMBER('Govt bond inputs'!EN71),'Govt bond inputs'!EN71,"") ->  | EO15: =IF(ISNUMBER('Govt bond inputs'!EO71),'Govt bond inputs'!EO71,"") ->  | EP15: =IF(ISNUMBER('Govt bond inputs'!EP71),'Govt bond inputs'!EP71,"") ->  | EQ15: =IF(ISNUMBER('Govt bond inputs'!EQ71),'Govt bond inputs'!EQ71,"") ->  | ER15: =IF(ISNUMBER('Govt bond inputs'!ER71),'Govt bond inputs'!ER71,"") ->  | ES15: =IF(ISNUMBER('Govt bond inputs'!ES71),'Govt bond inputs'!ES71,"") ->  | ET15: =IF(ISNUMBER('Govt bond inputs'!ET71),'Govt bond inputs'!ET71,"") ->  | EU15: =IF(ISNUMBER('Govt bond inputs'!EU71),'Govt bond inputs'!EU71,"") ->  | EV15: =IF(ISNUMBER('Govt bond inputs'!EV71),'Govt bond inputs'!EV71,"") ->  | EW15: =IF(ISNUMBER('Govt bond inputs'!EW71),'Govt bond inputs'!EW71,"") ->  | EX15: =IF(ISNUMBER('Govt bond inputs'!EX71),'Govt bond inputs'!EX71,"") ->  | EY15: =IF(ISNUMBER('Govt bond inputs'!EY71),'Govt bond inputs'!EY71,"") ->  | EZ15: =IF(ISNUMBER('Govt bond inputs'!EZ71),'Govt bond inputs'!EZ71,"") ->  | FA15: =IF(ISNUMBER('Govt bond inputs'!FA71),'Govt bond inputs'!FA71,"") ->  | FB15: =IF(ISNUMBER('Govt bond inputs'!FB71),'Govt bond inputs'!FB71,"") ->  | FC15: =IF(ISNUMBER('Govt bond inputs'!FC71),'Govt bond inputs'!FC71,"") ->  | FD15: =IF(ISNUMBER('Govt bond inputs'!FD71),'Govt bond inputs'!FD71,"") ->  | FE15: =IF(ISNUMBER('Govt bond inputs'!FE71),'Govt bond inputs'!FE71,"") ->  | FF15: =IF(ISNUMBER('Govt bond inputs'!FF71),'Govt bond inputs'!FF71,"") ->  | FG15: =IF(ISNUMBER('Govt bond inputs'!FG71),'Govt bond inputs'!FG71,"") ->  | FH15: =IF(ISNUMBER('Govt bond inputs'!FH71),'Govt bond inputs'!FH71,"") ->  | FI15: =IF(ISNUMBER('Govt bond inputs'!FI71),'Govt bond inputs'!FI71,"") ->  | FJ15: =IF(ISNUMBER('Govt bond inputs'!FJ71),'Govt bond inputs'!FJ71,"") ->  | FK15: =IF(ISNUMBER('Govt bond inputs'!FK71),'Govt bond inputs'!FK71,"") ->  | FL15: =IF(ISNUMBER('Govt bond inputs'!FL71),'Govt bond inputs'!FL71,"") ->  | FM15: =IF(ISNUMBER('Govt bond inputs'!FM71),'Govt bond inputs'!FM71,"") ->  | FN15: =IF(ISNUMBER('Govt bond inputs'!FN71),'Govt bond inputs'!FN71,"") ->  | FO15: =IF(ISNUMBER('Govt bond inputs'!FO71),'Govt bond inputs'!FO71,"") ->  | FP15: =IF(ISNUMBER('Govt bond inputs'!FP71),'Govt bond inputs'!FP71,"") ->  | FQ15: =IF(ISNUMBER('Govt bond inputs'!FQ71),'Govt bond inputs'!FQ71,"") ->  | FR15: =IF(ISNUMBER('Govt bond inputs'!FR71),'Govt bond inputs'!FR71,"") ->  | FS15: =IF(ISNUMBER('Govt bond inputs'!FS71),'Govt bond inputs'!FS71,"") ->  | FT15: =IF(ISNUMBER('Govt bond inputs'!FT71),'Govt bond inputs'!FT71,"") ->  | FU15: =IF(ISNUMBER('Govt bond inputs'!FU71),'Govt bond inputs'!FU71,"") ->  | FV15: =IF(ISNUMBER('Govt bond inputs'!FV71),'Govt bond inputs'!FV71,"") ->  | FW15: =IF(ISNUMBER('Govt bond inputs'!FW71),'Govt bond inputs'!FW71,"") ->  | FX15: =IF(ISNUMBER('Govt bond inputs'!FX71),'Govt bond inputs'!FX71,"") ->  | FY15: =IF(ISNUMBER('Govt bond inputs'!FY71),'Govt bond inputs'!FY71,"") ->  | FZ15: =IF(ISNUMBER('Govt bond inputs'!FZ71),'Govt bond inputs'!FZ71,"") ->  | GA15: =IF(ISNUMBER('Govt bond inputs'!GA71),'Govt bond inputs'!GA71,"") ->  | GB15: =IF(ISNUMBER('Govt bond inputs'!GB71),'Govt bond inputs'!GB71,"") ->  | GC15: =IF(ISNUMBER('Govt bond inputs'!GC71),'Govt bond inputs'!GC71,"") ->  | GD15: =IF(ISNUMBER('Govt bond inputs'!GD71),'Govt bond inputs'!GD71,"") ->  | GE15: =IF(ISNUMBER('Govt bond inputs'!GE71),'Govt bond inputs'!GE71,"") ->  | GF15: =IF(ISNUMBER('Govt bond inputs'!GF71),'Govt bond inputs'!GF71,"") ->  | GG15: =IF(ISNUMBER('Govt bond inputs'!GG71),'Govt bond inputs'!GG71,"") ->  | GH15: =IF(ISNUMBER('Govt bond inputs'!GH71),'Govt bond inputs'!GH71,"") ->  | GI15: =IF(ISNUMBER('Govt bond inputs'!GI71),'Govt bond inputs'!GI71,"") ->  | GJ15: =IF(ISNUMBER('Govt bond inputs'!GJ71),'Govt bond inputs'!GJ71,"") ->  | GK15: =IF(ISNUMBER('Govt bond inputs'!GK71),'Govt bond inputs'!GK71,"") ->  | GL15: =IF(ISNUMBER('Govt bond inputs'!GL71),'Govt bond inputs'!GL71,"") ->  | GM15: =IF(ISNUMBER('Govt bond inputs'!GM71),'Govt bond inputs'!GM71,"") ->  | GN15: =IF(ISNUMBER('Govt bond inputs'!GN71),'Govt bond inputs'!GN71,"") ->  | GO15: =IF(ISNUMBER('Govt bond inputs'!GO71),'Govt bond inputs'!GO71,"") ->  | GP15: =IF(ISNUMBER('Govt bond inputs'!GP71),'Govt bond inputs'!GP71,"") ->  | GQ15: =IF(ISNUMBER('Govt bond inputs'!GQ71),'Govt bond inputs'!GQ71,"") ->  | GR15: =IF(ISNUMBER('Govt bond inputs'!GR71),'Govt bond inputs'!GR71,"") ->  | GS15: =IF(ISNUMBER('Govt bond inputs'!GS71),'Govt bond inputs'!GS71,"") ->  | GT15: =IF(ISNUMBER('Govt bond inputs'!GT71),'Govt bond inputs'!GT71,"") ->  | GU15: =IF(ISNUMBER('Govt bond inputs'!GU71),'Govt bond inputs'!GU71,"") ->  | GV15: =IF(ISNUMBER('Govt bond inputs'!GV71),'Govt bond inputs'!GV71,"") ->  | GW15: =IF(ISNUMBER('Govt bond inputs'!GW71),'Govt bond inputs'!GW71,"") ->  | GX15: =IF(ISNUMBER('Govt bond inputs'!GX71),'Govt bond inputs'!GX71,"") ->  | GY15: =IF(ISNUMBER('Govt bond inputs'!GY71),'Govt bond inputs'!GY71,"") ->  | GZ15: =IF(ISNUMBER('Govt bond inputs'!GZ71),'Govt bond inputs'!GZ71,"") ->  | HA15: =IF(ISNUMBER('Govt bond inputs'!HA71),'Govt bond inputs'!HA71,"") ->  | HB15: =IF(ISNUMBER('Govt bond inputs'!HB71),'Govt bond inputs'!HB71,"") ->  | HC15: =IF(ISNUMBER('Govt bond inputs'!HC71),'Govt bond inputs'!HC71,"") ->  | HD15: =IF(ISNUMBER('Govt bond inputs'!HD71),'Govt bond inputs'!HD71,"") ->  | HE15: =IF(ISNUMBER('Govt bond inputs'!HE71),'Govt bond inputs'!HE71,"") ->  | HF15: =IF(ISNUMBER('Govt bond inputs'!HF71),'Govt bond inputs'!HF71,"") ->  | HG15: =IF(ISNUMBER('Govt bond inputs'!HG71),'Govt bond inputs'!HG71,"") ->  | HH15: =IF(ISNUMBER('Govt bond inputs'!HH71),'Govt bond inputs'!HH71,"") ->  | HI15: =IF(ISNUMBER('Govt bond inputs'!HI71),'Govt bond inputs'!HI71,"") ->  | HJ15: =IF(ISNUMBER('Govt bond inputs'!HJ71),'Govt bond inputs'!HJ71,"") ->  | HK15: =IF(ISNUMBER('Govt bond inputs'!HK71),'Govt bond inputs'!HK71,"") ->  | HL15: =IF(ISNUMBER('Govt bond inputs'!HL71),'Govt bond inputs'!HL71,"") ->  | HM15: =IF(ISNUMBER('Govt bond inputs'!HM71),'Govt bond inputs'!HM71,"") ->  | HN15: =IF(ISNUMBER('Govt bond inputs'!HN71),'Govt bond inputs'!HN71,"") ->  | HO15: =IF(ISNUMBER('Govt bond inputs'!HO71),'Govt bond inputs'!HO71,"") ->  | HP15: =IF(ISNUMBER('Govt bond inputs'!HP71),'Govt bond inputs'!HP71,"") ->  | HQ15: =IF(ISNUMBER('Govt bond inputs'!HQ71),'Govt bond inputs'!HQ71,"") ->  | HR15: =IF(ISNUMBER('Govt bond inputs'!HR71),'Govt bond inputs'!HR71,"") ->  | HS15: =IF(ISNUMBER('Govt bond inputs'!HS71),'Govt bond inputs'!HS71,"") ->  | HT15: =IF(ISNUMBER('Govt bond inputs'!HT71),'Govt bond inputs'!HT71,"") ->  | HU15: =IF(ISNUMBER('Govt bond inputs'!HU71),'Govt bond inputs'!HU71,"") ->  | HV15: =IF(ISNUMBER('Govt bond inputs'!HV71),'Govt bond inputs'!HV71,"") ->  | HW15: =IF(ISNUMBER('Govt bond inputs'!HW71),'Govt bond inputs'!HW71,"") ->  | HX15: =IF(ISNUMBER('Govt bond inputs'!HX71),'Govt bond inputs'!HX71,"") ->  | HY15: =IF(ISNUMBER('Govt bond inputs'!HY71),'Govt bond inputs'!HY71,"") ->  | HZ15: =IF(ISNUMBER('Govt bond inputs'!HZ71),'Govt bond inputs'!HZ71,"") ->  | IA15: =IF(ISNUMBER('Govt bond inputs'!IA71),'Govt bond inputs'!IA71,"") ->  | IB15: =IF(ISNUMBER('Govt bond inputs'!IB71),'Govt bond inputs'!IB71,"") ->  | IC15: =IF(ISNUMBER('Govt bond inputs'!IC71),'Govt bond inputs'!IC71,"") ->  | ID15: =IF(ISNUMBER('Govt bond inputs'!ID71),'Govt bond inputs'!ID71,"") ->  | IE15: =IF(ISNUMBER('Govt bond inputs'!IE71),'Govt bond inputs'!IE71,"") ->  | IF15: =IF(ISNUMBER('Govt bond inputs'!IF71),'Govt bond inputs'!IF71,"") ->  | IG15: =IF(ISNUMBER('Govt bond inputs'!IG71),'Govt bond inputs'!IG71,"") ->  | IH15: =IF(ISNUMBER('Govt bond inputs'!IH71),'Govt bond inputs'!IH71,"") ->  | II15: =IF(ISNUMBER('Govt bond inputs'!II71),'Govt bond inputs'!II71,"") ->  | IJ15: =IF(ISNUMBER('Govt bond inputs'!IJ71),'Govt bond inputs'!IJ71,"") ->  | IK15: =IF(ISNUMBER('Govt bond inputs'!IK71),'Govt bond inputs'!IK71,"") ->  | IL15: =IF(ISNUMBER('Govt bond inputs'!IL71),'Govt bond inputs'!IL71,"") ->  | IM15: =IF(ISNUMBER('Govt bond inputs'!IM71),'Govt bond inputs'!IM71,"") ->  | IN15: =IF(ISNUMBER('Govt bond inputs'!IN71),'Govt bond inputs'!IN71,"") ->  | IO15: =IF(ISNUMBER('Govt bond inputs'!IO71),'Govt bond inputs'!IO71,"") ->  | IP15: =IF(ISNUMBER('Govt bond inputs'!IP71),'Govt bond inputs'!IP71,"") ->  | IQ15: =IF(ISNUMBER('Govt bond inputs'!IQ71),'Govt bond inputs'!IQ71,"") ->  | IR15: =IF(ISNUMBER('Govt bond inputs'!IR71),'Govt bond inputs'!IR71,"") ->  | IS15: =IF(ISNUMBER('Govt bond inputs'!IS71),'Govt bond inputs'!IS71,"") ->  | IT15: =IF(ISNUMBER('Govt bond inputs'!IT71),'Govt bond inputs'!IT71,"") ->  | IU15: =IF(ISNUMBER('Govt bond inputs'!IU71),'Govt bond inputs'!IU71,"") ->  | IV15: =IF(ISNUMBER('Govt bond inputs'!IV71),'Govt bond inputs'!IV71,"") ->  | IW15: =IF(ISNUMBER('Govt bond inputs'!IW71),'Govt bond inputs'!IW71,"") ->  | IX15: =IF(ISNUMBER('Govt bond inputs'!IX71),'Govt bond inputs'!IX71,"") ->  | IY15: =IF(ISNUMBER('Govt bond inputs'!IY71),'Govt bond inputs'!IY71,"") ->  | IZ15: =IF(ISNUMBER('Govt bond inputs'!IZ71),'Govt bond inputs'!IZ71,"") ->  | JA15: =IF(ISNUMBER('Govt bond inputs'!JA71),'Govt bond inputs'!JA71,"") ->  | JB15: =IF(ISNUMBER('Govt bond inputs'!JB71),'Govt bond inputs'!JB71,"") ->  | JC15: =IF(ISNUMBER('Govt bond inputs'!JC71),'Govt bond inputs'!JC71,"") ->  | JD15: =IF(ISNUMBER('Govt bond inputs'!JD71),'Govt bond inputs'!JD71,"") ->  | JE15: =IF(ISNUMBER('Govt bond inputs'!JE71),'Govt bond inputs'!JE71,"") ->  | JF15: =IF(ISNUMBER('Govt bond inputs'!JF71),'Govt bond inputs'!JF71,"") ->  | JG15: =IF(ISNUMBER('Govt bond inputs'!JG71),'Govt bond inputs'!JG71,"") ->  | JH15: =IF(ISNUMBER('Govt bond inputs'!JH71),'Govt bond inputs'!JH71,"") ->  | JI15: =IF(ISNUMBER('Govt bond inputs'!JI71),'Govt bond inputs'!JI71,"") ->  | JJ15: =IF(ISNUMBER('Govt bond inputs'!JJ71),'Govt bond inputs'!JJ71,"") ->  | JK15: =IF(ISNUMBER('Govt bond inputs'!JK71),'Govt bond inputs'!JK71,"") ->  | JL15: =IF(ISNUMBER('Govt bond inputs'!JL71),'Govt bond inputs'!JL71,"") ->  | JM15: =IF(ISNUMBER('Govt bond inputs'!JM71),'Govt bond inputs'!JM71,"") ->  | JN15: =IF(ISNUMBER('Govt bond inputs'!JN71),'Govt bond inputs'!JN71,"") ->  | JO15: =IF(ISNUMBER('Govt bond inputs'!JO71),'Govt bond inputs'!JO71,"") ->  | JP15: =IF(ISNUMBER('Govt bond inputs'!JP71),'Govt bond inputs'!JP71,"") ->  | JQ15: =IF(ISNUMBER('Govt bond inputs'!JQ71),'Govt bond inputs'!JQ71,"") -> 
B16: ='Govt bond inputs'!D72 -> 0 | C16: =IF('Govt bond inputs'!H72="NR", 'Govt bond inputs'!G72, 'Govt bond inputs'!H72) -> 0 | D16: ='Govt bond inputs'!L72 -> 0 | E16: ='Govt bond inputs'!O72 -> 0 | Q16: =IF(ISNUMBER('Govt bond inputs'!Q72),'Govt bond inputs'!Q72,"") ->  | R16: =IF(ISNUMBER('Govt bond inputs'!R72),'Govt bond inputs'!R72,"") ->  | S16: =IF(ISNUMBER('Govt bond inputs'!S72),'Govt bond inputs'!S72,"") ->  | T16: =IF(ISNUMBER('Govt bond inputs'!T72),'Govt bond inputs'!T72,"") ->  | U16: =IF(ISNUMBER('Govt bond inputs'!U72),'Govt bond inputs'!U72,"") ->  | V16: =IF(ISNUMBER('Govt bond inputs'!V72),'Govt bond inputs'!V72,"") ->  | W16: =IF(ISNUMBER('Govt bond inputs'!W72),'Govt bond inputs'!W72,"") ->  | X16: =IF(ISNUMBER('Govt bond inputs'!X72),'Govt bond inputs'!X72,"") ->  | Y16: =IF(ISNUMBER('Govt bond inputs'!Y72),'Govt bond inputs'!Y72,"") ->  | Z16: =IF(ISNUMBER('Govt bond inputs'!Z72),'Govt bond inputs'!Z72,"") ->  | AA16: =IF(ISNUMBER('Govt bond inputs'!AA72),'Govt bond inputs'!AA72,"") ->  | AB16: =IF(ISNUMBER('Govt bond inputs'!AB72),'Govt bond inputs'!AB72,"") ->  | AC16: =IF(ISNUMBER('Govt bond inputs'!AC72),'Govt bond inputs'!AC72,"") ->  | AD16: =IF(ISNUMBER('Govt bond inputs'!AD72),'Govt bond inputs'!AD72,"") ->  | AE16: =IF(ISNUMBER('Govt bond inputs'!AE72),'Govt bond inputs'!AE72,"") ->  | AF16: =IF(ISNUMBER('Govt bond inputs'!AF72),'Govt bond inputs'!AF72,"") ->  | AG16: =IF(ISNUMBER('Govt bond inputs'!AG72),'Govt bond inputs'!AG72,"") ->  | AH16: =IF(ISNUMBER('Govt bond inputs'!AH72),'Govt bond inputs'!AH72,"") ->  | AI16: =IF(ISNUMBER('Govt bond inputs'!AI72),'Govt bond inputs'!AI72,"") ->  | AJ16: =IF(ISNUMBER('Govt bond inputs'!AJ72),'Govt bond inputs'!AJ72,"") ->  | AK16: =IF(ISNUMBER('Govt bond inputs'!AK72),'Govt bond inputs'!AK72,"") ->  | AL16: =IF(ISNUMBER('Govt bond inputs'!AL72),'Govt bond inputs'!AL72,"") ->  | AM16: =IF(ISNUMBER('Govt bond inputs'!AM72),'Govt bond inputs'!AM72,"") ->  | AN16: =IF(ISNUMBER('Govt bond inputs'!AN72),'Govt bond inputs'!AN72,"") ->  | AO16: =IF(ISNUMBER('Govt bond inputs'!AO72),'Govt bond inputs'!AO72,"") ->  | AP16: =IF(ISNUMBER('Govt bond inputs'!AP72),'Govt bond inputs'!AP72,"") ->  | AQ16: =IF(ISNUMBER('Govt bond inputs'!AQ72),'Govt bond inputs'!AQ72,"") ->  | AR16: =IF(ISNUMBER('Govt bond inputs'!AR72),'Govt bond inputs'!AR72,"") ->  | AS16: =IF(ISNUMBER('Govt bond inputs'!AS72),'Govt bond inputs'!AS72,"") ->  | AT16: =IF(ISNUMBER('Govt bond inputs'!AT72),'Govt bond inputs'!AT72,"") ->  | AU16: =IF(ISNUMBER('Govt bond inputs'!AU72),'Govt bond inputs'!AU72,"") ->  | AV16: =IF(ISNUMBER('Govt bond inputs'!AV72),'Govt bond inputs'!AV72,"") ->  | AW16: =IF(ISNUMBER('Govt bond inputs'!AW72),'Govt bond inputs'!AW72,"") ->  | AX16: =IF(ISNUMBER('Govt bond inputs'!AX72),'Govt bond inputs'!AX72,"") ->  | AY16: =IF(ISNUMBER('Govt bond inputs'!AY72),'Govt bond inputs'!AY72,"") ->  | AZ16: =IF(ISNUMBER('Govt bond inputs'!AZ72),'Govt bond inputs'!AZ72,"") ->  | BA16: =IF(ISNUMBER('Govt bond inputs'!BA72),'Govt bond inputs'!BA72,"") ->  | BB16: =IF(ISNUMBER('Govt bond inputs'!BB72),'Govt bond inputs'!BB72,"") ->  | BC16: =IF(ISNUMBER('Govt bond inputs'!BC72),'Govt bond inputs'!BC72,"") ->  | BD16: =IF(ISNUMBER('Govt bond inputs'!BD72),'Govt bond inputs'!BD72,"") ->  | BE16: =IF(ISNUMBER('Govt bond inputs'!BE72),'Govt bond inputs'!BE72,"") ->  | BF16: =IF(ISNUMBER('Govt bond inputs'!BF72),'Govt bond inputs'!BF72,"") ->  | BG16: =IF(ISNUMBER('Govt bond inputs'!BG72),'Govt bond inputs'!BG72,"") ->  | BH16: =IF(ISNUMBER('Govt bond inputs'!BH72),'Govt bond inputs'!BH72,"") ->  | BI16: =IF(ISNUMBER('Govt bond inputs'!BI72),'Govt bond inputs'!BI72,"") ->  | BJ16: =IF(ISNUMBER('Govt bond inputs'!BJ72),'Govt bond inputs'!BJ72,"") ->  | BK16: =IF(ISNUMBER('Govt bond inputs'!BK72),'Govt bond inputs'!BK72,"") ->  | BL16: =IF(ISNUMBER('Govt bond inputs'!BL72),'Govt bond inputs'!BL72,"") ->  | BM16: =IF(ISNUMBER('Govt bond inputs'!BM72),'Govt bond inputs'!BM72,"") ->  | BN16: =IF(ISNUMBER('Govt bond inputs'!BN72),'Govt bond inputs'!BN72,"") ->  | BO16: =IF(ISNUMBER('Govt bond inputs'!BO72),'Govt bond inputs'!BO72,"") ->  | BP16: =IF(ISNUMBER('Govt bond inputs'!BP72),'Govt bond inputs'!BP72,"") ->  | BQ16: =IF(ISNUMBER('Govt bond inputs'!BQ72),'Govt bond inputs'!BQ72,"") ->  | BR16: =IF(ISNUMBER('Govt bond inputs'!BR72),'Govt bond inputs'!BR72,"") ->  | BS16: =IF(ISNUMBER('Govt bond inputs'!BS72),'Govt bond inputs'!BS72,"") ->  | BT16: =IF(ISNUMBER('Govt bond inputs'!BT72),'Govt bond inputs'!BT72,"") ->  | BU16: =IF(ISNUMBER('Govt bond inputs'!BU72),'Govt bond inputs'!BU72,"") ->  | BV16: =IF(ISNUMBER('Govt bond inputs'!BV72),'Govt bond inputs'!BV72,"") ->  | BW16: =IF(ISNUMBER('Govt bond inputs'!BW72),'Govt bond inputs'!BW72,"") ->  | BX16: =IF(ISNUMBER('Govt bond inputs'!BX72),'Govt bond inputs'!BX72,"") ->  | BY16: =IF(ISNUMBER('Govt bond inputs'!BY72),'Govt bond inputs'!BY72,"") ->  | BZ16: =IF(ISNUMBER('Govt bond inputs'!BZ72),'Govt bond inputs'!BZ72,"") ->  | CA16: =IF(ISNUMBER('Govt bond inputs'!CA72),'Govt bond inputs'!CA72,"") ->  | CB16: =IF(ISNUMBER('Govt bond inputs'!CB72),'Govt bond inputs'!CB72,"") ->  | CC16: =IF(ISNUMBER('Govt bond inputs'!CC72),'Govt bond inputs'!CC72,"") ->  | CD16: =IF(ISNUMBER('Govt bond inputs'!CD72),'Govt bond inputs'!CD72,"") ->  | CE16: =IF(ISNUMBER('Govt bond inputs'!CE72),'Govt bond inputs'!CE72,"") ->  | CF16: =IF(ISNUMBER('Govt bond inputs'!CF72),'Govt bond inputs'!CF72,"") ->  | CG16: =IF(ISNUMBER('Govt bond inputs'!CG72),'Govt bond inputs'!CG72,"") ->  | CH16: =IF(ISNUMBER('Govt bond inputs'!CH72),'Govt bond inputs'!CH72,"") ->  | CI16: =IF(ISNUMBER('Govt bond inputs'!CI72),'Govt bond inputs'!CI72,"") ->  | CJ16: =IF(ISNUMBER('Govt bond inputs'!CJ72),'Govt bond inputs'!CJ72,"") ->  | CK16: =IF(ISNUMBER('Govt bond inputs'!CK72),'Govt bond inputs'!CK72,"") ->  | CL16: =IF(ISNUMBER('Govt bond inputs'!CL72),'Govt bond inputs'!CL72,"") ->  | CM16: =IF(ISNUMBER('Govt bond inputs'!CM72),'Govt bond inputs'!CM72,"") ->  | CN16: =IF(ISNUMBER('Govt bond inputs'!CN72),'Govt bond inputs'!CN72,"") ->  | CO16: =IF(ISNUMBER('Govt bond inputs'!CO72),'Govt bond inputs'!CO72,"") ->  | CP16: =IF(ISNUMBER('Govt bond inputs'!CP72),'Govt bond inputs'!CP72,"") ->  | CQ16: =IF(ISNUMBER('Govt bond inputs'!CQ72),'Govt bond inputs'!CQ72,"") ->  | CR16: =IF(ISNUMBER('Govt bond inputs'!CR72),'Govt bond inputs'!CR72,"") ->  | CS16: =IF(ISNUMBER('Govt bond inputs'!CS72),'Govt bond inputs'!CS72,"") ->  | CT16: =IF(ISNUMBER('Govt bond inputs'!CT72),'Govt bond inputs'!CT72,"") ->  | CU16: =IF(ISNUMBER('Govt bond inputs'!CU72),'Govt bond inputs'!CU72,"") ->  | CV16: =IF(ISNUMBER('Govt bond inputs'!CV72),'Govt bond inputs'!CV72,"") ->  | CW16: =IF(ISNUMBER('Govt bond inputs'!CW72),'Govt bond inputs'!CW72,"") ->  | CX16: =IF(ISNUMBER('Govt bond inputs'!CX72),'Govt bond inputs'!CX72,"") ->  | CY16: =IF(ISNUMBER('Govt bond inputs'!CY72),'Govt bond inputs'!CY72,"") ->  | CZ16: =IF(ISNUMBER('Govt bond inputs'!CZ72),'Govt bond inputs'!CZ72,"") ->  | DA16: =IF(ISNUMBER('Govt bond inputs'!DA72),'Govt bond inputs'!DA72,"") ->  | DB16: =IF(ISNUMBER('Govt bond inputs'!DB72),'Govt bond inputs'!DB72,"") ->  | DC16: =IF(ISNUMBER('Govt bond inputs'!DC72),'Govt bond inputs'!DC72,"") ->  | DD16: =IF(ISNUMBER('Govt bond inputs'!DD72),'Govt bond inputs'!DD72,"") ->  | DE16: =IF(ISNUMBER('Govt bond inputs'!DE72),'Govt bond inputs'!DE72,"") ->  | DF16: =IF(ISNUMBER('Govt bond inputs'!DF72),'Govt bond inputs'!DF72,"") ->  | DG16: =IF(ISNUMBER('Govt bond inputs'!DG72),'Govt bond inputs'!DG72,"") ->  | DH16: =IF(ISNUMBER('Govt bond inputs'!DH72),'Govt bond inputs'!DH72,"") ->  | DI16: =IF(ISNUMBER('Govt bond inputs'!DI72),'Govt bond inputs'!DI72,"") ->  | DJ16: =IF(ISNUMBER('Govt bond inputs'!DJ72),'Govt bond inputs'!DJ72,"") ->  | DK16: =IF(ISNUMBER('Govt bond inputs'!DK72),'Govt bond inputs'!DK72,"") ->  | DL16: =IF(ISNUMBER('Govt bond inputs'!DL72),'Govt bond inputs'!DL72,"") ->  | DM16: =IF(ISNUMBER('Govt bond inputs'!DM72),'Govt bond inputs'!DM72,"") ->  | DN16: =IF(ISNUMBER('Govt bond inputs'!DN72),'Govt bond inputs'!DN72,"") ->  | DO16: =IF(ISNUMBER('Govt bond inputs'!DO72),'Govt bond inputs'!DO72,"") ->  | DP16: =IF(ISNUMBER('Govt bond inputs'!DP72),'Govt bond inputs'!DP72,"") ->  | DQ16: =IF(ISNUMBER('Govt bond inputs'!DQ72),'Govt bond inputs'!DQ72,"") ->  | DR16: =IF(ISNUMBER('Govt bond inputs'!DR72),'Govt bond inputs'!DR72,"") ->  | DS16: =IF(ISNUMBER('Govt bond inputs'!DS72),'Govt bond inputs'!DS72,"") ->  | DT16: =IF(ISNUMBER('Govt bond inputs'!DT72),'Govt bond inputs'!DT72,"") ->  | DU16: =IF(ISNUMBER('Govt bond inputs'!DU72),'Govt bond inputs'!DU72,"") ->  | DV16: =IF(ISNUMBER('Govt bond inputs'!DV72),'Govt bond inputs'!DV72,"") ->  | DW16: =IF(ISNUMBER('Govt bond inputs'!DW72),'Govt bond inputs'!DW72,"") ->  | DX16: =IF(ISNUMBER('Govt bond inputs'!DX72),'Govt bond inputs'!DX72,"") ->  | DY16: =IF(ISNUMBER('Govt bond inputs'!DY72),'Govt bond inputs'!DY72,"") ->  | DZ16: =IF(ISNUMBER('Govt bond inputs'!DZ72),'Govt bond inputs'!DZ72,"") ->  | EA16: =IF(ISNUMBER('Govt bond inputs'!EA72),'Govt bond inputs'!EA72,"") ->  | EB16: =IF(ISNUMBER('Govt bond inputs'!EB72),'Govt bond inputs'!EB72,"") ->  | EC16: =IF(ISNUMBER('Govt bond inputs'!EC72),'Govt bond inputs'!EC72,"") ->  | ED16: =IF(ISNUMBER('Govt bond inputs'!ED72),'Govt bond inputs'!ED72,"") ->  | EE16: =IF(ISNUMBER('Govt bond inputs'!EE72),'Govt bond inputs'!EE72,"") ->  | EF16: =IF(ISNUMBER('Govt bond inputs'!EF72),'Govt bond inputs'!EF72,"") ->  | EG16: =IF(ISNUMBER('Govt bond inputs'!EG72),'Govt bond inputs'!EG72,"") ->  | EH16: =IF(ISNUMBER('Govt bond inputs'!EH72),'Govt bond inputs'!EH72,"") ->  | EI16: =IF(ISNUMBER('Govt bond inputs'!EI72),'Govt bond inputs'!EI72,"") ->  | EJ16: =IF(ISNUMBER('Govt bond inputs'!EJ72),'Govt bond inputs'!EJ72,"") ->  | EK16: =IF(ISNUMBER('Govt bond inputs'!EK72),'Govt bond inputs'!EK72,"") ->  | EL16: =IF(ISNUMBER('Govt bond inputs'!EL72),'Govt bond inputs'!EL72,"") ->  | EM16: =IF(ISNUMBER('Govt bond inputs'!EM72),'Govt bond inputs'!EM72,"") ->  | EN16: =IF(ISNUMBER('Govt bond inputs'!EN72),'Govt bond inputs'!EN72,"") ->  | EO16: =IF(ISNUMBER('Govt bond inputs'!EO72),'Govt bond inputs'!EO72,"") ->  | EP16: =IF(ISNUMBER('Govt bond inputs'!EP72),'Govt bond inputs'!EP72,"") ->  | EQ16: =IF(ISNUMBER('Govt bond inputs'!EQ72),'Govt bond inputs'!EQ72,"") ->  | ER16: =IF(ISNUMBER('Govt bond inputs'!ER72),'Govt bond inputs'!ER72,"") ->  | ES16: =IF(ISNUMBER('Govt bond inputs'!ES72),'Govt bond inputs'!ES72,"") ->  | ET16: =IF(ISNUMBER('Govt bond inputs'!ET72),'Govt bond inputs'!ET72,"") ->  | EU16: =IF(ISNUMBER('Govt bond inputs'!EU72),'Govt bond inputs'!EU72,"") ->  | EV16: =IF(ISNUMBER('Govt bond inputs'!EV72),'Govt bond inputs'!EV72,"") ->  | EW16: =IF(ISNUMBER('Govt bond inputs'!EW72),'Govt bond inputs'!EW72,"") ->  | EX16: =IF(ISNUMBER('Govt bond inputs'!EX72),'Govt bond inputs'!EX72,"") ->  | EY16: =IF(ISNUMBER('Govt bond inputs'!EY72),'Govt bond inputs'!EY72,"") ->  | EZ16: =IF(ISNUMBER('Govt bond inputs'!EZ72),'Govt bond inputs'!EZ72,"") ->  | FA16: =IF(ISNUMBER('Govt bond inputs'!FA72),'Govt bond inputs'!FA72,"") ->  | FB16: =IF(ISNUMBER('Govt bond inputs'!FB72),'Govt bond inputs'!FB72,"") ->  | FC16: =IF(ISNUMBER('Govt bond inputs'!FC72),'Govt bond inputs'!FC72,"") ->  | FD16: =IF(ISNUMBER('Govt bond inputs'!FD72),'Govt bond inputs'!FD72,"") ->  | FE16: =IF(ISNUMBER('Govt bond inputs'!FE72),'Govt bond inputs'!FE72,"") ->  | FF16: =IF(ISNUMBER('Govt bond inputs'!FF72),'Govt bond inputs'!FF72,"") ->  | FG16: =IF(ISNUMBER('Govt bond inputs'!FG72),'Govt bond inputs'!FG72,"") ->  | FH16: =IF(ISNUMBER('Govt bond inputs'!FH72),'Govt bond inputs'!FH72,"") ->  | FI16: =IF(ISNUMBER('Govt bond inputs'!FI72),'Govt bond inputs'!FI72,"") ->  | FJ16: =IF(ISNUMBER('Govt bond inputs'!FJ72),'Govt bond inputs'!FJ72,"") ->  | FK16: =IF(ISNUMBER('Govt bond inputs'!FK72),'Govt bond inputs'!FK72,"") ->  | FL16: =IF(ISNUMBER('Govt bond inputs'!FL72),'Govt bond inputs'!FL72,"") ->  | FM16: =IF(ISNUMBER('Govt bond inputs'!FM72),'Govt bond inputs'!FM72,"") ->  | FN16: =IF(ISNUMBER('Govt bond inputs'!FN72),'Govt bond inputs'!FN72,"") ->  | FO16: =IF(ISNUMBER('Govt bond inputs'!FO72),'Govt bond inputs'!FO72,"") ->  | FP16: =IF(ISNUMBER('Govt bond inputs'!FP72),'Govt bond inputs'!FP72,"") ->  | FQ16: =IF(ISNUMBER('Govt bond inputs'!FQ72),'Govt bond inputs'!FQ72,"") ->  | FR16: =IF(ISNUMBER('Govt bond inputs'!FR72),'Govt bond inputs'!FR72,"") ->  | FS16: =IF(ISNUMBER('Govt bond inputs'!FS72),'Govt bond inputs'!FS72,"") ->  | FT16: =IF(ISNUMBER('Govt bond inputs'!FT72),'Govt bond inputs'!FT72,"") ->  | FU16: =IF(ISNUMBER('Govt bond inputs'!FU72),'Govt bond inputs'!FU72,"") ->  | FV16: =IF(ISNUMBER('Govt bond inputs'!FV72),'Govt bond inputs'!FV72,"") ->  | FW16: =IF(ISNUMBER('Govt bond inputs'!FW72),'Govt bond inputs'!FW72,"") ->  | FX16: =IF(ISNUMBER('Govt bond inputs'!FX72),'Govt bond inputs'!FX72,"") ->  | FY16: =IF(ISNUMBER('Govt bond inputs'!FY72),'Govt bond inputs'!FY72,"") ->  | FZ16: =IF(ISNUMBER('Govt bond inputs'!FZ72),'Govt bond inputs'!FZ72,"") ->  | GA16: =IF(ISNUMBER('Govt bond inputs'!GA72),'Govt bond inputs'!GA72,"") ->  | GB16: =IF(ISNUMBER('Govt bond inputs'!GB72),'Govt bond inputs'!GB72,"") ->  | GC16: =IF(ISNUMBER('Govt bond inputs'!GC72),'Govt bond inputs'!GC72,"") ->  | GD16: =IF(ISNUMBER('Govt bond inputs'!GD72),'Govt bond inputs'!GD72,"") ->  | GE16: =IF(ISNUMBER('Govt bond inputs'!GE72),'Govt bond inputs'!GE72,"") ->  | GF16: =IF(ISNUMBER('Govt bond inputs'!GF72),'Govt bond inputs'!GF72,"") ->  | GG16: =IF(ISNUMBER('Govt bond inputs'!GG72),'Govt bond inputs'!GG72,"") ->  | GH16: =IF(ISNUMBER('Govt bond inputs'!GH72),'Govt bond inputs'!GH72,"") ->  | GI16: =IF(ISNUMBER('Govt bond inputs'!GI72),'Govt bond inputs'!GI72,"") ->  | GJ16: =IF(ISNUMBER('Govt bond inputs'!GJ72),'Govt bond inputs'!GJ72,"") ->  | GK16: =IF(ISNUMBER('Govt bond inputs'!GK72),'Govt bond inputs'!GK72,"") ->  | GL16: =IF(ISNUMBER('Govt bond inputs'!GL72),'Govt bond inputs'!GL72,"") ->  | GM16: =IF(ISNUMBER('Govt bond inputs'!GM72),'Govt bond inputs'!GM72,"") ->  | GN16: =IF(ISNUMBER('Govt bond inputs'!GN72),'Govt bond inputs'!GN72,"") ->  | GO16: =IF(ISNUMBER('Govt bond inputs'!GO72),'Govt bond inputs'!GO72,"") ->  | GP16: =IF(ISNUMBER('Govt bond inputs'!GP72),'Govt bond inputs'!GP72,"") ->  | GQ16: =IF(ISNUMBER('Govt bond inputs'!GQ72),'Govt bond inputs'!GQ72,"") ->  | GR16: =IF(ISNUMBER('Govt bond inputs'!GR72),'Govt bond inputs'!GR72,"") ->  | GS16: =IF(ISNUMBER('Govt bond inputs'!GS72),'Govt bond inputs'!GS72,"") ->  | GT16: =IF(ISNUMBER('Govt bond inputs'!GT72),'Govt bond inputs'!GT72,"") ->  | GU16: =IF(ISNUMBER('Govt bond inputs'!GU72),'Govt bond inputs'!GU72,"") ->  | GV16: =IF(ISNUMBER('Govt bond inputs'!GV72),'Govt bond inputs'!GV72,"") ->  | GW16: =IF(ISNUMBER('Govt bond inputs'!GW72),'Govt bond inputs'!GW72,"") ->  | GX16: =IF(ISNUMBER('Govt bond inputs'!GX72),'Govt bond inputs'!GX72,"") ->  | GY16: =IF(ISNUMBER('Govt bond inputs'!GY72),'Govt bond inputs'!GY72,"") ->  | GZ16: =IF(ISNUMBER('Govt bond inputs'!GZ72),'Govt bond inputs'!GZ72,"") ->  | HA16: =IF(ISNUMBER('Govt bond inputs'!HA72),'Govt bond inputs'!HA72,"") ->  | HB16: =IF(ISNUMBER('Govt bond inputs'!HB72),'Govt bond inputs'!HB72,"") ->  | HC16: =IF(ISNUMBER('Govt bond inputs'!HC72),'Govt bond inputs'!HC72,"") ->  | HD16: =IF(ISNUMBER('Govt bond inputs'!HD72),'Govt bond inputs'!HD72,"") ->  | HE16: =IF(ISNUMBER('Govt bond inputs'!HE72),'Govt bond inputs'!HE72,"") ->  | HF16: =IF(ISNUMBER('Govt bond inputs'!HF72),'Govt bond inputs'!HF72,"") ->  | HG16: =IF(ISNUMBER('Govt bond inputs'!HG72),'Govt bond inputs'!HG72,"") ->  | HH16: =IF(ISNUMBER('Govt bond inputs'!HH72),'Govt bond inputs'!HH72,"") ->  | HI16: =IF(ISNUMBER('Govt bond inputs'!HI72),'Govt bond inputs'!HI72,"") ->  | HJ16: =IF(ISNUMBER('Govt bond inputs'!HJ72),'Govt bond inputs'!HJ72,"") ->  | HK16: =IF(ISNUMBER('Govt bond inputs'!HK72),'Govt bond inputs'!HK72,"") ->  | HL16: =IF(ISNUMBER('Govt bond inputs'!HL72),'Govt bond inputs'!HL72,"") ->  | HM16: =IF(ISNUMBER('Govt bond inputs'!HM72),'Govt bond inputs'!HM72,"") ->  | HN16: =IF(ISNUMBER('Govt bond inputs'!HN72),'Govt bond inputs'!HN72,"") ->  | HO16: =IF(ISNUMBER('Govt bond inputs'!HO72),'Govt bond inputs'!HO72,"") ->  | HP16: =IF(ISNUMBER('Govt bond inputs'!HP72),'Govt bond inputs'!HP72,"") ->  | HQ16: =IF(ISNUMBER('Govt bond inputs'!HQ72),'Govt bond inputs'!HQ72,"") ->  | HR16: =IF(ISNUMBER('Govt bond inputs'!HR72),'Govt bond inputs'!HR72,"") ->  | HS16: =IF(ISNUMBER('Govt bond inputs'!HS72),'Govt bond inputs'!HS72,"") ->  | HT16: =IF(ISNUMBER('Govt bond inputs'!HT72),'Govt bond inputs'!HT72,"") ->  | HU16: =IF(ISNUMBER('Govt bond inputs'!HU72),'Govt bond inputs'!HU72,"") ->  | HV16: =IF(ISNUMBER('Govt bond inputs'!HV72),'Govt bond inputs'!HV72,"") ->  | HW16: =IF(ISNUMBER('Govt bond inputs'!HW72),'Govt bond inputs'!HW72,"") ->  | HX16: =IF(ISNUMBER('Govt bond inputs'!HX72),'Govt bond inputs'!HX72,"") ->  | HY16: =IF(ISNUMBER('Govt bond inputs'!HY72),'Govt bond inputs'!HY72,"") ->  | HZ16: =IF(ISNUMBER('Govt bond inputs'!HZ72),'Govt bond inputs'!HZ72,"") ->  | IA16: =IF(ISNUMBER('Govt bond inputs'!IA72),'Govt bond inputs'!IA72,"") ->  | IB16: =IF(ISNUMBER('Govt bond inputs'!IB72),'Govt bond inputs'!IB72,"") ->  | IC16: =IF(ISNUMBER('Govt bond inputs'!IC72),'Govt bond inputs'!IC72,"") ->  | ID16: =IF(ISNUMBER('Govt bond inputs'!ID72),'Govt bond inputs'!ID72,"") ->  | IE16: =IF(ISNUMBER('Govt bond inputs'!IE72),'Govt bond inputs'!IE72,"") ->  | IF16: =IF(ISNUMBER('Govt bond inputs'!IF72),'Govt bond inputs'!IF72,"") ->  | IG16: =IF(ISNUMBER('Govt bond inputs'!IG72),'Govt bond inputs'!IG72,"") ->  | IH16: =IF(ISNUMBER('Govt bond inputs'!IH72),'Govt bond inputs'!IH72,"") ->  | II16: =IF(ISNUMBER('Govt bond inputs'!II72),'Govt bond inputs'!II72,"") ->  | IJ16: =IF(ISNUMBER('Govt bond inputs'!IJ72),'Govt bond inputs'!IJ72,"") ->  | IK16: =IF(ISNUMBER('Govt bond inputs'!IK72),'Govt bond inputs'!IK72,"") ->  | IL16: =IF(ISNUMBER('Govt bond inputs'!IL72),'Govt bond inputs'!IL72,"") ->  | IM16: =IF(ISNUMBER('Govt bond inputs'!IM72),'Govt bond inputs'!IM72,"") ->  | IN16: =IF(ISNUMBER('Govt bond inputs'!IN72),'Govt bond inputs'!IN72,"") ->  | IO16: =IF(ISNUMBER('Govt bond inputs'!IO72),'Govt bond inputs'!IO72,"") ->  | IP16: =IF(ISNUMBER('Govt bond inputs'!IP72),'Govt bond inputs'!IP72,"") ->  | IQ16: =IF(ISNUMBER('Govt bond inputs'!IQ72),'Govt bond inputs'!IQ72,"") ->  | IR16: =IF(ISNUMBER('Govt bond inputs'!IR72),'Govt bond inputs'!IR72,"") ->  | IS16: =IF(ISNUMBER('Govt bond inputs'!IS72),'Govt bond inputs'!IS72,"") ->  | IT16: =IF(ISNUMBER('Govt bond inputs'!IT72),'Govt bond inputs'!IT72,"") ->  | IU16: =IF(ISNUMBER('Govt bond inputs'!IU72),'Govt bond inputs'!IU72,"") ->  | IV16: =IF(ISNUMBER('Govt bond inputs'!IV72),'Govt bond inputs'!IV72,"") ->  | IW16: =IF(ISNUMBER('Govt bond inputs'!IW72),'Govt bond inputs'!IW72,"") ->  | IX16: =IF(ISNUMBER('Govt bond inputs'!IX72),'Govt bond inputs'!IX72,"") ->  | IY16: =IF(ISNUMBER('Govt bond inputs'!IY72),'Govt bond inputs'!IY72,"") ->  | IZ16: =IF(ISNUMBER('Govt bond inputs'!IZ72),'Govt bond inputs'!IZ72,"") ->  | JA16: =IF(ISNUMBER('Govt bond inputs'!JA72),'Govt bond inputs'!JA72,"") ->  | JB16: =IF(ISNUMBER('Govt bond inputs'!JB72),'Govt bond inputs'!JB72,"") ->  | JC16: =IF(ISNUMBER('Govt bond inputs'!JC72),'Govt bond inputs'!JC72,"") ->  | JD16: =IF(ISNUMBER('Govt bond inputs'!JD72),'Govt bond inputs'!JD72,"") ->  | JE16: =IF(ISNUMBER('Govt bond inputs'!JE72),'Govt bond inputs'!JE72,"") ->  | JF16: =IF(ISNUMBER('Govt bond inputs'!JF72),'Govt bond inputs'!JF72,"") ->  | JG16: =IF(ISNUMBER('Govt bond inputs'!JG72),'Govt bond inputs'!JG72,"") ->  | JH16: =IF(ISNUMBER('Govt bond inputs'!JH72),'Govt bond inputs'!JH72,"") ->  | JI16: =IF(ISNUMBER('Govt bond inputs'!JI72),'Govt bond inputs'!JI72,"") ->  | JJ16: =IF(ISNUMBER('Govt bond inputs'!JJ72),'Govt bond inputs'!JJ72,"") ->  | JK16: =IF(ISNUMBER('Govt bond inputs'!JK72),'Govt bond inputs'!JK72,"") ->  | JL16: =IF(ISNUMBER('Govt bond inputs'!JL72),'Govt bond inputs'!JL72,"") ->  | JM16: =IF(ISNUMBER('Govt bond inputs'!JM72),'Govt bond inputs'!JM72,"") ->  | JN16: =IF(ISNUMBER('Govt bond inputs'!JN72),'Govt bond inputs'!JN72,"") ->  | JO16: =IF(ISNUMBER('Govt bond inputs'!JO72),'Govt bond inputs'!JO72,"") ->  | JP16: =IF(ISNUMBER('Govt bond inputs'!JP72),'Govt bond inputs'!JP72,"") ->  | JQ16: =IF(ISNUMBER('Govt bond inputs'!JQ72),'Govt bond inputs'!JQ72,"") -> 
B17: ='Govt bond inputs'!D73 -> 0 | C17: =IF('Govt bond inputs'!H73="NR", 'Govt bond inputs'!G73, 'Govt bond inputs'!H73) -> 0 | D17: ='Govt bond inputs'!L73 -> 0 | E17: ='Govt bond inputs'!O73 -> 0 | Q17: =IF(ISNUMBER('Govt bond inputs'!Q73),'Govt bond inputs'!Q73,"") ->  | R17: =IF(ISNUMBER('Govt bond inputs'!R73),'Govt bond inputs'!R73,"") ->  | S17: =IF(ISNUMBER('Govt bond inputs'!S73),'Govt bond inputs'!S73,"") ->  | T17: =IF(ISNUMBER('Govt bond inputs'!T73),'Govt bond inputs'!T73,"") ->  | U17: =IF(ISNUMBER('Govt bond inputs'!U73),'Govt bond inputs'!U73,"") ->  | V17: =IF(ISNUMBER('Govt bond inputs'!V73),'Govt bond inputs'!V73,"") ->  | W17: =IF(ISNUMBER('Govt bond inputs'!W73),'Govt bond inputs'!W73,"") ->  | X17: =IF(ISNUMBER('Govt bond inputs'!X73),'Govt bond inputs'!X73,"") ->  | Y17: =IF(ISNUMBER('Govt bond inputs'!Y73),'Govt bond inputs'!Y73,"") ->  | Z17: =IF(ISNUMBER('Govt bond inputs'!Z73),'Govt bond inputs'!Z73,"") ->  | AA17: =IF(ISNUMBER('Govt bond inputs'!AA73),'Govt bond inputs'!AA73,"") ->  | AB17: =IF(ISNUMBER('Govt bond inputs'!AB73),'Govt bond inputs'!AB73,"") ->  | AC17: =IF(ISNUMBER('Govt bond inputs'!AC73),'Govt bond inputs'!AC73,"") ->  | AD17: =IF(ISNUMBER('Govt bond inputs'!AD73),'Govt bond inputs'!AD73,"") ->  | AE17: =IF(ISNUMBER('Govt bond inputs'!AE73),'Govt bond inputs'!AE73,"") ->  | AF17: =IF(ISNUMBER('Govt bond inputs'!AF73),'Govt bond inputs'!AF73,"") ->  | AG17: =IF(ISNUMBER('Govt bond inputs'!AG73),'Govt bond inputs'!AG73,"") ->  | AH17: =IF(ISNUMBER('Govt bond inputs'!AH73),'Govt bond inputs'!AH73,"") ->  | AI17: =IF(ISNUMBER('Govt bond inputs'!AI73),'Govt bond inputs'!AI73,"") ->  | AJ17: =IF(ISNUMBER('Govt bond inputs'!AJ73),'Govt bond inputs'!AJ73,"") ->  | AK17: =IF(ISNUMBER('Govt bond inputs'!AK73),'Govt bond inputs'!AK73,"") ->  | AL17: =IF(ISNUMBER('Govt bond inputs'!AL73),'Govt bond inputs'!AL73,"") ->  | AM17: =IF(ISNUMBER('Govt bond inputs'!AM73),'Govt bond inputs'!AM73,"") ->  | AN17: =IF(ISNUMBER('Govt bond inputs'!AN73),'Govt bond inputs'!AN73,"") ->  | AO17: =IF(ISNUMBER('Govt bond inputs'!AO73),'Govt bond inputs'!AO73,"") ->  | AP17: =IF(ISNUMBER('Govt bond inputs'!AP73),'Govt bond inputs'!AP73,"") ->  | AQ17: =IF(ISNUMBER('Govt bond inputs'!AQ73),'Govt bond inputs'!AQ73,"") ->  | AR17: =IF(ISNUMBER('Govt bond inputs'!AR73),'Govt bond inputs'!AR73,"") ->  | AS17: =IF(ISNUMBER('Govt bond inputs'!AS73),'Govt bond inputs'!AS73,"") ->  | AT17: =IF(ISNUMBER('Govt bond inputs'!AT73),'Govt bond inputs'!AT73,"") ->  | AU17: =IF(ISNUMBER('Govt bond inputs'!AU73),'Govt bond inputs'!AU73,"") ->  | AV17: =IF(ISNUMBER('Govt bond inputs'!AV73),'Govt bond inputs'!AV73,"") ->  | AW17: =IF(ISNUMBER('Govt bond inputs'!AW73),'Govt bond inputs'!AW73,"") ->  | AX17: =IF(ISNUMBER('Govt bond inputs'!AX73),'Govt bond inputs'!AX73,"") ->  | AY17: =IF(ISNUMBER('Govt bond inputs'!AY73),'Govt bond inputs'!AY73,"") ->  | AZ17: =IF(ISNUMBER('Govt bond inputs'!AZ73),'Govt bond inputs'!AZ73,"") ->  | BA17: =IF(ISNUMBER('Govt bond inputs'!BA73),'Govt bond inputs'!BA73,"") ->  | BB17: =IF(ISNUMBER('Govt bond inputs'!BB73),'Govt bond inputs'!BB73,"") ->  | BC17: =IF(ISNUMBER('Govt bond inputs'!BC73),'Govt bond inputs'!BC73,"") ->  | BD17: =IF(ISNUMBER('Govt bond inputs'!BD73),'Govt bond inputs'!BD73,"") ->  | BE17: =IF(ISNUMBER('Govt bond inputs'!BE73),'Govt bond inputs'!BE73,"") ->  | BF17: =IF(ISNUMBER('Govt bond inputs'!BF73),'Govt bond inputs'!BF73,"") ->  | BG17: =IF(ISNUMBER('Govt bond inputs'!BG73),'Govt bond inputs'!BG73,"") ->  | BH17: =IF(ISNUMBER('Govt bond inputs'!BH73),'Govt bond inputs'!BH73,"") ->  | BI17: =IF(ISNUMBER('Govt bond inputs'!BI73),'Govt bond inputs'!BI73,"") ->  | BJ17: =IF(ISNUMBER('Govt bond inputs'!BJ73),'Govt bond inputs'!BJ73,"") ->  | BK17: =IF(ISNUMBER('Govt bond inputs'!BK73),'Govt bond inputs'!BK73,"") ->  | BL17: =IF(ISNUMBER('Govt bond inputs'!BL73),'Govt bond inputs'!BL73,"") ->  | BM17: =IF(ISNUMBER('Govt bond inputs'!BM73),'Govt bond inputs'!BM73,"") ->  | BN17: =IF(ISNUMBER('Govt bond inputs'!BN73),'Govt bond inputs'!BN73,"") ->  | BO17: =IF(ISNUMBER('Govt bond inputs'!BO73),'Govt bond inputs'!BO73,"") ->  | BP17: =IF(ISNUMBER('Govt bond inputs'!BP73),'Govt bond inputs'!BP73,"") ->  | BQ17: =IF(ISNUMBER('Govt bond inputs'!BQ73),'Govt bond inputs'!BQ73,"") ->  | BR17: =IF(ISNUMBER('Govt bond inputs'!BR73),'Govt bond inputs'!BR73,"") ->  | BS17: =IF(ISNUMBER('Govt bond inputs'!BS73),'Govt bond inputs'!BS73,"") ->  | BT17: =IF(ISNUMBER('Govt bond inputs'!BT73),'Govt bond inputs'!BT73,"") ->  | BU17: =IF(ISNUMBER('Govt bond inputs'!BU73),'Govt bond inputs'!BU73,"") ->  | BV17: =IF(ISNUMBER('Govt bond inputs'!BV73),'Govt bond inputs'!BV73,"") ->  | BW17: =IF(ISNUMBER('Govt bond inputs'!BW73),'Govt bond inputs'!BW73,"") ->  | BX17: =IF(ISNUMBER('Govt bond inputs'!BX73),'Govt bond inputs'!BX73,"") ->  | BY17: =IF(ISNUMBER('Govt bond inputs'!BY73),'Govt bond inputs'!BY73,"") ->  | BZ17: =IF(ISNUMBER('Govt bond inputs'!BZ73),'Govt bond inputs'!BZ73,"") ->  | CA17: =IF(ISNUMBER('Govt bond inputs'!CA73),'Govt bond inputs'!CA73,"") ->  | CB17: =IF(ISNUMBER('Govt bond inputs'!CB73),'Govt bond inputs'!CB73,"") ->  | CC17: =IF(ISNUMBER('Govt bond inputs'!CC73),'Govt bond inputs'!CC73,"") ->  | CD17: =IF(ISNUMBER('Govt bond inputs'!CD73),'Govt bond inputs'!CD73,"") ->  | CE17: =IF(ISNUMBER('Govt bond inputs'!CE73),'Govt bond inputs'!CE73,"") ->  | CF17: =IF(ISNUMBER('Govt bond inputs'!CF73),'Govt bond inputs'!CF73,"") ->  | CG17: =IF(ISNUMBER('Govt bond inputs'!CG73),'Govt bond inputs'!CG73,"") ->  | CH17: =IF(ISNUMBER('Govt bond inputs'!CH73),'Govt bond inputs'!CH73,"") ->  | CI17: =IF(ISNUMBER('Govt bond inputs'!CI73),'Govt bond inputs'!CI73,"") ->  | CJ17: =IF(ISNUMBER('Govt bond inputs'!CJ73),'Govt bond inputs'!CJ73,"") ->  | CK17: =IF(ISNUMBER('Govt bond inputs'!CK73),'Govt bond inputs'!CK73,"") ->  | CL17: =IF(ISNUMBER('Govt bond inputs'!CL73),'Govt bond inputs'!CL73,"") ->  | CM17: =IF(ISNUMBER('Govt bond inputs'!CM73),'Govt bond inputs'!CM73,"") ->  | CN17: =IF(ISNUMBER('Govt bond inputs'!CN73),'Govt bond inputs'!CN73,"") ->  | CO17: =IF(ISNUMBER('Govt bond inputs'!CO73),'Govt bond inputs'!CO73,"") ->  | CP17: =IF(ISNUMBER('Govt bond inputs'!CP73),'Govt bond inputs'!CP73,"") ->  | CQ17: =IF(ISNUMBER('Govt bond inputs'!CQ73),'Govt bond inputs'!CQ73,"") ->  | CR17: =IF(ISNUMBER('Govt bond inputs'!CR73),'Govt bond inputs'!CR73,"") ->  | CS17: =IF(ISNUMBER('Govt bond inputs'!CS73),'Govt bond inputs'!CS73,"") ->  | CT17: =IF(ISNUMBER('Govt bond inputs'!CT73),'Govt bond inputs'!CT73,"") ->  | CU17: =IF(ISNUMBER('Govt bond inputs'!CU73),'Govt bond inputs'!CU73,"") ->  | CV17: =IF(ISNUMBER('Govt bond inputs'!CV73),'Govt bond inputs'!CV73,"") ->  | CW17: =IF(ISNUMBER('Govt bond inputs'!CW73),'Govt bond inputs'!CW73,"") ->  | CX17: =IF(ISNUMBER('Govt bond inputs'!CX73),'Govt bond inputs'!CX73,"") ->  | CY17: =IF(ISNUMBER('Govt bond inputs'!CY73),'Govt bond inputs'!CY73,"") ->  | CZ17: =IF(ISNUMBER('Govt bond inputs'!CZ73),'Govt bond inputs'!CZ73,"") ->  | DA17: =IF(ISNUMBER('Govt bond inputs'!DA73),'Govt bond inputs'!DA73,"") ->  | DB17: =IF(ISNUMBER('Govt bond inputs'!DB73),'Govt bond inputs'!DB73,"") ->  | DC17: =IF(ISNUMBER('Govt bond inputs'!DC73),'Govt bond inputs'!DC73,"") ->  | DD17: =IF(ISNUMBER('Govt bond inputs'!DD73),'Govt bond inputs'!DD73,"") ->  | DE17: =IF(ISNUMBER('Govt bond inputs'!DE73),'Govt bond inputs'!DE73,"") ->  | DF17: =IF(ISNUMBER('Govt bond inputs'!DF73),'Govt bond inputs'!DF73,"") ->  | DG17: =IF(ISNUMBER('Govt bond inputs'!DG73),'Govt bond inputs'!DG73,"") ->  | DH17: =IF(ISNUMBER('Govt bond inputs'!DH73),'Govt bond inputs'!DH73,"") ->  | DI17: =IF(ISNUMBER('Govt bond inputs'!DI73),'Govt bond inputs'!DI73,"") ->  | DJ17: =IF(ISNUMBER('Govt bond inputs'!DJ73),'Govt bond inputs'!DJ73,"") ->  | DK17: =IF(ISNUMBER('Govt bond inputs'!DK73),'Govt bond inputs'!DK73,"") ->  | DL17: =IF(ISNUMBER('Govt bond inputs'!DL73),'Govt bond inputs'!DL73,"") ->  | DM17: =IF(ISNUMBER('Govt bond inputs'!DM73),'Govt bond inputs'!DM73,"") ->  | DN17: =IF(ISNUMBER('Govt bond inputs'!DN73),'Govt bond inputs'!DN73,"") ->  | DO17: =IF(ISNUMBER('Govt bond inputs'!DO73),'Govt bond inputs'!DO73,"") ->  | DP17: =IF(ISNUMBER('Govt bond inputs'!DP73),'Govt bond inputs'!DP73,"") ->  | DQ17: =IF(ISNUMBER('Govt bond inputs'!DQ73),'Govt bond inputs'!DQ73,"") ->  | DR17: =IF(ISNUMBER('Govt bond inputs'!DR73),'Govt bond inputs'!DR73,"") ->  | DS17: =IF(ISNUMBER('Govt bond inputs'!DS73),'Govt bond inputs'!DS73,"") ->  | DT17: =IF(ISNUMBER('Govt bond inputs'!DT73),'Govt bond inputs'!DT73,"") ->  | DU17: =IF(ISNUMBER('Govt bond inputs'!DU73),'Govt bond inputs'!DU73,"") ->  | DV17: =IF(ISNUMBER('Govt bond inputs'!DV73),'Govt bond inputs'!DV73,"") ->  | DW17: =IF(ISNUMBER('Govt bond inputs'!DW73),'Govt bond inputs'!DW73,"") ->  | DX17: =IF(ISNUMBER('Govt bond inputs'!DX73),'Govt bond inputs'!DX73,"") ->  | DY17: =IF(ISNUMBER('Govt bond inputs'!DY73),'Govt bond inputs'!DY73,"") ->  | DZ17: =IF(ISNUMBER('Govt bond inputs'!DZ73),'Govt bond inputs'!DZ73,"") ->  | EA17: =IF(ISNUMBER('Govt bond inputs'!EA73),'Govt bond inputs'!EA73,"") ->  | EB17: =IF(ISNUMBER('Govt bond inputs'!EB73),'Govt bond inputs'!EB73,"") ->  | EC17: =IF(ISNUMBER('Govt bond inputs'!EC73),'Govt bond inputs'!EC73,"") ->  | ED17: =IF(ISNUMBER('Govt bond inputs'!ED73),'Govt bond inputs'!ED73,"") ->  | EE17: =IF(ISNUMBER('Govt bond inputs'!EE73),'Govt bond inputs'!EE73,"") ->  | EF17: =IF(ISNUMBER('Govt bond inputs'!EF73),'Govt bond inputs'!EF73,"") ->  | EG17: =IF(ISNUMBER('Govt bond inputs'!EG73),'Govt bond inputs'!EG73,"") ->  | EH17: =IF(ISNUMBER('Govt bond inputs'!EH73),'Govt bond inputs'!EH73,"") ->  | EI17: =IF(ISNUMBER('Govt bond inputs'!EI73),'Govt bond inputs'!EI73,"") ->  | EJ17: =IF(ISNUMBER('Govt bond inputs'!EJ73),'Govt bond inputs'!EJ73,"") ->  | EK17: =IF(ISNUMBER('Govt bond inputs'!EK73),'Govt bond inputs'!EK73,"") ->  | EL17: =IF(ISNUMBER('Govt bond inputs'!EL73),'Govt bond inputs'!EL73,"") ->  | EM17: =IF(ISNUMBER('Govt bond inputs'!EM73),'Govt bond inputs'!EM73,"") ->  | EN17: =IF(ISNUMBER('Govt bond inputs'!EN73),'Govt bond inputs'!EN73,"") ->  | EO17: =IF(ISNUMBER('Govt bond inputs'!EO73),'Govt bond inputs'!EO73,"") ->  | EP17: =IF(ISNUMBER('Govt bond inputs'!EP73),'Govt bond inputs'!EP73,"") ->  | EQ17: =IF(ISNUMBER('Govt bond inputs'!EQ73),'Govt bond inputs'!EQ73,"") ->  | ER17: =IF(ISNUMBER('Govt bond inputs'!ER73),'Govt bond inputs'!ER73,"") ->  | ES17: =IF(ISNUMBER('Govt bond inputs'!ES73),'Govt bond inputs'!ES73,"") ->  | ET17: =IF(ISNUMBER('Govt bond inputs'!ET73),'Govt bond inputs'!ET73,"") ->  | EU17: =IF(ISNUMBER('Govt bond inputs'!EU73),'Govt bond inputs'!EU73,"") ->  | EV17: =IF(ISNUMBER('Govt bond inputs'!EV73),'Govt bond inputs'!EV73,"") ->  | EW17: =IF(ISNUMBER('Govt bond inputs'!EW73),'Govt bond inputs'!EW73,"") ->  | EX17: =IF(ISNUMBER('Govt bond inputs'!EX73),'Govt bond inputs'!EX73,"") ->  | EY17: =IF(ISNUMBER('Govt bond inputs'!EY73),'Govt bond inputs'!EY73,"") ->  | EZ17: =IF(ISNUMBER('Govt bond inputs'!EZ73),'Govt bond inputs'!EZ73,"") ->  | FA17: =IF(ISNUMBER('Govt bond inputs'!FA73),'Govt bond inputs'!FA73,"") ->  | FB17: =IF(ISNUMBER('Govt bond inputs'!FB73),'Govt bond inputs'!FB73,"") ->  | FC17: =IF(ISNUMBER('Govt bond inputs'!FC73),'Govt bond inputs'!FC73,"") ->  | FD17: =IF(ISNUMBER('Govt bond inputs'!FD73),'Govt bond inputs'!FD73,"") ->  | FE17: =IF(ISNUMBER('Govt bond inputs'!FE73),'Govt bond inputs'!FE73,"") ->  | FF17: =IF(ISNUMBER('Govt bond inputs'!FF73),'Govt bond inputs'!FF73,"") ->  | FG17: =IF(ISNUMBER('Govt bond inputs'!FG73),'Govt bond inputs'!FG73,"") ->  | FH17: =IF(ISNUMBER('Govt bond inputs'!FH73),'Govt bond inputs'!FH73,"") ->  | FI17: =IF(ISNUMBER('Govt bond inputs'!FI73),'Govt bond inputs'!FI73,"") ->  | FJ17: =IF(ISNUMBER('Govt bond inputs'!FJ73),'Govt bond inputs'!FJ73,"") ->  | FK17: =IF(ISNUMBER('Govt bond inputs'!FK73),'Govt bond inputs'!FK73,"") ->  | FL17: =IF(ISNUMBER('Govt bond inputs'!FL73),'Govt bond inputs'!FL73,"") ->  | FM17: =IF(ISNUMBER('Govt bond inputs'!FM73),'Govt bond inputs'!FM73,"") ->  | FN17: =IF(ISNUMBER('Govt bond inputs'!FN73),'Govt bond inputs'!FN73,"") ->  | FO17: =IF(ISNUMBER('Govt bond inputs'!FO73),'Govt bond inputs'!FO73,"") ->  | FP17: =IF(ISNUMBER('Govt bond inputs'!FP73),'Govt bond inputs'!FP73,"") ->  | FQ17: =IF(ISNUMBER('Govt bond inputs'!FQ73),'Govt bond inputs'!FQ73,"") ->  | FR17: =IF(ISNUMBER('Govt bond inputs'!FR73),'Govt bond inputs'!FR73,"") ->  | FS17: =IF(ISNUMBER('Govt bond inputs'!FS73),'Govt bond inputs'!FS73,"") ->  | FT17: =IF(ISNUMBER('Govt bond inputs'!FT73),'Govt bond inputs'!FT73,"") ->  | FU17: =IF(ISNUMBER('Govt bond inputs'!FU73),'Govt bond inputs'!FU73,"") ->  | FV17: =IF(ISNUMBER('Govt bond inputs'!FV73),'Govt bond inputs'!FV73,"") ->  | FW17: =IF(ISNUMBER('Govt bond inputs'!FW73),'Govt bond inputs'!FW73,"") ->  | FX17: =IF(ISNUMBER('Govt bond inputs'!FX73),'Govt bond inputs'!FX73,"") ->  | FY17: =IF(ISNUMBER('Govt bond inputs'!FY73),'Govt bond inputs'!FY73,"") ->  | FZ17: =IF(ISNUMBER('Govt bond inputs'!FZ73),'Govt bond inputs'!FZ73,"") ->  | GA17: =IF(ISNUMBER('Govt bond inputs'!GA73),'Govt bond inputs'!GA73,"") ->  | GB17: =IF(ISNUMBER('Govt bond inputs'!GB73),'Govt bond inputs'!GB73,"") ->  | GC17: =IF(ISNUMBER('Govt bond inputs'!GC73),'Govt bond inputs'!GC73,"") ->  | GD17: =IF(ISNUMBER('Govt bond inputs'!GD73),'Govt bond inputs'!GD73,"") ->  | GE17: =IF(ISNUMBER('Govt bond inputs'!GE73),'Govt bond inputs'!GE73,"") ->  | GF17: =IF(ISNUMBER('Govt bond inputs'!GF73),'Govt bond inputs'!GF73,"") ->  | GG17: =IF(ISNUMBER('Govt bond inputs'!GG73),'Govt bond inputs'!GG73,"") ->  | GH17: =IF(ISNUMBER('Govt bond inputs'!GH73),'Govt bond inputs'!GH73,"") ->  | GI17: =IF(ISNUMBER('Govt bond inputs'!GI73),'Govt bond inputs'!GI73,"") ->  | GJ17: =IF(ISNUMBER('Govt bond inputs'!GJ73),'Govt bond inputs'!GJ73,"") ->  | GK17: =IF(ISNUMBER('Govt bond inputs'!GK73),'Govt bond inputs'!GK73,"") ->  | GL17: =IF(ISNUMBER('Govt bond inputs'!GL73),'Govt bond inputs'!GL73,"") ->  | GM17: =IF(ISNUMBER('Govt bond inputs'!GM73),'Govt bond inputs'!GM73,"") ->  | GN17: =IF(ISNUMBER('Govt bond inputs'!GN73),'Govt bond inputs'!GN73,"") ->  | GO17: =IF(ISNUMBER('Govt bond inputs'!GO73),'Govt bond inputs'!GO73,"") ->  | GP17: =IF(ISNUMBER('Govt bond inputs'!GP73),'Govt bond inputs'!GP73,"") ->  | GQ17: =IF(ISNUMBER('Govt bond inputs'!GQ73),'Govt bond inputs'!GQ73,"") ->  | GR17: =IF(ISNUMBER('Govt bond inputs'!GR73),'Govt bond inputs'!GR73,"") ->  | GS17: =IF(ISNUMBER('Govt bond inputs'!GS73),'Govt bond inputs'!GS73,"") ->  | GT17: =IF(ISNUMBER('Govt bond inputs'!GT73),'Govt bond inputs'!GT73,"") ->  | GU17: =IF(ISNUMBER('Govt bond inputs'!GU73),'Govt bond inputs'!GU73,"") ->  | GV17: =IF(ISNUMBER('Govt bond inputs'!GV73),'Govt bond inputs'!GV73,"") ->  | GW17: =IF(ISNUMBER('Govt bond inputs'!GW73),'Govt bond inputs'!GW73,"") ->  | GX17: =IF(ISNUMBER('Govt bond inputs'!GX73),'Govt bond inputs'!GX73,"") ->  | GY17: =IF(ISNUMBER('Govt bond inputs'!GY73),'Govt bond inputs'!GY73,"") ->  | GZ17: =IF(ISNUMBER('Govt bond inputs'!GZ73),'Govt bond inputs'!GZ73,"") ->  | HA17: =IF(ISNUMBER('Govt bond inputs'!HA73),'Govt bond inputs'!HA73,"") ->  | HB17: =IF(ISNUMBER('Govt bond inputs'!HB73),'Govt bond inputs'!HB73,"") ->  | HC17: =IF(ISNUMBER('Govt bond inputs'!HC73),'Govt bond inputs'!HC73,"") ->  | HD17: =IF(ISNUMBER('Govt bond inputs'!HD73),'Govt bond inputs'!HD73,"") ->  | HE17: =IF(ISNUMBER('Govt bond inputs'!HE73),'Govt bond inputs'!HE73,"") ->  | HF17: =IF(ISNUMBER('Govt bond inputs'!HF73),'Govt bond inputs'!HF73,"") ->  | HG17: =IF(ISNUMBER('Govt bond inputs'!HG73),'Govt bond inputs'!HG73,"") ->  | HH17: =IF(ISNUMBER('Govt bond inputs'!HH73),'Govt bond inputs'!HH73,"") ->  | HI17: =IF(ISNUMBER('Govt bond inputs'!HI73),'Govt bond inputs'!HI73,"") ->  | HJ17: =IF(ISNUMBER('Govt bond inputs'!HJ73),'Govt bond inputs'!HJ73,"") ->  | HK17: =IF(ISNUMBER('Govt bond inputs'!HK73),'Govt bond inputs'!HK73,"") ->  | HL17: =IF(ISNUMBER('Govt bond inputs'!HL73),'Govt bond inputs'!HL73,"") ->  | HM17: =IF(ISNUMBER('Govt bond inputs'!HM73),'Govt bond inputs'!HM73,"") ->  | HN17: =IF(ISNUMBER('Govt bond inputs'!HN73),'Govt bond inputs'!HN73,"") ->  | HO17: =IF(ISNUMBER('Govt bond inputs'!HO73),'Govt bond inputs'!HO73,"") ->  | HP17: =IF(ISNUMBER('Govt bond inputs'!HP73),'Govt bond inputs'!HP73,"") ->  | HQ17: =IF(ISNUMBER('Govt bond inputs'!HQ73),'Govt bond inputs'!HQ73,"") ->  | HR17: =IF(ISNUMBER('Govt bond inputs'!HR73),'Govt bond inputs'!HR73,"") ->  | HS17: =IF(ISNUMBER('Govt bond inputs'!HS73),'Govt bond inputs'!HS73,"") ->  | HT17: =IF(ISNUMBER('Govt bond inputs'!HT73),'Govt bond inputs'!HT73,"") ->  | HU17: =IF(ISNUMBER('Govt bond inputs'!HU73),'Govt bond inputs'!HU73,"") ->  | HV17: =IF(ISNUMBER('Govt bond inputs'!HV73),'Govt bond inputs'!HV73,"") ->  | HW17: =IF(ISNUMBER('Govt bond inputs'!HW73),'Govt bond inputs'!HW73,"") ->  | HX17: =IF(ISNUMBER('Govt bond inputs'!HX73),'Govt bond inputs'!HX73,"") ->  | HY17: =IF(ISNUMBER('Govt bond inputs'!HY73),'Govt bond inputs'!HY73,"") ->  | HZ17: =IF(ISNUMBER('Govt bond inputs'!HZ73),'Govt bond inputs'!HZ73,"") ->  | IA17: =IF(ISNUMBER('Govt bond inputs'!IA73),'Govt bond inputs'!IA73,"") ->  | IB17: =IF(ISNUMBER('Govt bond inputs'!IB73),'Govt bond inputs'!IB73,"") ->  | IC17: =IF(ISNUMBER('Govt bond inputs'!IC73),'Govt bond inputs'!IC73,"") ->  | ID17: =IF(ISNUMBER('Govt bond inputs'!ID73),'Govt bond inputs'!ID73,"") ->  | IE17: =IF(ISNUMBER('Govt bond inputs'!IE73),'Govt bond inputs'!IE73,"") ->  | IF17: =IF(ISNUMBER('Govt bond inputs'!IF73),'Govt bond inputs'!IF73,"") ->  | IG17: =IF(ISNUMBER('Govt bond inputs'!IG73),'Govt bond inputs'!IG73,"") ->  | IH17: =IF(ISNUMBER('Govt bond inputs'!IH73),'Govt bond inputs'!IH73,"") ->  | II17: =IF(ISNUMBER('Govt bond inputs'!II73),'Govt bond inputs'!II73,"") ->  | IJ17: =IF(ISNUMBER('Govt bond inputs'!IJ73),'Govt bond inputs'!IJ73,"") ->  | IK17: =IF(ISNUMBER('Govt bond inputs'!IK73),'Govt bond inputs'!IK73,"") ->  | IL17: =IF(ISNUMBER('Govt bond inputs'!IL73),'Govt bond inputs'!IL73,"") ->  | IM17: =IF(ISNUMBER('Govt bond inputs'!IM73),'Govt bond inputs'!IM73,"") ->  | IN17: =IF(ISNUMBER('Govt bond inputs'!IN73),'Govt bond inputs'!IN73,"") ->  | IO17: =IF(ISNUMBER('Govt bond inputs'!IO73),'Govt bond inputs'!IO73,"") ->  | IP17: =IF(ISNUMBER('Govt bond inputs'!IP73),'Govt bond inputs'!IP73,"") ->  | IQ17: =IF(ISNUMBER('Govt bond inputs'!IQ73),'Govt bond inputs'!IQ73,"") ->  | IR17: =IF(ISNUMBER('Govt bond inputs'!IR73),'Govt bond inputs'!IR73,"") ->  | IS17: =IF(ISNUMBER('Govt bond inputs'!IS73),'Govt bond inputs'!IS73,"") ->  | IT17: =IF(ISNUMBER('Govt bond inputs'!IT73),'Govt bond inputs'!IT73,"") ->  | IU17: =IF(ISNUMBER('Govt bond inputs'!IU73),'Govt bond inputs'!IU73,"") ->  | IV17: =IF(ISNUMBER('Govt bond inputs'!IV73),'Govt bond inputs'!IV73,"") ->  | IW17: =IF(ISNUMBER('Govt bond inputs'!IW73),'Govt bond inputs'!IW73,"") ->  | IX17: =IF(ISNUMBER('Govt bond inputs'!IX73),'Govt bond inputs'!IX73,"") ->  | IY17: =IF(ISNUMBER('Govt bond inputs'!IY73),'Govt bond inputs'!IY73,"") ->  | IZ17: =IF(ISNUMBER('Govt bond inputs'!IZ73),'Govt bond inputs'!IZ73,"") ->  | JA17: =IF(ISNUMBER('Govt bond inputs'!JA73),'Govt bond inputs'!JA73,"") ->  | JB17: =IF(ISNUMBER('Govt bond inputs'!JB73),'Govt bond inputs'!JB73,"") ->  | JC17: =IF(ISNUMBER('Govt bond inputs'!JC73),'Govt bond inputs'!JC73,"") ->  | JD17: =IF(ISNUMBER('Govt bond inputs'!JD73),'Govt bond inputs'!JD73,"") ->  | JE17: =IF(ISNUMBER('Govt bond inputs'!JE73),'Govt bond inputs'!JE73,"") ->  | JF17: =IF(ISNUMBER('Govt bond inputs'!JF73),'Govt bond inputs'!JF73,"") ->  | JG17: =IF(ISNUMBER('Govt bond inputs'!JG73),'Govt bond inputs'!JG73,"") ->  | JH17: =IF(ISNUMBER('Govt bond inputs'!JH73),'Govt bond inputs'!JH73,"") ->  | JI17: =IF(ISNUMBER('Govt bond inputs'!JI73),'Govt bond inputs'!JI73,"") ->  | JJ17: =IF(ISNUMBER('Govt bond inputs'!JJ73),'Govt bond inputs'!JJ73,"") ->  | JK17: =IF(ISNUMBER('Govt bond inputs'!JK73),'Govt bond inputs'!JK73,"") ->  | JL17: =IF(ISNUMBER('Govt bond inputs'!JL73),'Govt bond inputs'!JL73,"") ->  | JM17: =IF(ISNUMBER('Govt bond inputs'!JM73),'Govt bond inputs'!JM73,"") ->  | JN17: =IF(ISNUMBER('Govt bond inputs'!JN73),'Govt bond inputs'!JN73,"") ->  | JO17: =IF(ISNUMBER('Govt bond inputs'!JO73),'Govt bond inputs'!JO73,"") ->  | JP17: =IF(ISNUMBER('Govt bond inputs'!JP73),'Govt bond inputs'!JP73,"") ->  | JQ17: =IF(ISNUMBER('Govt bond inputs'!JQ73),'Govt bond inputs'!JQ73,"") -> 
B18: ='Govt bond inputs'!D74 -> 0 | C18: =IF('Govt bond inputs'!H74="NR", 'Govt bond inputs'!G74, 'Govt bond inputs'!H74) -> 0 | D18: ='Govt bond inputs'!L74 -> 0 | E18: ='Govt bond inputs'!O74 -> 0 | Q18: =IF(ISNUMBER('Govt bond inputs'!Q74),'Govt bond inputs'!Q74,"") ->  | R18: =IF(ISNUMBER('Govt bond inputs'!R74),'Govt bond inputs'!R74,"") ->  | S18: =IF(ISNUMBER('Govt bond inputs'!S74),'Govt bond inputs'!S74,"") ->  | T18: =IF(ISNUMBER('Govt bond inputs'!T74),'Govt bond inputs'!T74,"") ->  | U18: =IF(ISNUMBER('Govt bond inputs'!U74),'Govt bond inputs'!U74,"") ->  | V18: =IF(ISNUMBER('Govt bond inputs'!V74),'Govt bond inputs'!V74,"") ->  | W18: =IF(ISNUMBER('Govt bond inputs'!W74),'Govt bond inputs'!W74,"") ->  | X18: =IF(ISNUMBER('Govt bond inputs'!X74),'Govt bond inputs'!X74,"") ->  | Y18: =IF(ISNUMBER('Govt bond inputs'!Y74),'Govt bond inputs'!Y74,"") ->  | Z18: =IF(ISNUMBER('Govt bond inputs'!Z74),'Govt bond inputs'!Z74,"") ->  | AA18: =IF(ISNUMBER('Govt bond inputs'!AA74),'Govt bond inputs'!AA74,"") ->  | AB18: =IF(ISNUMBER('Govt bond inputs'!AB74),'Govt bond inputs'!AB74,"") ->  | AC18: =IF(ISNUMBER('Govt bond inputs'!AC74),'Govt bond inputs'!AC74,"") ->  | AD18: =IF(ISNUMBER('Govt bond inputs'!AD74),'Govt bond inputs'!AD74,"") ->  | AE18: =IF(ISNUMBER('Govt bond inputs'!AE74),'Govt bond inputs'!AE74,"") ->  | AF18: =IF(ISNUMBER('Govt bond inputs'!AF74),'Govt bond inputs'!AF74,"") ->  | AG18: =IF(ISNUMBER('Govt bond inputs'!AG74),'Govt bond inputs'!AG74,"") ->  | AH18: =IF(ISNUMBER('Govt bond inputs'!AH74),'Govt bond inputs'!AH74,"") ->  | AI18: =IF(ISNUMBER('Govt bond inputs'!AI74),'Govt bond inputs'!AI74,"") ->  | AJ18: =IF(ISNUMBER('Govt bond inputs'!AJ74),'Govt bond inputs'!AJ74,"") ->  | AK18: =IF(ISNUMBER('Govt bond inputs'!AK74),'Govt bond inputs'!AK74,"") ->  | AL18: =IF(ISNUMBER('Govt bond inputs'!AL74),'Govt bond inputs'!AL74,"") ->  | AM18: =IF(ISNUMBER('Govt bond inputs'!AM74),'Govt bond inputs'!AM74,"") ->  | AN18: =IF(ISNUMBER('Govt bond inputs'!AN74),'Govt bond inputs'!AN74,"") ->  | AO18: =IF(ISNUMBER('Govt bond inputs'!AO74),'Govt bond inputs'!AO74,"") ->  | AP18: =IF(ISNUMBER('Govt bond inputs'!AP74),'Govt bond inputs'!AP74,"") ->  | AQ18: =IF(ISNUMBER('Govt bond inputs'!AQ74),'Govt bond inputs'!AQ74,"") ->  | AR18: =IF(ISNUMBER('Govt bond inputs'!AR74),'Govt bond inputs'!AR74,"") ->  | AS18: =IF(ISNUMBER('Govt bond inputs'!AS74),'Govt bond inputs'!AS74,"") ->  | AT18: =IF(ISNUMBER('Govt bond inputs'!AT74),'Govt bond inputs'!AT74,"") ->  | AU18: =IF(ISNUMBER('Govt bond inputs'!AU74),'Govt bond inputs'!AU74,"") ->  | AV18: =IF(ISNUMBER('Govt bond inputs'!AV74),'Govt bond inputs'!AV74,"") ->  | AW18: =IF(ISNUMBER('Govt bond inputs'!AW74),'Govt bond inputs'!AW74,"") ->  | AX18: =IF(ISNUMBER('Govt bond inputs'!AX74),'Govt bond inputs'!AX74,"") ->  | AY18: =IF(ISNUMBER('Govt bond inputs'!AY74),'Govt bond inputs'!AY74,"") ->  | AZ18: =IF(ISNUMBER('Govt bond inputs'!AZ74),'Govt bond inputs'!AZ74,"") ->  | BA18: =IF(ISNUMBER('Govt bond inputs'!BA74),'Govt bond inputs'!BA74,"") ->  | BB18: =IF(ISNUMBER('Govt bond inputs'!BB74),'Govt bond inputs'!BB74,"") ->  | BC18: =IF(ISNUMBER('Govt bond inputs'!BC74),'Govt bond inputs'!BC74,"") ->  | BD18: =IF(ISNUMBER('Govt bond inputs'!BD74),'Govt bond inputs'!BD74,"") ->  | BE18: =IF(ISNUMBER('Govt bond inputs'!BE74),'Govt bond inputs'!BE74,"") ->  | BF18: =IF(ISNUMBER('Govt bond inputs'!BF74),'Govt bond inputs'!BF74,"") ->  | BG18: =IF(ISNUMBER('Govt bond inputs'!BG74),'Govt bond inputs'!BG74,"") ->  | BH18: =IF(ISNUMBER('Govt bond inputs'!BH74),'Govt bond inputs'!BH74,"") ->  | BI18: =IF(ISNUMBER('Govt bond inputs'!BI74),'Govt bond inputs'!BI74,"") ->  | BJ18: =IF(ISNUMBER('Govt bond inputs'!BJ74),'Govt bond inputs'!BJ74,"") ->  | BK18: =IF(ISNUMBER('Govt bond inputs'!BK74),'Govt bond inputs'!BK74,"") ->  | BL18: =IF(ISNUMBER('Govt bond inputs'!BL74),'Govt bond inputs'!BL74,"") ->  | BM18: =IF(ISNUMBER('Govt bond inputs'!BM74),'Govt bond inputs'!BM74,"") ->  | BN18: =IF(ISNUMBER('Govt bond inputs'!BN74),'Govt bond inputs'!BN74,"") ->  | BO18: =IF(ISNUMBER('Govt bond inputs'!BO74),'Govt bond inputs'!BO74,"") ->  | BP18: =IF(ISNUMBER('Govt bond inputs'!BP74),'Govt bond inputs'!BP74,"") ->  | BQ18: =IF(ISNUMBER('Govt bond inputs'!BQ74),'Govt bond inputs'!BQ74,"") ->  | BR18: =IF(ISNUMBER('Govt bond inputs'!BR74),'Govt bond inputs'!BR74,"") ->  | BS18: =IF(ISNUMBER('Govt bond inputs'!BS74),'Govt bond inputs'!BS74,"") ->  | BT18: =IF(ISNUMBER('Govt bond inputs'!BT74),'Govt bond inputs'!BT74,"") ->  | BU18: =IF(ISNUMBER('Govt bond inputs'!BU74),'Govt bond inputs'!BU74,"") ->  | BV18: =IF(ISNUMBER('Govt bond inputs'!BV74),'Govt bond inputs'!BV74,"") ->  | BW18: =IF(ISNUMBER('Govt bond inputs'!BW74),'Govt bond inputs'!BW74,"") ->  | BX18: =IF(ISNUMBER('Govt bond inputs'!BX74),'Govt bond inputs'!BX74,"") ->  | BY18: =IF(ISNUMBER('Govt bond inputs'!BY74),'Govt bond inputs'!BY74,"") ->  | BZ18: =IF(ISNUMBER('Govt bond inputs'!BZ74),'Govt bond inputs'!BZ74,"") ->  | CA18: =IF(ISNUMBER('Govt bond inputs'!CA74),'Govt bond inputs'!CA74,"") ->  | CB18: =IF(ISNUMBER('Govt bond inputs'!CB74),'Govt bond inputs'!CB74,"") ->  | CC18: =IF(ISNUMBER('Govt bond inputs'!CC74),'Govt bond inputs'!CC74,"") ->  | CD18: =IF(ISNUMBER('Govt bond inputs'!CD74),'Govt bond inputs'!CD74,"") ->  | CE18: =IF(ISNUMBER('Govt bond inputs'!CE74),'Govt bond inputs'!CE74,"") ->  | CF18: =IF(ISNUMBER('Govt bond inputs'!CF74),'Govt bond inputs'!CF74,"") ->  | CG18: =IF(ISNUMBER('Govt bond inputs'!CG74),'Govt bond inputs'!CG74,"") ->  | CH18: =IF(ISNUMBER('Govt bond inputs'!CH74),'Govt bond inputs'!CH74,"") ->  | CI18: =IF(ISNUMBER('Govt bond inputs'!CI74),'Govt bond inputs'!CI74,"") ->  | CJ18: =IF(ISNUMBER('Govt bond inputs'!CJ74),'Govt bond inputs'!CJ74,"") ->  | CK18: =IF(ISNUMBER('Govt bond inputs'!CK74),'Govt bond inputs'!CK74,"") ->  | CL18: =IF(ISNUMBER('Govt bond inputs'!CL74),'Govt bond inputs'!CL74,"") ->  | CM18: =IF(ISNUMBER('Govt bond inputs'!CM74),'Govt bond inputs'!CM74,"") ->  | CN18: =IF(ISNUMBER('Govt bond inputs'!CN74),'Govt bond inputs'!CN74,"") ->  | CO18: =IF(ISNUMBER('Govt bond inputs'!CO74),'Govt bond inputs'!CO74,"") ->  | CP18: =IF(ISNUMBER('Govt bond inputs'!CP74),'Govt bond inputs'!CP74,"") ->  | CQ18: =IF(ISNUMBER('Govt bond inputs'!CQ74),'Govt bond inputs'!CQ74,"") ->  | CR18: =IF(ISNUMBER('Govt bond inputs'!CR74),'Govt bond inputs'!CR74,"") ->  | CS18: =IF(ISNUMBER('Govt bond inputs'!CS74),'Govt bond inputs'!CS74,"") ->  | CT18: =IF(ISNUMBER('Govt bond inputs'!CT74),'Govt bond inputs'!CT74,"") ->  | CU18: =IF(ISNUMBER('Govt bond inputs'!CU74),'Govt bond inputs'!CU74,"") ->  | CV18: =IF(ISNUMBER('Govt bond inputs'!CV74),'Govt bond inputs'!CV74,"") ->  | CW18: =IF(ISNUMBER('Govt bond inputs'!CW74),'Govt bond inputs'!CW74,"") ->  | CX18: =IF(ISNUMBER('Govt bond inputs'!CX74),'Govt bond inputs'!CX74,"") ->  | CY18: =IF(ISNUMBER('Govt bond inputs'!CY74),'Govt bond inputs'!CY74,"") ->  | CZ18: =IF(ISNUMBER('Govt bond inputs'!CZ74),'Govt bond inputs'!CZ74,"") ->  | DA18: =IF(ISNUMBER('Govt bond inputs'!DA74),'Govt bond inputs'!DA74,"") ->  | DB18: =IF(ISNUMBER('Govt bond inputs'!DB74),'Govt bond inputs'!DB74,"") ->  | DC18: =IF(ISNUMBER('Govt bond inputs'!DC74),'Govt bond inputs'!DC74,"") ->  | DD18: =IF(ISNUMBER('Govt bond inputs'!DD74),'Govt bond inputs'!DD74,"") ->  | DE18: =IF(ISNUMBER('Govt bond inputs'!DE74),'Govt bond inputs'!DE74,"") ->  | DF18: =IF(ISNUMBER('Govt bond inputs'!DF74),'Govt bond inputs'!DF74,"") ->  | DG18: =IF(ISNUMBER('Govt bond inputs'!DG74),'Govt bond inputs'!DG74,"") ->  | DH18: =IF(ISNUMBER('Govt bond inputs'!DH74),'Govt bond inputs'!DH74,"") ->  | DI18: =IF(ISNUMBER('Govt bond inputs'!DI74),'Govt bond inputs'!DI74,"") ->  | DJ18: =IF(ISNUMBER('Govt bond inputs'!DJ74),'Govt bond inputs'!DJ74,"") ->  | DK18: =IF(ISNUMBER('Govt bond inputs'!DK74),'Govt bond inputs'!DK74,"") ->  | DL18: =IF(ISNUMBER('Govt bond inputs'!DL74),'Govt bond inputs'!DL74,"") ->  | DM18: =IF(ISNUMBER('Govt bond inputs'!DM74),'Govt bond inputs'!DM74,"") ->  | DN18: =IF(ISNUMBER('Govt bond inputs'!DN74),'Govt bond inputs'!DN74,"") ->  | DO18: =IF(ISNUMBER('Govt bond inputs'!DO74),'Govt bond inputs'!DO74,"") ->  | DP18: =IF(ISNUMBER('Govt bond inputs'!DP74),'Govt bond inputs'!DP74,"") ->  | DQ18: =IF(ISNUMBER('Govt bond inputs'!DQ74),'Govt bond inputs'!DQ74,"") ->  | DR18: =IF(ISNUMBER('Govt bond inputs'!DR74),'Govt bond inputs'!DR74,"") ->  | DS18: =IF(ISNUMBER('Govt bond inputs'!DS74),'Govt bond inputs'!DS74,"") ->  | DT18: =IF(ISNUMBER('Govt bond inputs'!DT74),'Govt bond inputs'!DT74,"") ->  | DU18: =IF(ISNUMBER('Govt bond inputs'!DU74),'Govt bond inputs'!DU74,"") ->  | DV18: =IF(ISNUMBER('Govt bond inputs'!DV74),'Govt bond inputs'!DV74,"") ->  | DW18: =IF(ISNUMBER('Govt bond inputs'!DW74),'Govt bond inputs'!DW74,"") ->  | DX18: =IF(ISNUMBER('Govt bond inputs'!DX74),'Govt bond inputs'!DX74,"") ->  | DY18: =IF(ISNUMBER('Govt bond inputs'!DY74),'Govt bond inputs'!DY74,"") ->  | DZ18: =IF(ISNUMBER('Govt bond inputs'!DZ74),'Govt bond inputs'!DZ74,"") ->  | EA18: =IF(ISNUMBER('Govt bond inputs'!EA74),'Govt bond inputs'!EA74,"") ->  | EB18: =IF(ISNUMBER('Govt bond inputs'!EB74),'Govt bond inputs'!EB74,"") ->  | EC18: =IF(ISNUMBER('Govt bond inputs'!EC74),'Govt bond inputs'!EC74,"") ->  | ED18: =IF(ISNUMBER('Govt bond inputs'!ED74),'Govt bond inputs'!ED74,"") ->  | EE18: =IF(ISNUMBER('Govt bond inputs'!EE74),'Govt bond inputs'!EE74,"") ->  | EF18: =IF(ISNUMBER('Govt bond inputs'!EF74),'Govt bond inputs'!EF74,"") ->  | EG18: =IF(ISNUMBER('Govt bond inputs'!EG74),'Govt bond inputs'!EG74,"") ->  | EH18: =IF(ISNUMBER('Govt bond inputs'!EH74),'Govt bond inputs'!EH74,"") ->  | EI18: =IF(ISNUMBER('Govt bond inputs'!EI74),'Govt bond inputs'!EI74,"") ->  | EJ18: =IF(ISNUMBER('Govt bond inputs'!EJ74),'Govt bond inputs'!EJ74,"") ->  | EK18: =IF(ISNUMBER('Govt bond inputs'!EK74),'Govt bond inputs'!EK74,"") ->  | EL18: =IF(ISNUMBER('Govt bond inputs'!EL74),'Govt bond inputs'!EL74,"") ->  | EM18: =IF(ISNUMBER('Govt bond inputs'!EM74),'Govt bond inputs'!EM74,"") ->  | EN18: =IF(ISNUMBER('Govt bond inputs'!EN74),'Govt bond inputs'!EN74,"") ->  | EO18: =IF(ISNUMBER('Govt bond inputs'!EO74),'Govt bond inputs'!EO74,"") ->  | EP18: =IF(ISNUMBER('Govt bond inputs'!EP74),'Govt bond inputs'!EP74,"") ->  | EQ18: =IF(ISNUMBER('Govt bond inputs'!EQ74),'Govt bond inputs'!EQ74,"") ->  | ER18: =IF(ISNUMBER('Govt bond inputs'!ER74),'Govt bond inputs'!ER74,"") ->  | ES18: =IF(ISNUMBER('Govt bond inputs'!ES74),'Govt bond inputs'!ES74,"") ->  | ET18: =IF(ISNUMBER('Govt bond inputs'!ET74),'Govt bond inputs'!ET74,"") ->  | EU18: =IF(ISNUMBER('Govt bond inputs'!EU74),'Govt bond inputs'!EU74,"") ->  | EV18: =IF(ISNUMBER('Govt bond inputs'!EV74),'Govt bond inputs'!EV74,"") ->  | EW18: =IF(ISNUMBER('Govt bond inputs'!EW74),'Govt bond inputs'!EW74,"") ->  | EX18: =IF(ISNUMBER('Govt bond inputs'!EX74),'Govt bond inputs'!EX74,"") ->  | EY18: =IF(ISNUMBER('Govt bond inputs'!EY74),'Govt bond inputs'!EY74,"") ->  | EZ18: =IF(ISNUMBER('Govt bond inputs'!EZ74),'Govt bond inputs'!EZ74,"") ->  | FA18: =IF(ISNUMBER('Govt bond inputs'!FA74),'Govt bond inputs'!FA74,"") ->  | FB18: =IF(ISNUMBER('Govt bond inputs'!FB74),'Govt bond inputs'!FB74,"") ->  | FC18: =IF(ISNUMBER('Govt bond inputs'!FC74),'Govt bond inputs'!FC74,"") ->  | FD18: =IF(ISNUMBER('Govt bond inputs'!FD74),'Govt bond inputs'!FD74,"") ->  | FE18: =IF(ISNUMBER('Govt bond inputs'!FE74),'Govt bond inputs'!FE74,"") ->  | FF18: =IF(ISNUMBER('Govt bond inputs'!FF74),'Govt bond inputs'!FF74,"") ->  | FG18: =IF(ISNUMBER('Govt bond inputs'!FG74),'Govt bond inputs'!FG74,"") ->  | FH18: =IF(ISNUMBER('Govt bond inputs'!FH74),'Govt bond inputs'!FH74,"") ->  | FI18: =IF(ISNUMBER('Govt bond inputs'!FI74),'Govt bond inputs'!FI74,"") ->  | FJ18: =IF(ISNUMBER('Govt bond inputs'!FJ74),'Govt bond inputs'!FJ74,"") ->  | FK18: =IF(ISNUMBER('Govt bond inputs'!FK74),'Govt bond inputs'!FK74,"") ->  | FL18: =IF(ISNUMBER('Govt bond inputs'!FL74),'Govt bond inputs'!FL74,"") ->  | FM18: =IF(ISNUMBER('Govt bond inputs'!FM74),'Govt bond inputs'!FM74,"") ->  | FN18: =IF(ISNUMBER('Govt bond inputs'!FN74),'Govt bond inputs'!FN74,"") ->  | FO18: =IF(ISNUMBER('Govt bond inputs'!FO74),'Govt bond inputs'!FO74,"") ->  | FP18: =IF(ISNUMBER('Govt bond inputs'!FP74),'Govt bond inputs'!FP74,"") ->  | FQ18: =IF(ISNUMBER('Govt bond inputs'!FQ74),'Govt bond inputs'!FQ74,"") ->  | FR18: =IF(ISNUMBER('Govt bond inputs'!FR74),'Govt bond inputs'!FR74,"") ->  | FS18: =IF(ISNUMBER('Govt bond inputs'!FS74),'Govt bond inputs'!FS74,"") ->  | FT18: =IF(ISNUMBER('Govt bond inputs'!FT74),'Govt bond inputs'!FT74,"") ->  | FU18: =IF(ISNUMBER('Govt bond inputs'!FU74),'Govt bond inputs'!FU74,"") ->  | FV18: =IF(ISNUMBER('Govt bond inputs'!FV74),'Govt bond inputs'!FV74,"") ->  | FW18: =IF(ISNUMBER('Govt bond inputs'!FW74),'Govt bond inputs'!FW74,"") ->  | FX18: =IF(ISNUMBER('Govt bond inputs'!FX74),'Govt bond inputs'!FX74,"") ->  | FY18: =IF(ISNUMBER('Govt bond inputs'!FY74),'Govt bond inputs'!FY74,"") ->  | FZ18: =IF(ISNUMBER('Govt bond inputs'!FZ74),'Govt bond inputs'!FZ74,"") ->  | GA18: =IF(ISNUMBER('Govt bond inputs'!GA74),'Govt bond inputs'!GA74,"") ->  | GB18: =IF(ISNUMBER('Govt bond inputs'!GB74),'Govt bond inputs'!GB74,"") ->  | GC18: =IF(ISNUMBER('Govt bond inputs'!GC74),'Govt bond inputs'!GC74,"") ->  | GD18: =IF(ISNUMBER('Govt bond inputs'!GD74),'Govt bond inputs'!GD74,"") ->  | GE18: =IF(ISNUMBER('Govt bond inputs'!GE74),'Govt bond inputs'!GE74,"") ->  | GF18: =IF(ISNUMBER('Govt bond inputs'!GF74),'Govt bond inputs'!GF74,"") ->  | GG18: =IF(ISNUMBER('Govt bond inputs'!GG74),'Govt bond inputs'!GG74,"") ->  | GH18: =IF(ISNUMBER('Govt bond inputs'!GH74),'Govt bond inputs'!GH74,"") ->  | GI18: =IF(ISNUMBER('Govt bond inputs'!GI74),'Govt bond inputs'!GI74,"") ->  | GJ18: =IF(ISNUMBER('Govt bond inputs'!GJ74),'Govt bond inputs'!GJ74,"") ->  | GK18: =IF(ISNUMBER('Govt bond inputs'!GK74),'Govt bond inputs'!GK74,"") ->  | GL18: =IF(ISNUMBER('Govt bond inputs'!GL74),'Govt bond inputs'!GL74,"") ->  | GM18: =IF(ISNUMBER('Govt bond inputs'!GM74),'Govt bond inputs'!GM74,"") ->  | GN18: =IF(ISNUMBER('Govt bond inputs'!GN74),'Govt bond inputs'!GN74,"") ->  | GO18: =IF(ISNUMBER('Govt bond inputs'!GO74),'Govt bond inputs'!GO74,"") ->  | GP18: =IF(ISNUMBER('Govt bond inputs'!GP74),'Govt bond inputs'!GP74,"") ->  | GQ18: =IF(ISNUMBER('Govt bond inputs'!GQ74),'Govt bond inputs'!GQ74,"") ->  | GR18: =IF(ISNUMBER('Govt bond inputs'!GR74),'Govt bond inputs'!GR74,"") ->  | GS18: =IF(ISNUMBER('Govt bond inputs'!GS74),'Govt bond inputs'!GS74,"") ->  | GT18: =IF(ISNUMBER('Govt bond inputs'!GT74),'Govt bond inputs'!GT74,"") ->  | GU18: =IF(ISNUMBER('Govt bond inputs'!GU74),'Govt bond inputs'!GU74,"") ->  | GV18: =IF(ISNUMBER('Govt bond inputs'!GV74),'Govt bond inputs'!GV74,"") ->  | GW18: =IF(ISNUMBER('Govt bond inputs'!GW74),'Govt bond inputs'!GW74,"") ->  | GX18: =IF(ISNUMBER('Govt bond inputs'!GX74),'Govt bond inputs'!GX74,"") ->  | GY18: =IF(ISNUMBER('Govt bond inputs'!GY74),'Govt bond inputs'!GY74,"") ->  | GZ18: =IF(ISNUMBER('Govt bond inputs'!GZ74),'Govt bond inputs'!GZ74,"") ->  | HA18: =IF(ISNUMBER('Govt bond inputs'!HA74),'Govt bond inputs'!HA74,"") ->  | HB18: =IF(ISNUMBER('Govt bond inputs'!HB74),'Govt bond inputs'!HB74,"") ->  | HC18: =IF(ISNUMBER('Govt bond inputs'!HC74),'Govt bond inputs'!HC74,"") ->  | HD18: =IF(ISNUMBER('Govt bond inputs'!HD74),'Govt bond inputs'!HD74,"") ->  | HE18: =IF(ISNUMBER('Govt bond inputs'!HE74),'Govt bond inputs'!HE74,"") ->  | HF18: =IF(ISNUMBER('Govt bond inputs'!HF74),'Govt bond inputs'!HF74,"") ->  | HG18: =IF(ISNUMBER('Govt bond inputs'!HG74),'Govt bond inputs'!HG74,"") ->  | HH18: =IF(ISNUMBER('Govt bond inputs'!HH74),'Govt bond inputs'!HH74,"") ->  | HI18: =IF(ISNUMBER('Govt bond inputs'!HI74),'Govt bond inputs'!HI74,"") ->  | HJ18: =IF(ISNUMBER('Govt bond inputs'!HJ74),'Govt bond inputs'!HJ74,"") ->  | HK18: =IF(ISNUMBER('Govt bond inputs'!HK74),'Govt bond inputs'!HK74,"") ->  | HL18: =IF(ISNUMBER('Govt bond inputs'!HL74),'Govt bond inputs'!HL74,"") ->  | HM18: =IF(ISNUMBER('Govt bond inputs'!HM74),'Govt bond inputs'!HM74,"") ->  | HN18: =IF(ISNUMBER('Govt bond inputs'!HN74),'Govt bond inputs'!HN74,"") ->  | HO18: =IF(ISNUMBER('Govt bond inputs'!HO74),'Govt bond inputs'!HO74,"") ->  | HP18: =IF(ISNUMBER('Govt bond inputs'!HP74),'Govt bond inputs'!HP74,"") ->  | HQ18: =IF(ISNUMBER('Govt bond inputs'!HQ74),'Govt bond inputs'!HQ74,"") ->  | HR18: =IF(ISNUMBER('Govt bond inputs'!HR74),'Govt bond inputs'!HR74,"") ->  | HS18: =IF(ISNUMBER('Govt bond inputs'!HS74),'Govt bond inputs'!HS74,"") ->  | HT18: =IF(ISNUMBER('Govt bond inputs'!HT74),'Govt bond inputs'!HT74,"") ->  | HU18: =IF(ISNUMBER('Govt bond inputs'!HU74),'Govt bond inputs'!HU74,"") ->  | HV18: =IF(ISNUMBER('Govt bond inputs'!HV74),'Govt bond inputs'!HV74,"") ->  | HW18: =IF(ISNUMBER('Govt bond inputs'!HW74),'Govt bond inputs'!HW74,"") ->  | HX18: =IF(ISNUMBER('Govt bond inputs'!HX74),'Govt bond inputs'!HX74,"") ->  | HY18: =IF(ISNUMBER('Govt bond inputs'!HY74),'Govt bond inputs'!HY74,"") ->  | HZ18: =IF(ISNUMBER('Govt bond inputs'!HZ74),'Govt bond inputs'!HZ74,"") ->  | IA18: =IF(ISNUMBER('Govt bond inputs'!IA74),'Govt bond inputs'!IA74,"") ->  | IB18: =IF(ISNUMBER('Govt bond inputs'!IB74),'Govt bond inputs'!IB74,"") ->  | IC18: =IF(ISNUMBER('Govt bond inputs'!IC74),'Govt bond inputs'!IC74,"") ->  | ID18: =IF(ISNUMBER('Govt bond inputs'!ID74),'Govt bond inputs'!ID74,"") ->  | IE18: =IF(ISNUMBER('Govt bond inputs'!IE74),'Govt bond inputs'!IE74,"") ->  | IF18: =IF(ISNUMBER('Govt bond inputs'!IF74),'Govt bond inputs'!IF74,"") ->  | IG18: =IF(ISNUMBER('Govt bond inputs'!IG74),'Govt bond inputs'!IG74,"") ->  | IH18: =IF(ISNUMBER('Govt bond inputs'!IH74),'Govt bond inputs'!IH74,"") ->  | II18: =IF(ISNUMBER('Govt bond inputs'!II74),'Govt bond inputs'!II74,"") ->  | IJ18: =IF(ISNUMBER('Govt bond inputs'!IJ74),'Govt bond inputs'!IJ74,"") ->  | IK18: =IF(ISNUMBER('Govt bond inputs'!IK74),'Govt bond inputs'!IK74,"") ->  | IL18: =IF(ISNUMBER('Govt bond inputs'!IL74),'Govt bond inputs'!IL74,"") ->  | IM18: =IF(ISNUMBER('Govt bond inputs'!IM74),'Govt bond inputs'!IM74,"") ->  | IN18: =IF(ISNUMBER('Govt bond inputs'!IN74),'Govt bond inputs'!IN74,"") ->  | IO18: =IF(ISNUMBER('Govt bond inputs'!IO74),'Govt bond inputs'!IO74,"") ->  | IP18: =IF(ISNUMBER('Govt bond inputs'!IP74),'Govt bond inputs'!IP74,"") ->  | IQ18: =IF(ISNUMBER('Govt bond inputs'!IQ74),'Govt bond inputs'!IQ74,"") ->  | IR18: =IF(ISNUMBER('Govt bond inputs'!IR74),'Govt bond inputs'!IR74,"") ->  | IS18: =IF(ISNUMBER('Govt bond inputs'!IS74),'Govt bond inputs'!IS74,"") ->  | IT18: =IF(ISNUMBER('Govt bond inputs'!IT74),'Govt bond inputs'!IT74,"") ->  | IU18: =IF(ISNUMBER('Govt bond inputs'!IU74),'Govt bond inputs'!IU74,"") ->  | IV18: =IF(ISNUMBER('Govt bond inputs'!IV74),'Govt bond inputs'!IV74,"") ->  | IW18: =IF(ISNUMBER('Govt bond inputs'!IW74),'Govt bond inputs'!IW74,"") ->  | IX18: =IF(ISNUMBER('Govt bond inputs'!IX74),'Govt bond inputs'!IX74,"") ->  | IY18: =IF(ISNUMBER('Govt bond inputs'!IY74),'Govt bond inputs'!IY74,"") ->  | IZ18: =IF(ISNUMBER('Govt bond inputs'!IZ74),'Govt bond inputs'!IZ74,"") ->  | JA18: =IF(ISNUMBER('Govt bond inputs'!JA74),'Govt bond inputs'!JA74,"") ->  | JB18: =IF(ISNUMBER('Govt bond inputs'!JB74),'Govt bond inputs'!JB74,"") ->  | JC18: =IF(ISNUMBER('Govt bond inputs'!JC74),'Govt bond inputs'!JC74,"") ->  | JD18: =IF(ISNUMBER('Govt bond inputs'!JD74),'Govt bond inputs'!JD74,"") ->  | JE18: =IF(ISNUMBER('Govt bond inputs'!JE74),'Govt bond inputs'!JE74,"") ->  | JF18: =IF(ISNUMBER('Govt bond inputs'!JF74),'Govt bond inputs'!JF74,"") ->  | JG18: =IF(ISNUMBER('Govt bond inputs'!JG74),'Govt bond inputs'!JG74,"") ->  | JH18: =IF(ISNUMBER('Govt bond inputs'!JH74),'Govt bond inputs'!JH74,"") ->  | JI18: =IF(ISNUMBER('Govt bond inputs'!JI74),'Govt bond inputs'!JI74,"") ->  | JJ18: =IF(ISNUMBER('Govt bond inputs'!JJ74),'Govt bond inputs'!JJ74,"") ->  | JK18: =IF(ISNUMBER('Govt bond inputs'!JK74),'Govt bond inputs'!JK74,"") ->  | JL18: =IF(ISNUMBER('Govt bond inputs'!JL74),'Govt bond inputs'!JL74,"") ->  | JM18: =IF(ISNUMBER('Govt bond inputs'!JM74),'Govt bond inputs'!JM74,"") ->  | JN18: =IF(ISNUMBER('Govt bond inputs'!JN74),'Govt bond inputs'!JN74,"") ->  | JO18: =IF(ISNUMBER('Govt bond inputs'!JO74),'Govt bond inputs'!JO74,"") ->  | JP18: =IF(ISNUMBER('Govt bond inputs'!JP74),'Govt bond inputs'!JP74,"") ->  | JQ18: =IF(ISNUMBER('Govt bond inputs'!JQ74),'Govt bond inputs'!JQ74,"") -> 
